Workbook

Sheet Introduction
W17: Ohio Department of Transportation

Sheet Abbreviations & Assumptions
B1: Capacity Analysis for Planning of Junctions Capacity Analysis for Planning of Junctions | BK1: Capacity Analysis for Planning of Junctions Capacity Analysis for Planning of Junctions
B3: Abbreviation Definitions | BK3: Intersection-Specific Assumptions
B34: General Assumptions
B51: Shared Lane Configuration Options
C63: 0,1,0 | Q63: 0,2,0 | AE63: 0,1,1 | AS63: 1,1,0

Sheet Changelog
A1: Capacity Analysis for Planning of Junctions
A3: Changelog
C6: 10/25/2018 (V3.0.0) | J6: Initial Release of Version 3.0.0 Update
C10: 8/14/2019 (V3.0.1) | J10: Updated labeling of 1x2 and 2x1 roundabouts to more accurately reflect that they represent 1NS x 2EW and 2NS x 1EW, respectively. Additionally, fixed issue where the incorrect major street alternative intersection was being displayed as the exising conditions in the 2 - Base and Alt Sel tab for some 3-leg intersection configurations.
C16: 5/4/2022 (ODOT V1.0) | J16: Initial Release of ODOT Version. Created new pedestrian and bicycle methodologies and updated Multimodal Ped and Multimodal Bike worksheets
C22: 2022-11-22 | J22: Multi-Modal Pedestrian and Bike Accomodation representative score formulae adjusted to accommodate Diagonal and Loop Ramp Speeds unlike the old version where the ramp speeds were being considered as Minor/Major Street vehicular speeds based on the orientation context. Other formatting & formulae changes throughout the tool with a few macro code fixes as relevant.
C28: 2023-08-15 | J28: Corrected errors with alternative selection drop-down lists and associated macros that prevented some roundabout results from displaying

Sheet 1 - Volume Input
B1: Capacity Analysis for Planning of Junctions
B3: Step 1
E8: Project Name: | M8: Cap-X Sample Street
E10: Project Number: | M10: 10000
E12: Location | M12: Anywhere, USA
E14: Date | M14: 2017 AM
E16: Number of Intersection Legs | M16: 4 | BH16: 3 | BI16: N
BH17: 4 | BI17: S
E18: Major Street Direction | M18: North-South | BG18: North-South | BH18: =IF(Input_MajorStreetDirection="North-South","East-West","North-South") -> East-West | BI18: E
BG19: East-West | BI19: W
E20: Which leg is the minor street? | M20: N
E22: Traffic Volume Demand
K24: Volume (Veh/hr) | AQ24: Percent (%)
K26: U-Turn | S26: Left | AA26: Thru | AI26: Right | AQ26: Heavy Vehicles | AY26: Volume Growth
E32: Eastbound | K32: 0 | S32: 300 | AA32: 1000 | AI32: 200 | AQ32: 0.02 | AY32: 0
E34: Westbound | K34: 0 | S34: 333 | AA34: 1111 | AI34: 222 | AQ34: 0.02 | AY34: 0
E36: Southbound | K36: 0 | S36: 30 | AA36: 212 | AI36: 50 | AQ36: 0.02 | AY36: 0
E38: Northbound | K38: 0 | S38: 100 | AA38: 300 | AI38: 175 | AQ38: 0.02 | AY38: 0
BH39: Low
E40: Adjustment Factor | K40: 0.8 | S40: 0.95 | AI40: 0.85 | BH40: Medium
BH41: High
E42: Suggested | K42: 0.8 | S42: 0.95 | AI42: 0.85
E44: Truck to PCE Factor | AI44: Suggested = 2.00 | AU44: 2
E46: Jump to Multimodal Sheets | AI46: Multimodal Ped | AU46: Multimodal Bike
E48: E-W / Crossing East-West Legs | W48: =IF(Multimodal=1,"Low",IF(Multimodal=2,"Medium","High")) -> High | AI48: =IF(Multimodal=1,"Low",IF(Multimodal=2,"Medium","High")) -> High | AU48: =IF(Multimodal=1,"Low",IF(Multimodal=2,"Medium","High")) -> High
E50: Westbound / Crossing East Leg | W50: =IF(Multimodal=1,"Low",IF(Multimodal=2,"Medium","High")) -> High | AI50: =IF(Multimodal=1,"Low",IF(Multimodal=2,"Medium","High")) -> High | AU50: =IF(Multimodal=1,"Low",IF(Multimodal=2,"Medium","High")) -> High
E52: N-S / Crossing North-South Legs | W52: =IF(Multimodal=1,"Low",IF(Multimodal=2,"Medium","High")) -> High | AI52: =IF(Multimodal=1,"Low",IF(Multimodal=2,"Medium","High")) -> High | AU52: =IF(Multimodal=1,"Low",IF(Multimodal=2,"Medium","High")) -> High
E54: Northbound / Crossing South Leg | W54: =IF(Multimodal=1,"Low",IF(Multimodal=2,"Medium","High")) -> High | AI54: =IF(Multimodal=1,"Low",IF(Multimodal=2,"Medium","High")) -> High | AU54: =IF(Multimodal=1,"Low",IF(Multimodal=2,"Medium","High")) -> High
E56: Critical Lane Volume Sum Limit | O56: 2-phase signal | W56: Suggested = 1800 (Urban), 1650 (Rural) | AU56: 1800
O58: 3-phase signal | W58: Suggested = 1750 (Urban), 1600 (Rural) | AU58: 1750
O60: 4-phase signal | W60: Suggested = 1700 (Urban), 1550 (Rural) | AU60: 1700
M64: Equivalent Passenger Car Volume | BB64: =IF(W48="Low",1,IF(W48="Medium",2,3)) -> 3 | BC64: =IF(AI48="Low",1,IF(AI48="Medium",2,3)) -> 3 | BG64: =IF(W46=BH39,1,IF(W46=BH40,2,3)) -> 3
S66: Volume (Veh/hr) | BB66: =IF(W50="Low",1,IF(W50="Medium",2,3)) -> 3 | BC66: =IF(AI50="Low",1,IF(AI50="Medium",2,3)) -> 3
S68: U-Turn | AA68: Left | AI68: Thru | AQ68: Right | BB68: =IF(W52="Low",1,IF(W52="Medium",2,3)) -> 3 | BC68: =IF(AI52="Low",1,IF(AI52="Medium",2,3)) -> 3
BB70: =IF(W54="Low",1,IF(W54="Medium",2,3)) -> 3 | BC70: =IF(AI54="Low",1,IF(AI54="Medium",2,3)) -> 3
M74: Eastbound | S74: =+ROUND((K32*(1-EB_Truck_Percentage) +K32* EB_Truck_Percentage*Truck_Adjustment_Factor)*(1+EB_Growth_Factor),0) -> 0 | AA74: =+ROUND((S32*(1-EB_Truck_Percentage) +S32* EB_Truck_Percentage*Truck_Adjustment_Factor)*(1+EB_Growth_Factor),0) -> 306 | AI74: =+ROUND((AA32*(1-EB_Truck_Percentage) +AA32* EB_Truck_Percentage*Truck_Adjustment_Factor)*(1+EB_Growth_Factor),0) -> 1020 | AQ74: =+ROUND((AI32*(1-EB_Truck_Percentage) +AI32* EB_Truck_Percentage*Truck_Adjustment_Factor)*(1+EB_Growth_Factor),0) -> 204
M76: Westbound | S76: =+ROUND((K34*(1-WB_Truck_Percentage) +K34*WB_Truck_Percentage*Truck_Adjustment_Factor)*(1+WB_Growth_Factor),0) -> 0 | AA76: =+ROUND((S34*(1-WB_Truck_Percentage) +S34* WB_Truck_Percentage*Truck_Adjustment_Factor)*(1+WB_Growth_Factor),0) -> 340 | AI76: =+ROUND((AA34*(1-WB_Truck_Percentage) +AA34* WB_Truck_Percentage*Truck_Adjustment_Factor)*(1+WB_Growth_Factor),0) -> 1133 | AQ76: =+ROUND((AI34*(1-WB_Truck_Percentage) +AI34* WB_Truck_Percentage*Truck_Adjustment_Factor)*(1+WB_Growth_Factor),0) -> 226
M78: Southbound | S78: =+ROUND((K36*(1-SB_Truck_Percentage) +K36* SB_Truck_Percentage*Truck_Adjustment_Factor)*(1+SB_Growth_Factor),0) -> 0 | AA78: =+ROUND((S36*(1-SB_Truck_Percentage) +S36* SB_Truck_Percentage*Truck_Adjustment_Factor)*(1+SB_Growth_Factor),0) -> 31 | AI78: =+ROUND((AA36*(1-SB_Truck_Percentage) +AA36* SB_Truck_Percentage*Truck_Adjustment_Factor)*(1+SB_Growth_Factor),0) -> 216 | AQ78: =+ROUND((AI36*(1-SB_Truck_Percentage) +AI36* SB_Truck_Percentage*Truck_Adjustment_Factor)*(1+SB_Growth_Factor),0) -> 51
M80: Northbound | S80: =+ROUND((K38*(1-NB_Truck_Percentage) +K38* NB_Truck_Percentage*Truck_Adjustment_Factor)*(1+NB_Growth_Factor),0) -> 0 | AA80: =+ROUND((S38*(1-NB_Truck_Percentage) +S38* NB_Truck_Percentage*Truck_Adjustment_Factor)*(1+NB_Growth_Factor),0) -> 102 | AI80: =+ROUND((AA38*(1-NB_Truck_Percentage) +AA38* NB_Truck_Percentage*Truck_Adjustment_Factor)*(1+NB_Growth_Factor),0) -> 306 | AQ80: =+ROUND((AI38*(1-NB_Truck_Percentage) +AI38* NB_Truck_Percentage*Truck_Adjustment_Factor)*(1+NB_Growth_Factor),0) -> 179
E85: Notes:
E86: Left-Turn Adjustment Factor | W86: Conversion of left-turning vehicles to equivalent through vehicles
E87: Right-turn Adjustment Factor | W87: Conversion of right-turning vehicles to equivalent through vehicles
E88: U-turn Adjustment Factor | W88: Conversion of U-turning vehicles to equivalent through vehicles
E89: Truck to PCE Factor | W89: 1 truck = X Passenger Car Equivalents
E90: Critical Lane Volume Sum Limit | W90: Saturation Value for Critical Lane Volume Sum at an intersection

Sheet 2 - Base and Alt Sel
A1: Capacity Analysis for Planning of Junctions | BL1: Major Str Offset | BN1: =IF(OR($L$14='1 - Volume Input'!$BG$18,$L$14='1 - Volume Input'!$BI$18,$L$14='1 - Volume Input'!$BI$19),0,2) -> 0 | BP1: NB Lanes | BT1: SB Lanes | BX1: EB Lanes | CB1: WB Lanes | CF1: Zone 1 | CH1: Zone 2 | CJ1: Zone 3 | CL1: Zone 4 | CN1: Zone 5 | CP1: Zone 6 | CR1: Overall V/C | CS1: Ped Accom. | CT1: Bike Accom. | CU1: Transit Accom.
A3: Step 2A: Base Conditions Analysis | BL3: Existing Intx List: | BN3: No Lanes | BO3: Outputs | BP3: U | BQ3: L | BR3: T | BS3: R | BT3: U | BU3: L | BV3: T | BW3: R | BX3: U | BY3: L | BZ3: T | CA3: R | CB3: U | CC3: L | CD3: T | CE3: R | CF3: CLV | CG3: VC | CH3: CLV | CI3: VC | CJ3: CLV | CK3: VC | CL3: CLV | CM3: VC | CN3: CLV | CO3: VC | CP3: CLV | CQ3: VC
BL4: ='3 - Alt Num Lanes Input'!E24 -> Traffic Signal | BN4: =24 -> 24 | BO4: =24 -> 24 | BP4: =INDIRECT("'3 - Alt Num Lanes Input'!AA"&$BN4) -> 0 | BQ4: =INDIRECT("'3 - Alt Num Lanes Input'!AC"&$BN4) -> 1 | BR4: =INDIRECT("'3 - Alt Num Lanes Input'!AE"&$BN4) -> 2 | BS4: =INDIRECT("'3 - Alt Num Lanes Input'!AG"&$BN4) -> 1 | BT4: =INDIRECT("'3 - Alt Num Lanes Input'!AI"&$BN4) -> 0 | BU4: =INDIRECT("'3 - Alt Num Lanes Input'!AK"&$BN4) -> 1 | BV4: =INDIRECT("'3 - Alt Num Lanes Input'!AM"&$BN4) -> 2 | BW4: =INDIRECT("'3 - Alt Num Lanes Input'!AO"&$BN4) -> 1 | BX4: =INDIRECT("'3 - Alt Num Lanes Input'!AQ"&$BN4) -> 0 | BY4: =INDIRECT("'3 - Alt Num Lanes Input'!AS"&$BN4) -> 1 | BZ4: =INDIRECT("'3 - Alt Num Lanes Input'!AU"&$BN4) -> 2 | CA4: =INDIRECT("'3 - Alt Num Lanes Input'!AW"&$BN4) -> 1 | CB4: =INDIRECT("'3 - Alt Num Lanes Input'!AY"&$BN4) -> 0 | CC4: =INDIRECT("'3 - Alt Num Lanes Input'!BA"&$BN4) -> 1 | CD4: =INDIRECT("'3 - Alt Num Lanes Input'!BC"&$BN4) -> 2 | CE4: =INDIRECT("'3 - Alt Num Lanes Input'!BE"&$BN4) -> 1 | CF4: =INDIRECT("'4b - Detailed Results'!AD"&$BO4) -> 0 | CG4: =INDIRECT("'4b - Detailed Results'!AG"&$BO4) -> 0 | CH4: =INDIRECT("'4b - Detailed Results'!AJ"&$BO4) -> 0 | CI4: =INDIRECT("'4b - Detailed Results'!AM"&$BO4) -> 0 | CJ4: =INDIRECT("'4b - Detailed Results'!AP"&$BO4) -> 0 | CK4: =INDIRECT("'4b - Detailed Results'!AS"&$BO4) -> 0 | CL4: =INDIRECT("'4b - Detailed Results'!AV"&$BO4) -> 0 | CM4: =INDIRECT("'4b - Detailed Results'!AY"&$BO4) -> 0 | CN4: =INDIRECT("'4b - Detailed Results'!BB"&$BO4) -> 1103.973684 | CO4: =INDIRECT("'4b - Detailed Results'!BE"&$BO4) -> 0.65 | CP4: 0 | CQ4: 0 | CR4: =INDIRECT("'4b - Detailed Results'!BH"&$BO4) -> 0.65 | CS4: =INDIRECT("'4b - Detailed Results'!BO"&$BO4) -> 4.643937383 | CT4: =INDIRECT("'4b - Detailed Results'!BS"&$BO4) -> 4.49381867 | CU4: =INDIRECT("'4b - Detailed Results'!BW"&$BO4) -> 0
BL5: ='3 - Alt Num Lanes Input'!E28 -> Two-Way Stop Control | BN5: =28 +$BN$1 -> 28 | BO5: =28 +$BN$1 -> 28 | BP5: =INDIRECT("'3 - Alt Num Lanes Input'!AA"&$BN5) -> 0 | BQ5: =INDIRECT("'3 - Alt Num Lanes Input'!AC"&$BN5) -> 1 | BR5: =INDIRECT("'3 - Alt Num Lanes Input'!AE"&$BN5) -> 2 | BS5: =INDIRECT("'3 - Alt Num Lanes Input'!AG"&$BN5) -> 1 | BT5: =INDIRECT("'3 - Alt Num Lanes Input'!AI"&$BN5) -> 0 | BU5: =INDIRECT("'3 - Alt Num Lanes Input'!AK"&$BN5) -> 1 | BV5: =INDIRECT("'3 - Alt Num Lanes Input'!AM"&$BN5) -> 2 | BW5: =INDIRECT("'3 - Alt Num Lanes Input'!AO"&$BN5) -> 1 | BX5: =INDIRECT("'3 - Alt Num Lanes Input'!AQ"&$BN5) -> 0 | BY5: =INDIRECT("'3 - Alt Num Lanes Input'!AS"&$BN5) -> 1 | BZ5: =INDIRECT("'3 - Alt Num Lanes Input'!AU"&$BN5) -> 1 | CA5: =INDIRECT("'3 - Alt Num Lanes Input'!AW"&$BN5) -> 0 | CB5: =INDIRECT("'3 - Alt Num Lanes Input'!AY"&$BN5) -> 0 | CC5: =INDIRECT("'3 - Alt Num Lanes Input'!BA"&$BN5) -> 1 | CD5: =INDIRECT("'3 - Alt Num Lanes Input'!BC"&$BN5) -> 1 | CE5: =INDIRECT("'3 - Alt Num Lanes Input'!BE"&$BN5) -> 0 | CF5: =INDIRECT("'4b - Detailed Results'!AD"&$BO5) -> 0 | CG5: =INDIRECT("'4b - Detailed Results'!AG"&$BO5) -> 0 | CH5: =INDIRECT("'4b - Detailed Results'!AJ"&$BO5) -> 0 | CI5: =INDIRECT("'4b - Detailed Results'!AM"&$BO5) -> 0 | CJ5: =INDIRECT("'4b - Detailed Results'!AP"&$BO5) -> 0 | CK5: =INDIRECT("'4b - Detailed Results'!AS"&$BO5) -> 0 | CL5: =INDIRECT("'4b - Detailed Results'!AV"&$BO5) -> 0 | CM5: =INDIRECT("'4b - Detailed Results'!AY"&$BO5) -> 0 | CN5: =INDIRECT("'4b - Detailed Results'!BB"&$BO5) -> -- | CO5: =INDIRECT("'4b - Detailed Results'!BE"&$BO5) -> >10 | CP5: 0 | CQ5: 0 | CR5: >10 | CS5: 2.291470108 | CT5: 3.826073206 | CU5: 0
D6: Project Name: | L6: ='1 - Volume Input'!M8 -> Cap-X Sample Street | BL6: ='3 - Alt Num Lanes Input'!E32 -> All-Way Stop Control | BN6: =32 -> 32 | BO6: =32 -> 32 | BP6: 0 | BQ6: 1 | BR6: 2 | BS6: 1 | BT6: 0 | BU6: 1 | BV6: 2 | BW6: 1 | BX6: 0 | BY6: 1 | BZ6: 2 | CA6: 1 | CB6: 0 | CC6: 1 | CD6: 2 | CE6: 1 | CF6: =INDIRECT("'4b - Detailed Results'!AD"&$BO6) -> 0 | CG6: =INDIRECT("'4b - Detailed Results'!AG"&$BO6) -> 0 | CH6: =INDIRECT("'4b - Detailed Results'!AJ"&$BO6) -> 0 | CI6: =INDIRECT("'4b - Detailed Results'!AM"&$BO6) -> 0 | CJ6: =INDIRECT("'4b - Detailed Results'!AP"&$BO6) -> 0 | CK6: =INDIRECT("'4b - Detailed Results'!AS"&$BO6) -> 0 | CL6: =INDIRECT("'4b - Detailed Results'!AV"&$BO6) -> 0 | CM6: =INDIRECT("'4b - Detailed Results'!AY"&$BO6) -> 0 | CN6: =INDIRECT("'4b - Detailed Results'!BB"&$BO6) -> 4037 | CO6: =INDIRECT("'4b - Detailed Results'!BE"&$BO6) -> 2.24 | CP6: 0 | CQ6: 0 | CR6: 2.24 | CS6: 3.373842195 | CT6: 4.49381867 | CU6: 0
BL7: 1x1 Roundabout | BN7: =-1 -> -1 | BO7: 114 | BP7: -- | BQ7: -- | BR7: -- | BS7: -- | BT7: -- | BU7: -- | BV7: -- | BW7: -- | BX7: -- | BY7: -- | BZ7: -- | CA7: -- | CB7: -- | CC7: -- | CD7: -- | CE7: -- | CF7: =INDIRECT("'4b - Detailed Results'!L"&$BO7) -> 0.8796264198 | CG7: =INDIRECT("'4b - Detailed Results'!P"&$BO7) -> 0 | CH7: =INDIRECT("'4b - Detailed Results'!T"&$BO7) -> 0 | CI7: =INDIRECT("'4b - Detailed Results'!X"&$BO7) -> 1.004501339 | CJ7: =INDIRECT("'4b - Detailed Results'!AB"&$BO7) -> 1.033543584 | CK7: =INDIRECT("'4b - Detailed Results'!AF"&$BO7) -> 0 | CL7: =INDIRECT("'4b - Detailed Results'!AJ"&$BO7) -> 1.439611591 | CM7: =INDIRECT("'4b - Detailed Results'!AN"&$BO7) -> 0 | CN7: =INDIRECT("'4b - Detailed Results'!AR"&$BO7) -> 0 | CO7: =INDIRECT("'4b - Detailed Results'!AV"&$BO7) -> 1.253705223 | CP7: =INDIRECT("'4b - Detailed Results'!AZ"&$BO7) -> 1.278535623 | CQ7: =INDIRECT("'4b - Detailed Results'!BD"&$BO7) -> 0 | CR7: 1.439611591 | CS7: 4.749380492 | CT7: 4.49381867 | CU7: 0
D8: Project Number: | L8: ='1 - Volume Input'!M10 -> 10000 | BL8: 1x2 Roundabout | BN8: -1 | BO8: =116 +(2-$BN$1) -> 118 | BP8: -- | BQ8: -- | BR8: -- | BS8: -- | BT8: -- | BU8: -- | BV8: -- | BW8: -- | BX8: -- | BY8: -- | BZ8: -- | CA8: -- | CB8: -- | CC8: -- | CD8: -- | CE8: -- | CF8: =INDIRECT("'4b - Detailed Results'!L"&$BO8) -> 0.4855474364 | CG8: =INDIRECT("'4b - Detailed Results'!P"&$BO8) -> 0.4662020025 | CH8: =INDIRECT("'4b - Detailed Results'!T"&$BO8) -> 0 | CI8: =INDIRECT("'4b - Detailed Results'!X"&$BO8) -> 1.253705223 | CJ8: =INDIRECT("'4b - Detailed Results'!AB"&$BO8) -> 1.278535623 | CK8: =INDIRECT("'4b - Detailed Results'!AF"&$BO8) -> 0 | CL8: =INDIRECT("'4b - Detailed Results'!AJ"&$BO8) -> 0.7826208275 | CM8: =INDIRECT("'4b - Detailed Results'!AN"&$BO8) -> 0.7629941432 | CN8: =INDIRECT("'4b - Detailed Results'!AR"&$BO8) -> 0 | CO8: =INDIRECT("'4b - Detailed Results'!AV"&$BO8) -> 1.004501339 | CP8: =INDIRECT("'4b - Detailed Results'!AZ"&$BO8) -> 1.033543584 | CQ8: =INDIRECT("'4b - Detailed Results'!BD"&$BO8) -> 0 | CR8: 1.278535623 | CS8: 4.457064888 | CT8: 4.326913566 | CU8: 0
BL9: 2x2 Roundabout | BN9: -1 | BO9: 120 | BP9: -- | BQ9: -- | BR9: -- | BS9: -- | BT9: -- | BU9: -- | BV9: -- | BW9: -- | BX9: -- | BY9: -- | BZ9: -- | CA9: -- | CB9: -- | CC9: -- | CD9: -- | CE9: -- | CF9: =INDIRECT("'4b - Detailed Results'!L"&$BO9) -> 0.3305854886 | CG9: =INDIRECT("'4b - Detailed Results'!P"&$BO9) -> 0.3305854886 | CH9: =INDIRECT("'4b - Detailed Results'!T"&$BO9) -> 0.3166655111 | CI9: =INDIRECT("'4b - Detailed Results'!X"&$BO9) -> 0.853586535 | CJ9: =INDIRECT("'4b - Detailed Results'!AB"&$BO9) -> 0.853586535 | CK9: =INDIRECT("'4b - Detailed Results'!AF"&$BO9) -> 0.8684392908 | CL9: =INDIRECT("'4b - Detailed Results'!AJ"&$BO9) -> 0.5328482229 | CM9: =INDIRECT("'4b - Detailed Results'!AN"&$BO9) -> 0.5328482229 | CN9: =INDIRECT("'4b - Detailed Results'!AR"&$BO9) -> 0.5182601727 | CO9: =INDIRECT("'4b - Detailed Results'!AV"&$BO9) -> 0.6839158052 | CP9: =INDIRECT("'4b - Detailed Results'!AZ"&$BO9) -> 0.6839158052 | CQ9: =INDIRECT("'4b - Detailed Results'!BD"&$BO9) -> 0.7020296044 | CR9: 0.8684392908 | CS9: 3.856245534 | CT9: 3.993043457 | CU9: 0
D10: Location: | L10: ='1 - Volume Input'!M12 -> Anywhere, USA | BL10: Traditional Diamond | BN10: =111 +(2-$BN$1) -> 113 | BO10: =108 +(2-$BN$1) -> 110 | BP10: 0 | BQ10: 1 | BR10: 2 | BS10: 1 | BT10: 0 | BU10: 1 | BV10: 2 | BW10: 1 | BX10: 0 | BY10: 1 | BZ10: 2 | CA10: 1 | CB10: 0 | CC10: 1 | CD10: 2 | CE10: 1 | CF10: =INDIRECT("'4b - Detailed Results'!X"&$BO10) -> 3.323967806 | CG10: =INDIRECT("'4b - Detailed Results'!AA"&$BO10) -> 0 | CH10: =INDIRECT("'4b - Detailed Results'!AD"&$BO10) -> 0 | CI10: =INDIRECT("'4b - Detailed Results'!AG"&$BO10) -> 0 | CJ10: =INDIRECT("'4b - Detailed Results'!AJ"&$BO10) -> 586.7346939 | CK10: =INDIRECT("'4b - Detailed Results'!AM"&$BO10) -> 0 | CL10: =INDIRECT("'4b - Detailed Results'!AP"&$BO10) -> 0 | CM10: =INDIRECT("'4b - Detailed Results'!AS"&$BO10) -> 0 | CN10: =INDIRECT("'4b - Detailed Results'!AV"&$BO10) -> 4.844784504 | CO10: =INDIRECT("'4b - Detailed Results'!AY"&$BO10) -> 0 | CP10: =INDIRECT("'4b - Detailed Results'!BB"&$BO10) -> 0 | CQ10: =INDIRECT("'4b - Detailed Results'!BE"&$BO10) -> 0 | CR10: 586.7346939 | CS10: 5.057694084 | CT10: 4.579921703 | CU10: 0
BL11: Partial Cloverleaf A | BN11: =115 +(2-$BN$1) -> 117 | BO11: =112 +(2-$BN$1) -> 114 | BP11: 0 | BQ11: 1 | BR11: 0 | BS11: 1 | BT11: 0 | BU11: 1 | BV11: 0 | BW11: 1 | BX11: 0 | BY11: 1 | BZ11: 2 | CA11: 1 | CB11: 0 | CC11: 1 | CD11: 2 | CE11: 1 | CF11: =INDIRECT("'4b - Detailed Results'!X"&$BO11) -> 1.004501339 | CG11: =INDIRECT("'4b - Detailed Results'!AA"&$BO11) -> 0 | CH11: =INDIRECT("'4b - Detailed Results'!AD"&$BO11) -> 0 | CI11: =INDIRECT("'4b - Detailed Results'!AG"&$BO11) -> 0 | CJ11: =INDIRECT("'4b - Detailed Results'!AJ"&$BO11) -> 1.439611591 | CK11: =INDIRECT("'4b - Detailed Results'!AM"&$BO11) -> 0 | CL11: =INDIRECT("'4b - Detailed Results'!AP"&$BO11) -> 0 | CM11: =INDIRECT("'4b - Detailed Results'!AS"&$BO11) -> 0 | CN11: =INDIRECT("'4b - Detailed Results'!AV"&$BO11) -> 1.253705223 | CO11: =INDIRECT("'4b - Detailed Results'!AY"&$BO11) -> 0 | CP11: =INDIRECT("'4b - Detailed Results'!BB"&$BO11) -> 0 | CQ11: =INDIRECT("'4b - Detailed Results'!BE"&$BO11) -> 0 | CR11: 1.439611591 | CS11: 4.749380492 | CT11: 4.49381867 | CU11: 0
D12: Date: | L12: ='1 - Volume Input'!M14 -> 2017 AM | BL12: Partial Cloverleaf B | BN12: =119 +(2-$BN$1) -> 121 | BO12: =116 +(2-$BN$1) -> 118 | BP12: 0 | BQ12: 1 | BR12: 0 | BS12: 1 | BT12: 0 | BU12: 1 | BV12: 0 | BW12: 1 | BX12: 0 | BY12: 1 | BZ12: 2 | CA12: 1 | CB12: 0 | CC12: 1 | CD12: 2 | CE12: 1 | CF12: =INDIRECT("'4b - Detailed Results'!X"&$BO12) -> 1.253705223 | CG12: =INDIRECT("'4b - Detailed Results'!AA"&$BO12) -> 0 | CH12: =INDIRECT("'4b - Detailed Results'!AD"&$BO12) -> 0 | CI12: =INDIRECT("'4b - Detailed Results'!AG"&$BO12) -> 0 | CJ12: =INDIRECT("'4b - Detailed Results'!AJ"&$BO12) -> 0.7826208275 | CK12: =INDIRECT("'4b - Detailed Results'!AM"&$BO12) -> 0 | CL12: =INDIRECT("'4b - Detailed Results'!AP"&$BO12) -> 0 | CM12: =INDIRECT("'4b - Detailed Results'!AS"&$BO12) -> 0 | CN12: =INDIRECT("'4b - Detailed Results'!AV"&$BO12) -> 1.004501339 | CO12: =INDIRECT("'4b - Detailed Results'!AY"&$BO12) -> 0 | CP12: =INDIRECT("'4b - Detailed Results'!BB"&$BO12) -> 0 | CQ12: =INDIRECT("'4b - Detailed Results'!BE"&$BO12) -> 0 | CR12: 1.278535623 | CS12: 4.457064888 | CT12: 4.326913566 | CU12: 0
BL13: None | BN13: -1 | BO13: -1 | BP13: -- | BQ13: -- | BR13: -- | BS13: -- | BT13: -- | BU13: -- | BV13: -- | BW13: -- | BX13: -- | BY13: -- | BZ13: -- | CA13: -- | CB13: -- | CC13: -- | CD13: -- | CE13: -- | CF13: -- | CG13: -- | CH13: -- | CI13: -- | CJ13: -- | CK13: -- | CL13: -- | CM13: -- | CN13: -- | CO13: -- | CP13: -- | CQ13: -- | CR13: -- | CS13: -- | CT13: -- | CU13: --
D14: =IF(Input_NumLegs = 3,'1 - Volume Input'!E20, '1 - Volume Input'!E18) -> Major Street Direction | L14: =IF(Input_NumLegs = 3, Input_MinorStreetLeg, '1 - Volume Input'!M18) -> North-South
D17: Existing Intersection Configuration | AH17: All-Way Stop Control
D20: Number of Lanes for Existing Configuration (Can be edited in "3- Alt Num Lanes Input" as needed)
D22: TYPE OF INTERSECTION | U22: Sheet | AA22: Northbound | AI22: Southbound | AQ22: Eastbound | AY22: Westbound
AA24: U | AC24: L | AE24: T | AG24: R | AI24: U | AK24: L | AM24: T | AO24: R | AQ24: U | AS24: L | AU24: T | AW24: R | AY24: U | BA24: L | BC24: T | BE24: R
D26: =AH17 -> All-Way Stop Control | U26: =IF(AH17=BL13,"",IF(VLOOKUP(AH17,$BL$4:$BO$13,3,FALSE)>0,INDIRECT("'3 - Alt Num Lanes Input'!V"&VLOOKUP(AH17,$BL$4:$BO$13,3,FALSE)),INDIRECT("'4b - Detailed Results'!E"&VLOOKUP(AH17,$BL$4:$BO$13,4,FALSE)))) -> FULL | AC26: =VLOOKUP($AH$17,$BL$4:$CE$13,6,FALSE) -> 1 | AE26: =VLOOKUP($AH$17,$BL$4:$CE$13,7,FALSE) -> 2 | AG26: =VLOOKUP($AH$17,$BL$4:$CE$13,8,FALSE) -> 1 | AK26: =VLOOKUP($AH$17,$BL$4:$CE$13,10,FALSE) -> 1 | AM26: =VLOOKUP($AH$17,$BL$4:$CE$13,11,FALSE) -> 2 | AO26: =VLOOKUP($AH$17,$BL$4:$CE$13,12,FALSE) -> 1 | AS26: =VLOOKUP($AH$17,$BL$4:$CE$13,14,FALSE) -> 1 | AU26: =VLOOKUP($AH$17,$BL$4:$CE$13,15,FALSE) -> 2 | AW26: =VLOOKUP($AH$17,$BL$4:$CE$13,16,FALSE) -> 1 | BA26: =VLOOKUP($AH$17,$BL$4:$CE$13,18,FALSE) -> 1 | BC26: =VLOOKUP($AH$17,$BL$4:$CE$13,19,FALSE) -> 2 | BE26: =VLOOKUP($AH$17,$BL$4:$CE$13,20,FALSE) -> 1
D29: Results for Existing Configuration
D31: TYPE OF INTERSECTION | Q31: Sheet | W31: =IF($C$35=1,'4b - Detailed Results'!AD20,IF($C$35=2,'4b - Detailed Results'!L104,'4b - Detailed Results'!X125)) -> Zone 1 (North) | AC31: =IF($C$35=1,'4b - Detailed Results'!AJ20,IF($C$35=2,'4b - Detailed Results'!X104,'4b - Detailed Results'!AD125)) -> Zone 2 (South) | AI31: =IF($C$35=1,'4b - Detailed Results'!AP20,IF($C$35=2,'4b - Detailed Results'!AJ104,'4b - Detailed Results'!AJ125)) -> Zone 3 (East) | AO31: =IF($C$35=1,'4b - Detailed Results'!AV20,IF($C$35=2,'4b - Detailed Results'!AV104,'4b - Detailed Results'!AP125)) -> Zone 4 (West) | AU31: =IF($C$35=1,'4b - Detailed Results'!BB20,IF($C$35=2,"",'4b - Detailed Results'!AV125)) -> Zone 5 (Center) | BA31: =IF($C$35=1,"",IF($C$35=2,"",'4b - Detailed Results'!BB125)) -> 
W33: =IF(W31<>"",IF($C$35=2,"V/C","CLV"),"") -> CLV | Z33: =IF(W31<>"","V/C","") -> V/C | AC33: =IF(AC31<>"",IF($C$35=2,"V/C","CLV"),"") -> CLV | AF33: =IF(AC31<>"","V/C","") -> V/C | AI33: =IF(AI31<>"",IF($C$35=2,"V/C","CLV"),"") -> CLV | AL33: =IF(AI31<>"","V/C","") -> V/C | AO33: =IF(AO31<>"",IF($C$35=2,"V/C","CLV"),"") -> CLV | AR33: =IF(AO31<>"","V/C","") -> V/C | AU33: =IF(AU31<>"","CLV","") -> CLV | AX33: =IF(AU31<>"","V/C","") -> V/C | BA33: =IF(BA31<>"","CLV","") ->  | BD33: =IF(BA31<>"","V/C","") -> 
C35: =IF(VLOOKUP(AH17,$BL$4:$BO$13,3,FALSE)<0,2,IF(VLOOKUP(AH17,$BL$4:$BO$13,3,FALSE)>80,3,1)) -> 1 | D35: =AH17 -> All-Way Stop Control | Q35: =IF(AH17=BL13,"",IF(VLOOKUP(AH17,$BL$4:$BO$13,3,FALSE)>0,INDIRECT("'3 - Alt Num Lanes Input'!V"&VLOOKUP(AH17,$BL$4:$BO$13,3,FALSE)),INDIRECT("'4b - Detailed Results'!E"&VLOOKUP(AH17,$BL$4:$BO$13,4,FALSE)))) -> FULL | W35: =VLOOKUP($AH$17,$BL$4:$CQ$13,21,FALSE) -> 0 | Z35: =VLOOKUP($AH$17,$BL$4:$CQ$13,22,FALSE) -> 0 | AC35: =IF($C$35<>2,VLOOKUP($AH$17,$BL$4:$CQ$13,23,FALSE),VLOOKUP($AH$17,$BL$4:$CQ$13,24,FALSE)) -> 0 | AF35: =IF($C$35<>2,VLOOKUP($AH$17,$BL$4:$CQ$13,24,FALSE),VLOOKUP($AH$17,$BL$4:$CQ$13,25,FALSE)) -> 0 | AI35: =IF($C$35<>2,VLOOKUP($AH$17,$BL$4:$CQ$13,25,FALSE),VLOOKUP($AH$17,$BL$4:$CQ$13,27,FALSE)) -> 0 | AL35: =IF($C$35<>2,VLOOKUP($AH$17,$BL$4:$CQ$13,26,FALSE),VLOOKUP($AH$17,$BL$4:$CQ$13,28,FALSE)) -> 0 | AO35: =IF($C$35<>2,VLOOKUP($AH$17,$BL$4:$CQ$13,27,FALSE),VLOOKUP($AH$17,$BL$4:$CQ$13,30,FALSE)) -> 0 | AR35: =IF($C$35<>2,VLOOKUP($AH$17,$BL$4:$CQ$13,28,FALSE),VLOOKUP($AH$17,$BL$4:$CQ$13,31,FALSE)) -> 0 | AU35: =IF($C$35<>2,VLOOKUP($AH$17,$BL$4:$CQ$13,29,FALSE),0) -> 4037 | AX35: =IF(OR(AND(Input_MajorStreetDirection="North-South",Result_TWSC_NS_VC_Z5=">10"),AND(Input_MajorStreetDirection="East-West",'TWSC E-W'!AM22=">10")),">10",IF($C$35<>2,VLOOKUP($AH$17,$BL$4:$CQ$12,30,FALSE),0)) -> >10 | BA35: =IF($C$35<>2,VLOOKUP($AH$17,$BL$4:$CQ$13,31,FALSE),0) -> 0 | BD35: =IF($C$35<>2,VLOOKUP($AH$17,$BL$4:$CQ$13,32,FALSE),0) -> 0
D38: Existing Configuration Results
D40: Overall v/c Ratio | J40: =VLOOKUP($AH$17,$BL$4:$CU$13,33,FALSE) -> 2.24 | Q40: Pedestrian Accommodation | AH40: =VLOOKUP($AH$17,$BL$4:$CU$13,34,FALSE) -> 3.373842195 | AM40: Bicycle Accommodation | BB40: =VLOOKUP($AH$17,$BL$4:$CU$13,35,FALSE) -> 4.49381867
A43: Step 2B: Alternative Selection
BG45: Yes
D46: Rankings Inclusion | AH46: Yes/No | AN46: Comment | BG46: No
C47: =IF(AH47=$BG$45,TRUE,FALSE) -> TRUE | D47: At-Grade Non-Roundabout Intersections? | AH47: Yes
C48: =IF(AH48=$BG$45,TRUE,FALSE) -> TRUE | D48: ='3 - Alt Num Lanes Input'!E24 -> Traffic Signal | AH48: Yes
C49: TRUE | D49: ='3 - Alt Num Lanes Input'!E28 -> Two-Way Stop Control | AH49: Yes
C50: TRUE | D50: ='3 - Alt Num Lanes Input'!E32 -> All-Way Stop Control | AH50: Yes
C51: FALSE | D51: Continuous Green T | AH51: No
C52: TRUE | D52: Quadrant Roadway | AB52: S-W | AH52: Yes
C53: TRUE | AB53: N-E | AH53: Yes
C54: TRUE | AB54: S-E | AH54: Yes
C55: TRUE | AB55: N-W | AH55: Yes
C56: TRUE | D56: Partial Displaced Left Turn | AH56: Yes
C57: TRUE | D57: Displaced Left Turn | AH57: Yes
C58: TRUE | D58: ='3 - Alt Num Lanes Input'!E56 -> Signalized Restricted Crossing U-Turn | AH58: Yes
C59: TRUE | D59: ='3 - Alt Num Lanes Input'!E60 -> Unsignalized Restricted Crossing U-Turn | AH59: Yes
C60: TRUE | D60: Median U-Turn | AH60: Yes
C61: TRUE | D61: Partial Median U-Turn | AH61: Yes
C62: TRUE | D62: Bowtie | AH62: Yes
C63: =IF(AH63=$BG$45,TRUE,FALSE) -> TRUE | D63: Split Intersection | AH63: Yes
C64: =IF(AH64=$BG$45,TRUE,FALSE) -> TRUE | D64: Grade Separated Intersections? | AH64: Yes
C65: TRUE | D65: Echelon | AH65: Yes
C66: =IF(AH66=$BG$45,TRUE,FALSE) -> TRUE | D66: Center Turn Overpass | AH66: Yes
C67: TRUE | D67: Roundabouts? | AH67: Yes
C68: TRUE | D68: 50 ICD Miniroundabout | AH68: Yes
C69: TRUE | D69: 75 ICD Miniroundaobut | AH69: Yes
C70: TRUE | D70: 1x1 | AH70: Yes
C71: TRUE | D71: 1NS x 2EW | AH71: Yes
C72: TRUE | D72: 2NS x 1EW | AH72: Yes
C73: TRUE | D73: 2x2 | AH73: Yes
C74: TRUE | D74: 3x3 | AH74: Yes
C75: TRUE | D75: Grade Separated Interchanges? | AH75: Yes
C76: TRUE | D76: Diamond | AH76: Yes
C77: TRUE | D77: Partial Cloverleaf A | AH77: Yes
C78: TRUE | D78: Partial Cloverleaf B | AH78: Yes
C79: TRUE | D79: Displaced Left Turn Interchange | AH79: Yes
C80: =IF(AH80=$BG$45,TRUE,FALSE) -> TRUE | D80: Contraflow Left Interchange | AH80: Yes
C81: =IF(AH81=$BG$45,TRUE,FALSE) -> TRUE | D81: Diverging Diamond Interchange | AH81: Yes
C82: =IF(AH82=$BG$45,TRUE,FALSE) -> TRUE | D82: Single Point | AH82: Yes
C83: TRUE | D83: Single Point with Roundabout | AH83: Yes

Sheet LanesDefaults (hidden)
B1: Capacity Analysis for Planning of Junctions Capacity Analysis for Planning of Junctions
B3: Input Worksheet 2
E8: Project Name: | M8: Defaults for No Lanes Inputs
E10: Project Number: | M10: --
E12: Location | M12: --
E14: Date | M14: --
E18: Number of Lanes for Non-roundabout Intersections
E20: TYPE OF INTERSECTION | V20: Sheet | AA20: Northbound | AI20: Southbound | AQ20: Eastbound | AY20: Westbound
AA22: U | AC22: L | AE22: T | AG22: R | AI22: U | AK22: L | AM22: T | AO22: R | AQ22: U | AS22: L | AU22: T | AW22: R | AY22: U | BA22: L | BC22: T | BE22: R
E24: Traffic Signal | V24: FULL | AC24: 1 | AE24: 2 | AG24: 1 | AK24: 1 | AM24: 2 | AO24: 1 | AS24: 1 | AU24: 2 | AW24: 1 | BA24: 1 | BC24: 2 | BE24: 1
E26: Conventional Shared RT LN | V26: CSRL | AC26: 1 | AE26: 2 | AK26: 1 | AM26: 2 | AS26: 1 | AU26: 2 | BA26: 1 | BC26: 2
E28: Two-Way Stop Control | V28: FULL | AC28: 1 | AE28: 2 | AG28: 1 | AK28: 1 | AM28: 2 | AO28: 1 | AS28: 1 | AU28: 1 | AW28: 0 | BA28: 1 | BC28: 1 | BE28: 0
V30: N-S | AC30: 1 | AE30: 1 | AG30: 0 | AK30: 1 | AM30: 1 | AO30: 0 | AS30: 1 | AU30: 2 | AW30: 1 | BA30: 1 | BC30: 2 | BE30: 1
E32: All-Way Stop Control | V32: E-W | AC32: 1 | AE32: 2 | AG32: 1 | AK32: 1 | AM32: 2 | AO32: 1 | AS32: 1 | AU32: 2 | AW32: 1 | BA32: 1 | BC32: 2 | BE32: 1
E34: Continuous Green T | V34: W | AC34: 1 | AE34: 2 | AM34: 2 | AO34: 1 | AS34: 1 | AW34: 1
V36: N | AK36: 1 | AO36: 1 | AS36: 1 | AU36: 2 | BC36: 2 | BE36: 1
V38: E | AE38: 2 | AG38: 1 | AK38: 1 | AM38: 2 | BA38: 1 | BE38: 1
V40: S | AC40: 1 | AG40: 1 | AU40: 2 | AW40: 1 | BA40: 1 | BC40: 2
E42: Quadrant Roadway | V42: S-W | AA42: Use the respective intersection tab(s) to specify the # of lanes inputs.
V44: N-E
V46: S-E
V48: N-W
E50: Partial Displaced Left Turn | V50: N-S | AC50: 1 | AE50: 2 | AG50: 1 | AK50: 1 | AM50: 2 | AO50: 1 | AS50: 1 | AU50: 2 | AW50: 1 | BA50: 1 | BC50: 2 | BE50: 1
V52: E-W | AC52: 1 | AE52: 2 | AG52: 1 | AK52: 1 | AM52: 2 | AO52: 1 | AS52: 1 | AU52: 2 | AW52: 1 | BA52: 1 | BC52: 2 | BE52: 1
E54: Displaced Left Turn | V54: FULL | AC54: 1 | AE54: 2 | AG54: 1 | AK54: 1 | AM54: 2 | AO54: 1 | AS54: 1 | AU54: 2 | AW54: 1 | BA54: 1 | BC54: 2 | BE54: 1
E56: Signalized Restricted Crossing U-Turn | V56: N-S | AA56: 1 | AC56: 1 | AE56: 2 | AG56: 1 | AI56: 1 | AK56: 1 | AM56: 2 | AO56: 1 | AW56: 1 | BE56: 1
V58: E-W | AG58: 1 | AO58: 1 | AQ58: 1 | AS58: 1 | AU58: 2 | AW58: 1 | AY58: 1 | BA58: 1 | BC58: 2 | BE58: 1
E60: Unsignalized Restricted Crossing U-Turn | V60: N-S | AA60: 1 | AC60: 1 | AE60: 2 | AG60: 1 | AI60: 1 | AK60: 1 | AM60: 2 | AO60: 1 | AW60: 1 | BE60: 1
V62: E-W | AG62: 1 | AO62: 1 | AQ62: 1 | AS62: 1 | AU62: 2 | AW62: 1 | AY62: 1 | BA62: 1 | BC62: 2 | BE62: 1
E64: Median U-Turn | V64: N-S | AA64: 1 | AE64: 2 | AG64: 1 | AI64: 1 | AM64: 2 | AO64: 1 | AU64: 2 | AW64: 1 | BC64: 2 | BE64: 1
V66: E-W | AE66: 2 | AG66: 1 | AM66: 2 | AO66: 1 | AQ66: 1 | AU66: 2 | AW66: 1 | AY66: 1 | BC66: 2 | BE66: 1
E68: Partial Median U-Turn | V68: N-S | AA68: 1 | AE68: 2 | AG68: 1 | AI68: 1 | AM68: 2 | AO68: 1 | AS68: 1 | AU68: 2 | AW68: 1 | BA68: 1 | BC68: 2 | BE68: 1
V70: E-W | AC70: 1 | AE70: 2 | AG70: 1 | AK70: 1 | AM70: 2 | AO70: 1 | AQ70: 1 | AU70: 2 | AW70: 1 | AY70: 1 | BC70: 2 | BE70: 1
E72: Bowtie | V72: N-S | AE72: 1 | AG72: 1 | AM72: 1 | AO72: 1 | AU72: 1 | AW72: 1 | BC72: 1 | BE72: 1
V74: E-W | AE74: 1 | AG74: 1 | AM74: 1 | AO74: 1 | AU74: 1 | AW74: 1 | BC74: 1 | BE74: 1
E76: Split Intersection | V76: N-S | AA76: Use the respective intersection tab(s) to specify the # of lanes inputs.
V78: E-W
E81: For shared lanes, enter "0" in L or R
E82: For AWSC enter number of approach lanes (1 or 2) for each approach.
B83: Capacity Analysis for Planning of Junctions Capacity Analysis for Planning of Junctions
B85: Input Worksheet 2
E89: Number of Lanes for Grade Seperated Intersections
E91: TYPE OF INTERSECTION | V91: Sheet | AA91: Northbound | AI91: Southbound | AQ91: Eastbound | AY91: Westbound
AA93: U | AC93: L | AE93: T | AG93: R | AI93: U | AK93: L | AM93: T | AO93: R | AQ93: U | AS93: L | AU93: T | AW93: R | AY93: U | BA93: L | BC93: T | BE93: R
E95: Echelon | V95: N-S | AC95: 1 | AE95: 2 | AG95: 1 | AK95: 1 | AM95: 2 | AO95: 1 | AS95: 1 | AU95: 2 | AW95: 1 | BA95: 1 | BC95: 2 | BE95: 1
V97: E-W | AC97: 1 | AE97: 2 | AG97: 1 | AK97: 1 | AM97: 2 | AO97: 1 | AS97: 1 | AU97: 2 | AW97: 1 | BA97: 1 | BC97: 2 | BE97: 1
E99: Center Turn Overpass | V99: Full | AC99: 1 | AE99: 2 | AG99: 1 | AK99: 1 | AM99: 2 | AO99: 1 | AS99: 1 | AU99: 2 | AW99: 1 | BA99: 1 | BC99: 2 | BE99: 1
V101: E-W
E105: Number of Lanes for Interchanges
E107: TYPE OF INTERCHANGE | V107: Sheet | AA107: Northbound | AI107: Southbound | AQ107: Eastbound | AY107: Westbound
AA109: U | AC109: L | AE109: T | AG109: R | AI109: U | AK109: L | AM109: T | AO109: R | AQ109: U | AS109: L | AU109: T | AW109: R | AY109: U | BA109: L | BC109: T | BE109: R
E111: Diamond | V111: N-S | AC111: 1 | AE111: 2 | AG111: 1 | AK111: 1 | AM111: 2 | AO111: 1 | AS111: 1 | AU111: 2 | AW111: 1 | BA111: 1 | BC111: 2 | BE111: 1
V113: E-W | AC113: 1 | AE113: 2 | AG113: 1 | AK113: 1 | AM113: 2 | AO113: 1 | AS113: 1 | AU113: 2 | AW113: 1 | BA113: 1 | BC113: 2 | BE113: 1
E115: Partial Cloverleaf A | V115: N-S | AC115: 1 | AE115: 2 | AG115: 1 | AK115: 1 | AM115: 2 | AO115: 1 | AS115: 1 | AW115: 1 | BA115: 1 | BE115: 1
V117: E-W | AC117: 1 | AG117: 1 | AK117: 1 | AO117: 1 | AS117: 1 | AU117: 2 | AW117: 1 | BA117: 1 | BC117: 2 | BE117: 1
E119: Partial Cloverleaf B | V119: N-S | AC119: 1 | AE119: 2 | AG119: 1 | AK119: 1 | AM119: 2 | AO119: 1 | AS119: 1 | AW119: 1 | BA119: 1 | BE119: 1
V121: E-W | AC121: 1 | AG121: 1 | AK121: 1 | AO121: 1 | AS121: 1 | AU121: 2 | AW121: 1 | BA121: 1 | BC121: 2 | BE121: 1
E123: Displaced Left Turn | V123: N-S | AC123: 1 | AE123: 2 | AG123: 1 | AK123: 1 | AM123: 2 | AO123: 1 | AS123: 1 | AU123: 2 | AW123: 1 | BA123: 1 | BC123: 2 | BE123: 1
V125: E-W | AC125: 1 | AE125: 2 | AG125: 1 | AK125: 1 | AM125: 2 | AO125: 1 | AS125: 1 | AU125: 2 | AW125: 1 | BA125: 1 | BC125: 2 | BE125: 1
E127: Contraflow Left Interchange | V127: N-S | AC127: 1 | AE127: 2 | AG127: 1 | AK127: 1 | AM127: 2 | AO127: 1 | AS127: 1 | AW127: 1 | BA127: 1 | BE127: 1
V129: E-W | AC129: 1 | AG129: 1 | AK129: 1 | AO129: 1 | AS129: 1 | AU129: 2 | AW129: 1 | BA129: 1 | BC129: 2 | BE129: 1
E131: Diverging Diamond Interchange | V131: N-S | AC131: 1 | AE131: 2 | AG131: 1 | AK131: 1 | AM131: 2 | AO131: 1 | AS131: 1 | AW131: 1 | BA131: 1 | BE131: 1
V133: E-W | AC133: 1 | AG133: 1 | AK133: 1 | AO133: 1 | AS133: 1 | AU133: 2 | AW133: 1 | BA133: 1 | BC133: 2 | BE133: 1
E135: Single Point | V135: N-S | AC135: 1 | AE135: 2 | AG135: 1 | AK135: 1 | AM135: 2 | AO135: 1 | AS135: 1 | AU135: 2 | AW135: 1 | BA135: 1 | BC135: 2 | BE135: 1
V137: E-W | AC137: 1 | AE137: 2 | AG137: 1 | AK137: 1 | AM137: 2 | AO137: 1 | AS137: 1 | AU137: 2 | AW137: 1 | BA137: 1 | BC137: 2 | BE137: 1
E139: Single Point with Roundabout | V139: N-S | AA139: Use the respective intersection tab(s) to specify the # of lanes inputs.
V141: E-W

Sheet 3 - Alt Num Lanes Input
B1: Capacity Analysis for Planning of Junctions | BL1: Capacity Analysis for Planning of Junctions Capacity Analysis for Planning of Junctions
B3: Step 3 | BL3: Input Worksheet 2
E8: Project Name: | M8: ='1 - Volume Input'!M8 -> Cap-X Sample Street | BO8: Project Name: | BW8: =M8 -> Cap-X Sample Street
E10: Project Number: | M10: ='1 - Volume Input'!M10 -> 10000 | BO10: Project Number: | BW10: =M10 -> 10000
E12: Location: | M12: ='1 - Volume Input'!M12 -> Anywhere, USA | BO12: Location: | BW12: =M12 -> Anywhere, USA
E14: Date: | M14: ='1 - Volume Input'!M14 -> 2017 AM | BO14: Date: | BW14: =M14 -> 2017 AM
E16: Analysis Type: | M16: Intersections and Interchanges | BH16: Intersections and Interchanges | BI16: 1 | BO16: Analysis Type: | BW16: =AnalysisType -> Intersections and Interchanges
BH17: Intersections Only
E18: Number of Lanes for Non-roundabout Intersections | BO18: Volume Echo with Shared Lane Adjustment for Non-roundabout Intersections
E20: TYPE OF INTERSECTION | V20: Sheet | AA20: Northbound | AI20: Southbound | AQ20: Eastbound | AY20: Westbound | BO20: TYPE OF INTERSECTION | CF20: Sheet | CK20: Northbound | CS20: Southbound | DA20: Eastbound | DI20: Westbound
AA22: U | AC22: L | AE22: T | AG22: R | AI22: U | AK22: L | AM22: T | AO22: R | AQ22: U | AS22: L | AU22: T | AW22: R | AY22: U | BA22: L | BC22: T | BE22: R | CK22: U | CM22: L | CO22: T | CQ22: R | CS22: U | CU22: L | CW22: T | CY22: R | DA22: U | DC22: L | DE22: T | DG22: R | DI22: U | DK22: L | DM22: T | DO22: R
E24: Traffic Signal | V24: FULL | AC24: 1 | AE24: 2 | AG24: 1 | AK24: 1 | AM24: 2 | AO24: 1 | AS24: 1 | AU24: 2 | AW24: 1 | BA24: 1 | BC24: 2 | BE24: 1 | BO24: ='3 - Alt Num Lanes Input'!E24 -> Traffic Signal | CF24: FULL | CM24: =IF(AND(AC24=0,AE24=1,AG24=0),0,IF(AND(AC24=0,AE24=2,AG24=0),0,IF(AND(AC24=0,AE24=1,AG24=1),0,NBL_Master))) -> 102 | CO24: =NBT_Master + IF(AC24=0,NBL_Master,0) + IF(AG24=0,NBR_Master) -> 306 | CQ24: =IF(AND(AC24=0,AE24=1,AG24=0),0,IF(AND(AC24=0,AE24=2,AG24=0),0,IF(AND(AC24=1,AE24=1,AG24=0),0,NBR_Master))) -> 179 | CU24: =IF(AND(AK24=0,AM24=1,AO24=0),0,IF(AND(AK24=0,AM24=2,AO24=0),0,IF(AND(AK24=0,AM24=1,AO24=1),0,SBL_Master))) -> 31 | CW24: =SBT_Master + IF(AK24=0,SBL_Master,0) + IF(AO24=0,SBR_Master) -> 216 | CY24: =IF(AND(AK24=0,AM24=1,AO24=0),0,IF(AND(AK24=0,AM24=2,AO24=0),0,IF(AND(AK24=1,AM24=1,AO24=0),0,SBR_Master))) -> 51 | DC24: =IF(AND(AS24=0,AU24=1,AW24=0),0,IF(AND(AS24=0,AU24=2,AW24=0),0,IF(AND(AS24=0,AU24=1,AW24=1),0,EBL_Master))) -> 306 | DE24: =EBT_Master + IF(AS24=0,EBL_Master,0) + IF(AW24=0,EBR_Master) -> 1020 | DG24: =IF(AND(AS24=0,AU24=1,AW24=0),0,IF(AND(AS24=0,AU24=2,AW24=0),0,IF(AND(AS24=1,AU24=1,AW24=0),0,EBR_Master))) -> 204 | DK24: =IF(AND(BA24=0,BC24=1,BE24=0),0,IF(AND(BA24=0,BC24=2,BE24=0),0,IF(AND(BA24=0,BC24=1,BE24=1),0,WBL_Master))) -> 340 | DM24: =WBT_Master + IF(BA24=0,WBL_Master,0) + IF(BE24=0,WBR_Master) -> 1133 | DO24: =IF(AND(BA24=0,BC24=1,BE24=0),0,IF(AND(BA24=0,BC24=2,BE24=0),0,IF(AND(BA24=1,BC24=1,BE24=0),0,WBR_Master))) -> 226
E26: Conventional Shared RT LN | V26: CSRL | AC26: 1 | AE26: 2 | AK26: 1 | AM26: 2 | AS26: 1 | AU26: 2 | BA26: 1 | BC26: 2 | BO26: Conventional Shared RT LN | CF26: CSRL | CM26: =IF(AC26>0,NBL_Master,0) -> 102 | CO26: =NBT_Master + NBR_Master -> 485 | CU26: =IF(AK26>0,SBL_Master,0) -> 31 | CW26: =SBT_Master + SBR_Master -> 267 | DC26: =IF(AS26>0,EBL_Master,0) -> 306 | DE26: =EBT_Master + EBR_Master -> 1224 | DK26: =IF(BA26>0,WBL_Master,0) -> 340 | DM26: =WBT_Master + WBR_Master -> 1359
E28: Two-Way Stop Control | V28: N-S | AC28: 1 | AE28: 2 | AG28: 1 | AK28: 1 | AM28: 2 | AO28: 1 | AS28: 1 | AU28: 1 | AW28: 0 | BA28: 1 | BC28: 1 | BE28: 0 | BO28: =E28 -> Two-Way Stop Control | CF28: N-S | CM28: =IF(AC28>0,NBL_Master,0) -> 102 | CO28: =NBT_Master + IF(AC28=0,NBL_Master,0) + IF(AG28=0,NBR_Master) -> 306 | CQ28: =IF(AG28>0,NBR_Master,0) -> 179 | CU28: =IF(AK28>0,SBL_Master,0) -> 31 | CW28: =SBT_Master + IF(AK28=0,SBL_Master,0) + IF(AO28=0,SBR_Master) -> 216 | CY28: =IF(AO28>0,SBR_Master,0) -> 51 | DC28: =IF(AS28>0,EBL_Master,0) -> 306 | DE28: =EBT_Master + IF(AS28=0,EBL_Master,0) + IF(AW28=0,EBR_Master) -> 1224 | DG28: =IF(AW28>0,EBR_Master,0) -> 0 | DK28: =IF(BA28>0,WBL_Master,0) -> 340 | DM28: =WBT_Master + IF(BA28=0,WBL_Master,0) + IF(BE28=0,WBR_Master) -> 1359 | DO28: =IF(BE28>0,WBR_Master,0) -> 0
V30: E-W | AC30: 1 | AE30: 1 | AG30: 0 | AK30: 1 | AM30: 1 | AO30: 0 | AS30: 1 | AU30: 2 | AW30: 1 | BA30: 1 | BC30: 2 | BE30: 1 | CF30: E-W | CM30: =IF(AC30>0,NBL_Master,0) -> 102 | CO30: =NBT_Master + IF(AC30=0,NBL_Master,0) + IF(AG30=0,NBR_Master) -> 485 | CQ30: =IF(AG30>0,NBR_Master,0) -> 0 | CU30: =IF(AK30>0,SBL_Master,0) -> 31 | CW30: =SBT_Master + IF(AK30=0,SBL_Master,0) + IF(AO30=0,SBR_Master) -> 267 | CY30: =IF(AO30>0,SBR_Master,0) -> 0 | DC30: =IF(AS30>0,EBL_Master,0) -> 306 | DE30: =EBT_Master + IF(AS30=0,EBL_Master,0) + IF(AW30=0,EBR_Master) -> 1020 | DG30: =IF(AW30>0,EBR_Master,0) -> 204 | DK30: =IF(BA30>0,WBL_Master,0) -> 340 | DM30: =WBT_Master + IF(BA30=0,WBL_Master,0) + IF(BE30=0,WBR_Master) -> 1133 | DO30: =IF(BE30>0,WBR_Master,0) -> 226
E32: All-Way Stop Control | V32: FULL | AC32: 1 | AE32: 2 | AG32: 1 | AK32: 1 | AM32: 2 | AO32: 1 | AS32: 1 | AU32: 2 | AW32: 1 | BA32: 1 | BC32: 2 | BE32: 1 | BO32: =E32 -> All-Way Stop Control | CF32: FULL | CM32: =IF(AC32>0,NBL_Master,0) -> 102 | CO32: =NBT_Master + IF(AC32=0,NBL_Master,0) + IF(AG32=0,NBR_Master) -> 306 | CQ32: =IF(AG32>0,NBR_Master,0) -> 179 | CU32: =IF(AK32>0,SBL_Master,0) -> 31 | CW32: =SBT_Master + IF(AK32=0,SBL_Master,0) + IF(AO32=0,SBR_Master) -> 216 | CY32: =IF(AO32>0,SBR_Master,0) -> 51 | DC32: =IF(AS32>0,EBL_Master,0) -> 306 | DE32: =EBT_Master + IF(AS32=0,EBL_Master,0) + IF(AW32=0,EBR_Master) -> 1020 | DG32: =IF(AW32>0,EBR_Master,0) -> 204 | DK32: =IF(BA32>0,WBL_Master,0) -> 340 | DM32: =WBT_Master + IF(BA32=0,WBL_Master,0) + IF(BE32=0,WBR_Master) -> 1133 | DO32: =IF(BE32>0,WBR_Master,0) -> 226
E34: Continuous Green T | V34: W | AC34: 1 | AE34: 2 | AM34: 2 | AO34: 1 | AS34: 1 | AW34: 1 | BO34: Continuous Green T | CF34: W | CM34: =IF(AC34>0,NBL_Master,0) -> 102 | CO34: =NBT_Master + IF(AC34=0,NBL_Master,0) -> 306 | CW34: =SBT_Master + IF(AO34=0,SBR_Master) -> 216 | CY34: =IF(AO34>0,SBR_Master,0) -> 51 | DC34: =IF(AS34>0,EBL_Master,0) -> 306 | DG34: =IF(AW34>0,EBR_Master,0) -> 204
V36: N | AK36: 1 | AO36: 1 | AS36: 1 | AU36: 2 | BC36: 2 | BE36: 1 | CF36: N | CU36: =IF(AK36>0,SBL_Master,0) -> 31 | CY36: =IF(AO36>0,SBR_Master,0) -> 51 | DC36: =IF(AS36>0,EBL_Master,0) -> 306 | DE36: =EBT_Master + IF(AS36=0,EBL_Master,0) -> 1020 | DM36: =WBT_Master + IF(BE36=0,WBR_Master) -> 1133 | DO36: =IF(BE36>0,WBL_Master,0) -> 340
V38: E | AE38: 2 | AG38: 1 | AK38: 1 | AM38: 2 | BA38: 1 | BE38: 1 | CF38: E | CO38: =NBT_Master + IF(AG38=0,NBR_Master) -> 306 | CQ38: =IF(AG38>0,NBR_Master,0) -> 179 | CU38: =IF(AK38>0,SBL_Master,0) -> 31 | CW38: =SBT_Master + IF(AK38=0,SBL_Master,0) -> 216 | DK38: =IF(BA38>0,WBL_Master,0) -> 340 | DO38: =IF(BE38>0,WBL_Master,0) -> 340
V40: S | AC40: 1 | AG40: 1 | AU40: 2 | AW40: 1 | BA40: 1 | BC40: 2 | CF40: S | CM40: =IF(AC40>0,NBL_Master,0) -> 102 | CQ40: =IF(AG40>0,NBR_Master,0) -> 179 | DE40: =EBT_Master+ IF(AW40=0,EBR_Master) -> 1020 | DG40: =IF(AW40>0,EBR_Master,0) -> 204 | DK40: =IF(BA40>0,WBL_Master,0) -> 340 | DM40: =WBT_Master + IF(BA40=0,WBL_Master,0) -> 1133
E42: Quadrant Roadway | V42: S-W | AA42: Use the respective intersection tab(s) to specify the # of lanes inputs. | BO42: Quadrant Roadway | CF42: S-W | CM42: =NBL_Master -> 102 | CO42: =NBT_Master -> 306 | CQ42: =NBR_Master -> 179 | CW42: =SBT_Master -> 216 | CY42: =SBR_Master -> 51 | DC42: =EBL_Master -> 306 | DE42: =EBT_Master -> 1020 | DG42: =EBR_Master -> 204 | DK42: =WBL_Master -> 340 | DM42: =WBT_Master -> 1133 | DO42: =WBR_Master -> 226
V44: N-E | CF44: N-E | CO44: =NBT_Master -> 306 | CQ44: =NBR_Master -> 179 | CU44: =SBL_Master -> 31 | CW44: =SBT_Master -> 216 | CY44: =SBR_Master -> 51 | DC44: =EBL_Master -> 306 | DE44: =EBT_Master -> 1020 | DG44: =EBR_Master -> 204 | DK44: =WBL_Master -> 340 | DM44: =WBT_Master -> 1133 | DO44: =WBR_Master -> 226
V46: S-E | CF46: S-E | CM46: =NBL_Master -> 102 | CO46: =NBT_Master -> 306 | CQ46: =NBR_Master -> 179 | CU46: =SBL_Master -> 31 | CW46: =SBT_Master -> 216 | CY46: =SBR_Master -> 51 | DE46: =EBT_Master -> 1020 | DG46: =EBR_Master -> 204 | DK46: =WBL_Master -> 340 | DM46: =WBT_Master -> 1133 | DO46: =WBR_Master -> 226
V48: N-W | CF48: N-W | CM48: =NBL_Master -> 102 | CO48: =NBT_Master -> 306 | CQ48: =NBR_Master -> 179 | CU48: =SBL_Master -> 31 | CW48: =SBT_Master -> 216 | CY48: =SBR_Master -> 51 | DC48: =EBL_Master -> 306 | DE48: =EBT_Master -> 1020 | DG48: =EBR_Master -> 204 | DM48: =WBT_Master -> 1133 | DO48: =WBR_Master -> 226
E50: Partial Displaced Left Turn | V50: N-S | AC50: 1 | AE50: 2 | AG50: 1 | AK50: 1 | AM50: 2 | AO50: 1 | AS50: 1 | AU50: 2 | AW50: 1 | BA50: 1 | BC50: 2 | BE50: 1 | BO50: Partial Displaced Left Turn | CF50: N-S | CM50: =NBL_Master -> 102 | CO50: =NBT_Master + IF(AG50=0,NBR_Master) -> 306 | CQ50: =IF(AG50>0,NBR_Master,0) -> 179 | CU50: =SBL_Master -> 31 | CW50: =SBT_Master + IF(AO50=0,SBR_Master) -> 216 | CY50: =IF(AO50>0,SBR_Master,0) -> 51 | DC50: =IF(AS50>0,EBL_Master,0) -> 306 | DE50: =EBT_Master + IF(AS50=0,EBL_Master,0) + IF(AW50=0,EBR_Master) -> 1020 | DG50: =IF(AW50>0,EBR_Master,0) -> 204 | DK50: =IF(BA50>0,WBL_Master,0) -> 340 | DM50: =WBT_Master + IF(BA50=0,WBL_Master,0) + IF(BE50=0,WBR_Master) -> 1133 | DO50: =IF(BE50>0,WBR_Master,0) -> 226
V52: E-W | AC52: 1 | AE52: 2 | AG52: 1 | AK52: 1 | AM52: 2 | AO52: 1 | AS52: 1 | AU52: 2 | AW52: 1 | BA52: 1 | BC52: 2 | BE52: 1 | CF52: E-W | CM52: =IF(AC52>0,NBL_Master,0) -> 102 | CO52: =NBT_Master + IF(AC52=0,NBL_Master,0) + IF(AG52=0,NBR_Master) -> 306 | CQ52: =IF(AG52>0,NBR_Master,0) -> 179 | CU52: =IF(AK52>0,SBL_Master,0) -> 31 | CW52: =SBT_Master + IF(AK52=0,SBL_Master,0) + IF(AO52=0,SBR_Master) -> 216 | CY52: =IF(AO52>0,SBR_Master,0) -> 51 | DC52: =EBL_Master -> 306 | DE52: =EBT_Master+ IF(AW52=0,EBR_Master) -> 1020 | DG52: =IF(AW52>0,EBR_Master,0) -> 204 | DK52: =WBL_Master -> 340 | DM52: =WBT_Master + IF(BE52=0,WBR_Master) -> 1133 | DO52: =IF(BE52>0,WBR_Master,0) -> 226
E54: Displaced Left Turn | V54: FULL | AC54: 1 | AE54: 2 | AG54: 1 | AK54: 1 | AM54: 2 | AO54: 1 | AS54: 1 | AU54: 2 | AW54: 1 | BA54: 1 | BC54: 2 | BE54: 1 | BO54: Displaced Left Turn | CF54: FULL | CM54: =NBL_Master -> 102 | CO54: =NBT_Master + IF(AG54=0,NBR_Master) -> 306 | CQ54: =IF(AG54>0,NBR_Master,0) -> 179 | CU54: =SBL_Master -> 31 | CW54: =SBT_Master + IF(AO54=0,SBR_Master) -> 216 | CY54: =IF(AO54>0,SBR_Master,0) -> 51 | DC54: =EBL_Master -> 306 | DE54: =EBT_Master + IF(AW54=0,EBR_Master) -> 1020 | DG54: =IF(AW54>0,EBR_Master,0) -> 204 | DK54: =WBL_Master -> 340 | DM54: =WBT_Master + IF(BE54=0,WBR_Master) -> 1133 | DO54: =IF(BE54>0,WBR_Master,0) -> 226
E56: Signalized Restricted Crossing U-Turn | V56: N-S | AA56: 1 | AC56: 1 | AE56: 2 | AG56: 1 | AI56: 1 | AK56: 1 | AM56: 2 | AO56: 1 | AW56: 1 | BE56: 1 | BO56: =E56 -> Signalized Restricted Crossing U-Turn | CF56: N-S | CK56: =IF(AA56>0,NBU_Master,0) -> 0 | CM56: =NBL_Master -> 102 | CO56: =NBT_Master + IF(AG56=0,NBR_Master) -> 306 | CQ56: =IF(AG56>0,NBR_Master,0) -> 179 | CS56: =IF(AI56>0,SBU_Master,0) -> 0 | CU56: =IF(AK56>0,SBL_Master,0) -> 31 | CW56: =SBT_Master + IF(AK56=0,SBL_Master,0) + IF(AO56=0,SBR_Master)+ IF(AI56=0,SBU_Master) -> 216 | CY56: =IF(AO56>0,SBR_Master,0) -> 51 | DG56: =IF(AW56>0,EBR_Master,0) -> 204 | DO56: =IF(BE56>0,WBR_Master,0) -> 226
V58: E-W | AG58: 1 | AO58: 1 | AQ58: 1 | AS58: 1 | AU58: 2 | AW58: 1 | AY58: 1 | BA58: 1 | BC58: 2 | BE58: 1 | CF58: E-W | CQ58: =IF(AG58>0,NBR_Master,0) -> 179 | CY58: =IF(AO58>0,SBR_Master,0) -> 51 | DA58: =IF(AQ58>0,EBU_Master,0) -> 0 | DC58: =IF(AS58>0,EBL_Master,0) -> 306 | DE58: =EBT_Master + IF(AS58=0,EBL_Master,0) + IF(AW58=0,EBR_Master)+ IF(AQ58=0,EBU_Master) -> 1020 | DG58: =IF(AW58>0,EBR_Master,0) -> 204 | DI58: =IF(AY58>0,WBU_Master,0) -> 0 | DK58: =IF(BA58>0,WBL_Master,0) -> 340 | DM58: =WBT_Master + IF(BA58=0,WBL_Master,0) + IF(BE58=0,WBR_Master)+ IF(AY58=0,WBU_Master) -> 1133 | DO58: =IF(BE58>0,WBR_Master,0) -> 226
E60: Unsignalized Restricted Crossing U-Turn | V60: N-S | AA60: 1 | AC60: 1 | AE60: 2 | AG60: 1 | AI60: 1 | AK60: 1 | AM60: 2 | AO60: 1 | AW60: 1 | BE60: 1 | BO60: =E60 -> Unsignalized Restricted Crossing U-Turn | CF60: N-S | CK60: =IF(AA60>0,NBU_Master,0) -> 0 | CM60: =NBL_Master -> 102 | CO60: =NBT_Master + IF(AG60=0,NBR_Master) -> 306 | CQ60: =IF(AG60>0,NBR_Master,0) -> 179 | CS60: =IF(AI60>0,SBU_Master,0) -> 0 | CU60: =IF(AK60>0,SBL_Master,0) -> 31 | CW60: =SBT_Master + IF(AK60=0,SBL_Master,0) + IF(AO60=0,SBR_Master)+ IF(AI60=0,SBU_Master) -> 216 | CY60: =IF(AO60>0,SBR_Master,0) -> 51 | DG60: =IF(AW60>0,EBR_Master,0) -> 204 | DO60: =IF(BE60>0,WBR_Master,0) -> 226
V62: E-W | AG62: 1 | AO62: 1 | AQ62: 1 | AS62: 1 | AU62: 2 | AW62: 1 | AY62: 1 | BA62: 1 | BC62: 2 | BE62: 1 | CF62: E-W | CQ62: =IF(AG62>0,NBR_Master,0) -> 179 | CY62: =IF(AO62>0,SBR_Master,0) -> 51 | DA62: =IF(AQ62>0,EBU_Master,0) -> 0 | DC62: =IF(AS62>0,EBL_Master,0) -> 306 | DE62: =EBT_Master + IF(AS62=0,EBL_Master,0) + IF(AW62=0,EBR_Master)+ IF(AQ62=0,EBU_Master) -> 1020 | DG62: =IF(AW62>0,EBR_Master,0) -> 204 | DI62: =IF(AY62>0,WBU_Master,0) -> 0 | DK62: =IF(BA62>0,WBL_Master,0) -> 340 | DM62: =WBT_Master + IF(BA62=0,WBL_Master,0) + IF(BE62=0,WBR_Master)+ IF(AY62=0,WBU_Master) -> 1133 | DO62: =IF(BE62>0,WBR_Master,0) -> 226
E64: Median U-Turn | V64: N-S | AA64: 1 | AE64: 2 | AG64: 1 | AI64: 1 | AM64: 2 | AO64: 1 | AU64: 2 | AW64: 1 | BC64: 2 | BE64: 1 | BO64: Median U-Turn | CF64: N-S | CK64: =IF(AA64>0,NBU_Master,0) -> 0 | CO64: =NBT_Master + IF(AG64=0,NBR_Master)+ IF(AA56=0,NBU_Master) -> 306 | CQ64: =IF(AG64>0,NBR_Master,0) -> 179 | CS64: =IF(AI64>0,SBU_Master,0) -> 0 | CW64: =SBT_Master + IF(AO64=0,SBR_Master)+ IF(AI56=0,SBU_Master) -> 216 | CY64: =IF(AO64>0,SBR_Master,0) -> 51 | DE64: =EBT_Master+ IF(AW64=0,EBR_Master) -> 1020 | DG64: =IF(AW64>0,EBR_Master,0) -> 204 | DM64: =WBT_Master + IF(BE64=0,WBR_Master) -> 1133 | DO64: =IF(BE64>0,WBR_Master,0) -> 226
V66: E-W | AE66: 2 | AG66: 1 | AM66: 2 | AO66: 1 | AQ66: 1 | AU66: 2 | AW66: 1 | AY66: 1 | BC66: 2 | BE66: 1 | CF66: E-W | CO66: =NBT_Master + IF(AG66=0,NBR_Master) -> 306 | CQ66: =IF(AG66>0,NBR_Master,0) -> 179 | CW66: =SBT_Master + IF(AO66=0,SBR_Master) -> 216 | CY66: =IF(AO66>0,SBR_Master,0) -> 51 | DA66: =IF(AQ66>0,EBU_Master,0) -> 0 | DE66: =EBT_Master+ IF(AW66=0,EBR_Master)+ IF(AQ58=0,EBU_Master) -> 1020 | DG66: =IF(AW66>0,EBR_Master,0) -> 204 | DI66: =IF(AY66>0,WBU_Master,0) -> 0 | DM66: =WBT_Master + IF(BE66=0,WBR_Master)+ IF(AY58=0,WBU_Master) -> 1133 | DO66: =IF(BE66>0,WBR_Master,0) -> 226
E68: Partial Median U-Turn | V68: N-S | AA68: 1 | AE68: 2 | AG68: 1 | AI68: 1 | AM68: 2 | AO68: 1 | AS68: 1 | AU68: 2 | AW68: 1 | BA68: 1 | BC68: 2 | BE68: 1 | BO68: Partial Median U-Turn | CF68: N-S | CK68: =IF(AA68>0,NBU_Master,0) -> 0 | CO68: =NBT_Master + IF(AG68=0,NBR_Master)+ IF(AA56=0,NBU_Master) -> 306 | CQ68: =IF(AG68>0,NBR_Master,0) -> 179 | CS68: =IF(AI68>0,SBU_Master,0) -> 0 | CW68: =SBT_Master + IF(AO68=0,SBR_Master)+ IF(AI56=0,SBU_Master) -> 216 | CY68: =IF(AO68>0,SBR_Master,0) -> 51 | DC68: =IF(AS68>0,EBL_Master,0) -> 306 | DE68: =EBT_Master + IF(AS68=0,EBL_Master,0) + IF(AW68=0,EBR_Master) -> 1020 | DG68: =IF(AW68>0,EBR_Master,0) -> 204 | DK68: =IF(BA68>0,WBL_Master,0) -> 340 | DM68: =WBT_Master + IF(BA68=0,WBL_Master,0) + IF(BE68=0,WBR_Master) -> 1133 | DO68: =IF(BE68>0,WBR_Master,0) -> 226
V70: E-W | AC70: 1 | AE70: 2 | AG70: 1 | AK70: 1 | AM70: 2 | AO70: 1 | AQ70: 1 | AU70: 2 | AW70: 1 | AY70: 1 | BC70: 2 | BE70: 1 | CF70: E-W | CM70: =IF(AC70>0,NBL_Master,0) -> 102 | CO70: =NBT_Master + IF(AC70=0,NBL_Master,0) + IF(AG70=0,NBR_Master) -> 306 | CQ70: =IF(AG70>0,NBR_Master,0) -> 179 | CU70: =IF(AK70>0,SBL_Master,0) -> 31 | CW70: =SBT_Master + IF(AK70=0,SBL_Master,0) + IF(AO70=0,SBR_Master) -> 216 | CY70: =IF(AO70>0,SBR_Master,0) -> 51 | DA70: =IF(AQ70>0,EBU_Master,0) -> 0 | DE70: =EBT_Master+ IF(AW70=0,EBR_Master)+ IF(AQ58=0,EBU_Master) -> 1020 | DG70: =IF(AW70>0,EBR_Master,0) -> 204 | DI70: =IF(AY70>0,WBU_Master,0) -> 0 | DM70: =WBT_Master + IF(BE70=0,WBR_Master)+ IF(AY58=0,WBU_Master) -> 1133 | DO70: =IF(BE70>0,WBR_Master,0) -> 226
E72: Bowtie | V72: N-S | AE72: 1 | AG72: 1 | AM72: 1 | AO72: 1 | AU72: 1 | AW72: 1 | BC72: 1 | BE72: 1 | BO72: =E72 -> Bowtie | CF72: N-S | CM72: =NBL_Master -> 102 | CO72: =NBT_Master -> 306 | CQ72: =NBR_Master -> 179 | CW72: =SBT_Master -> 216 | CY72: =SBR_Master -> 51 | DC72: =EBL_Master -> 306 | DE72: =EBT_Master -> 1020 | DG72: =EBR_Master -> 204 | DK72: =WBL_Master -> 340 | DM72: =WBT_Master -> 1133 | DO72: =WBR_Master -> 226
V74: E-W | AE74: 1 | AG74: 1 | AM74: 1 | AO74: 1 | AU74: 1 | AW74: 1 | BC74: 1 | BE74: 1 | CF74: E-W | CM74: =NBL_Master -> 102 | CO74: =NBT_Master -> 306 | CQ74: =NBR_Master -> 179 | CW74: =SBT_Master -> 216 | CY74: =SBR_Master -> 51 | DC74: =EBL_Master -> 306 | DE74: =EBT_Master -> 1020 | DG74: =EBR_Master -> 204 | DK74: =WBL_Master -> 340 | DM74: =WBT_Master -> 1133 | DO74: =WBR_Master -> 226
E76: Split Intersection | V76: N-S | AA76: Use the respective intersection tab(s) to specify the # of lanes inputs. | BO76: =E76 -> Split Intersection | CF76: N-S | CM76: =NBL_Master -> 102 | CO76: =NBT_Master -> 306 | CQ76: =NBR_Master -> 179 | CW76: =SBT_Master -> 216 | CY76: =SBR_Master -> 51 | DC76: =EBL_Master -> 306 | DE76: =EBT_Master -> 1020 | DG76: =EBR_Master -> 204 | DK76: =WBL_Master -> 340 | DM76: =WBT_Master -> 1133 | DO76: =WBR_Master -> 226
V78: E-W | CF78: E-W | CM78: =NBL_Master -> 102 | CO78: =NBT_Master -> 306 | CQ78: =NBR_Master -> 179 | CW78: =SBT_Master -> 216 | CY78: =SBR_Master -> 51 | DC78: =EBL_Master -> 306 | DE78: =EBT_Master -> 1020 | DG78: =EBR_Master -> 204 | DK78: =WBL_Master -> 340 | DM78: =WBT_Master -> 1133 | DO78: =WBR_Master -> 226
E81: For shared lanes, enter "0" in L or R
E82: For AWSC enter number of approach lanes (1 or 2) for each approach.
B83: Capacity Analysis for Planning of Junctions Capacity Analysis for Planning of Junctions | BL83: Capacity Analysis for Planning of Junctions Capacity Analysis for Planning of Junctions
B85: Step 3 (Cont.) | BL85: Input Worksheet 2
E89: Number of Lanes for Grade Separated Intersections | BO89: Number of Lanes for Grade Separated Intersections
E91: TYPE OF INTERSECTION | V91: Sheet | AA91: Northbound | AI91: Southbound | AQ91: Eastbound | AY91: Westbound | BO91: TYPE OF INTERSECTION | CF91: Sheet | CK91: Northbound | CS91: Southbound | DA91: Eastbound | DI91: Westbound
AA93: U | AC93: L | AE93: T | AG93: R | AI93: U | AK93: L | AM93: T | AO93: R | AQ93: U | AS93: L | AU93: T | AW93: R | AY93: U | BA93: L | BC93: T | BE93: R | CK93: U | CM93: L | CO93: T | CQ93: R | CS93: U | CU93: L | CW93: T | CY93: R | DA93: U | DC93: L | DE93: T | DG93: R | DI93: U | DK93: L | DM93: T | DO93: R
E95: Echelon | V95: N-S | AC95: 1 | AE95: 2 | AG95: 1 | AK95: 1 | AM95: 2 | AO95: 1 | AS95: 1 | AU95: 2 | AW95: 1 | BA95: 1 | BC95: 2 | BE95: 1 | BO95: =E95 -> Echelon | CF95: N-S | CM95: =NBL_Master -> 102 | CO95: =NBT_Master + IF(AG95=0, NBR_Master,0) -> 306 | CQ95: =IF(AG95<>0, NBR_Master,0) -> 179 | CU95: =SBL_Master -> 31 | CW95: =SBT_Master + IF(AO95=0,SBR_Master,0) -> 216 | CY95: =IF(AO95<>0,SBR_Master,0) -> 51 | DC95: =EBL_Master -> 306 | DE95: =EBT_Master + IF(AW95=0,EBR_Master,0) -> 1020 | DG95: =IF(AW95<>0,EBR_Master,0) -> 204 | DK95: =WBL_Master -> 340 | DM95: =WBT_Master + IF(BE95=0,WBR_Master,0) -> 1133 | DO95: =IF(BE95<>0,WBR_Master,0) -> 226
V97: E-W | AC97: 1 | AE97: 2 | AG97: 1 | AK97: 1 | AM97: 2 | AO97: 1 | AS97: 1 | AU97: 2 | AW97: 1 | BA97: 1 | BC97: 2 | BE97: 1 | CF97: E-W | CM97: =NBL_Master -> 102 | CO97: =NBT_Master + IF(AG97=0, NBR_Master,0) -> 306 | CQ97: =IF(AG97<>0, NBR_Master,0) -> 179 | CU97: =SBL_Master -> 31 | CW97: =SBT_Master + IF(AO97=0,SBR_Master,0) -> 216 | CY97: =IF(AO97<>0,SBR_Master,0) -> 51 | DC97: =EBL_Master -> 306 | DE97: =EBT_Master + IF(AW97=0,EBR_Master,0) -> 1020 | DG97: =IF(AW97<>0,EBR_Master,0) -> 204 | DK97: =WBL_Master -> 340 | DM97: =WBT_Master + IF(BE97=0,WBR_Master,0) -> 1133 | DO97: =IF(BE97<>0,WBR_Master,0) -> 226
E99: Center Turn Overpass | V99: Full | AC99: 1 | AE99: 2 | AG99: 1 | AK99: 1 | AM99: 2 | AO99: 1 | AS99: 1 | AU99: 2 | AW99: 1 | BA99: 1 | BC99: 2 | BE99: 1 | BO99: =E99 -> Center Turn Overpass | CF99: Full | CM99: =NBL_Master -> 102 | CO99: =NBT_Master + IF(AG99=0, NBR_Master,0) -> 306 | CQ99: =IF(AG99<>0, NBR_Master,0) -> 179 | CU99: =SBL_Master -> 31 | CW99: =SBT_Master + IF(AO99=0,SBR_Master,0) -> 216 | CY99: =IF(AO99<>0,SBR_Master,0) -> 51 | DC99: =EBL_Master -> 306 | DE99: =EBT_Master + IF(AW99=0,EBR_Master,0) -> 1020 | DG99: =IF(AW99<>0,EBR_Master,0) -> 204 | DK99: =WBL_Master -> 340 | DM99: =WBT_Master + IF(BE99=0,WBR_Master,0) -> 1133 | DO99: =IF(BE99<>0,WBR_Master,0) -> 226
V101: E-W | CF101: E-W
E105: Number of Lanes for Interchanges
E107: TYPE OF INTERCHANGE | V107: Sheet | AA107: Northbound | AI107: Southbound | AQ107: Eastbound | AY107: Westbound
AA109: U | AC109: L | AE109: T | AG109: R | AI109: U | AK109: L | AM109: T | AO109: R | AQ109: U | AS109: L | AU109: T | AW109: R | AY109: U | BA109: L | BC109: T | BE109: R
E111: Diamond | V111: N-S | AC111: 1 | AE111: 2 | AG111: 1 | AK111: 1 | AM111: 2 | AO111: 1 | AS111: 1 | AU111: 2 | AW111: 1 | BA111: 1 | BC111: 2 | BE111: 1
V113: E-W | AC113: 1 | AE113: 2 | AG113: 1 | AK113: 1 | AM113: 2 | AO113: 1 | AS113: 1 | AU113: 2 | AW113: 1 | BA113: 1 | BC113: 2 | BE113: 1
E115: Partial Cloverleaf A | V115: N-S | AC115: 1 | AE115: 2 | AG115: 1 | AK115: 1 | AM115: 2 | AO115: 1 | AS115: 1 | AW115: 1 | BA115: 1 | BE115: 1
V117: E-W | AC117: 1 | AG117: 1 | AK117: 1 | AO117: 1 | AS117: 1 | AU117: 2 | AW117: 1 | BA117: 1 | BC117: 2 | BE117: 1
E119: Partial Cloverleaf B | V119: N-S | AC119: 1 | AE119: 2 | AG119: 1 | AK119: 1 | AM119: 2 | AO119: 1 | AS119: 1 | AW119: 1 | BA119: 1 | BE119: 1
V121: E-W | AC121: 1 | AG121: 1 | AK121: 1 | AO121: 1 | AS121: 1 | AU121: 2 | AW121: 1 | BA121: 1 | BC121: 2 | BE121: 1
E123: Displaced Left Turn | V123: N-S | AC123: 1 | AE123: 2 | AG123: 1 | AK123: 1 | AM123: 2 | AO123: 1 | AS123: 1 | AU123: 2 | AW123: 1 | BA123: 1 | BC123: 2 | BE123: 1
V125: E-W | AC125: 1 | AE125: 2 | AG125: 1 | AK125: 1 | AM125: 2 | AO125: 1 | AS125: 1 | AU125: 2 | AW125: 1 | BA125: 1 | BC125: 2 | BE125: 1
E127: Contraflow Left Interchange | V127: N-S | AC127: 1 | AE127: 2 | AG127: 1 | AK127: 1 | AM127: 2 | AO127: 1 | AS127: 1 | AW127: 1 | BA127: 1 | BE127: 1
V129: E-W | AC129: 1 | AG129: 1 | AK129: 1 | AO129: 1 | AS129: 1 | AU129: 2 | AW129: 1 | BA129: 1 | BC129: 2 | BE129: 1
E131: Diverging Diamond Interchange | V131: N-S | AC131: 1 | AE131: 2 | AG131: 1 | AK131: 1 | AM131: 2 | AO131: 1 | AS131: 1 | AW131: 1 | BA131: 1 | BE131: 1
V133: E-W | AC133: 1 | AG133: 1 | AK133: 1 | AO133: 1 | AS133: 1 | AU133: 2 | AW133: 1 | BA133: 1 | BC133: 2 | BE133: 1
E135: Single Point | V135: N-S | AC135: 1 | AE135: 2 | AG135: 1 | AK135: 1 | AM135: 2 | AO135: 1 | AS135: 1 | AU135: 2 | AW135: 1 | BA135: 1 | BC135: 2 | BE135: 1
V137: E-W | AC137: 1 | AE137: 2 | AG137: 1 | AK137: 1 | AM137: 2 | AO137: 1 | AS137: 1 | AU137: 2 | AW137: 1 | BA137: 1 | BC137: 2 | BE137: 1
E139: Single Point with Roundabout | V139: N-S | AA139: Use the respective intersection tab(s) to specify the # of lanes inputs.
V141: E-W

Sheet Crosswalks sheet (hidden)
L3: Ped | O3: Bike
L4: Conflicting Vehicle Type | M4: Markings | O4: Major/Minor Street Facility Type | P4: Conflicting Control Type | Q4: Out of Direction Travel | R4: Riding Between Lanes | S4: Riding Across Free-Flow Ramp
L5: Stop/Signal Controlled | M5: Marked | O5: Shared with Vehicles | P5: Stop/Signal Controlled | Q5: Yes | R5: Yes | S5: Yes
L6: Free Flowing | M6: Unmarked | O6: On-Street Lane | P6: Free Flowing | Q6: No | R6: No | S6: No
L7: Yield Controlled | O7: Shared Use Path | P7: Yield Controlled
L8: Permissive Left
A12: Pedestrian Crossing Configurations for Non-roundabout Intersections
A13: Intersection Type | B13: Crosswalk Number | C13: Volumes | D13: Number of Lanes | E13: Speed | F13: Conflicting Vehicle Type | G13: Markings
A14: Traffic Signal | B14: Crosswalk 1 | C14: =SUM(EBL_Master,WBR_Master,'1 - Volume Input'!AA78:AX79,NBT_Master) -> 1136 | D14: =SUM('Traffic Signal'!CJ30:CU30)+MAX('Traffic Signal'!CV31:CV33,'Traffic Signal'!CI31:CI36,'Traffic Signal'!CP43:CR43) -> 6 | F14: Stop/Signal Controlled | G14: Yes
B15: Crosswalk 2 | C15: =SUM(EBT_Master,'1 - Volume Input'!S76:AX77,SBL_Master,NBR_Master) -> 2929 | D15: =SUM('Traffic Signal'!CV31:CV42)+MAX('Traffic Signal'!CS43:CU43,'Traffic Signal'!CI37:CI39,'Traffic Signal'!CP30:CU30) -> 6 | F15: Stop/Signal Controlled | G15: Yes
B16: Crosswalk 3 | C16: =SUM(EBR_Master,WBL_Master,SBT_Master,'1 - Volume Input'!AA80:AX81) -> 1347 | D16: =SUM('Traffic Signal'!CJ43:CU43)+MAX('Traffic Signal'!CM30:CO30,'Traffic Signal'!CI40:CI42,'Traffic Signal'!CV37:CV42) -> 6 | F16: Stop/Signal Controlled | G16: Yes
B17: Crosswalk 4 | C17: =SUM('1 - Volume Input'!AA74:AX75,WBT_Master,SBR_Master,NBL_Master) -> 2816 | D17: =SUM('Traffic Signal'!CI31:CI42)+MAX('Traffic Signal'!CJ43:CO43,'Traffic Signal'!CV34:CV36,'Traffic Signal'!CJ30:CL30) -> 6 | F17: Stop/Signal Controlled | G17: Yes
A18: Bowtie (N-S) | B18: Crosswalk 1 | C18: =SUM('1 - Volume Input'!S32:Z33,'1 - Volume Input'!AI34:AP35,'1 - Volume Input'!S36:AP37,'1 - Volume Input'!AA38:AH39) -> 1114 | D18: =SUM('Bowtie N-S'!DX25:EC25) + MAX('Bowtie N-S'!Z5WBRlanes,'Bowtie N-S'!Z5NBTlanes) -> 3 | F18: Stop/Signal Controlled | G18: Yes
B19: Crosswalk 2 | C19: =SUM(2*'1 - Volume Input'!S32:Z33,'1 - Volume Input'!AA32:AH33,'1 - Volume Input'!S34:AP35,'1 - Volume Input'!S36:Z37,2*'1 - Volume Input'!S38:Z39,'1 - Volume Input'!AI38:AP39) -> 3671 | D19: =SUM('Bowtie N-S'!EJ26:EJ31) + MAX('Bowtie N-S'!Z5EBTlanes,'Bowtie N-S'!Z5NBRlanes) -> 3 | F19: Stop/Signal Controlled | G19: Yes
B20: Crosswalk 3 | C20: =SUM('1 - Volume Input'!AI32:AP33,'1 - Volume Input'!S34:Z35,'1 - Volume Input'!AA36:AH37,'1 - Volume Input'!S38:AP39) -> 1320 | D20: =SUM('Bowtie N-S'!ED38:EI38) + MAX('Bowtie N-S'!Z5SBTlanes,'Bowtie N-S'!Z5EBRlanes) -> 3 | F20: Stop/Signal Controlled | G20: Yes
B21: Crosswalk 4 | C21: =SUM('1 - Volume Input'!S32:AP33,2*'1 - Volume Input'!S34:Z35,'1 - Volume Input'!AA34:AH35,2*'1 - Volume Input'!S36:Z37,'1 - Volume Input'!AI36:AP37,'1 - Volume Input'!S38:Z39) -> 3487 | D21: =SUM('Bowtie N-S'!DW32:DW37) + MAX('Bowtie N-S'!Z5WBTlanes,'Bowtie N-S'!Z5SBRlanes) -> 3 | F21: Stop/Signal Controlled | G21: Yes

Sheet Multimodal Ped
A2: Capacity Analysis for Planning of Junctions
A4: Multimodal Intersection Configuration for Pedestrian Crossings
CR7: Crosswalk Marking Legend
CR8: Conflicting Vehicle Type
DA10: Stop/Signal Controlled
DA12: Freeflowing
DA14: Yield Controlled (yield to vehicles downstream)
DA16: Permissive Left (unless exclusive pedestrian phase)
CR18: Marking Type
B20: Roadway Speeds | AA20: Ramp Speeds (Only for Interchanges) | DF20: Marked | DO20: Unmarked
B21: Major Street Speed Limit | P21: 45 | AA21: Diagonal Ramps | AO21: 20
B23: Minor Street Speed Limit | P23: 35 | AA23: Loop Ramps | AO23: 20
B25: Mini Roundabout Entry & Exit Speed | P25: 20 | AA25: DDI Ramps | AO25: 20
B27: 1-Lane Roundabout Entry & Exit Speed | P27: 25 | AA27: Single Point Ramps | AO27: 30
B29: 2-Lane Roundabout Entry & Exit Speed | P29: 30 | AA29: Single Point with Roundabout | AO29: 30
B31: 3-Lane Roundabout Entry & Exit Speed | P31: 35
A34: DO NOT REMOVE ROW: Hiden Calculations | AC34: 5 | AN34: 6 | AO34: 7 | AP34: 8
A35: Pedestrian Crossing Configurations for Non-roundabout Intersections
A37: DO NOT MODIFY THIS ROW | AN37: 1 | AS37: =AN37 -> 1 | BQ37: 2 | BV37: =BQ37 -> 2 | CT37: 3 | CY37: =CT37 -> 3 | DD37: 4 | DI37: =DD37 -> 4 | DN37: 5 | DS37: =DN37 -> 5 | DX37: 6 | EC37: =DX37 -> 6 | EH37: 7 | EM37: =EH37 -> 7 | ER37: 8 | EW37: =ER37 -> 8 | FB37: 9 | FG37: =FB37 -> 9 | FL37: 10 | FQ37: =FL37 -> 10 | FV37: 11 | GA37: =FV37 -> 11 | GF37: 12 | GK37: =GF37 -> 12 | GP37: 13 | GU37: =GP37 -> 13 | GZ37: 14 | HE37: =GZ37 -> 14 | HJ37: 15 | HO37: =HJ37 -> 15 | HT37: 16 | HY37: =HT37 -> 16
A38: TYPE OF INTERSECTION | T38: Sheet | Z38: Intersection Score | AD38: Out of Direction Travel | AI38: Multistage Crossing | AN38: Crossing #1 | BQ38: Crossing #2 | CT38: Crossing #3 | DW38: Crossing #4 | EZ38: Crossing #5 | GC38: Crossing #6 | HF38: Crossing #7 | II38: Crossing #8 | JL38: Crossing #9 | KO38: Crossing #10 | LR38: Crossing #11 | MU38: Crossing #12 | NX38: Crossing #13 | PA38: Crossing #14 | QD38: Crossing #15 | RG38: Crossing #16 | SJ38: Crossing #17 | TM38: Crossing #18 | UP38: Score | UU38: Individual Crossing Scores
AN40: # Lanes | AS40: Veh Speed | AX40: Volume | BC40: Conflicting Veh Type | BK40: Markings | BQ40: # Lanes | BV40: Veh Speed | CA40: Volume | CF40: Conflicting Veh Type | CN40: Markings | CT40: # Lanes | CY40: Veh Speed | DD40: Volume | DI40: Conflicting Veh Type | DQ40: Markings | DW40: # Lanes | EB40: Veh Speed | EG40: Volume | EL40: Conflicting Veh Type | ET40: Markings | EZ40: # Lanes | FE40: Veh Speed | FJ40: Volume | FO40: Conflicting Veh Type | FW40: Markings | GC40: # Lanes | GH40: Veh Speed | GM40: Volume | GR40: Conflicting Veh Type | GZ40: Markings | HF40: # Lanes | HK40: Veh Speed | HP40: Volume | HU40: Conflicting Veh Type | IC40: Markings | II40: # Lanes | IN40: Veh Speed | IS40: Volume | IX40: Conflicting Veh Type | JF40: Markings | JL40: # Lanes | JQ40: Veh Speed | JV40: Volume | KA40: Conflicting Veh Type | KI40: Markings | KO40: # Lanes | KT40: Veh Speed | KY40: Volume | LD40: Conflicting Veh Type | LL40: Markings | LR40: # Lanes | LW40: Veh Speed | MB40: Volume | MG40: Conflicting Veh Type | MO40: Markings | MU40: # Lanes | MZ40: Veh Speed | NE40: Volume | NJ40: Conflicting Veh Type | NR40: Markings | NX40: # Lanes | OC40: Veh Speed | OH40: Volume | OM40: Conflicting Veh Type | OU40: Markings | PA40: # Lanes | PF40: Veh Speed | PK40: Volume | PP40: Conflicting Veh Type | PX40: Markings | QD40: # Lanes | QI40: Veh Speed | QN40: Volume | QS40: Conflicting Veh Type | RA40: Markings | RG40: # Lanes | RL40: Veh Speed | RQ40: Volume | RV40: Conflicting Veh Type | SD40: Markings | SJ40: # Lanes | SO40: Veh Speed | ST40: Volume | SY40: Conflicting Veh Type | TG40: Markings | TM40: # Lanes | TR40: Veh Speed | TW40: Volume | UB40: Conflicting Veh Type | UJ40: Markings | UP40: Combined | UU40: #1 | VE40: #2 | VO40: #3 | VY40: #4 | WI40: #5 | WS40: #6 | XC40: #7 | XM40: #8 | XW40: #9 | YG40: #10 | YQ40: #11 | ZA40: #12 | ZK40: #13 | ZU40: #14 | AAE40: #15 | AAO40: #16 | AAY40: #17 | ABI40: #18
A42: ='3 - Alt Num Lanes Input'!E24 -> Traffic Signal | T42: FULL | Z42: =UP42 -> 4.643937383 | AD42: No | AI42: Yes Crossing(s) with 2 stages | AN42: =SUM('Traffic Signal'!CJ30:CU30) -> 4 | AS42: =IF(OR(AND(Input_MajorStreetDirection="East-West",OR(AN38="Crossing #3",AN38="Crossing #4",AN38="Crossing #7",AN38="Crossing #8")),AND(Input_MajorStreetDirection="North-South",OR(AN38="Crossing #1",AN38="Crossing #2",AN38="Crossing #5",AN38="Crossing #6"))),Maj_St_Spd_Lmt,Min_St_Spd_Lmt) -> 45 | AX42: =SUM(SBU_Master,SBL_Master,SBT_Master,SBR_Master) -> 298 | BC42: Stop/Signal Controlled | BK42: Marked | BQ42: =MAX('Traffic Signal'!CI31:CI36,'Traffic Signal'!CP43:CR43,'Traffic Signal'!CV31:CV33) -> 2 | BV42: =IF(OR(AND(Input_MajorStreetDirection="East-West",OR(BQ38="Crossing #3",BQ38="Crossing #4",BQ38="Crossing #7",BQ38="Crossing #8")),AND(Input_MajorStreetDirection="North-South",OR(BQ38="Crossing #1",BQ38="Crossing #2",BQ38="Crossing #5",BQ38="Crossing #6"))),Maj_St_Spd_Lmt,Min_St_Spd_Lmt) -> 45 | CA42: =SUM(SBU_Master,EBL_Master,NBT_Master,WBR_Master) -> 838 | CF42: Stop/Signal Controlled | CN42: Marked | CT42: =SUM('Traffic Signal'!CV31:CV42) -> 4 | CY42: =IF(OR(AND(Input_MajorStreetDirection="East-West",OR(CT38="Crossing #3",CT38="Crossing #4",CT38="Crossing #7",CT38="Crossing #8")),AND(Input_MajorStreetDirection="North-South",OR(CT38="Crossing #1",CT38="Crossing #2",CT38="Crossing #5",CT38="Crossing #6"))),Maj_St_Spd_Lmt,Min_St_Spd_Lmt) -> 35 | DD42: =SUM(WBU_Master,WBL_Master,WBT_Master,WBR_Master) -> 1699 | DI42: Stop/Signal Controlled | DQ42: Marked | DW42: =MAX('Traffic Signal'!CP30:CU30,'Traffic Signal'!CI37:CI39,'Traffic Signal'!CS43:CU43) -> 2 | EB42: =IF(OR(AND(Input_MajorStreetDirection="East-West",OR(DW38="Crossing #3",DW38="Crossing #4",DW38="Crossing #7",DW38="Crossing #8")),AND(Input_MajorStreetDirection="North-South",OR(DW38="Crossing #1",DW38="Crossing #2",DW38="Crossing #5",DW38="Crossing #6"))),Maj_St_Spd_Lmt,Min_St_Spd_Lmt) -> 35 | EG42: =SUM(NBR_Master,SBL_Master,WBU_Master,EBT_Master) -> 1230 | EL42: Stop/Signal Controlled | ET42: Marked | EZ42: =SUM('Traffic Signal'!CJ43:CU43) -> 4 | FE42: =IF(OR(AND(Input_MajorStreetDirection="East-West",OR(EZ38="Crossing #3",EZ38="Crossing #4",EZ38="Crossing #7",EZ38="Crossing #8")),AND(Input_MajorStreetDirection="North-South",OR(EZ38="Crossing #1",EZ38="Crossing #2",EZ38="Crossing #5",EZ38="Crossing #6"))),Maj_St_Spd_Lmt,Min_St_Spd_Lmt) -> 45 | FJ42: =SUM(NBT_Master,NBL_Master,NBR_Master,NBU_Master) -> 587 | FO42: Stop/Signal Controlled | FW42: Marked | GC42: =MAX('Traffic Signal'!CV37:CV42,'Traffic Signal'!CM30:CO30,'Traffic Signal'!CI40:CI42) -> 2 | GH42: =IF(OR(AND(Input_MajorStreetDirection="East-West",OR(GC38="Crossing #3",GC38="Crossing #4",GC38="Crossing #7",GC38="Crossing #8")),AND(Input_MajorStreetDirection="North-South",OR(GC38="Crossing #1",GC38="Crossing #2",GC38="Crossing #5",GC38="Crossing #6"))),Maj_St_Spd_Lmt,Min_St_Spd_Lmt) -> 45 | GM42: =SUM(EBR_Master,SBT_Master,WBL_Master,NBU_Master) -> 760 | GR42: Stop/Signal Controlled | GZ42: Marked | HF42: =SUM('Traffic Signal'!CI31:CI42) -> 4 | HK42: =IF(OR(AND(Input_MajorStreetDirection="East-West",OR(HF38="Crossing #3",HF38="Crossing #4",HF38="Crossing #7",HF38="Crossing #8")),AND(Input_MajorStreetDirection="North-South",OR(HF38="Crossing #1",HF38="Crossing #2",HF38="Crossing #5",HF38="Crossing #6"))),Maj_St_Spd_Lmt,Min_St_Spd_Lmt) -> 35 | HP42: =SUM(EBL_Master,EBT_Master,EBR_Master,EBU_Master) -> 1530 | HU42: Stop/Signal Controlled | IC42: Marked | II42: =MAX('Traffic Signal'!CJ43:CO43,'Traffic Signal'!CV34:CV36,'Traffic Signal'!CJ30:CL30) -> 2 | IN42: =IF(OR(AND(Input_MajorStreetDirection="East-West",OR(II38="Crossing #3",II38="Crossing #4",II38="Crossing #7",II38="Crossing #8")),AND(Input_MajorStreetDirection="North-South",OR(II38="Crossing #1",II38="Crossing #2",II38="Crossing #5",II38="Crossing #6"))),Maj_St_Spd_Lmt,Min_St_Spd_Lmt) -> 35 | IS42: =SUM(NBL_Master,WBT_Master,SBR_Master,EBU_Master) -> 1286 | IX42: Stop/Signal Controlled | JF42: Marked | UP42: =IFERROR((((SUM(SQRT(UU42),SQRT(VE42),SQRT(VO42),SQRT(VY42),SQRT(WI42),SQRT(WS42),SQRT(XC42),SQRT(XM42),SQRT(XW42),SQRT(YG42),SQRT(YQ42),SQRT(ZA42),SQRT(ZK42),SQRT(ZU42),SQRT(AAE42),SQRT(AAO42),SQRT(AAY42),SQRT(ABI42))/COUNTIF(UU42:ABR43,">0"))^2)*(_xlfn.XLOOKUP(AD42,$W$322:$W$323,$AA$322:$AA$323,"lookup error",0,1))*(_xlfn.XLOOKUP(AI42,Multistage_Crossing,$AA$316:$AA$318,"lookup error",0,1))),"Enter Major/Minor Street Speeds") -> 4.643937383 | UU42: =IF(OR(ISBLANK($P$21),ISBLANK($P$23)),"Enter Major/Minor Street Speeds",IF(AN42=0,,(IF(AN42<5,_xlfn.XLOOKUP(AN42,$W$287:$W$290,$AA$287:$AA$290,"error",0,1),$AA$291)+IF(AS42<=$V$294,$AA$294,IF(AND(AS42>$V$294,AS42<=$V$295),$AA$295,IF(AND(AS42>$V$295,AS42<=$V$296),$AA$296,IF(AND(AS42>$V$296,AS42<=$V$297),$AA$297,$AA$298))))+IF(AX42<=$V$304,_xlfn.XLOOKUP(BC42,AA$303:$AD$303,$AA$304:$AD$304,"check xlookup for volume 150",0,1),IF(AND(AX42>$V$304,AX42<=$V$305),_xlfn.XLOOKUP(BC42,$AA$303:$AD$303,$AA$305:$AD$305,"check xlookup for volume 300",0,1),IF(AND(AX42>$V$305,AX42<=$V$306),_xlfn.XLOOKUP(BC42,$AA$303:$AD$303,$AA$306:$AD$306,"check xlookup for volume 900",0,1),IF(AND(AX42>$V$306,AX42<=$V$307),_xlfn.XLOOKUP(BC42,$AA$303:$AD$303,$AA$307:$AD$307,"check xlookup for volume 1500",0,1),IF(AX42>$V$307,_xlfn.XLOOKUP(BC42,$AA$303:$AD$303,$AA$308:$AD$308,"check xlookup for volume >1500",0,1),"")))))+IF(BK42=$W$311,$AA$311,$AA$312))/4)) -> 3.5 | VE42: =IF(OR(ISBLANK($P$21),ISBLANK($P$23)),"Enter Major/Minor Street Speeds",IF(BQ42=0,,(IF(BQ42<5,_xlfn.XLOOKUP(BQ42,$W$287:$W$290,$AA$287:$AA$290,"error",0,1),$AA$291)+IF(BV42<=$V$294,$AA$294,IF(AND(BV42>$V$294,BV42<=$V$295),$AA$295,IF(AND(BV42>$V$295,BV42<=$V$296),$AA$296,IF(AND(BV42>$V$296,BV42<=$V$297),$AA$297,$AA$298))))+IF(CA42<=$V$304,_xlfn.XLOOKUP(CF42,AA$303:$AD$303,$AA$304:$AD$304,"check xlookup for volume 150",0,1),IF(AND(CA42>$V$304,CA42<=$V$305),_xlfn.XLOOKUP(CF42,$AA$303:$AD$303,$AA$305:$AD$305,"check xlookup for volume 300",0,1),IF(AND(CA42>$V$305,CA42<=$V$306),_xlfn.XLOOKUP(CF42,$AA$303:$AD$303,$AA$306:$AD$306,"check xlookup for volume 900",0,1),IF(AND(CA42>$V$306,CA42<=$V$307),_xlfn.XLOOKUP(CF42,$AA$303:$AD$303,$AA$307:$AD$307,"check xlookup for volume 1500",0,1),IF(CA42>$V$307,_xlfn.XLOOKUP(CF42,$AA$303:$AD$303,$AA$308:$AD$308,"check xlookup for volume >1500",0,1),"")))))+IF(CN42=$W$311,$AA$311,$AA$312))/4)) -> 4 | VO42: =IF(OR(ISBLANK($P$21),ISBLANK($P$23)),"Enter Major/Minor Street Speeds",IF(CT42=0,,(IF(CT42<5,_xlfn.XLOOKUP(CT42,$W$287:$W$290,$AA$287:$AA$290,"error",0,1),$AA$291)+IF(CY42<=$V$294,$AA$294,IF(AND(CY42>$V$294,CY42<=$V$295),$AA$295,IF(AND(CY42>$V$295,CY42<=$V$296),$AA$296,IF(AND(CY42>$V$296,CY42<=$V$297),$AA$297,$AA$298))))+IF(DD42<=$V$304,_xlfn.XLOOKUP(DI42,AA$303:$AD$303,$AA$304:$AD$304,"check xlookup for volume 150",0,1),IF(AND(DD42>$V$304,DD42<=$V$305),_xlfn.XLOOKUP(DI42,$AA$303:$AD$303,$AA$305:$AD$305,"check xlookup for volume 300",0,1),IF(AND(DD42>$V$305,DD42<=$V$306),_xlfn.XLOOKUP(DI42,$AA$303:$AD$303,$AA$306:$AD$306,"check xlookup for volume 900",0,1),IF(AND(DD42>$V$306,DD42<=$V$307),_xlfn.XLOOKUP(DI42,$AA$303:$AD$303,$AA$307:$AD$307,"check xlookup for volume 1500",0,1),IF(DD42>$V$307,_xlfn.XLOOKUP(DI42,$AA$303:$AD$303,$AA$308:$AD$308,"check xlookup for volume >1500",0,1),"")))))+IF(DQ42=$W$311,$AA$311,$AA$312))/4)) -> 3.75 | VY42: =IF(OR(ISBLANK($P$21),ISBLANK($P$23)),"Enter Major/Minor Street Speeds",IF(DW42=0,,(IF(DW42<5,_xlfn.XLOOKUP(DW42,$W$287:$W$290,$AA$287:$AA$290,"error",0,1),$AA$291)+IF(EB42<=$V$294,$AA$294,IF(AND(EB42>$V$294,EB42<=$V$295),$AA$295,IF(AND(EB42>$V$295,EB42<=$V$296),$AA$296,IF(AND(EB42>$V$296,EB42<=$V$297),$AA$297,$AA$298))))+IF(EG42<=$V$304,_xlfn.XLOOKUP(EL42,AA$303:$AD$303,$AA$304:$AD$304,"check xlookup for volume 150",0,1),IF(AND(EG42>$V$304,EG42<=$V$305),_xlfn.XLOOKUP(EL42,$AA$303:$AD$303,$AA$305:$AD$305,"check xlookup for volume 300",0,1),IF(AND(EG42>$V$305,EG42<=$V$306),_xlfn.XLOOKUP(EL42,$AA$303:$AD$303,$AA$306:$AD$306,"check xlookup for volume 900",0,1),IF(AND(EG42>$V$306,EG42<=$V$307),_xlfn.XLOOKUP(EL42,$AA$303:$AD$303,$AA$307:$AD$307,"check xlookup for volume 1500",0,1),IF(EG42>$V$307,_xlfn.XLOOKUP(EL42,$AA$303:$AD$303,$AA$308:$AD$308,"check xlookup for volume >1500",0,1),"")))))+IF(ET42=$W$311,$AA$311,$AA$312))/4)) -> 4.25 | WI42: =IF(OR(ISBLANK($P$21),ISBLANK($P$23)),"Enter Major/Minor Street Speeds",IF(EZ42=0,,(IF(EZ42<5,_xlfn.XLOOKUP(EZ42,$W$287:$W$290,$AA$287:$AA$290,"error",0,1),$AA$291)+IF(FE42<=$V$294,$AA$294,IF(AND(FE42>$V$294,FE42<=$V$295),$AA$295,IF(AND(FE42>$V$295,FE42<=$V$296),$AA$296,IF(AND(FE42>$V$296,FE42<=$V$297),$AA$297,$AA$298))))+IF(FJ42<=$V$304,_xlfn.XLOOKUP(FO42,AA$303:$AD$303,$AA$304:$AD$304,"check xlookup for volume 150",0,1),IF(AND(FJ42>$V$304,FJ42<=$V$305),_xlfn.XLOOKUP(FO42,$AA$303:$AD$303,$AA$305:$AD$305,"check xlookup for volume 300",0,1),IF(AND(FJ42>$V$305,FJ42<=$V$306),_xlfn.XLOOKUP(FO42,$AA$303:$AD$303,$AA$306:$AD$306,"check xlookup for volume 900",0,1),IF(AND(FJ42>$V$306,FJ42<=$V$307),_xlfn.XLOOKUP(FO42,$AA$303:$AD$303,$AA$307:$AD$307,"check xlookup for volume 1500",0,1),IF(FJ42>$V$307,_xlfn.XLOOKUP(FO42,$AA$303:$AD$303,$AA$308:$AD$308,"check xlookup for volume >1500",0,1),"")))))+IF(FW42=$W$311,$AA$311,$AA$312))/4)) -> 3.5 | WS42: =IF(OR(ISBLANK($P$21),ISBLANK($P$23)),"Enter Major/Minor Street Speeds",IF(GC42=0,,(IF(GC42<5,_xlfn.XLOOKUP(GC42,$W$287:$W$290,$AA$287:$AA$290,"error",0,1),$AA$291)+IF(GH42<=$V$294,$AA$294,IF(AND(GH42>$V$294,GH42<=$V$295),$AA$295,IF(AND(GH42>$V$295,GH42<=$V$296),$AA$296,IF(AND(GH42>$V$296,GH42<=$V$297),$AA$297,$AA$298))))+IF(GM42<=$V$304,_xlfn.XLOOKUP(GR42,AA$303:$AD$303,$AA$304:$AD$304,"check xlookup for volume 150",0,1),IF(AND(GM42>$V$304,GM42<=$V$305),_xlfn.XLOOKUP(GR42,$AA$303:$AD$303,$AA$305:$AD$305,"check xlookup for volume 300",0,1),IF(AND(GM42>$V$305,GM42<=$V$306),_xlfn.XLOOKUP(GR42,$AA$303:$AD$303,$AA$306:$AD$306,"check xlookup for volume 900",0,1),IF(AND(GM42>$V$306,GM42<=$V$307),_xlfn.XLOOKUP(GR42,$AA$303:$AD$303,$AA$307:$AD$307,"check xlookup for volume 1500",0,1),IF(GM42>$V$307,_xlfn.XLOOKUP(GR42,$AA$303:$AD$303,$AA$308:$AD$308,"check xlookup for volume >1500",0,1),"")))))+IF(GZ42=$W$311,$AA$311,$AA$312))/4)) -> 4 | XC42: =IF(OR(ISBLANK($P$21),ISBLANK($P$23)),"Enter Major/Minor Street Speeds",IF(HF42=0,,(IF(HF42<5,_xlfn.XLOOKUP(HF42,$W$287:$W$290,$AA$287:$AA$290,"error",0,1),$AA$291)+IF(HK42<=$V$294,$AA$294,IF(AND(HK42>$V$294,HK42<=$V$295),$AA$295,IF(AND(HK42>$V$295,HK42<=$V$296),$AA$296,IF(AND(HK42>$V$296,HK42<=$V$297),$AA$297,$AA$298))))+IF(HP42<=$V$304,_xlfn.XLOOKUP(HU42,AA$303:$AD$303,$AA$304:$AD$304,"check xlookup for volume 150",0,1),IF(AND(HP42>$V$304,HP42<=$V$305),_xlfn.XLOOKUP(HU42,$AA$303:$AD$303,$AA$305:$AD$305,"check xlookup for volume 300",0,1),IF(AND(HP42>$V$305,HP42<=$V$306),_xlfn.XLOOKUP(HU42,$AA$303:$AD$303,$AA$306:$AD$306,"check xlookup for volume 900",0,1),IF(AND(HP42>$V$306,HP42<=$V$307),_xlfn.XLOOKUP(HU42,$AA$303:$AD$303,$AA$307:$AD$307,"check xlookup for volume 1500",0,1),IF(HP42>$V$307,_xlfn.XLOOKUP(HU42,$AA$303:$AD$303,$AA$308:$AD$308,"check xlookup for volume >1500",0,1),"")))))+IF(IC42=$W$311,$AA$311,$AA$312))/4)) -> 3.75 | XM42: =IF(OR(ISBLANK($P$21),ISBLANK($P$23)),"Enter Major/Minor Street Speeds",IF(II42=0,,(IF(II42<5,_xlfn.XLOOKUP(II42,$W$287:$W$290,$AA$287:$AA$290,"error",0,1),$AA$291)+IF(IN42<=$V$294,$AA$294,IF(AND(IN42>$V$294,IN42<=$V$295),$AA$295,IF(AND(IN42>$V$295,IN42<=$V$296),$AA$296,IF(AND(IN42>$V$296,IN42<=$V$297),$AA$297,$AA$298))))+IF(IS42<=$V$304,_xlfn.XLOOKUP(IX42,AA$303:$AD$303,$AA$304:$AD$304,"check xlookup for volume 150",0,1),IF(AND(IS42>$V$304,IS42<=$V$305),_xlfn.XLOOKUP(IX42,$AA$303:$AD$303,$AA$305:$AD$305,"check xlookup for volume 300",0,1),IF(AND(IS42>$V$305,IS42<=$V$306),_xlfn.XLOOKUP(IX42,$AA$303:$AD$303,$AA$306:$AD$306,"check xlookup for volume 900",0,1),IF(AND(IS42>$V$306,IS42<=$V$307),_xlfn.XLOOKUP(IX42,$AA$303:$AD$303,$AA$307:$AD$307,"check xlookup for volume 1500",0,1),IF(IS42>$V$307,_xlfn.XLOOKUP(IX42,$AA$303:$AD$303,$AA$308:$AD$308,"check xlookup for volume >1500",0,1),"")))))+IF(JF42=$W$311,$AA$311,$AA$312))/4)) -> 4.25 | XW42: =IF(OR(ISBLANK($P$21),ISBLANK($P$23)),"Enter Major/Minor Street Speeds",IF(JL42=0,,(IF(JL42<5,_xlfn.XLOOKUP(JL42,$W$287:$W$290,$AA$287:$AA$290,"error",0,1),$AA$291)+IF(JQ42<=$V$294,$AA$294,IF(AND(JQ42>$V$294,JQ42<=$V$295),$AA$295,IF(AND(JQ42>$V$295,JQ42<=$V$296),$AA$296,IF(AND(JQ42>$V$296,JQ42<=$V$297),$AA$297,$AA$298))))+IF(JV42<=$V$304,_xlfn.XLOOKUP(KA42,AA$303:$AD$303,$AA$304:$AD$304,"check xlookup for volume 150",0,1),IF(AND(JV42>$V$304,JV42<=$V$305),_xlfn.XLOOKUP(KA42,$AA$303:$AD$303,$AA$305:$AD$305,"check xlookup for volume 300",0,1),IF(AND(JV42>$V$305,JV42<=$V$306),_xlfn.XLOOKUP(KA42,$AA$303:$AD$303,$AA$306:$AD$306,"check xlookup for volume 900",0,1),IF(AND(JV42>$V$306,JV42<=$V$307),_xlfn.XLOOKUP(KA42,$AA$303:$AD$303,$AA$307:$AD$307,"check xlookup for volume 1500",0,1),IF(JV42>$V$307,_xlfn.XLOOKUP(KA42,$AA$303:$AD$303,$AA$308:$AD$308,"check xlookup for volume >1500",0,1),"")))))+IF(KI42=$W$311,$AA$311,$AA$312))/4)) -> 0 | YG42: =IF(OR(ISBLANK($P$21),ISBLANK($P$23)),"Enter Major/Minor Street Speeds",IF(KO42=0,,(IF(KO42<5,_xlfn.XLOOKUP(KO42,$W$287:$W$290,$AA$287:$AA$290,"error",0,1),$AA$291)+IF(KT42<=$V$294,$AA$294,IF(AND(KT42>$V$294,KT42<=$V$295),$AA$295,IF(AND(KT42>$V$295,KT42<=$V$296),$AA$296,IF(AND(KT42>$V$296,KT42<=$V$297),$AA$297,$AA$298))))+IF(KY42<=$V$304,_xlfn.XLOOKUP(LD42,AA$303:$AD$303,$AA$304:$AD$304,"check xlookup for volume 150",0,1),IF(AND(KY42>$V$304,KY42<=$V$305),_xlfn.XLOOKUP(LD42,$AA$303:$AD$303,$AA$305:$AD$305,"check xlookup for volume 300",0,1),IF(AND(KY42>$V$305,KY42<=$V$306),_xlfn.XLOOKUP(LD42,$AA$303:$AD$303,$AA$306:$AD$306,"check xlookup for volume 900",0,1),IF(AND(KY42>$V$306,KY42<=$V$307),_xlfn.XLOOKUP(LD42,$AA$303:$AD$303,$AA$307:$AD$307,"check xlookup for volume 1500",0,1),IF(KY42>$V$307,_xlfn.XLOOKUP(LD42,$AA$303:$AD$303,$AA$308:$AD$308,"check xlookup for volume >1500",0,1),"")))))+IF(LL42=$W$311,$AA$311,$AA$312))/4)) -> 0 | YQ42: =IF(OR(ISBLANK($P$21),ISBLANK($P$23)),"Enter Major/Minor Street Speeds",IF(LR42=0,,(IF(LR42<5,_xlfn.XLOOKUP(LR42,$W$287:$W$290,$AA$287:$AA$290,"error",0,1),$AA$291)+IF(LW42<=$V$294,$AA$294,IF(AND(LW42>$V$294,LW42<=$V$295),$AA$295,IF(AND(LW42>$V$295,LW42<=$V$296),$AA$296,IF(AND(LW42>$V$296,LW42<=$V$297),$AA$297,$AA$298))))+IF(MB42<=$V$304,_xlfn.XLOOKUP(MG42,AA$303:$AD$303,$AA$304:$AD$304,"check xlookup for volume 150",0,1),IF(AND(MB42>$V$304,MB42<=$V$305),_xlfn.XLOOKUP(MG42,$AA$303:$AD$303,$AA$305:$AD$305,"check xlookup for volume 300",0,1),IF(AND(MB42>$V$305,MB42<=$V$306),_xlfn.XLOOKUP(MG42,$AA$303:$AD$303,$AA$306:$AD$306,"check xlookup for volume 900",0,1),IF(AND(MB42>$V$306,MB42<=$V$307),_xlfn.XLOOKUP(MG42,$AA$303:$AD$303,$AA$307:$AD$307,"check xlookup for volume 1500",0,1),IF(MB42>$V$307,_xlfn.XLOOKUP(MG42,$AA$303:$AD$303,$AA$308:$AD$308,"check xlookup for volume >1500",0,1),"")))))+IF(MO42=$W$311,$AA$311,$AA$312))/4)) -> 0 | ZA42: =IF(OR(ISBLANK($P$21),ISBLANK($P$23)),"Enter Major/Minor Street Speeds",IF(MU42=0,,(IF(MU42<5,_xlfn.XLOOKUP(MU42,$W$287:$W$290,$AA$287:$AA$290,"error",0,1),$AA$291)+IF(MZ42<=$V$294,$AA$294,IF(AND(MZ42>$V$294,MZ42<=$V$295),$AA$295,IF(AND(MZ42>$V$295,MZ42<=$V$296),$AA$296,IF(AND(MZ42>$V$296,MZ42<=$V$297),$AA$297,$AA$298))))+IF(NE42<=$V$304,_xlfn.XLOOKUP(NJ42,AA$303:$AD$303,$AA$304:$AD$304,"check xlookup for volume 150",0,1),IF(AND(NE42>$V$304,NE42<=$V$305),_xlfn.XLOOKUP(NJ42,$AA$303:$AD$303,$AA$305:$AD$305,"check xlookup for volume 300",0,1),IF(AND(NE42>$V$305,NE42<=$V$306),_xlfn.XLOOKUP(NJ42,$AA$303:$AD$303,$AA$306:$AD$306,"check xlookup for volume 900",0,1),IF(AND(NE42>$V$306,NE42<=$V$307),_xlfn.XLOOKUP(NJ42,$AA$303:$AD$303,$AA$307:$AD$307,"check xlookup for volume 1500",0,1),IF(NE42>$V$307,_xlfn.XLOOKUP(NJ42,$AA$303:$AD$303,$AA$308:$AD$308,"check xlookup for volume >1500",0,1),"")))))+IF(NR42=$W$311,$AA$311,$AA$312))/4)) -> 0 | ZK42: =IF(OR(ISBLANK($P$21),ISBLANK($P$23)),"Enter Major/Minor Street Speeds",IF(NX42=0,,(IF(NX42<5,_xlfn.XLOOKUP(NX42,$W$287:$W$290,$AA$287:$AA$290,"error",0,1),$AA$291)+IF(OC42<=$V$294,$AA$294,IF(AND(OC42>$V$294,OC42<=$V$295),$AA$295,IF(AND(OC42>$V$295,OC42<=$V$296),$AA$296,IF(AND(OC42>$V$296,OC42<=$V$297),$AA$297,$AA$298))))+IF(OH42<=$V$304,_xlfn.XLOOKUP(OM42,AA$303:$AD$303,$AA$304:$AD$304,"check xlookup for volume 150",0,1),IF(AND(OH42>$V$304,OH42<=$V$305),_xlfn.XLOOKUP(OM42,$AA$303:$AD$303,$AA$305:$AD$305,"check xlookup for volume 300",0,1),IF(AND(OH42>$V$305,OH42<=$V$306),_xlfn.XLOOKUP(OM42,$AA$303:$AD$303,$AA$306:$AD$306,"check xlookup for volume 900",0,1),IF(AND(OH42>$V$306,OH42<=$V$307),_xlfn.XLOOKUP(OM42,$AA$303:$AD$303,$AA$307:$AD$307,"check xlookup for volume 1500",0,1),IF(OH42>$V$307,_xlfn.XLOOKUP(OM42,$AA$303:$AD$303,$AA$308:$AD$308,"check xlookup for volume >1500",0,1),"")))))+IF(OU42=$W$311,$AA$311,$AA$312))/4)) -> 0 | ZU42: =IF(OR(ISBLANK($P$21),ISBLANK($P$23)),"Enter Major/Minor Street Speeds",IF(PA42=0,,(IF(PA42<5,_xlfn.XLOOKUP(PA42,$W$287:$W$290,$AA$287:$AA$290,"error",0,1),$AA$291)+IF(PF42<=$V$294,$AA$294,IF(AND(PF42>$V$294,PF42<=$V$295),$AA$295,IF(AND(PF42>$V$295,PF42<=$V$296),$AA$296,IF(AND(PF42>$V$296,PF42<=$V$297),$AA$297,$AA$298))))+IF(PK42<=$V$304,_xlfn.XLOOKUP(PP42,AA$303:$AD$303,$AA$304:$AD$304,"check xlookup for volume 150",0,1),IF(AND(PK42>$V$304,PK42<=$V$305),_xlfn.XLOOKUP(PP42,$AA$303:$AD$303,$AA$305:$AD$305,"check xlookup for volume 300",0,1),IF(AND(PK42>$V$305,PK42<=$V$306),_xlfn.XLOOKUP(PP42,$AA$303:$AD$303,$AA$306:$AD$306,"check xlookup for volume 900",0,1),IF(AND(PK42>$V$306,PK42<=$V$307),_xlfn.XLOOKUP(PP42,$AA$303:$AD$303,$AA$307:$AD$307,"check xlookup for volume 1500",0,1),IF(PK42>$V$307,_xlfn.XLOOKUP(PP42,$AA$303:$AD$303,$AA$308:$AD$308,"check xlookup for volume >1500",0,1),"")))))+IF(PX42=$W$311,$AA$311,$AA$312))/4)) -> 0 | AAE42: =IF(OR(ISBLANK($P$21),ISBLANK($P$23)),"Enter Major/Minor Street Speeds",IF(QD42=0,,(IF(QD42<5,_xlfn.XLOOKUP(QD42,$W$287:$W$290,$AA$287:$AA$290,"error",0,1),$AA$291)+IF(QI42<=$V$294,$AA$294,IF(AND(QI42>$V$294,QI42<=$V$295),$AA$295,IF(AND(QI42>$V$295,QI42<=$V$296),$AA$296,IF(AND(QI42>$V$296,QI42<=$V$297),$AA$297,$AA$298))))+IF(QN42<=$V$304,_xlfn.XLOOKUP(QS42,AA$303:$AD$303,$AA$304:$AD$304,"check xlookup for volume 150",0,1),IF(AND(QN42>$V$304,QN42<=$V$305),_xlfn.XLOOKUP(QS42,$AA$303:$AD$303,$AA$305:$AD$305,"check xlookup for volume 300",0,1),IF(AND(QN42>$V$305,QN42<=$V$306),_xlfn.XLOOKUP(QS42,$AA$303:$AD$303,$AA$306:$AD$306,"check xlookup for volume 900",0,1),IF(AND(QN42>$V$306,QN42<=$V$307),_xlfn.XLOOKUP(QS42,$AA$303:$AD$303,$AA$307:$AD$307,"check xlookup for volume 1500",0,1),IF(QN42>$V$307,_xlfn.XLOOKUP(QS42,$AA$303:$AD$303,$AA$308:$AD$308,"check xlookup for volume >1500",0,1),"")))))+IF(RA42=$W$311,$AA$311,$AA$312))/4)) -> 0 | AAO42: =IF(OR(ISBLANK($P$21),ISBLANK($P$23)),"Enter Major/Minor Street Speeds",IF(RG42=0,,(IF(RG42<5,_xlfn.XLOOKUP(RG42,$W$287:$W$290,$AA$287:$AA$290,"error",0,1),$AA$291)+IF(RL42<=$V$294,$AA$294,IF(AND(RL42>$V$294,RL42<=$V$295),$AA$295,IF(AND(RL42>$V$295,RL42<=$V$296),$AA$296,IF(AND(RL42>$V$296,RL42<=$V$297),$AA$297,$AA$298))))+IF(RQ42<=$V$304,_xlfn.XLOOKUP(RV42,AA$303:$AD$303,$AA$304:$AD$304,"check xlookup for volume 150",0,1),IF(AND(RQ42>$V$304,RQ42<=$V$305),_xlfn.XLOOKUP(RV42,$AA$303:$AD$303,$AA$305:$AD$305,"check xlookup for volume 300",0,1),IF(AND(RQ42>$V$305,RQ42<=$V$306),_xlfn.XLOOKUP(RV42,$AA$303:$AD$303,$AA$306:$AD$306,"check xlookup for volume 900",0,1),IF(AND(RQ42>$V$306,RQ42<=$V$307),_xlfn.XLOOKUP(RV42,$AA$303:$AD$303,$AA$307:$AD$307,"check xlookup for volume 1500",0,1),IF(RQ42>$V$307,_xlfn.XLOOKUP(RV42,$AA$303:$AD$303,$AA$308:$AD$308,"check xlookup for volume >1500",0,1),"")))))+IF(SD42=$W$311,$AA$311,$AA$312))/4)) -> 0 | AAY42: =IF(OR(ISBLANK($P$21),ISBLANK($P$23)),"Enter Major/Minor Street Speeds",IF(SJ42=0,,(IF(SJ42<5,_xlfn.XLOOKUP(SJ42,$W$287:$W$290,$AA$287:$AA$290,"error",0,1),$AA$291)+IF(SO42<=$V$294,$AA$294,IF(AND(SO42>$V$294,SO42<=$V$295),$AA$295,IF(AND(SO42>$V$295,SO42<=$V$296),$AA$296,IF(AND(SO42>$V$296,SO42<=$V$297),$AA$297,$AA$298))))+IF(ST42<=$V$304,_xlfn.XLOOKUP(SY42,AA$303:$AD$303,$AA$304:$AD$304,"check xlookup for volume 150",0,1),IF(AND(ST42>$V$304,ST42<=$V$305),_xlfn.XLOOKUP(SY42,$AA$303:$AD$303,$AA$305:$AD$305,"check xlookup for volume 300",0,1),IF(AND(ST42>$V$305,ST42<=$V$306),_xlfn.XLOOKUP(SY42,$AA$303:$AD$303,$AA$306:$AD$306,"check xlookup for volume 900",0,1),IF(AND(ST42>$V$306,ST42<=$V$307),_xlfn.XLOOKUP(SY42,$AA$303:$AD$303,$AA$307:$AD$307,"check xlookup for volume 1500",0,1),IF(ST42>$V$307,_xlfn.XLOOKUP(SY42,$AA$303:$AD$303,$AA$308:$AD$308,"check xlookup for volume >1500",0,1),"")))))+IF(TG42=$W$311,$AA$311,$AA$312))/4)) -> 0 | ABI42: =IF(OR(ISBLANK($P$21),ISBLANK($P$23)),"Enter Major/Minor Street Speeds",IF(TM42=0,,(IF(TM42<5,_xlfn.XLOOKUP(TM42,$W$287:$W$290,$AA$287:$AA$290,"error",0,1),$AA$291)+IF(TR42<=$V$294,$AA$294,IF(AND(TR42>$V$294,TR42<=$V$295),$AA$295,IF(AND(TR42>$V$295,TR42<=$V$296),$AA$296,IF(AND(TR42>$V$296,TR42<=$V$297),$AA$297,$AA$298))))+IF(TW42<=$V$304,_xlfn.XLOOKUP(UB42,AA$303:$AD$303,$AA$304:$AD$304,"check xlookup for volume 150",0,1),IF(AND(TW42>$V$304,TW42<=$V$305),_xlfn.XLOOKUP(UB42,$AA$303:$AD$303,$AA$305:$AD$305,"check xlookup for volume 300",0,1),IF(AND(TW42>$V$305,TW42<=$V$306),_xlfn.XLOOKUP(UB42,$AA$303:$AD$303,$AA$306:$AD$306,"check xlookup for volume 900",0,1),IF(AND(TW42>$V$306,TW42<=$V$307),_xlfn.XLOOKUP(UB42,$AA$303:$AD$303,$AA$307:$AD$307,"check xlookup for volume 1500",0,1),IF(TW42>$V$307,_xlfn.XLOOKUP(UB42,$AA$303:$AD$303,$AA$308:$AD$308,"check xlookup for volume >1500",0,1),"")))))+IF(UJ42=$W$311,$AA$311,$AA$312))/4)) -> 0
A44: Conventional Shared RT LN | T44: CSRL | Z44: =UP44 -> Enter Major/Minor Street Speeds | UP44: =IFERROR((((SUM(SQRT(UU44),SQRT(VE44),SQRT(VO44),SQRT(VY44),SQRT(WI44),SQRT(WS44),SQRT(XC44),SQRT(XM44),SQRT(XW44),SQRT(YG44),SQRT(YQ44),SQRT(ZA44),SQRT(ZK44),SQRT(ZU44),SQRT(AAE44),SQRT(AAO44),SQRT(AAY44),SQRT(ABI44))/COUNTIF(UU44:ABR45,">0"))^2)*(_xlfn.XLOOKUP(AD44,$W$322:$W$323,$AA$322:$AA$323,"lookup error",0,1))*(_xlfn.XLOOKUP(AI44,Multistage_Crossing,$AA$316:$AA$318,"lookup error",0,1))),"Enter Major/Minor Street Speeds") -> Enter Major/Minor Street Speeds | UU44: =IF(OR(ISBLANK($P$21),ISBLANK($P$23)),"Enter Major/Minor Street Speeds",IF(AN44=0,,(IF(AN44<5,_xlfn.XLOOKUP(AN44,$W$287:$W$290,$AA$287:$AA$290,"error",0,1),$AA$291)+IF(AS44<=$V$294,$AA$294,IF(AND(AS44>$V$294,AS44<=$V$295),$AA$295,IF(AND(AS44>$V$295,AS44<=$V$296),$AA$296,IF(AND(AS44>$V$296,AS44<=$V$297),$AA$297,$AA$298))))+IF(AX44<=$V$304,_xlfn.XLOOKUP(BC44,AA$303:$AD$303,$AA$304:$AD$304,"check xlookup for volume 150",0,1),IF(AND(AX44>$V$304,AX44<=$V$305),_xlfn.XLOOKUP(BC44,$AA$303:$AD$303,$AA$305:$AD$305,"check xlookup for volume 300",0,1),IF(AND(AX44>$V$305,AX44<=$V$306),_xlfn.XLOOKUP(BC44,$AA$303:$AD$303,$AA$306:$AD$306,"check xlookup for volume 900",0,1),IF(AND(AX44>$V$306,AX44<=$V$307),_xlfn.XLOOKUP(BC44,$AA$303:$AD$303,$AA$307:$AD$307,"check xlookup for volume 1500",0,1),IF(AX44>$V$307,_xlfn.XLOOKUP(BC44,$AA$303:$AD$303,$AA$308:$AD$308,"check xlookup for volume >1500",0,1),"")))))+IF(BK44=$W$311,$AA$311,$AA$312))/4)) -> 0 | VE44: =IF(OR(ISBLANK($P$21),ISBLANK($P$23)),"Enter Major/Minor Street Speeds",IF(BQ44=0,,(IF(BQ44<5,_xlfn.XLOOKUP(BQ44,$W$287:$W$290,$AA$287:$AA$290,"error",0,1),$AA$291)+IF(BV44<=$V$294,$AA$294,IF(AND(BV44>$V$294,BV44<=$V$295),$AA$295,IF(AND(BV44>$V$295,BV44<=$V$296),$AA$296,IF(AND(BV44>$V$296,BV44<=$V$297),$AA$297,$AA$298))))+IF(CA44<=$V$304,_xlfn.XLOOKUP(CF44,AA$303:$AD$303,$AA$304:$AD$304,"check xlookup for volume 150",0,1),IF(AND(CA44>$V$304,CA44<=$V$305),_xlfn.XLOOKUP(CF44,$AA$303:$AD$303,$AA$305:$AD$305,"check xlookup for volume 300",0,1),IF(AND(CA44>$V$305,CA44<=$V$306),_xlfn.XLOOKUP(CF44,$AA$303:$AD$303,$AA$306:$AD$306,"check xlookup for volume 900",0,1),IF(AND(CA44>$V$306,CA44<=$V$307),_xlfn.XLOOKUP(CF44,$AA$303:$AD$303,$AA$307:$AD$307,"check xlookup for volume 1500",0,1),IF(CA44>$V$307,_xlfn.XLOOKUP(CF44,$AA$303:$AD$303,$AA$308:$AD$308,"check xlookup for volume >1500",0,1),"")))))+IF(CN44=$W$311,$AA$311,$AA$312))/4)) -> 0 | VO44: =IF(OR(ISBLANK($P$21),ISBLANK($P$23)),"Enter Major/Minor Street Speeds",IF(CT44=0,,(IF(CT44<5,_xlfn.XLOOKUP(CT44,$W$287:$W$290,$AA$287:$AA$290,"error",0,1),$AA$291)+IF(CY44<=$V$294,$AA$294,IF(AND(CY44>$V$294,CY44<=$V$295),$AA$295,IF(AND(CY44>$V$295,CY44<=$V$296),$AA$296,IF(AND(CY44>$V$296,CY44<=$V$297),$AA$297,$AA$298))))+IF(DD44<=$V$304,_xlfn.XLOOKUP(DI44,AA$303:$AD$303,$AA$304:$AD$304,"check xlookup for volume 150",0,1),IF(AND(DD44>$V$304,DD44<=$V$305),_xlfn.XLOOKUP(DI44,$AA$303:$AD$303,$AA$305:$AD$305,"check xlookup for volume 300",0,1),IF(AND(DD44>$V$305,DD44<=$V$306),_xlfn.XLOOKUP(DI44,$AA$303:$AD$303,$AA$306:$AD$306,"check xlookup for volume 900",0,1),IF(AND(DD44>$V$306,DD44<=$V$307),_xlfn.XLOOKUP(DI44,$AA$303:$AD$303,$AA$307:$AD$307,"check xlookup for volume 1500",0,1),IF(DD44>$V$307,_xlfn.XLOOKUP(DI44,$AA$303:$AD$303,$AA$308:$AD$308,"check xlookup for volume >1500",0,1),"")))))+IF(DQ44=$W$311,$AA$311,$AA$312))/4)) -> 0 | VY44: =IF(OR(ISBLANK($P$21),ISBLANK($P$23)),"Enter Major/Minor Street Speeds",IF(DW44=0,,(IF(DW44<5,_xlfn.XLOOKUP(DW44,$W$287:$W$290,$AA$287:$AA$290,"error",0,1),$AA$291)+IF(EB44<=$V$294,$AA$294,IF(AND(EB44>$V$294,EB44<=$V$295),$AA$295,IF(AND(EB44>$V$295,EB44<=$V$296),$AA$296,IF(AND(EB44>$V$296,EB44<=$V$297),$AA$297,$AA$298))))+IF(EG44<=$V$304,_xlfn.XLOOKUP(EL44,AA$303:$AD$303,$AA$304:$AD$304,"check xlookup for volume 150",0,1),IF(AND(EG44>$V$304,EG44<=$V$305),_xlfn.XLOOKUP(EL44,$AA$303:$AD$303,$AA$305:$AD$305,"check xlookup for volume 300",0,1),IF(AND(EG44>$V$305,EG44<=$V$306),_xlfn.XLOOKUP(EL44,$AA$303:$AD$303,$AA$306:$AD$306,"check xlookup for volume 900",0,1),IF(AND(EG44>$V$306,EG44<=$V$307),_xlfn.XLOOKUP(EL44,$AA$303:$AD$303,$AA$307:$AD$307,"check xlookup for volume 1500",0,1),IF(EG44>$V$307,_xlfn.XLOOKUP(EL44,$AA$303:$AD$303,$AA$308:$AD$308,"check xlookup for volume >1500",0,1),"")))))+IF(ET44=$W$311,$AA$311,$AA$312))/4)) -> 0 | WI44: =IF(OR(ISBLANK($P$21),ISBLANK($P$23)),"Enter Major/Minor Street Speeds",IF(EZ44=0,,(IF(EZ44<5,_xlfn.XLOOKUP(EZ44,$W$287:$W$290,$AA$287:$AA$290,"error",0,1),$AA$291)+IF(FE44<=$V$294,$AA$294,IF(AND(FE44>$V$294,FE44<=$V$295),$AA$295,IF(AND(FE44>$V$295,FE44<=$V$296),$AA$296,IF(AND(FE44>$V$296,FE44<=$V$297),$AA$297,$AA$298))))+IF(FJ44<=$V$304,_xlfn.XLOOKUP(FO44,AA$303:$AD$303,$AA$304:$AD$304,"check xlookup for volume 150",0,1),IF(AND(FJ44>$V$304,FJ44<=$V$305),_xlfn.XLOOKUP(FO44,$AA$303:$AD$303,$AA$305:$AD$305,"check xlookup for volume 300",0,1),IF(AND(FJ44>$V$305,FJ44<=$V$306),_xlfn.XLOOKUP(FO44,$AA$303:$AD$303,$AA$306:$AD$306,"check xlookup for volume 900",0,1),IF(AND(FJ44>$V$306,FJ44<=$V$307),_xlfn.XLOOKUP(FO44,$AA$303:$AD$303,$AA$307:$AD$307,"check xlookup for volume 1500",0,1),IF(FJ44>$V$307,_xlfn.XLOOKUP(FO44,$AA$303:$AD$303,$AA$308:$AD$308,"check xlookup for volume >1500",0,1),"")))))+IF(FW44=$W$311,$AA$311,$AA$312))/4)) -> 0 | WS44: =IF(OR(ISBLANK($P$21),ISBLANK($P$23)),"Enter Major/Minor Street Speeds",IF(GC44=0,,(IF(GC44<5,_xlfn.XLOOKUP(GC44,$W$287:$W$290,$AA$287:$AA$290,"error",0,1),$AA$291)+IF(GH44<=$V$294,$AA$294,IF(AND(GH44>$V$294,GH44<=$V$295),$AA$295,IF(AND(GH44>$V$295,GH44<=$V$296),$AA$296,IF(AND(GH44>$V$296,GH44<=$V$297),$AA$297,$AA$298))))+IF(GM44<=$V$304,_xlfn.XLOOKUP(GR44,AA$303:$AD$303,$AA$304:$AD$304,"check xlookup for volume 150",0,1),IF(AND(GM44>$V$304,GM44<=$V$305),_xlfn.XLOOKUP(GR44,$AA$303:$AD$303,$AA$305:$AD$305,"check xlookup for volume 300",0,1),IF(AND(GM44>$V$305,GM44<=$V$306),_xlfn.XLOOKUP(GR44,$AA$303:$AD$303,$AA$306:$AD$306,"check xlookup for volume 900",0,1),IF(AND(GM44>$V$306,GM44<=$V$307),_xlfn.XLOOKUP(GR44,$AA$303:$AD$303,$AA$307:$AD$307,"check xlookup for volume 1500",0,1),IF(GM44>$V$307,_xlfn.XLOOKUP(GR44,$AA$303:$AD$303,$AA$308:$AD$308,"check xlookup for volume >1500",0,1),"")))))+IF(GZ44=$W$311,$AA$311,$AA$312))/4)) -> 0 | XC44: =IF(OR(ISBLANK($P$21),ISBLANK($P$23)),"Enter Major/Minor Street Speeds",IF(HF44=0,,(IF(HF44<5,_xlfn.XLOOKUP(HF44,$W$287:$W$290,$AA$287:$AA$290,"error",0,1),$AA$291)+IF(HK44<=$V$294,$AA$294,IF(AND(HK44>$V$294,HK44<=$V$295),$AA$295,IF(AND(HK44>$V$295,HK44<=$V$296),$AA$296,IF(AND(HK44>$V$296,HK44<=$V$297),$AA$297,$AA$298))))+IF(HP44<=$V$304,_xlfn.XLOOKUP(HU44,AA$303:$AD$303,$AA$304:$AD$304,"check xlookup for volume 150",0,1),IF(AND(HP44>$V$304,HP44<=$V$305),_xlfn.XLOOKUP(HU44,$AA$303:$AD$303,$AA$305:$AD$305,"check xlookup for volume 300",0,1),IF(AND(HP44>$V$305,HP44<=$V$306),_xlfn.XLOOKUP(HU44,$AA$303:$AD$303,$AA$306:$AD$306,"check xlookup for volume 900",0,1),IF(AND(HP44>$V$306,HP44<=$V$307),_xlfn.XLOOKUP(HU44,$AA$303:$AD$303,$AA$307:$AD$307,"check xlookup for volume 1500",0,1),IF(HP44>$V$307,_xlfn.XLOOKUP(HU44,$AA$303:$AD$303,$AA$308:$AD$308,"check xlookup for volume >1500",0,1),"")))))+IF(IC44=$W$311,$AA$311,$AA$312))/4)) -> 0 | XM44: =IF(OR(ISBLANK($P$21),ISBLANK($P$23)),"Enter Major/Minor Street Speeds",IF(II44=0,,(IF(II44<5,_xlfn.XLOOKUP(II44,$W$287:$W$290,$AA$287:$AA$290,"error",0,1),$AA$291)+IF(IN44<=$V$294,$AA$294,IF(AND(IN44>$V$294,IN44<=$V$295),$AA$295,IF(AND(IN44>$V$295,IN44<=$V$296),$AA$296,IF(AND(IN44>$V$296,IN44<=$V$297),$AA$297,$AA$298))))+IF(IS44<=$V$304,_xlfn.XLOOKUP(IX44,AA$303:$AD$303,$AA$304:$AD$304,"check xlookup for volume 150",0,1),IF(AND(IS44>$V$304,IS44<=$V$305),_xlfn.XLOOKUP(IX44,$AA$303:$AD$303,$AA$305:$AD$305,"check xlookup for volume 300",0,1),IF(AND(IS44>$V$305,IS44<=$V$306),_xlfn.XLOOKUP(IX44,$AA$303:$AD$303,$AA$306:$AD$306,"check xlookup for volume 900",0,1),IF(AND(IS44>$V$306,IS44<=$V$307),_xlfn.XLOOKUP(IX44,$AA$303:$AD$303,$AA$307:$AD$307,"check xlookup for volume 1500",0,1),IF(IS44>$V$307,_xlfn.XLOOKUP(IX44,$AA$303:$AD$303,$AA$308:$AD$308,"check xlookup for volume >1500",0,1),"")))))+IF(JF44=$W$311,$AA$311,$AA$312))/4)) -> 0 | XW44: =IF(OR(ISBLANK($P$21),ISBLANK($P$23)),"Enter Major/Minor Street Speeds",IF(JL44=0,,(IF(JL44<5,_xlfn.XLOOKUP(JL44,$W$287:$W$290,$AA$287:$AA$290,"error",0,1),$AA$291)+IF(JQ44<=$V$294,$AA$294,IF(AND(JQ44>$V$294,JQ44<=$V$295),$AA$295,IF(AND(JQ44>$V$295,JQ44<=$V$296),$AA$296,IF(AND(JQ44>$V$296,JQ44<=$V$297),$AA$297,$AA$298))))+IF(JV44<=$V$304,_xlfn.XLOOKUP(KA44,AA$303:$AD$303,$AA$304:$AD$304,"check xlookup for volume 150",0,1),IF(AND(JV44>$V$304,JV44<=$V$305),_xlfn.XLOOKUP(KA44,$AA$303:$AD$303,$AA$305:$AD$305,"check xlookup for volume 300",0,1),IF(AND(JV44>$V$305,JV44<=$V$306),_xlfn.XLOOKUP(KA44,$AA$303:$AD$303,$AA$306:$AD$306,"check xlookup for volume 900",0,1),IF(AND(JV44>$V$306,JV44<=$V$307),_xlfn.XLOOKUP(KA44,$AA$303:$AD$303,$AA$307:$AD$307,"check xlookup for volume 1500",0,1),IF(JV44>$V$307,_xlfn.XLOOKUP(KA44,$AA$303:$AD$303,$AA$308:$AD$308,"check xlookup for volume >1500",0,1),"")))))+IF(KI44=$W$311,$AA$311,$AA$312))/4)) -> 0 | YG44: =IF(OR(ISBLANK($P$21),ISBLANK($P$23)),"Enter Major/Minor Street Speeds",IF(KO44=0,,(IF(KO44<5,_xlfn.XLOOKUP(KO44,$W$287:$W$290,$AA$287:$AA$290,"error",0,1),$AA$291)+IF(KT44<=$V$294,$AA$294,IF(AND(KT44>$V$294,KT44<=$V$295),$AA$295,IF(AND(KT44>$V$295,KT44<=$V$296),$AA$296,IF(AND(KT44>$V$296,KT44<=$V$297),$AA$297,$AA$298))))+IF(KY44<=$V$304,_xlfn.XLOOKUP(LD44,AA$303:$AD$303,$AA$304:$AD$304,"check xlookup for volume 150",0,1),IF(AND(KY44>$V$304,KY44<=$V$305),_xlfn.XLOOKUP(LD44,$AA$303:$AD$303,$AA$305:$AD$305,"check xlookup for volume 300",0,1),IF(AND(KY44>$V$305,KY44<=$V$306),_xlfn.XLOOKUP(LD44,$AA$303:$AD$303,$AA$306:$AD$306,"check xlookup for volume 900",0,1),IF(AND(KY44>$V$306,KY44<=$V$307),_xlfn.XLOOKUP(LD44,$AA$303:$AD$303,$AA$307:$AD$307,"check xlookup for volume 1500",0,1),IF(KY44>$V$307,_xlfn.XLOOKUP(LD44,$AA$303:$AD$303,$AA$308:$AD$308,"check xlookup for volume >1500",0,1),"")))))+IF(LL44=$W$311,$AA$311,$AA$312))/4)) -> 0 | YQ44: =IF(OR(ISBLANK($P$21),ISBLANK($P$23)),"Enter Major/Minor Street Speeds",IF(LR44=0,,(IF(LR44<5,_xlfn.XLOOKUP(LR44,$W$287:$W$290,$AA$287:$AA$290,"error",0,1),$AA$291)+IF(LW44<=$V$294,$AA$294,IF(AND(LW44>$V$294,LW44<=$V$295),$AA$295,IF(AND(LW44>$V$295,LW44<=$V$296),$AA$296,IF(AND(LW44>$V$296,LW44<=$V$297),$AA$297,$AA$298))))+IF(MB44<=$V$304,_xlfn.XLOOKUP(MG44,AA$303:$AD$303,$AA$304:$AD$304,"check xlookup for volume 150",0,1),IF(AND(MB44>$V$304,MB44<=$V$305),_xlfn.XLOOKUP(MG44,$AA$303:$AD$303,$AA$305:$AD$305,"check xlookup for volume 300",0,1),IF(AND(MB44>$V$305,MB44<=$V$306),_xlfn.XLOOKUP(MG44,$AA$303:$AD$303,$AA$306:$AD$306,"check xlookup for volume 900",0,1),IF(AND(MB44>$V$306,MB44<=$V$307),_xlfn.XLOOKUP(MG44,$AA$303:$AD$303,$AA$307:$AD$307,"check xlookup for volume 1500",0,1),IF(MB44>$V$307,_xlfn.XLOOKUP(MG44,$AA$303:$AD$303,$AA$308:$AD$308,"check xlookup for volume >1500",0,1),"")))))+IF(MO44=$W$311,$AA$311,$AA$312))/4)) -> 0 | ZA44: =IF(OR(ISBLANK($P$21),ISBLANK($P$23)),"Enter Major/Minor Street Speeds",IF(MU44=0,,(IF(MU44<5,_xlfn.XLOOKUP(MU44,$W$287:$W$290,$AA$287:$AA$290,"error",0,1),$AA$291)+IF(MZ44<=$V$294,$AA$294,IF(AND(MZ44>$V$294,MZ44<=$V$295),$AA$295,IF(AND(MZ44>$V$295,MZ44<=$V$296),$AA$296,IF(AND(MZ44>$V$296,MZ44<=$V$297),$AA$297,$AA$298))))+IF(NE44<=$V$304,_xlfn.XLOOKUP(NJ44,AA$303:$AD$303,$AA$304:$AD$304,"check xlookup for volume 150",0,1),IF(AND(NE44>$V$304,NE44<=$V$305),_xlfn.XLOOKUP(NJ44,$AA$303:$AD$303,$AA$305:$AD$305,"check xlookup for volume 300",0,1),IF(AND(NE44>$V$305,NE44<=$V$306),_xlfn.XLOOKUP(NJ44,$AA$303:$AD$303,$AA$306:$AD$306,"check xlookup for volume 900",0,1),IF(AND(NE44>$V$306,NE44<=$V$307),_xlfn.XLOOKUP(NJ44,$AA$303:$AD$303,$AA$307:$AD$307,"check xlookup for volume 1500",0,1),IF(NE44>$V$307,_xlfn.XLOOKUP(NJ44,$AA$303:$AD$303,$AA$308:$AD$308,"check xlookup for volume >1500",0,1),"")))))+IF(NR44=$W$311,$AA$311,$AA$312))/4)) -> 0 | ZK44: =IF(OR(ISBLANK($P$21),ISBLANK($P$23)),"Enter Major/Minor Street Speeds",IF(NX44=0,,(IF(NX44<5,_xlfn.XLOOKUP(NX44,$W$287:$W$290,$AA$287:$AA$290,"error",0,1),$AA$291)+IF(OC44<=$V$294,$AA$294,IF(AND(OC44>$V$294,OC44<=$V$295),$AA$295,IF(AND(OC44>$V$295,OC44<=$V$296),$AA$296,IF(AND(OC44>$V$296,OC44<=$V$297),$AA$297,$AA$298))))+IF(OH44<=$V$304,_xlfn.XLOOKUP(OM44,AA$303:$AD$303,$AA$304:$AD$304,"check xlookup for volume 150",0,1),IF(AND(OH44>$V$304,OH44<=$V$305),_xlfn.XLOOKUP(OM44,$AA$303:$AD$303,$AA$305:$AD$305,"check xlookup for volume 300",0,1),IF(AND(OH44>$V$305,OH44<=$V$306),_xlfn.XLOOKUP(OM44,$AA$303:$AD$303,$AA$306:$AD$306,"check xlookup for volume 900",0,1),IF(AND(OH44>$V$306,OH44<=$V$307),_xlfn.XLOOKUP(OM44,$AA$303:$AD$303,$AA$307:$AD$307,"check xlookup for volume 1500",0,1),IF(OH44>$V$307,_xlfn.XLOOKUP(OM44,$AA$303:$AD$303,$AA$308:$AD$308,"check xlookup for volume >1500",0,1),"")))))+IF(OU44=$W$311,$AA$311,$AA$312))/4)) -> 0 | ZU44: =IF(OR(ISBLANK($P$21),ISBLANK($P$23)),"Enter Major/Minor Street Speeds",IF(PA44=0,,(IF(PA44<5,_xlfn.XLOOKUP(PA44,$W$287:$W$290,$AA$287:$AA$290,"error",0,1),$AA$291)+IF(PF44<=$V$294,$AA$294,IF(AND(PF44>$V$294,PF44<=$V$295),$AA$295,IF(AND(PF44>$V$295,PF44<=$V$296),$AA$296,IF(AND(PF44>$V$296,PF44<=$V$297),$AA$297,$AA$298))))+IF(PK44<=$V$304,_xlfn.XLOOKUP(PP44,AA$303:$AD$303,$AA$304:$AD$304,"check xlookup for volume 150",0,1),IF(AND(PK44>$V$304,PK44<=$V$305),_xlfn.XLOOKUP(PP44,$AA$303:$AD$303,$AA$305:$AD$305,"check xlookup for volume 300",0,1),IF(AND(PK44>$V$305,PK44<=$V$306),_xlfn.XLOOKUP(PP44,$AA$303:$AD$303,$AA$306:$AD$306,"check xlookup for volume 900",0,1),IF(AND(PK44>$V$306,PK44<=$V$307),_xlfn.XLOOKUP(PP44,$AA$303:$AD$303,$AA$307:$AD$307,"check xlookup for volume 1500",0,1),IF(PK44>$V$307,_xlfn.XLOOKUP(PP44,$AA$303:$AD$303,$AA$308:$AD$308,"check xlookup for volume >1500",0,1),"")))))+IF(PX44=$W$311,$AA$311,$AA$312))/4)) -> 0 | AAE44: =IF(OR(ISBLANK($P$21),ISBLANK($P$23)),"Enter Major/Minor Street Speeds",IF(QD44=0,,(IF(QD44<5,_xlfn.XLOOKUP(QD44,$W$287:$W$290,$AA$287:$AA$290,"error",0,1),$AA$291)+IF(QI44<=$V$294,$AA$294,IF(AND(QI44>$V$294,QI44<=$V$295),$AA$295,IF(AND(QI44>$V$295,QI44<=$V$296),$AA$296,IF(AND(QI44>$V$296,QI44<=$V$297),$AA$297,$AA$298))))+IF(QN44<=$V$304,_xlfn.XLOOKUP(QS44,AA$303:$AD$303,$AA$304:$AD$304,"check xlookup for volume 150",0,1),IF(AND(QN44>$V$304,QN44<=$V$305),_xlfn.XLOOKUP(QS44,$AA$303:$AD$303,$AA$305:$AD$305,"check xlookup for volume 300",0,1),IF(AND(QN44>$V$305,QN44<=$V$306),_xlfn.XLOOKUP(QS44,$AA$303:$AD$303,$AA$306:$AD$306,"check xlookup for volume 900",0,1),IF(AND(QN44>$V$306,QN44<=$V$307),_xlfn.XLOOKUP(QS44,$AA$303:$AD$303,$AA$307:$AD$307,"check xlookup for volume 1500",0,1),IF(QN44>$V$307,_xlfn.XLOOKUP(QS44,$AA$303:$AD$303,$AA$308:$AD$308,"check xlookup for volume >1500",0,1),"")))))+IF(RA44=$W$311,$AA$311,$AA$312))/4)) -> 0 | AAO44: =IF(OR(ISBLANK($P$21),ISBLANK($P$23)),"Enter Major/Minor Street Speeds",IF(RG44=0,,(IF(RG44<5,_xlfn.XLOOKUP(RG44,$W$287:$W$290,$AA$287:$AA$290,"error",0,1),$AA$291)+IF(RL44<=$V$294,$AA$294,IF(AND(RL44>$V$294,RL44<=$V$295),$AA$295,IF(AND(RL44>$V$295,RL44<=$V$296),$AA$296,IF(AND(RL44>$V$296,RL44<=$V$297),$AA$297,$AA$298))))+IF(RQ44<=$V$304,_xlfn.XLOOKUP(RV44,AA$303:$AD$303,$AA$304:$AD$304,"check xlookup for volume 150",0,1),IF(AND(RQ44>$V$304,RQ44<=$V$305),_xlfn.XLOOKUP(RV44,$AA$303:$AD$303,$AA$305:$AD$305,"check xlookup for volume 300",0,1),IF(AND(RQ44>$V$305,RQ44<=$V$306),_xlfn.XLOOKUP(RV44,$AA$303:$AD$303,$AA$306:$AD$306,"check xlookup for volume 900",0,1),IF(AND(RQ44>$V$306,RQ44<=$V$307),_xlfn.XLOOKUP(RV44,$AA$303:$AD$303,$AA$307:$AD$307,"check xlookup for volume 1500",0,1),IF(RQ44>$V$307,_xlfn.XLOOKUP(RV44,$AA$303:$AD$303,$AA$308:$AD$308,"check xlookup for volume >1500",0,1),"")))))+IF(SD44=$W$311,$AA$311,$AA$312))/4)) -> 0 | AAY44: =IF(OR(ISBLANK($P$21),ISBLANK($P$23)),"Enter Major/Minor Street Speeds",IF(SJ44=0,,(IF(SJ44<5,_xlfn.XLOOKUP(SJ44,$W$287:$W$290,$AA$287:$AA$290,"error",0,1),$AA$291)+IF(SO44<=$V$294,$AA$294,IF(AND(SO44>$V$294,SO44<=$V$295),$AA$295,IF(AND(SO44>$V$295,SO44<=$V$296),$AA$296,IF(AND(SO44>$V$296,SO44<=$V$297),$AA$297,$AA$298))))+IF(ST44<=$V$304,_xlfn.XLOOKUP(SY44,AA$303:$AD$303,$AA$304:$AD$304,"check xlookup for volume 150",0,1),IF(AND(ST44>$V$304,ST44<=$V$305),_xlfn.XLOOKUP(SY44,$AA$303:$AD$303,$AA$305:$AD$305,"check xlookup for volume 300",0,1),IF(AND(ST44>$V$305,ST44<=$V$306),_xlfn.XLOOKUP(SY44,$AA$303:$AD$303,$AA$306:$AD$306,"check xlookup for volume 900",0,1),IF(AND(ST44>$V$306,ST44<=$V$307),_xlfn.XLOOKUP(SY44,$AA$303:$AD$303,$AA$307:$AD$307,"check xlookup for volume 1500",0,1),IF(ST44>$V$307,_xlfn.XLOOKUP(SY44,$AA$303:$AD$303,$AA$308:$AD$308,"check xlookup for volume >1500",0,1),"")))))+IF(TG44=$W$311,$AA$311,$AA$312))/4)) -> 0 | ABI44: =IF(OR(ISBLANK($P$21),ISBLANK($P$23)),"Enter Major/Minor Street Speeds",IF(TM44=0,,(IF(TM44<5,_xlfn.XLOOKUP(TM44,$W$287:$W$290,$AA$287:$AA$290,"error",0,1),$AA$291)+IF(TR44<=$V$294,$AA$294,IF(AND(TR44>$V$294,TR44<=$V$295),$AA$295,IF(AND(TR44>$V$295,TR44<=$V$296),$AA$296,IF(AND(TR44>$V$296,TR44<=$V$297),$AA$297,$AA$298))))+IF(TW44<=$V$304,_xlfn.XLOOKUP(UB44,AA$303:$AD$303,$AA$304:$AD$304,"check xlookup for volume 150",0,1),IF(AND(TW44>$V$304,TW44<=$V$305),_xlfn.XLOOKUP(UB44,$AA$303:$AD$303,$AA$305:$AD$305,"check xlookup for volume 300",0,1),IF(AND(TW44>$V$305,TW44<=$V$306),_xlfn.XLOOKUP(UB44,$AA$303:$AD$303,$AA$306:$AD$306,"check xlookup for volume 900",0,1),IF(AND(TW44>$V$306,TW44<=$V$307),_xlfn.XLOOKUP(UB44,$AA$303:$AD$303,$AA$307:$AD$307,"check xlookup for volume 1500",0,1),IF(TW44>$V$307,_xlfn.XLOOKUP(UB44,$AA$303:$AD$303,$AA$308:$AD$308,"check xlookup for volume >1500",0,1),"")))))+IF(UJ44=$W$311,$AA$311,$AA$312))/4)) -> 0
A46: ='3 - Alt Num Lanes Input'!E28 -> Two-Way Stop Control | T46: N-S | Z46: =UP46 -> 2.291470108 | AD46: No | AI46: No | AN46: =SUM('TWSC N-S'!EV32:FG32) -> 4 | AS46: =Maj_St_Spd_Lmt -> 45 | AX46: =SUM(SBL_Master,SBT_Master,SBR_Master,SBU_Master,EBL_Master,NBT_Master,WBR_Master) -> 1136 | BC46: Free Flowing | BK46: Unmarked | BQ46: =SUM('TWSC N-S'!FH33:FH44) -> 2 | BV46: =Min_St_Spd_Lmt -> 35 | CA46: =SUM(WBL_Master,WBT_Master,WBR_Master,WBU_Master,SBL_Master,EBT_Master,NBR_Master) -> 2929 | CF46: Permissive Left | CN46: Marked | CT46: =SUM('TWSC N-S'!EV45:FG45) -> 4 | CY46: =Maj_St_Spd_Lmt -> 45 | DD46: =SUM(NBL_Master,NBT_Master,NBR_Master,NBU_Master,WBL_Master,SBT_Master,EBR_Master) -> 1347 | DI46: Free Flowing | DQ46: Unmarked | DW46: =SUM('TWSC N-S'!EU33:EU44) -> 2 | EB46: =Min_St_Spd_Lmt -> 35 | EG46: =SUM(EBL_Master,EBT_Master,EBR_Master,EBU_Master,NBL_Master,WBT_Master,SBR_Master) -> 2816 | EL46: Permissive Left | ET46: Marked | UP46: =IFERROR((((SUM(SQRT(UU46),SQRT(VE46),SQRT(VO46),SQRT(VY46),SQRT(WI46),SQRT(WS46),SQRT(XC46),SQRT(XM46),SQRT(XW46),SQRT(YG46),SQRT(YQ46),SQRT(ZA46),SQRT(ZK46),SQRT(ZU46),SQRT(AAE46),SQRT(AAO46),SQRT(AAY46),SQRT(ABI46))/COUNTIF(UU46:ABR47,">0"))^2)*(_xlfn.XLOOKUP(AD46,$W$322:$W$323,$AA$322:$AA$323,"lookup error",0,1))*(_xlfn.XLOOKUP(AI46,Multistage_Crossing,$AA$316:$AA$318,"lookup error",0,1))),"Enter Major/Minor Street Speeds") -> 2.291470108 | UU46: =IF(OR(ISBLANK($P$21),ISBLANK($P$23)),"Enter Major/Minor Street Speeds",IF(AN46=0,,(IF(AN46<5,_xlfn.XLOOKUP(AN46,$W$287:$W$290,$AA$287:$AA$290,"error",0,1),$AA$291)+IF(AS46<=$V$294,$AA$294,IF(AND(AS46>$V$294,AS46<=$V$295),$AA$295,IF(AND(AS46>$V$295,AS46<=$V$296),$AA$296,IF(AND(AS46>$V$296,AS46<=$V$297),$AA$297,$AA$298))))+IF(AX46<=$V$304,_xlfn.XLOOKUP(BC46,AA$303:$AD$303,$AA$304:$AD$304,"check xlookup for volume 150",0,1),IF(AND(AX46>$V$304,AX46<=$V$305),_xlfn.XLOOKUP(BC46,$AA$303:$AD$303,$AA$305:$AD$305,"check xlookup for volume 300",0,1),IF(AND(AX46>$V$305,AX46<=$V$306),_xlfn.XLOOKUP(BC46,$AA$303:$AD$303,$AA$306:$AD$306,"check xlookup for volume 900",0,1),IF(AND(AX46>$V$306,AX46<=$V$307),_xlfn.XLOOKUP(BC46,$AA$303:$AD$303,$AA$307:$AD$307,"check xlookup for volume 1500",0,1),IF(AX46>$V$307,_xlfn.XLOOKUP(BC46,$AA$303:$AD$303,$AA$308:$AD$308,"check xlookup for volume >1500",0,1),"")))))+IF(BK46=$W$311,$AA$311,$AA$312))/4)) -> 1.5 | VE46: =IF(OR(ISBLANK($P$21),ISBLANK($P$23)),"Enter Major/Minor Street Speeds",IF(BQ46=0,,(IF(BQ46<5,_xlfn.XLOOKUP(BQ46,$W$287:$W$290,$AA$287:$AA$290,"error",0,1),$AA$291)+IF(BV46<=$V$294,$AA$294,IF(AND(BV46>$V$294,BV46<=$V$295),$AA$295,IF(AND(BV46>$V$295,BV46<=$V$296),$AA$296,IF(AND(BV46>$V$296,BV46<=$V$297),$AA$297,$AA$298))))+IF(CA46<=$V$304,_xlfn.XLOOKUP(CF46,AA$303:$AD$303,$AA$304:$AD$304,"check xlookup for volume 150",0,1),IF(AND(CA46>$V$304,CA46<=$V$305),_xlfn.XLOOKUP(CF46,$AA$303:$AD$303,$AA$305:$AD$305,"check xlookup for volume 300",0,1),IF(AND(CA46>$V$305,CA46<=$V$306),_xlfn.XLOOKUP(CF46,$AA$303:$AD$303,$AA$306:$AD$306,"check xlookup for volume 900",0,1),IF(AND(CA46>$V$306,CA46<=$V$307),_xlfn.XLOOKUP(CF46,$AA$303:$AD$303,$AA$307:$AD$307,"check xlookup for volume 1500",0,1),IF(CA46>$V$307,_xlfn.XLOOKUP(CF46,$AA$303:$AD$303,$AA$308:$AD$308,"check xlookup for volume >1500",0,1),"")))))+IF(CN46=$W$311,$AA$311,$AA$312))/4)) -> 3.25 | VO46: =IF(OR(ISBLANK($P$21),ISBLANK($P$23)),"Enter Major/Minor Street Speeds",IF(CT46=0,,(IF(CT46<5,_xlfn.XLOOKUP(CT46,$W$287:$W$290,$AA$287:$AA$290,"error",0,1),$AA$291)+IF(CY46<=$V$294,$AA$294,IF(AND(CY46>$V$294,CY46<=$V$295),$AA$295,IF(AND(CY46>$V$295,CY46<=$V$296),$AA$296,IF(AND(CY46>$V$296,CY46<=$V$297),$AA$297,$AA$298))))+IF(DD46<=$V$304,_xlfn.XLOOKUP(DI46,AA$303:$AD$303,$AA$304:$AD$304,"check xlookup for volume 150",0,1),IF(AND(DD46>$V$304,DD46<=$V$305),_xlfn.XLOOKUP(DI46,$AA$303:$AD$303,$AA$305:$AD$305,"check xlookup for volume 300",0,1),IF(AND(DD46>$V$305,DD46<=$V$306),_xlfn.XLOOKUP(DI46,$AA$303:$AD$303,$AA$306:$AD$306,"check xlookup for volume 900",0,1),IF(AND(DD46>$V$306,DD46<=$V$307),_xlfn.XLOOKUP(DI46,$AA$303:$AD$303,$AA$307:$AD$307,"check xlookup for volume 1500",0,1),IF(DD46>$V$307,_xlfn.XLOOKUP(DI46,$AA$303:$AD$303,$AA$308:$AD$308,"check xlookup for volume >1500",0,1),"")))))+IF(DQ46=$W$311,$AA$311,$AA$312))/4)) -> 1.5 | VY46: =IF(OR(ISBLANK($P$21),ISBLANK($P$23)),"Enter Major/Minor Street Speeds",IF(DW46=0,,(IF(DW46<5,_xlfn.XLOOKUP(DW46,$W$287:$W$290,$AA$287:$AA$290,"error",0,1),$AA$291)+IF(EB46<=$V$294,$AA$294,IF(AND(EB46>$V$294,EB46<=$V$295),$AA$295,IF(AND(EB46>$V$295,EB46<=$V$296),$AA$296,IF(AND(EB46>$V$296,EB46<=$V$297),$AA$297,$AA$298))))+IF(EG46<=$V$304,_xlfn.XLOOKUP(EL46,AA$303:$AD$303,$AA$304:$AD$304,"check xlookup for volume 150",0,1),IF(AND(EG46>$V$304,EG46<=$V$305),_xlfn.XLOOKUP(EL46,$AA$303:$AD$303,$AA$305:$AD$305,"check xlookup for volume 300",0,1),IF(AND(EG46>$V$305,EG46<=$V$306),_xlfn.XLOOKUP(EL46,$AA$303:$AD$303,$AA$306:$AD$306,"check xlookup for volume 900",0,1),IF(AND(EG46>$V$306,EG46<=$V$307),_xlfn.XLOOKUP(EL46,$AA$303:$AD$303,$AA$307:$AD$307,"check xlookup for volume 1500",0,1),IF(EG46>$V$307,_xlfn.XLOOKUP(EL46,$AA$303:$AD$303,$AA$308:$AD$308,"check xlookup for volume >1500",0,1),"")))))+IF(ET46=$W$311,$AA$311,$AA$312))/4)) -> 3.25 | WI46: =IF(OR(ISBLANK($P$21),ISBLANK($P$23)),"Enter Major/Minor Street Speeds",IF(EZ46=0,,(IF(EZ46<5,_xlfn.XLOOKUP(EZ46,$W$287:$W$290,$AA$287:$AA$290,"error",0,1),$AA$291)+IF(FE46<=$V$294,$AA$294,IF(AND(FE46>$V$294,FE46<=$V$295),$AA$295,IF(AND(FE46>$V$295,FE46<=$V$296),$AA$296,IF(AND(FE46>$V$296,FE46<=$V$297),$AA$297,$AA$298))))+IF(FJ46<=$V$304,_xlfn.XLOOKUP(FO46,AA$303:$AD$303,$AA$304:$AD$304,"check xlookup for volume 150",0,1),IF(AND(FJ46>$V$304,FJ46<=$V$305),_xlfn.XLOOKUP(FO46,$AA$303:$AD$303,$AA$305:$AD$305,"check xlookup for volume 300",0,1),IF(AND(FJ46>$V$305,FJ46<=$V$306),_xlfn.XLOOKUP(FO46,$AA$303:$AD$303,$AA$306:$AD$306,"check xlookup for volume 900",0,1),IF(AND(FJ46>$V$306,FJ46<=$V$307),_xlfn.XLOOKUP(FO46,$AA$303:$AD$303,$AA$307:$AD$307,"check xlookup for volume 1500",0,1),IF(FJ46>$V$307,_xlfn.XLOOKUP(FO46,$AA$303:$AD$303,$AA$308:$AD$308,"check xlookup for volume >1500",0,1),"")))))+IF(FW46=$W$311,$AA$311,$AA$312))/4)) -> 0 | WS46: =IF(OR(ISBLANK($P$21),ISBLANK($P$23)),"Enter Major/Minor Street Speeds",IF(GC46=0,,(IF(GC46<5,_xlfn.XLOOKUP(GC46,$W$287:$W$290,$AA$287:$AA$290,"error",0,1),$AA$291)+IF(GH46<=$V$294,$AA$294,IF(AND(GH46>$V$294,GH46<=$V$295),$AA$295,IF(AND(GH46>$V$295,GH46<=$V$296),$AA$296,IF(AND(GH46>$V$296,GH46<=$V$297),$AA$297,$AA$298))))+IF(GM46<=$V$304,_xlfn.XLOOKUP(GR46,AA$303:$AD$303,$AA$304:$AD$304,"check xlookup for volume 150",0,1),IF(AND(GM46>$V$304,GM46<=$V$305),_xlfn.XLOOKUP(GR46,$AA$303:$AD$303,$AA$305:$AD$305,"check xlookup for volume 300",0,1),IF(AND(GM46>$V$305,GM46<=$V$306),_xlfn.XLOOKUP(GR46,$AA$303:$AD$303,$AA$306:$AD$306,"check xlookup for volume 900",0,1),IF(AND(GM46>$V$306,GM46<=$V$307),_xlfn.XLOOKUP(GR46,$AA$303:$AD$303,$AA$307:$AD$307,"check xlookup for volume 1500",0,1),IF(GM46>$V$307,_xlfn.XLOOKUP(GR46,$AA$303:$AD$303,$AA$308:$AD$308,"check xlookup for volume >1500",0,1),"")))))+IF(GZ46=$W$311,$AA$311,$AA$312))/4)) -> 0 | XC46: =IF(OR(ISBLANK($P$21),ISBLANK($P$23)),"Enter Major/Minor Street Speeds",IF(HF46=0,,(IF(HF46<5,_xlfn.XLOOKUP(HF46,$W$287:$W$290,$AA$287:$AA$290,"error",0,1),$AA$291)+IF(HK46<=$V$294,$AA$294,IF(AND(HK46>$V$294,HK46<=$V$295),$AA$295,IF(AND(HK46>$V$295,HK46<=$V$296),$AA$296,IF(AND(HK46>$V$296,HK46<=$V$297),$AA$297,$AA$298))))+IF(HP46<=$V$304,_xlfn.XLOOKUP(HU46,AA$303:$AD$303,$AA$304:$AD$304,"check xlookup for volume 150",0,1),IF(AND(HP46>$V$304,HP46<=$V$305),_xlfn.XLOOKUP(HU46,$AA$303:$AD$303,$AA$305:$AD$305,"check xlookup for volume 300",0,1),IF(AND(HP46>$V$305,HP46<=$V$306),_xlfn.XLOOKUP(HU46,$AA$303:$AD$303,$AA$306:$AD$306,"check xlookup for volume 900",0,1),IF(AND(HP46>$V$306,HP46<=$V$307),_xlfn.XLOOKUP(HU46,$AA$303:$AD$303,$AA$307:$AD$307,"check xlookup for volume 1500",0,1),IF(HP46>$V$307,_xlfn.XLOOKUP(HU46,$AA$303:$AD$303,$AA$308:$AD$308,"check xlookup for volume >1500",0,1),"")))))+IF(IC46=$W$311,$AA$311,$AA$312))/4)) -> 0 | XM46: =IF(OR(ISBLANK($P$21),ISBLANK($P$23)),"Enter Major/Minor Street Speeds",IF(II46=0,,(IF(II46<5,_xlfn.XLOOKUP(II46,$W$287:$W$290,$AA$287:$AA$290,"error",0,1),$AA$291)+IF(IN46<=$V$294,$AA$294,IF(AND(IN46>$V$294,IN46<=$V$295),$AA$295,IF(AND(IN46>$V$295,IN46<=$V$296),$AA$296,IF(AND(IN46>$V$296,IN46<=$V$297),$AA$297,$AA$298))))+IF(IS46<=$V$304,_xlfn.XLOOKUP(IX46,AA$303:$AD$303,$AA$304:$AD$304,"check xlookup for volume 150",0,1),IF(AND(IS46>$V$304,IS46<=$V$305),_xlfn.XLOOKUP(IX46,$AA$303:$AD$303,$AA$305:$AD$305,"check xlookup for volume 300",0,1),IF(AND(IS46>$V$305,IS46<=$V$306),_xlfn.XLOOKUP(IX46,$AA$303:$AD$303,$AA$306:$AD$306,"check xlookup for volume 900",0,1),IF(AND(IS46>$V$306,IS46<=$V$307),_xlfn.XLOOKUP(IX46,$AA$303:$AD$303,$AA$307:$AD$307,"check xlookup for volume 1500",0,1),IF(IS46>$V$307,_xlfn.XLOOKUP(IX46,$AA$303:$AD$303,$AA$308:$AD$308,"check xlookup for volume >1500",0,1),"")))))+IF(JF46=$W$311,$AA$311,$AA$312))/4)) -> 0 | XW46: =IF(OR(ISBLANK($P$21),ISBLANK($P$23)),"Enter Major/Minor Street Speeds",IF(JL46=0,,(IF(JL46<5,_xlfn.XLOOKUP(JL46,$W$287:$W$290,$AA$287:$AA$290,"error",0,1),$AA$291)+IF(JQ46<=$V$294,$AA$294,IF(AND(JQ46>$V$294,JQ46<=$V$295),$AA$295,IF(AND(JQ46>$V$295,JQ46<=$V$296),$AA$296,IF(AND(JQ46>$V$296,JQ46<=$V$297),$AA$297,$AA$298))))+IF(JV46<=$V$304,_xlfn.XLOOKUP(KA46,AA$303:$AD$303,$AA$304:$AD$304,"check xlookup for volume 150",0,1),IF(AND(JV46>$V$304,JV46<=$V$305),_xlfn.XLOOKUP(KA46,$AA$303:$AD$303,$AA$305:$AD$305,"check xlookup for volume 300",0,1),IF(AND(JV46>$V$305,JV46<=$V$306),_xlfn.XLOOKUP(KA46,$AA$303:$AD$303,$AA$306:$AD$306,"check xlookup for volume 900",0,1),IF(AND(JV46>$V$306,JV46<=$V$307),_xlfn.XLOOKUP(KA46,$AA$303:$AD$303,$AA$307:$AD$307,"check xlookup for volume 1500",0,1),IF(JV46>$V$307,_xlfn.XLOOKUP(KA46,$AA$303:$AD$303,$AA$308:$AD$308,"check xlookup for volume >1500",0,1),"")))))+IF(KI46=$W$311,$AA$311,$AA$312))/4)) -> 0 | YG46: =IF(OR(ISBLANK($P$21),ISBLANK($P$23)),"Enter Major/Minor Street Speeds",IF(KO46=0,,(IF(KO46<5,_xlfn.XLOOKUP(KO46,$W$287:$W$290,$AA$287:$AA$290,"error",0,1),$AA$291)+IF(KT46<=$V$294,$AA$294,IF(AND(KT46>$V$294,KT46<=$V$295),$AA$295,IF(AND(KT46>$V$295,KT46<=$V$296),$AA$296,IF(AND(KT46>$V$296,KT46<=$V$297),$AA$297,$AA$298))))+IF(KY46<=$V$304,_xlfn.XLOOKUP(LD46,AA$303:$AD$303,$AA$304:$AD$304,"check xlookup for volume 150",0,1),IF(AND(KY46>$V$304,KY46<=$V$305),_xlfn.XLOOKUP(LD46,$AA$303:$AD$303,$AA$305:$AD$305,"check xlookup for volume 300",0,1),IF(AND(KY46>$V$305,KY46<=$V$306),_xlfn.XLOOKUP(LD46,$AA$303:$AD$303,$AA$306:$AD$306,"check xlookup for volume 900",0,1),IF(AND(KY46>$V$306,KY46<=$V$307),_xlfn.XLOOKUP(LD46,$AA$303:$AD$303,$AA$307:$AD$307,"check xlookup for volume 1500",0,1),IF(KY46>$V$307,_xlfn.XLOOKUP(LD46,$AA$303:$AD$303,$AA$308:$AD$308,"check xlookup for volume >1500",0,1),"")))))+IF(LL46=$W$311,$AA$311,$AA$312))/4)) -> 0 | YQ46: =IF(OR(ISBLANK($P$21),ISBLANK($P$23)),"Enter Major/Minor Street Speeds",IF(LR46=0,,(IF(LR46<5,_xlfn.XLOOKUP(LR46,$W$287:$W$290,$AA$287:$AA$290,"error",0,1),$AA$291)+IF(LW46<=$V$294,$AA$294,IF(AND(LW46>$V$294,LW46<=$V$295),$AA$295,IF(AND(LW46>$V$295,LW46<=$V$296),$AA$296,IF(AND(LW46>$V$296,LW46<=$V$297),$AA$297,$AA$298))))+IF(MB46<=$V$304,_xlfn.XLOOKUP(MG46,AA$303:$AD$303,$AA$304:$AD$304,"check xlookup for volume 150",0,1),IF(AND(MB46>$V$304,MB46<=$V$305),_xlfn.XLOOKUP(MG46,$AA$303:$AD$303,$AA$305:$AD$305,"check xlookup for volume 300",0,1),IF(AND(MB46>$V$305,MB46<=$V$306),_xlfn.XLOOKUP(MG46,$AA$303:$AD$303,$AA$306:$AD$306,"check xlookup for volume 900",0,1),IF(AND(MB46>$V$306,MB46<=$V$307),_xlfn.XLOOKUP(MG46,$AA$303:$AD$303,$AA$307:$AD$307,"check xlookup for volume 1500",0,1),IF(MB46>$V$307,_xlfn.XLOOKUP(MG46,$AA$303:$AD$303,$AA$308:$AD$308,"check xlookup for volume >1500",0,1),"")))))+IF(MO46=$W$311,$AA$311,$AA$312))/4)) -> 0 | ZA46: =IF(OR(ISBLANK($P$21),ISBLANK($P$23)),"Enter Major/Minor Street Speeds",IF(MU46=0,,(IF(MU46<5,_xlfn.XLOOKUP(MU46,$W$287:$W$290,$AA$287:$AA$290,"error",0,1),$AA$291)+IF(MZ46<=$V$294,$AA$294,IF(AND(MZ46>$V$294,MZ46<=$V$295),$AA$295,IF(AND(MZ46>$V$295,MZ46<=$V$296),$AA$296,IF(AND(MZ46>$V$296,MZ46<=$V$297),$AA$297,$AA$298))))+IF(NE46<=$V$304,_xlfn.XLOOKUP(NJ46,AA$303:$AD$303,$AA$304:$AD$304,"check xlookup for volume 150",0,1),IF(AND(NE46>$V$304,NE46<=$V$305),_xlfn.XLOOKUP(NJ46,$AA$303:$AD$303,$AA$305:$AD$305,"check xlookup for volume 300",0,1),IF(AND(NE46>$V$305,NE46<=$V$306),_xlfn.XLOOKUP(NJ46,$AA$303:$AD$303,$AA$306:$AD$306,"check xlookup for volume 900",0,1),IF(AND(NE46>$V$306,NE46<=$V$307),_xlfn.XLOOKUP(NJ46,$AA$303:$AD$303,$AA$307:$AD$307,"check xlookup for volume 1500",0,1),IF(NE46>$V$307,_xlfn.XLOOKUP(NJ46,$AA$303:$AD$303,$AA$308:$AD$308,"check xlookup for volume >1500",0,1),"")))))+IF(NR46=$W$311,$AA$311,$AA$312))/4)) -> 0 | ZK46: =IF(OR(ISBLANK($P$21),ISBLANK($P$23)),"Enter Major/Minor Street Speeds",IF(NX46=0,,(IF(NX46<5,_xlfn.XLOOKUP(NX46,$W$287:$W$290,$AA$287:$AA$290,"error",0,1),$AA$291)+IF(OC46<=$V$294,$AA$294,IF(AND(OC46>$V$294,OC46<=$V$295),$AA$295,IF(AND(OC46>$V$295,OC46<=$V$296),$AA$296,IF(AND(OC46>$V$296,OC46<=$V$297),$AA$297,$AA$298))))+IF(OH46<=$V$304,_xlfn.XLOOKUP(OM46,AA$303:$AD$303,$AA$304:$AD$304,"check xlookup for volume 150",0,1),IF(AND(OH46>$V$304,OH46<=$V$305),_xlfn.XLOOKUP(OM46,$AA$303:$AD$303,$AA$305:$AD$305,"check xlookup for volume 300",0,1),IF(AND(OH46>$V$305,OH46<=$V$306),_xlfn.XLOOKUP(OM46,$AA$303:$AD$303,$AA$306:$AD$306,"check xlookup for volume 900",0,1),IF(AND(OH46>$V$306,OH46<=$V$307),_xlfn.XLOOKUP(OM46,$AA$303:$AD$303,$AA$307:$AD$307,"check xlookup for volume 1500",0,1),IF(OH46>$V$307,_xlfn.XLOOKUP(OM46,$AA$303:$AD$303,$AA$308:$AD$308,"check xlookup for volume >1500",0,1),"")))))+IF(OU46=$W$311,$AA$311,$AA$312))/4)) -> 0 | ZU46: =IF(OR(ISBLANK($P$21),ISBLANK($P$23)),"Enter Major/Minor Street Speeds",IF(PA46=0,,(IF(PA46<5,_xlfn.XLOOKUP(PA46,$W$287:$W$290,$AA$287:$AA$290,"error",0,1),$AA$291)+IF(PF46<=$V$294,$AA$294,IF(AND(PF46>$V$294,PF46<=$V$295),$AA$295,IF(AND(PF46>$V$295,PF46<=$V$296),$AA$296,IF(AND(PF46>$V$296,PF46<=$V$297),$AA$297,$AA$298))))+IF(PK46<=$V$304,_xlfn.XLOOKUP(PP46,AA$303:$AD$303,$AA$304:$AD$304,"check xlookup for volume 150",0,1),IF(AND(PK46>$V$304,PK46<=$V$305),_xlfn.XLOOKUP(PP46,$AA$303:$AD$303,$AA$305:$AD$305,"check xlookup for volume 300",0,1),IF(AND(PK46>$V$305,PK46<=$V$306),_xlfn.XLOOKUP(PP46,$AA$303:$AD$303,$AA$306:$AD$306,"check xlookup for volume 900",0,1),IF(AND(PK46>$V$306,PK46<=$V$307),_xlfn.XLOOKUP(PP46,$AA$303:$AD$303,$AA$307:$AD$307,"check xlookup for volume 1500",0,1),IF(PK46>$V$307,_xlfn.XLOOKUP(PP46,$AA$303:$AD$303,$AA$308:$AD$308,"check xlookup for volume >1500",0,1),"")))))+IF(PX46=$W$311,$AA$311,$AA$312))/4)) -> 0 | AAE46: =IF(OR(ISBLANK($P$21),ISBLANK($P$23)),"Enter Major/Minor Street Speeds",IF(QD46=0,,(IF(QD46<5,_xlfn.XLOOKUP(QD46,$W$287:$W$290,$AA$287:$AA$290,"error",0,1),$AA$291)+IF(QI46<=$V$294,$AA$294,IF(AND(QI46>$V$294,QI46<=$V$295),$AA$295,IF(AND(QI46>$V$295,QI46<=$V$296),$AA$296,IF(AND(QI46>$V$296,QI46<=$V$297),$AA$297,$AA$298))))+IF(QN46<=$V$304,_xlfn.XLOOKUP(QS46,AA$303:$AD$303,$AA$304:$AD$304,"check xlookup for volume 150",0,1),IF(AND(QN46>$V$304,QN46<=$V$305),_xlfn.XLOOKUP(QS46,$AA$303:$AD$303,$AA$305:$AD$305,"check xlookup for volume 300",0,1),IF(AND(QN46>$V$305,QN46<=$V$306),_xlfn.XLOOKUP(QS46,$AA$303:$AD$303,$AA$306:$AD$306,"check xlookup for volume 900",0,1),IF(AND(QN46>$V$306,QN46<=$V$307),_xlfn.XLOOKUP(QS46,$AA$303:$AD$303,$AA$307:$AD$307,"check xlookup for volume 1500",0,1),IF(QN46>$V$307,_xlfn.XLOOKUP(QS46,$AA$303:$AD$303,$AA$308:$AD$308,"check xlookup for volume >1500",0,1),"")))))+IF(RA46=$W$311,$AA$311,$AA$312))/4)) -> 0 | AAO46: =IF(OR(ISBLANK($P$21),ISBLANK($P$23)),"Enter Major/Minor Street Speeds",IF(RG46=0,,(IF(RG46<5,_xlfn.XLOOKUP(RG46,$W$287:$W$290,$AA$287:$AA$290,"error",0,1),$AA$291)+IF(RL46<=$V$294,$AA$294,IF(AND(RL46>$V$294,RL46<=$V$295),$AA$295,IF(AND(RL46>$V$295,RL46<=$V$296),$AA$296,IF(AND(RL46>$V$296,RL46<=$V$297),$AA$297,$AA$298))))+IF(RQ46<=$V$304,_xlfn.XLOOKUP(RV46,AA$303:$AD$303,$AA$304:$AD$304,"check xlookup for volume 150",0,1),IF(AND(RQ46>$V$304,RQ46<=$V$305),_xlfn.XLOOKUP(RV46,$AA$303:$AD$303,$AA$305:$AD$305,"check xlookup for volume 300",0,1),IF(AND(RQ46>$V$305,RQ46<=$V$306),_xlfn.XLOOKUP(RV46,$AA$303:$AD$303,$AA$306:$AD$306,"check xlookup for volume 900",0,1),IF(AND(RQ46>$V$306,RQ46<=$V$307),_xlfn.XLOOKUP(RV46,$AA$303:$AD$303,$AA$307:$AD$307,"check xlookup for volume 1500",0,1),IF(RQ46>$V$307,_xlfn.XLOOKUP(RV46,$AA$303:$AD$303,$AA$308:$AD$308,"check xlookup for volume >1500",0,1),"")))))+IF(SD46=$W$311,$AA$311,$AA$312))/4)) -> 0 | AAY46: =IF(OR(ISBLANK($P$21),ISBLANK($P$23)),"Enter Major/Minor Street Speeds",IF(SJ46=0,,(IF(SJ46<5,_xlfn.XLOOKUP(SJ46,$W$287:$W$290,$AA$287:$AA$290,"error",0,1),$AA$291)+IF(SO46<=$V$294,$AA$294,IF(AND(SO46>$V$294,SO46<=$V$295),$AA$295,IF(AND(SO46>$V$295,SO46<=$V$296),$AA$296,IF(AND(SO46>$V$296,SO46<=$V$297),$AA$297,$AA$298))))+IF(ST46<=$V$304,_xlfn.XLOOKUP(SY46,AA$303:$AD$303,$AA$304:$AD$304,"check xlookup for volume 150",0,1),IF(AND(ST46>$V$304,ST46<=$V$305),_xlfn.XLOOKUP(SY46,$AA$303:$AD$303,$AA$305:$AD$305,"check xlookup for volume 300",0,1),IF(AND(ST46>$V$305,ST46<=$V$306),_xlfn.XLOOKUP(SY46,$AA$303:$AD$303,$AA$306:$AD$306,"check xlookup for volume 900",0,1),IF(AND(ST46>$V$306,ST46<=$V$307),_xlfn.XLOOKUP(SY46,$AA$303:$AD$303,$AA$307:$AD$307,"check xlookup for volume 1500",0,1),IF(ST46>$V$307,_xlfn.XLOOKUP(SY46,$AA$303:$AD$303,$AA$308:$AD$308,"check xlookup for volume >1500",0,1),"")))))+IF(TG46=$W$311,$AA$311,$AA$312))/4)) -> 0 | ABI46: =IF(OR(ISBLANK($P$21),ISBLANK($P$23)),"Enter Major/Minor Street Speeds",IF(TM46=0,,(IF(TM46<5,_xlfn.XLOOKUP(TM46,$W$287:$W$290,$AA$287:$AA$290,"error",0,1),$AA$291)+IF(TR46<=$V$294,$AA$294,IF(AND(TR46>$V$294,TR46<=$V$295),$AA$295,IF(AND(TR46>$V$295,TR46<=$V$296),$AA$296,IF(AND(TR46>$V$296,TR46<=$V$297),$AA$297,$AA$298))))+IF(TW46<=$V$304,_xlfn.XLOOKUP(UB46,AA$303:$AD$303,$AA$304:$AD$304,"check xlookup for volume 150",0,1),IF(AND(TW46>$V$304,TW46<=$V$305),_xlfn.XLOOKUP(UB46,$AA$303:$AD$303,$AA$305:$AD$305,"check xlookup for volume 300",0,1),IF(AND(TW46>$V$305,TW46<=$V$306),_xlfn.XLOOKUP(UB46,$AA$303:$AD$303,$AA$306:$AD$306,"check xlookup for volume 900",0,1),IF(AND(TW46>$V$306,TW46<=$V$307),_xlfn.XLOOKUP(UB46,$AA$303:$AD$303,$AA$307:$AD$307,"check xlookup for volume 1500",0,1),IF(TW46>$V$307,_xlfn.XLOOKUP(UB46,$AA$303:$AD$303,$AA$308:$AD$308,"check xlookup for volume >1500",0,1),"")))))+IF(UJ46=$W$311,$AA$311,$AA$312))/4)) -> 0
T48: E-W | Z48: =UP48 -> 2.258800195 | AD48: No | AI48: No | AN48: =SUM('TWSC E-W'!CK71:CV71)+MAX('TWSC E-W'!CW72:CW74,'TWSC E-W'!CQ84:CS84,'TWSC E-W'!CC75:CC77) -> 4 | AS48: =Maj_St_Spd_Lmt -> 45 | AX48: =SUM(EBL_Master,EBT_Master,EBR_Master,EBU_Master,WBT_Master,NBL_Master,SBR_Master) -> 2816 | BC48: Free Flowing | BK48: Unmarked | BQ48: =SUM('TWSC E-W'!CW72:CW83)+MAX('TWSC E-W'!CT84:CV84,'TWSC E-W'!CJ78:CJ80,'TWSC E-W'!CQ71:CV71) -> 6 | BV48: =Min_St_Spd_Lmt -> 35 | CA48: =SUM(SBL_Master,SBT_Master,SBR_Master,NBT_Master,WBR_Master,EBL_Master) -> 1136 | CF48: Permissive Left | CN48: Marked | CT48: =SUM('TWSC E-W'!CK84:CV84)+MAX('TWSC E-W'!CW78:CW83,'TWSC E-W'!CN71:CP71,'TWSC E-W'!CJ81:CJ83) -> 3 | CY48: =Maj_St_Spd_Lmt -> 45 | DD48: =SUM(WBU_Master,WBL_Master,WBT_Master,WBR_Master,EBT_Master,SBL_Master,NBR_Master) -> 2929 | DI48: Free Flowing | DQ48: Unmarked | DW48: =SUM('TWSC E-W'!CJ72:CJ83)+MAX('TWSC E-W'!CK84:CP84,'TWSC E-W'!CW75:CW77,'TWSC E-W'!CK71:CM71) -> 6 | EB48: =Min_St_Spd_Lmt -> 35 | EG48: =SUM(NBL_Master,NBT_Master,NBR_Master,WBL_Master,EBR_Master,SBT_Master) -> 1347 | EL48: Permissive Left | ET48: Marked | UP48: =IFERROR((((SUM(SQRT(UU48),SQRT(VE48),SQRT(VO48),SQRT(VY48),SQRT(WI48),SQRT(WS48),SQRT(XC48),SQRT(XM48),SQRT(XW48),SQRT(YG48),SQRT(YQ48),SQRT(ZA48),SQRT(ZK48),SQRT(ZU48),SQRT(AAE48),SQRT(AAO48),SQRT(AAY48),SQRT(ABI48))/COUNTIF(UU48:ABR49,">0"))^2)*(_xlfn.XLOOKUP(AD48,$W$322:$W$323,$AA$322:$AA$323,"lookup error",0,1))*(_xlfn.XLOOKUP(AI48,Multistage_Crossing,$AA$316:$AA$318,"lookup error",0,1))),"Enter Major/Minor Street Speeds") -> 2.258800195 | UU48: =IF(OR(ISBLANK($P$21),ISBLANK($P$23)),"Enter Major/Minor Street Speeds",IF(AN48=0,,(IF(AN48<5,_xlfn.XLOOKUP(AN48,$W$287:$W$290,$AA$287:$AA$290,"error",0,1),$AA$291)+IF(AS48<=$V$294,$AA$294,IF(AND(AS48>$V$294,AS48<=$V$295),$AA$295,IF(AND(AS48>$V$295,AS48<=$V$296),$AA$296,IF(AND(AS48>$V$296,AS48<=$V$297),$AA$297,$AA$298))))+IF(AX48<=$V$304,_xlfn.XLOOKUP(BC48,AA$303:$AD$303,$AA$304:$AD$304,"check xlookup for volume 150",0,1),IF(AND(AX48>$V$304,AX48<=$V$305),_xlfn.XLOOKUP(BC48,$AA$303:$AD$303,$AA$305:$AD$305,"check xlookup for volume 300",0,1),IF(AND(AX48>$V$305,AX48<=$V$306),_xlfn.XLOOKUP(BC48,$AA$303:$AD$303,$AA$306:$AD$306,"check xlookup for volume 900",0,1),IF(AND(AX48>$V$306,AX48<=$V$307),_xlfn.XLOOKUP(BC48,$AA$303:$AD$303,$AA$307:$AD$307,"check xlookup for volume 1500",0,1),IF(AX48>$V$307,_xlfn.XLOOKUP(BC48,$AA$303:$AD$303,$AA$308:$AD$308,"check xlookup for volume >1500",0,1),"")))))+IF(BK48=$W$311,$AA$311,$AA$312))/4)) -> 1.5 | VE48: =IF(OR(ISBLANK($P$21),ISBLANK($P$23)),"Enter Major/Minor Street Speeds",IF(BQ48=0,,(IF(BQ48<5,_xlfn.XLOOKUP(BQ48,$W$287:$W$290,$AA$287:$AA$290,"error",0,1),$AA$291)+IF(BV48<=$V$294,$AA$294,IF(AND(BV48>$V$294,BV48<=$V$295),$AA$295,IF(AND(BV48>$V$295,BV48<=$V$296),$AA$296,IF(AND(BV48>$V$296,BV48<=$V$297),$AA$297,$AA$298))))+IF(CA48<=$V$304,_xlfn.XLOOKUP(CF48,AA$303:$AD$303,$AA$304:$AD$304,"check xlookup for volume 150",0,1),IF(AND(CA48>$V$304,CA48<=$V$305),_xlfn.XLOOKUP(CF48,$AA$303:$AD$303,$AA$305:$AD$305,"check xlookup for volume 300",0,1),IF(AND(CA48>$V$305,CA48<=$V$306),_xlfn.XLOOKUP(CF48,$AA$303:$AD$303,$AA$306:$AD$306,"check xlookup for volume 900",0,1),IF(AND(CA48>$V$306,CA48<=$V$307),_xlfn.XLOOKUP(CF48,$AA$303:$AD$303,$AA$307:$AD$307,"check xlookup for volume 1500",0,1),IF(CA48>$V$307,_xlfn.XLOOKUP(CF48,$AA$303:$AD$303,$AA$308:$AD$308,"check xlookup for volume >1500",0,1),"")))))+IF(CN48=$W$311,$AA$311,$AA$312))/4)) -> 3 | VO48: =IF(OR(ISBLANK($P$21),ISBLANK($P$23)),"Enter Major/Minor Street Speeds",IF(CT48=0,,(IF(CT48<5,_xlfn.XLOOKUP(CT48,$W$287:$W$290,$AA$287:$AA$290,"error",0,1),$AA$291)+IF(CY48<=$V$294,$AA$294,IF(AND(CY48>$V$294,CY48<=$V$295),$AA$295,IF(AND(CY48>$V$295,CY48<=$V$296),$AA$296,IF(AND(CY48>$V$296,CY48<=$V$297),$AA$297,$AA$298))))+IF(DD48<=$V$304,_xlfn.XLOOKUP(DI48,AA$303:$AD$303,$AA$304:$AD$304,"check xlookup for volume 150",0,1),IF(AND(DD48>$V$304,DD48<=$V$305),_xlfn.XLOOKUP(DI48,$AA$303:$AD$303,$AA$305:$AD$305,"check xlookup for volume 300",0,1),IF(AND(DD48>$V$305,DD48<=$V$306),_xlfn.XLOOKUP(DI48,$AA$303:$AD$303,$AA$306:$AD$306,"check xlookup for volume 900",0,1),IF(AND(DD48>$V$306,DD48<=$V$307),_xlfn.XLOOKUP(DI48,$AA$303:$AD$303,$AA$307:$AD$307,"check xlookup for volume 1500",0,1),IF(DD48>$V$307,_xlfn.XLOOKUP(DI48,$AA$303:$AD$303,$AA$308:$AD$308,"check xlookup for volume >1500",0,1),"")))))+IF(DQ48=$W$311,$AA$311,$AA$312))/4)) -> 1.75 | VY48: =IF(OR(ISBLANK($P$21),ISBLANK($P$23)),"Enter Major/Minor Street Speeds",IF(DW48=0,,(IF(DW48<5,_xlfn.XLOOKUP(DW48,$W$287:$W$290,$AA$287:$AA$290,"error",0,1),$AA$291)+IF(EB48<=$V$294,$AA$294,IF(AND(EB48>$V$294,EB48<=$V$295),$AA$295,IF(AND(EB48>$V$295,EB48<=$V$296),$AA$296,IF(AND(EB48>$V$296,EB48<=$V$297),$AA$297,$AA$298))))+IF(EG48<=$V$304,_xlfn.XLOOKUP(EL48,AA$303:$AD$303,$AA$304:$AD$304,"check xlookup for volume 150",0,1),IF(AND(EG48>$V$304,EG48<=$V$305),_xlfn.XLOOKUP(EL48,$AA$303:$AD$303,$AA$305:$AD$305,"check xlookup for volume 300",0,1),IF(AND(EG48>$V$305,EG48<=$V$306),_xlfn.XLOOKUP(EL48,$AA$303:$AD$303,$AA$306:$AD$306,"check xlookup for volume 900",0,1),IF(AND(EG48>$V$306,EG48<=$V$307),_xlfn.XLOOKUP(EL48,$AA$303:$AD$303,$AA$307:$AD$307,"check xlookup for volume 1500",0,1),IF(EG48>$V$307,_xlfn.XLOOKUP(EL48,$AA$303:$AD$303,$AA$308:$AD$308,"check xlookup for volume >1500",0,1),"")))))+IF(ET48=$W$311,$AA$311,$AA$312))/4)) -> 3 | WI48: =IF(OR(ISBLANK($P$21),ISBLANK($P$23)),"Enter Major/Minor Street Speeds",IF(EZ48=0,,(IF(EZ48<5,_xlfn.XLOOKUP(EZ48,$W$287:$W$290,$AA$287:$AA$290,"error",0,1),$AA$291)+IF(FE48<=$V$294,$AA$294,IF(AND(FE48>$V$294,FE48<=$V$295),$AA$295,IF(AND(FE48>$V$295,FE48<=$V$296),$AA$296,IF(AND(FE48>$V$296,FE48<=$V$297),$AA$297,$AA$298))))+IF(FJ48<=$V$304,_xlfn.XLOOKUP(FO48,AA$303:$AD$303,$AA$304:$AD$304,"check xlookup for volume 150",0,1),IF(AND(FJ48>$V$304,FJ48<=$V$305),_xlfn.XLOOKUP(FO48,$AA$303:$AD$303,$AA$305:$AD$305,"check xlookup for volume 300",0,1),IF(AND(FJ48>$V$305,FJ48<=$V$306),_xlfn.XLOOKUP(FO48,$AA$303:$AD$303,$AA$306:$AD$306,"check xlookup for volume 900",0,1),IF(AND(FJ48>$V$306,FJ48<=$V$307),_xlfn.XLOOKUP(FO48,$AA$303:$AD$303,$AA$307:$AD$307,"check xlookup for volume 1500",0,1),IF(FJ48>$V$307,_xlfn.XLOOKUP(FO48,$AA$303:$AD$303,$AA$308:$AD$308,"check xlookup for volume >1500",0,1),"")))))+IF(FW48=$W$311,$AA$311,$AA$312))/4)) -> 0 | WS48: =IF(OR(ISBLANK($P$21),ISBLANK($P$23)),"Enter Major/Minor Street Speeds",IF(GC48=0,,(IF(GC48<5,_xlfn.XLOOKUP(GC48,$W$287:$W$290,$AA$287:$AA$290,"error",0,1),$AA$291)+IF(GH48<=$V$294,$AA$294,IF(AND(GH48>$V$294,GH48<=$V$295),$AA$295,IF(AND(GH48>$V$295,GH48<=$V$296),$AA$296,IF(AND(GH48>$V$296,GH48<=$V$297),$AA$297,$AA$298))))+IF(GM48<=$V$304,_xlfn.XLOOKUP(GR48,AA$303:$AD$303,$AA$304:$AD$304,"check xlookup for volume 150",0,1),IF(AND(GM48>$V$304,GM48<=$V$305),_xlfn.XLOOKUP(GR48,$AA$303:$AD$303,$AA$305:$AD$305,"check xlookup for volume 300",0,1),IF(AND(GM48>$V$305,GM48<=$V$306),_xlfn.XLOOKUP(GR48,$AA$303:$AD$303,$AA$306:$AD$306,"check xlookup for volume 900",0,1),IF(AND(GM48>$V$306,GM48<=$V$307),_xlfn.XLOOKUP(GR48,$AA$303:$AD$303,$AA$307:$AD$307,"check xlookup for volume 1500",0,1),IF(GM48>$V$307,_xlfn.XLOOKUP(GR48,$AA$303:$AD$303,$AA$308:$AD$308,"check xlookup for volume >1500",0,1),"")))))+IF(GZ48=$W$311,$AA$311,$AA$312))/4)) -> 0 | XC48: =IF(OR(ISBLANK($P$21),ISBLANK($P$23)),"Enter Major/Minor Street Speeds",IF(HF48=0,,(IF(HF48<5,_xlfn.XLOOKUP(HF48,$W$287:$W$290,$AA$287:$AA$290,"error",0,1),$AA$291)+IF(HK48<=$V$294,$AA$294,IF(AND(HK48>$V$294,HK48<=$V$295),$AA$295,IF(AND(HK48>$V$295,HK48<=$V$296),$AA$296,IF(AND(HK48>$V$296,HK48<=$V$297),$AA$297,$AA$298))))+IF(HP48<=$V$304,_xlfn.XLOOKUP(HU48,AA$303:$AD$303,$AA$304:$AD$304,"check xlookup for volume 150",0,1),IF(AND(HP48>$V$304,HP48<=$V$305),_xlfn.XLOOKUP(HU48,$AA$303:$AD$303,$AA$305:$AD$305,"check xlookup for volume 300",0,1),IF(AND(HP48>$V$305,HP48<=$V$306),_xlfn.XLOOKUP(HU48,$AA$303:$AD$303,$AA$306:$AD$306,"check xlookup for volume 900",0,1),IF(AND(HP48>$V$306,HP48<=$V$307),_xlfn.XLOOKUP(HU48,$AA$303:$AD$303,$AA$307:$AD$307,"check xlookup for volume 1500",0,1),IF(HP48>$V$307,_xlfn.XLOOKUP(HU48,$AA$303:$AD$303,$AA$308:$AD$308,"check xlookup for volume >1500",0,1),"")))))+IF(IC48=$W$311,$AA$311,$AA$312))/4)) -> 0 | XM48: =IF(OR(ISBLANK($P$21),ISBLANK($P$23)),"Enter Major/Minor Street Speeds",IF(II48=0,,(IF(II48<5,_xlfn.XLOOKUP(II48,$W$287:$W$290,$AA$287:$AA$290,"error",0,1),$AA$291)+IF(IN48<=$V$294,$AA$294,IF(AND(IN48>$V$294,IN48<=$V$295),$AA$295,IF(AND(IN48>$V$295,IN48<=$V$296),$AA$296,IF(AND(IN48>$V$296,IN48<=$V$297),$AA$297,$AA$298))))+IF(IS48<=$V$304,_xlfn.XLOOKUP(IX48,AA$303:$AD$303,$AA$304:$AD$304,"check xlookup for volume 150",0,1),IF(AND(IS48>$V$304,IS48<=$V$305),_xlfn.XLOOKUP(IX48,$AA$303:$AD$303,$AA$305:$AD$305,"check xlookup for volume 300",0,1),IF(AND(IS48>$V$305,IS48<=$V$306),_xlfn.XLOOKUP(IX48,$AA$303:$AD$303,$AA$306:$AD$306,"check xlookup for volume 900",0,1),IF(AND(IS48>$V$306,IS48<=$V$307),_xlfn.XLOOKUP(IX48,$AA$303:$AD$303,$AA$307:$AD$307,"check xlookup for volume 1500",0,1),IF(IS48>$V$307,_xlfn.XLOOKUP(IX48,$AA$303:$AD$303,$AA$308:$AD$308,"check xlookup for volume >1500",0,1),"")))))+IF(JF48=$W$311,$AA$311,$AA$312))/4)) -> 0 | XW48: =IF(OR(ISBLANK($P$21),ISBLANK($P$23)),"Enter Major/Minor Street Speeds",IF(JL48=0,,(IF(JL48<5,_xlfn.XLOOKUP(JL48,$W$287:$W$290,$AA$287:$AA$290,"error",0,1),$AA$291)+IF(JQ48<=$V$294,$AA$294,IF(AND(JQ48>$V$294,JQ48<=$V$295),$AA$295,IF(AND(JQ48>$V$295,JQ48<=$V$296),$AA$296,IF(AND(JQ48>$V$296,JQ48<=$V$297),$AA$297,$AA$298))))+IF(JV48<=$V$304,_xlfn.XLOOKUP(KA48,AA$303:$AD$303,$AA$304:$AD$304,"check xlookup for volume 150",0,1),IF(AND(JV48>$V$304,JV48<=$V$305),_xlfn.XLOOKUP(KA48,$AA$303:$AD$303,$AA$305:$AD$305,"check xlookup for volume 300",0,1),IF(AND(JV48>$V$305,JV48<=$V$306),_xlfn.XLOOKUP(KA48,$AA$303:$AD$303,$AA$306:$AD$306,"check xlookup for volume 900",0,1),IF(AND(JV48>$V$306,JV48<=$V$307),_xlfn.XLOOKUP(KA48,$AA$303:$AD$303,$AA$307:$AD$307,"check xlookup for volume 1500",0,1),IF(JV48>$V$307,_xlfn.XLOOKUP(KA48,$AA$303:$AD$303,$AA$308:$AD$308,"check xlookup for volume >1500",0,1),"")))))+IF(KI48=$W$311,$AA$311,$AA$312))/4)) -> 0 | YG48: =IF(OR(ISBLANK($P$21),ISBLANK($P$23)),"Enter Major/Minor Street Speeds",IF(KO48=0,,(IF(KO48<5,_xlfn.XLOOKUP(KO48,$W$287:$W$290,$AA$287:$AA$290,"error",0,1),$AA$291)+IF(KT48<=$V$294,$AA$294,IF(AND(KT48>$V$294,KT48<=$V$295),$AA$295,IF(AND(KT48>$V$295,KT48<=$V$296),$AA$296,IF(AND(KT48>$V$296,KT48<=$V$297),$AA$297,$AA$298))))+IF(KY48<=$V$304,_xlfn.XLOOKUP(LD48,AA$303:$AD$303,$AA$304:$AD$304,"check xlookup for volume 150",0,1),IF(AND(KY48>$V$304,KY48<=$V$305),_xlfn.XLOOKUP(LD48,$AA$303:$AD$303,$AA$305:$AD$305,"check xlookup for volume 300",0,1),IF(AND(KY48>$V$305,KY48<=$V$306),_xlfn.XLOOKUP(LD48,$AA$303:$AD$303,$AA$306:$AD$306,"check xlookup for volume 900",0,1),IF(AND(KY48>$V$306,KY48<=$V$307),_xlfn.XLOOKUP(LD48,$AA$303:$AD$303,$AA$307:$AD$307,"check xlookup for volume 1500",0,1),IF(KY48>$V$307,_xlfn.XLOOKUP(LD48,$AA$303:$AD$303,$AA$308:$AD$308,"check xlookup for volume >1500",0,1),"")))))+IF(LL48=$W$311,$AA$311,$AA$312))/4)) -> 0 | YQ48: =IF(OR(ISBLANK($P$21),ISBLANK($P$23)),"Enter Major/Minor Street Speeds",IF(LR48=0,,(IF(LR48<5,_xlfn.XLOOKUP(LR48,$W$287:$W$290,$AA$287:$AA$290,"error",0,1),$AA$291)+IF(LW48<=$V$294,$AA$294,IF(AND(LW48>$V$294,LW48<=$V$295),$AA$295,IF(AND(LW48>$V$295,LW48<=$V$296),$AA$296,IF(AND(LW48>$V$296,LW48<=$V$297),$AA$297,$AA$298))))+IF(MB48<=$V$304,_xlfn.XLOOKUP(MG48,AA$303:$AD$303,$AA$304:$AD$304,"check xlookup for volume 150",0,1),IF(AND(MB48>$V$304,MB48<=$V$305),_xlfn.XLOOKUP(MG48,$AA$303:$AD$303,$AA$305:$AD$305,"check xlookup for volume 300",0,1),IF(AND(MB48>$V$305,MB48<=$V$306),_xlfn.XLOOKUP(MG48,$AA$303:$AD$303,$AA$306:$AD$306,"check xlookup for volume 900",0,1),IF(AND(MB48>$V$306,MB48<=$V$307),_xlfn.XLOOKUP(MG48,$AA$303:$AD$303,$AA$307:$AD$307,"check xlookup for volume 1500",0,1),IF(MB48>$V$307,_xlfn.XLOOKUP(MG48,$AA$303:$AD$303,$AA$308:$AD$308,"check xlookup for volume >1500",0,1),"")))))+IF(MO48=$W$311,$AA$311,$AA$312))/4)) -> 0 | ZA48: =IF(OR(ISBLANK($P$21),ISBLANK($P$23)),"Enter Major/Minor Street Speeds",IF(MU48=0,,(IF(MU48<5,_xlfn.XLOOKUP(MU48,$W$287:$W$290,$AA$287:$AA$290,"error",0,1),$AA$291)+IF(MZ48<=$V$294,$AA$294,IF(AND(MZ48>$V$294,MZ48<=$V$295),$AA$295,IF(AND(MZ48>$V$295,MZ48<=$V$296),$AA$296,IF(AND(MZ48>$V$296,MZ48<=$V$297),$AA$297,$AA$298))))+IF(NE48<=$V$304,_xlfn.XLOOKUP(NJ48,AA$303:$AD$303,$AA$304:$AD$304,"check xlookup for volume 150",0,1),IF(AND(NE48>$V$304,NE48<=$V$305),_xlfn.XLOOKUP(NJ48,$AA$303:$AD$303,$AA$305:$AD$305,"check xlookup for volume 300",0,1),IF(AND(NE48>$V$305,NE48<=$V$306),_xlfn.XLOOKUP(NJ48,$AA$303:$AD$303,$AA$306:$AD$306,"check xlookup for volume 900",0,1),IF(AND(NE48>$V$306,NE48<=$V$307),_xlfn.XLOOKUP(NJ48,$AA$303:$AD$303,$AA$307:$AD$307,"check xlookup for volume 1500",0,1),IF(NE48>$V$307,_xlfn.XLOOKUP(NJ48,$AA$303:$AD$303,$AA$308:$AD$308,"check xlookup for volume >1500",0,1),"")))))+IF(NR48=$W$311,$AA$311,$AA$312))/4)) -> 0 | ZK48: =IF(OR(ISBLANK($P$21),ISBLANK($P$23)),"Enter Major/Minor Street Speeds",IF(NX48=0,,(IF(NX48<5,_xlfn.XLOOKUP(NX48,$W$287:$W$290,$AA$287:$AA$290,"error",0,1),$AA$291)+IF(OC48<=$V$294,$AA$294,IF(AND(OC48>$V$294,OC48<=$V$295),$AA$295,IF(AND(OC48>$V$295,OC48<=$V$296),$AA$296,IF(AND(OC48>$V$296,OC48<=$V$297),$AA$297,$AA$298))))+IF(OH48<=$V$304,_xlfn.XLOOKUP(OM48,AA$303:$AD$303,$AA$304:$AD$304,"check xlookup for volume 150",0,1),IF(AND(OH48>$V$304,OH48<=$V$305),_xlfn.XLOOKUP(OM48,$AA$303:$AD$303,$AA$305:$AD$305,"check xlookup for volume 300",0,1),IF(AND(OH48>$V$305,OH48<=$V$306),_xlfn.XLOOKUP(OM48,$AA$303:$AD$303,$AA$306:$AD$306,"check xlookup for volume 900",0,1),IF(AND(OH48>$V$306,OH48<=$V$307),_xlfn.XLOOKUP(OM48,$AA$303:$AD$303,$AA$307:$AD$307,"check xlookup for volume 1500",0,1),IF(OH48>$V$307,_xlfn.XLOOKUP(OM48,$AA$303:$AD$303,$AA$308:$AD$308,"check xlookup for volume >1500",0,1),"")))))+IF(OU48=$W$311,$AA$311,$AA$312))/4)) -> 0 | ZU48: =IF(OR(ISBLANK($P$21),ISBLANK($P$23)),"Enter Major/Minor Street Speeds",IF(PA48=0,,(IF(PA48<5,_xlfn.XLOOKUP(PA48,$W$287:$W$290,$AA$287:$AA$290,"error",0,1),$AA$291)+IF(PF48<=$V$294,$AA$294,IF(AND(PF48>$V$294,PF48<=$V$295),$AA$295,IF(AND(PF48>$V$295,PF48<=$V$296),$AA$296,IF(AND(PF48>$V$296,PF48<=$V$297),$AA$297,$AA$298))))+IF(PK48<=$V$304,_xlfn.XLOOKUP(PP48,AA$303:$AD$303,$AA$304:$AD$304,"check xlookup for volume 150",0,1),IF(AND(PK48>$V$304,PK48<=$V$305),_xlfn.XLOOKUP(PP48,$AA$303:$AD$303,$AA$305:$AD$305,"check xlookup for volume 300",0,1),IF(AND(PK48>$V$305,PK48<=$V$306),_xlfn.XLOOKUP(PP48,$AA$303:$AD$303,$AA$306:$AD$306,"check xlookup for volume 900",0,1),IF(AND(PK48>$V$306,PK48<=$V$307),_xlfn.XLOOKUP(PP48,$AA$303:$AD$303,$AA$307:$AD$307,"check xlookup for volume 1500",0,1),IF(PK48>$V$307,_xlfn.XLOOKUP(PP48,$AA$303:$AD$303,$AA$308:$AD$308,"check xlookup for volume >1500",0,1),"")))))+IF(PX48=$W$311,$AA$311,$AA$312))/4)) -> 0 | AAE48: =IF(OR(ISBLANK($P$21),ISBLANK($P$23)),"Enter Major/Minor Street Speeds",IF(QD48=0,,(IF(QD48<5,_xlfn.XLOOKUP(QD48,$W$287:$W$290,$AA$287:$AA$290,"error",0,1),$AA$291)+IF(QI48<=$V$294,$AA$294,IF(AND(QI48>$V$294,QI48<=$V$295),$AA$295,IF(AND(QI48>$V$295,QI48<=$V$296),$AA$296,IF(AND(QI48>$V$296,QI48<=$V$297),$AA$297,$AA$298))))+IF(QN48<=$V$304,_xlfn.XLOOKUP(QS48,AA$303:$AD$303,$AA$304:$AD$304,"check xlookup for volume 150",0,1),IF(AND(QN48>$V$304,QN48<=$V$305),_xlfn.XLOOKUP(QS48,$AA$303:$AD$303,$AA$305:$AD$305,"check xlookup for volume 300",0,1),IF(AND(QN48>$V$305,QN48<=$V$306),_xlfn.XLOOKUP(QS48,$AA$303:$AD$303,$AA$306:$AD$306,"check xlookup for volume 900",0,1),IF(AND(QN48>$V$306,QN48<=$V$307),_xlfn.XLOOKUP(QS48,$AA$303:$AD$303,$AA$307:$AD$307,"check xlookup for volume 1500",0,1),IF(QN48>$V$307,_xlfn.XLOOKUP(QS48,$AA$303:$AD$303,$AA$308:$AD$308,"check xlookup for volume >1500",0,1),"")))))+IF(RA48=$W$311,$AA$311,$AA$312))/4)) -> 0 | AAO48: =IF(OR(ISBLANK($P$21),ISBLANK($P$23)),"Enter Major/Minor Street Speeds",IF(RG48=0,,(IF(RG48<5,_xlfn.XLOOKUP(RG48,$W$287:$W$290,$AA$287:$AA$290,"error",0,1),$AA$291)+IF(RL48<=$V$294,$AA$294,IF(AND(RL48>$V$294,RL48<=$V$295),$AA$295,IF(AND(RL48>$V$295,RL48<=$V$296),$AA$296,IF(AND(RL48>$V$296,RL48<=$V$297),$AA$297,$AA$298))))+IF(RQ48<=$V$304,_xlfn.XLOOKUP(RV48,AA$303:$AD$303,$AA$304:$AD$304,"check xlookup for volume 150",0,1),IF(AND(RQ48>$V$304,RQ48<=$V$305),_xlfn.XLOOKUP(RV48,$AA$303:$AD$303,$AA$305:$AD$305,"check xlookup for volume 300",0,1),IF(AND(RQ48>$V$305,RQ48<=$V$306),_xlfn.XLOOKUP(RV48,$AA$303:$AD$303,$AA$306:$AD$306,"check xlookup for volume 900",0,1),IF(AND(RQ48>$V$306,RQ48<=$V$307),_xlfn.XLOOKUP(RV48,$AA$303:$AD$303,$AA$307:$AD$307,"check xlookup for volume 1500",0,1),IF(RQ48>$V$307,_xlfn.XLOOKUP(RV48,$AA$303:$AD$303,$AA$308:$AD$308,"check xlookup for volume >1500",0,1),"")))))+IF(SD48=$W$311,$AA$311,$AA$312))/4)) -> 0 | AAY48: =IF(OR(ISBLANK($P$21),ISBLANK($P$23)),"Enter Major/Minor Street Speeds",IF(SJ48=0,,(IF(SJ48<5,_xlfn.XLOOKUP(SJ48,$W$287:$W$290,$AA$287:$AA$290,"error",0,1),$AA$291)+IF(SO48<=$V$294,$AA$294,IF(AND(SO48>$V$294,SO48<=$V$295),$AA$295,IF(AND(SO48>$V$295,SO48<=$V$296),$AA$296,IF(AND(SO48>$V$296,SO48<=$V$297),$AA$297,$AA$298))))+IF(ST48<=$V$304,_xlfn.XLOOKUP(SY48,AA$303:$AD$303,$AA$304:$AD$304,"check xlookup for volume 150",0,1),IF(AND(ST48>$V$304,ST48<=$V$305),_xlfn.XLOOKUP(SY48,$AA$303:$AD$303,$AA$305:$AD$305,"check xlookup for volume 300",0,1),IF(AND(ST48>$V$305,ST48<=$V$306),_xlfn.XLOOKUP(SY48,$AA$303:$AD$303,$AA$306:$AD$306,"check xlookup for volume 900",0,1),IF(AND(ST48>$V$306,ST48<=$V$307),_xlfn.XLOOKUP(SY48,$AA$303:$AD$303,$AA$307:$AD$307,"check xlookup for volume 1500",0,1),IF(ST48>$V$307,_xlfn.XLOOKUP(SY48,$AA$303:$AD$303,$AA$308:$AD$308,"check xlookup for volume >1500",0,1),"")))))+IF(TG48=$W$311,$AA$311,$AA$312))/4)) -> 0 | ABI48: =IF(OR(ISBLANK($P$21),ISBLANK($P$23)),"Enter Major/Minor Street Speeds",IF(TM48=0,,(IF(TM48<5,_xlfn.XLOOKUP(TM48,$W$287:$W$290,$AA$287:$AA$290,"error",0,1),$AA$291)+IF(TR48<=$V$294,$AA$294,IF(AND(TR48>$V$294,TR48<=$V$295),$AA$295,IF(AND(TR48>$V$295,TR48<=$V$296),$AA$296,IF(AND(TR48>$V$296,TR48<=$V$297),$AA$297,$AA$298))))+IF(TW48<=$V$304,_xlfn.XLOOKUP(UB48,AA$303:$AD$303,$AA$304:$AD$304,"check xlookup for volume 150",0,1),IF(AND(TW48>$V$304,TW48<=$V$305),_xlfn.XLOOKUP(UB48,$AA$303:$AD$303,$AA$305:$AD$305,"check xlookup for volume 300",0,1),IF(AND(TW48>$V$305,TW48<=$V$306),_xlfn.XLOOKUP(UB48,$AA$303:$AD$303,$AA$306:$AD$306,"check xlookup for volume 900",0,1),IF(AND(TW48>$V$306,TW48<=$V$307),_xlfn.XLOOKUP(UB48,$AA$303:$AD$303,$AA$307:$AD$307,"check xlookup for volume 1500",0,1),IF(TW48>$V$307,_xlfn.XLOOKUP(UB48,$AA$303:$AD$303,$AA$308:$AD$308,"check xlookup for volume >1500",0,1),"")))))+IF(UJ48=$W$311,$AA$311,$AA$312))/4)) -> 0
A50: All-Way Stop Control | T50: FULL | Z50: =UP50 -> 3.373842195 | AD50: No | AI50: No | AN50: =SUM(AWSC!CK30:CV30)+MAX(AWSC!CJ31,AWSC!CQ43,AWSC!CW31) -> 6 | AS50: =IF(OR(AND(Input_MajorStreetDirection="East-West",OR(AN38="Crossing #2",AN38="Crossing #4")),AND(Input_MajorStreetDirection="North-South",OR(AN38="Crossing #1",AN38="Crossing #3"))),Maj_St_Spd_Lmt,Min_St_Spd_Lmt) -> 45 | AX50: =SUM(SBL_Master,SBT_Master,SBR_Master,WBR_Master,EBL_Master,NBT_Master) -> 1136 | BC50: Stop/Signal Controlled | BK50: Marked | BQ50: =SUM(AWSC!CW31:CW42)+MAX(AWSC!CQ30,AWSC!CJ37,AWSC!CT43) -> 6 | BV50: =IF(OR(AND(Input_MajorStreetDirection="East-West",OR(BQ38="Crossing #2",BQ38="Crossing #4")),AND(Input_MajorStreetDirection="North-South",OR(BQ38="Crossing #1",BQ38="Crossing #3"))),Maj_St_Spd_Lmt,Min_St_Spd_Lmt) -> 35 | CA50: =SUM(WBL_Master,WBT_Master,WBR_Master,SBL_Master,NBR_Master,EBT_Master) -> 2929 | CF50: Stop/Signal Controlled | CN50: Marked | CT50: =SUM(AWSC!CK43:CV43)+MAX(AWSC!CW37,AWSC!CN30,AWSC!CJ40) -> 6 | CY50: =IF(OR(AND(Input_MajorStreetDirection="East-West",OR(CT38="Crossing #2",CT38="Crossing #4")),AND(Input_MajorStreetDirection="North-South",OR(CT38="Crossing #1",CT38="Crossing #3"))),Maj_St_Spd_Lmt,Min_St_Spd_Lmt) -> 45 | DD50: =SUM(NBL_Master,NBT_Master,NBR_Master,WBL_Master,EBR_Master,SBT_Master) -> 1347 | DI50: Stop/Signal Controlled | DQ50: Marked | DW50: =SUM(AWSC!CJ31:CJ42)+MAX(AWSC!CK43,AWSC!CW34,AWSC!CK30) -> 6 | EB50: =IF(OR(AND(Input_MajorStreetDirection="East-West",OR(DW38="Crossing #2",DW38="Crossing #4")),AND(Input_MajorStreetDirection="North-South",OR(DW38="Crossing #1",DW38="Crossing #3"))),Maj_St_Spd_Lmt,Min_St_Spd_Lmt) -> 35 | EG50: =SUM(EBL_Master,EBT_Master,EBR_Master,NBL_Master,SBR_Master,WBT_Master) -> 2816 | EL50: Stop/Signal Controlled | ET50: Marked | UP50: =IFERROR((((SUM(SQRT(UU50),SQRT(VE50),SQRT(VO50),SQRT(VY50),SQRT(WI50),SQRT(WS50),SQRT(XC50),SQRT(XM50),SQRT(XW50),SQRT(YG50),SQRT(YQ50),SQRT(ZA50),SQRT(ZK50),SQRT(ZU50),SQRT(AAE50),SQRT(AAO50),SQRT(AAY50),SQRT(ABI50))/COUNTIF(UU50:ABR51,">0"))^2)*(_xlfn.XLOOKUP(AD50,$W$322:$W$323,$AA$322:$AA$323,"lookup error",0,1))*(_xlfn.XLOOKUP(AI50,Multistage_Crossing,$AA$316:$AA$318,"lookup error",0,1))),"Enter Major/Minor Street Speeds") -> 3.373842195 | UU50: =IF(OR(ISBLANK($P$21),ISBLANK($P$23)),"Enter Major/Minor Street Speeds",IF(AN50=0,,(IF(AN50<5,_xlfn.XLOOKUP(AN50,$W$287:$W$290,$AA$287:$AA$290,"error",0,1),$AA$291)+IF(AS50<=$V$294,$AA$294,IF(AND(AS50>$V$294,AS50<=$V$295),$AA$295,IF(AND(AS50>$V$295,AS50<=$V$296),$AA$296,IF(AND(AS50>$V$296,AS50<=$V$297),$AA$297,$AA$298))))+IF(AX50<=$V$304,_xlfn.XLOOKUP(BC50,AA$303:$AD$303,$AA$304:$AD$304,"check xlookup for volume 150",0,1),IF(AND(AX50>$V$304,AX50<=$V$305),_xlfn.XLOOKUP(BC50,$AA$303:$AD$303,$AA$305:$AD$305,"check xlookup for volume 300",0,1),IF(AND(AX50>$V$305,AX50<=$V$306),_xlfn.XLOOKUP(BC50,$AA$303:$AD$303,$AA$306:$AD$306,"check xlookup for volume 900",0,1),IF(AND(AX50>$V$306,AX50<=$V$307),_xlfn.XLOOKUP(BC50,$AA$303:$AD$303,$AA$307:$AD$307,"check xlookup for volume 1500",0,1),IF(AX50>$V$307,_xlfn.XLOOKUP(BC50,$AA$303:$AD$303,$AA$308:$AD$308,"check xlookup for volume >1500",0,1),"")))))+IF(BK50=$W$311,$AA$311,$AA$312))/4)) -> 3.25 | VE50: =IF(OR(ISBLANK($P$21),ISBLANK($P$23)),"Enter Major/Minor Street Speeds",IF(BQ50=0,,(IF(BQ50<5,_xlfn.XLOOKUP(BQ50,$W$287:$W$290,$AA$287:$AA$290,"error",0,1),$AA$291)+IF(BV50<=$V$294,$AA$294,IF(AND(BV50>$V$294,BV50<=$V$295),$AA$295,IF(AND(BV50>$V$295,BV50<=$V$296),$AA$296,IF(AND(BV50>$V$296,BV50<=$V$297),$AA$297,$AA$298))))+IF(CA50<=$V$304,_xlfn.XLOOKUP(CF50,AA$303:$AD$303,$AA$304:$AD$304,"check xlookup for volume 150",0,1),IF(AND(CA50>$V$304,CA50<=$V$305),_xlfn.XLOOKUP(CF50,$AA$303:$AD$303,$AA$305:$AD$305,"check xlookup for volume 300",0,1),IF(AND(CA50>$V$305,CA50<=$V$306),_xlfn.XLOOKUP(CF50,$AA$303:$AD$303,$AA$306:$AD$306,"check xlookup for volume 900",0,1),IF(AND(CA50>$V$306,CA50<=$V$307),_xlfn.XLOOKUP(CF50,$AA$303:$AD$303,$AA$307:$AD$307,"check xlookup for volume 1500",0,1),IF(CA50>$V$307,_xlfn.XLOOKUP(CF50,$AA$303:$AD$303,$AA$308:$AD$308,"check xlookup for volume >1500",0,1),"")))))+IF(CN50=$W$311,$AA$311,$AA$312))/4)) -> 3.5 | VO50: =IF(OR(ISBLANK($P$21),ISBLANK($P$23)),"Enter Major/Minor Street Speeds",IF(CT50=0,,(IF(CT50<5,_xlfn.XLOOKUP(CT50,$W$287:$W$290,$AA$287:$AA$290,"error",0,1),$AA$291)+IF(CY50<=$V$294,$AA$294,IF(AND(CY50>$V$294,CY50<=$V$295),$AA$295,IF(AND(CY50>$V$295,CY50<=$V$296),$AA$296,IF(AND(CY50>$V$296,CY50<=$V$297),$AA$297,$AA$298))))+IF(DD50<=$V$304,_xlfn.XLOOKUP(DI50,AA$303:$AD$303,$AA$304:$AD$304,"check xlookup for volume 150",0,1),IF(AND(DD50>$V$304,DD50<=$V$305),_xlfn.XLOOKUP(DI50,$AA$303:$AD$303,$AA$305:$AD$305,"check xlookup for volume 300",0,1),IF(AND(DD50>$V$305,DD50<=$V$306),_xlfn.XLOOKUP(DI50,$AA$303:$AD$303,$AA$306:$AD$306,"check xlookup for volume 900",0,1),IF(AND(DD50>$V$306,DD50<=$V$307),_xlfn.XLOOKUP(DI50,$AA$303:$AD$303,$AA$307:$AD$307,"check xlookup for volume 1500",0,1),IF(DD50>$V$307,_xlfn.XLOOKUP(DI50,$AA$303:$AD$303,$AA$308:$AD$308,"check xlookup for volume >1500",0,1),"")))))+IF(DQ50=$W$311,$AA$311,$AA$312))/4)) -> 3.25 | VY50: =IF(OR(ISBLANK($P$21),ISBLANK($P$23)),"Enter Major/Minor Street Speeds",IF(DW50=0,,(IF(DW50<5,_xlfn.XLOOKUP(DW50,$W$287:$W$290,$AA$287:$AA$290,"error",0,1),$AA$291)+IF(EB50<=$V$294,$AA$294,IF(AND(EB50>$V$294,EB50<=$V$295),$AA$295,IF(AND(EB50>$V$295,EB50<=$V$296),$AA$296,IF(AND(EB50>$V$296,EB50<=$V$297),$AA$297,$AA$298))))+IF(EG50<=$V$304,_xlfn.XLOOKUP(EL50,AA$303:$AD$303,$AA$304:$AD$304,"check xlookup for volume 150",0,1),IF(AND(EG50>$V$304,EG50<=$V$305),_xlfn.XLOOKUP(EL50,$AA$303:$AD$303,$AA$305:$AD$305,"check xlookup for volume 300",0,1),IF(AND(EG50>$V$305,EG50<=$V$306),_xlfn.XLOOKUP(EL50,$AA$303:$AD$303,$AA$306:$AD$306,"check xlookup for volume 900",0,1),IF(AND(EG50>$V$306,EG50<=$V$307),_xlfn.XLOOKUP(EL50,$AA$303:$AD$303,$AA$307:$AD$307,"check xlookup for volume 1500",0,1),IF(EG50>$V$307,_xlfn.XLOOKUP(EL50,$AA$303:$AD$303,$AA$308:$AD$308,"check xlookup for volume >1500",0,1),"")))))+IF(ET50=$W$311,$AA$311,$AA$312))/4)) -> 3.5 | WI50: =IF(OR(ISBLANK($P$21),ISBLANK($P$23)),"Enter Major/Minor Street Speeds",IF(EZ50=0,,(IF(EZ50<5,_xlfn.XLOOKUP(EZ50,$W$287:$W$290,$AA$287:$AA$290,"error",0,1),$AA$291)+IF(FE50<=$V$294,$AA$294,IF(AND(FE50>$V$294,FE50<=$V$295),$AA$295,IF(AND(FE50>$V$295,FE50<=$V$296),$AA$296,IF(AND(FE50>$V$296,FE50<=$V$297),$AA$297,$AA$298))))+IF(FJ50<=$V$304,_xlfn.XLOOKUP(FO50,AA$303:$AD$303,$AA$304:$AD$304,"check xlookup for volume 150",0,1),IF(AND(FJ50>$V$304,FJ50<=$V$305),_xlfn.XLOOKUP(FO50,$AA$303:$AD$303,$AA$305:$AD$305,"check xlookup for volume 300",0,1),IF(AND(FJ50>$V$305,FJ50<=$V$306),_xlfn.XLOOKUP(FO50,$AA$303:$AD$303,$AA$306:$AD$306,"check xlookup for volume 900",0,1),IF(AND(FJ50>$V$306,FJ50<=$V$307),_xlfn.XLOOKUP(FO50,$AA$303:$AD$303,$AA$307:$AD$307,"check xlookup for volume 1500",0,1),IF(FJ50>$V$307,_xlfn.XLOOKUP(FO50,$AA$303:$AD$303,$AA$308:$AD$308,"check xlookup for volume >1500",0,1),"")))))+IF(FW50=$W$311,$AA$311,$AA$312))/4)) -> 0 | WS50: =IF(OR(ISBLANK($P$21),ISBLANK($P$23)),"Enter Major/Minor Street Speeds",IF(GC50=0,,(IF(GC50<5,_xlfn.XLOOKUP(GC50,$W$287:$W$290,$AA$287:$AA$290,"error",0,1),$AA$291)+IF(GH50<=$V$294,$AA$294,IF(AND(GH50>$V$294,GH50<=$V$295),$AA$295,IF(AND(GH50>$V$295,GH50<=$V$296),$AA$296,IF(AND(GH50>$V$296,GH50<=$V$297),$AA$297,$AA$298))))+IF(GM50<=$V$304,_xlfn.XLOOKUP(GR50,AA$303:$AD$303,$AA$304:$AD$304,"check xlookup for volume 150",0,1),IF(AND(GM50>$V$304,GM50<=$V$305),_xlfn.XLOOKUP(GR50,$AA$303:$AD$303,$AA$305:$AD$305,"check xlookup for volume 300",0,1),IF(AND(GM50>$V$305,GM50<=$V$306),_xlfn.XLOOKUP(GR50,$AA$303:$AD$303,$AA$306:$AD$306,"check xlookup for volume 900",0,1),IF(AND(GM50>$V$306,GM50<=$V$307),_xlfn.XLOOKUP(GR50,$AA$303:$AD$303,$AA$307:$AD$307,"check xlookup for volume 1500",0,1),IF(GM50>$V$307,_xlfn.XLOOKUP(GR50,$AA$303:$AD$303,$AA$308:$AD$308,"check xlookup for volume >1500",0,1),"")))))+IF(GZ50=$W$311,$AA$311,$AA$312))/4)) -> 0 | XC50: =IF(OR(ISBLANK($P$21),ISBLANK($P$23)),"Enter Major/Minor Street Speeds",IF(HF50=0,,(IF(HF50<5,_xlfn.XLOOKUP(HF50,$W$287:$W$290,$AA$287:$AA$290,"error",0,1),$AA$291)+IF(HK50<=$V$294,$AA$294,IF(AND(HK50>$V$294,HK50<=$V$295),$AA$295,IF(AND(HK50>$V$295,HK50<=$V$296),$AA$296,IF(AND(HK50>$V$296,HK50<=$V$297),$AA$297,$AA$298))))+IF(HP50<=$V$304,_xlfn.XLOOKUP(HU50,AA$303:$AD$303,$AA$304:$AD$304,"check xlookup for volume 150",0,1),IF(AND(HP50>$V$304,HP50<=$V$305),_xlfn.XLOOKUP(HU50,$AA$303:$AD$303,$AA$305:$AD$305,"check xlookup for volume 300",0,1),IF(AND(HP50>$V$305,HP50<=$V$306),_xlfn.XLOOKUP(HU50,$AA$303:$AD$303,$AA$306:$AD$306,"check xlookup for volume 900",0,1),IF(AND(HP50>$V$306,HP50<=$V$307),_xlfn.XLOOKUP(HU50,$AA$303:$AD$303,$AA$307:$AD$307,"check xlookup for volume 1500",0,1),IF(HP50>$V$307,_xlfn.XLOOKUP(HU50,$AA$303:$AD$303,$AA$308:$AD$308,"check xlookup for volume >1500",0,1),"")))))+IF(IC50=$W$311,$AA$311,$AA$312))/4)) -> 0 | XM50: =IF(OR(ISBLANK($P$21),ISBLANK($P$23)),"Enter Major/Minor Street Speeds",IF(II50=0,,(IF(II50<5,_xlfn.XLOOKUP(II50,$W$287:$W$290,$AA$287:$AA$290,"error",0,1),$AA$291)+IF(IN50<=$V$294,$AA$294,IF(AND(IN50>$V$294,IN50<=$V$295),$AA$295,IF(AND(IN50>$V$295,IN50<=$V$296),$AA$296,IF(AND(IN50>$V$296,IN50<=$V$297),$AA$297,$AA$298))))+IF(IS50<=$V$304,_xlfn.XLOOKUP(IX50,AA$303:$AD$303,$AA$304:$AD$304,"check xlookup for volume 150",0,1),IF(AND(IS50>$V$304,IS50<=$V$305),_xlfn.XLOOKUP(IX50,$AA$303:$AD$303,$AA$305:$AD$305,"check xlookup for volume 300",0,1),IF(AND(IS50>$V$305,IS50<=$V$306),_xlfn.XLOOKUP(IX50,$AA$303:$AD$303,$AA$306:$AD$306,"check xlookup for volume 900",0,1),IF(AND(IS50>$V$306,IS50<=$V$307),_xlfn.XLOOKUP(IX50,$AA$303:$AD$303,$AA$307:$AD$307,"check xlookup for volume 1500",0,1),IF(IS50>$V$307,_xlfn.XLOOKUP(IX50,$AA$303:$AD$303,$AA$308:$AD$308,"check xlookup for volume >1500",0,1),"")))))+IF(JF50=$W$311,$AA$311,$AA$312))/4)) -> 0 | XW50: =IF(OR(ISBLANK($P$21),ISBLANK($P$23)),"Enter Major/Minor Street Speeds",IF(JL50=0,,(IF(JL50<5,_xlfn.XLOOKUP(JL50,$W$287:$W$290,$AA$287:$AA$290,"error",0,1),$AA$291)+IF(JQ50<=$V$294,$AA$294,IF(AND(JQ50>$V$294,JQ50<=$V$295),$AA$295,IF(AND(JQ50>$V$295,JQ50<=$V$296),$AA$296,IF(AND(JQ50>$V$296,JQ50<=$V$297),$AA$297,$AA$298))))+IF(JV50<=$V$304,_xlfn.XLOOKUP(KA50,AA$303:$AD$303,$AA$304:$AD$304,"check xlookup for volume 150",0,1),IF(AND(JV50>$V$304,JV50<=$V$305),_xlfn.XLOOKUP(KA50,$AA$303:$AD$303,$AA$305:$AD$305,"check xlookup for volume 300",0,1),IF(AND(JV50>$V$305,JV50<=$V$306),_xlfn.XLOOKUP(KA50,$AA$303:$AD$303,$AA$306:$AD$306,"check xlookup for volume 900",0,1),IF(AND(JV50>$V$306,JV50<=$V$307),_xlfn.XLOOKUP(KA50,$AA$303:$AD$303,$AA$307:$AD$307,"check xlookup for volume 1500",0,1),IF(JV50>$V$307,_xlfn.XLOOKUP(KA50,$AA$303:$AD$303,$AA$308:$AD$308,"check xlookup for volume >1500",0,1),"")))))+IF(KI50=$W$311,$AA$311,$AA$312))/4)) -> 0 | YG50: =IF(OR(ISBLANK($P$21),ISBLANK($P$23)),"Enter Major/Minor Street Speeds",IF(KO50=0,,(IF(KO50<5,_xlfn.XLOOKUP(KO50,$W$287:$W$290,$AA$287:$AA$290,"error",0,1),$AA$291)+IF(KT50<=$V$294,$AA$294,IF(AND(KT50>$V$294,KT50<=$V$295),$AA$295,IF(AND(KT50>$V$295,KT50<=$V$296),$AA$296,IF(AND(KT50>$V$296,KT50<=$V$297),$AA$297,$AA$298))))+IF(KY50<=$V$304,_xlfn.XLOOKUP(LD50,AA$303:$AD$303,$AA$304:$AD$304,"check xlookup for volume 150",0,1),IF(AND(KY50>$V$304,KY50<=$V$305),_xlfn.XLOOKUP(LD50,$AA$303:$AD$303,$AA$305:$AD$305,"check xlookup for volume 300",0,1),IF(AND(KY50>$V$305,KY50<=$V$306),_xlfn.XLOOKUP(LD50,$AA$303:$AD$303,$AA$306:$AD$306,"check xlookup for volume 900",0,1),IF(AND(KY50>$V$306,KY50<=$V$307),_xlfn.XLOOKUP(LD50,$AA$303:$AD$303,$AA$307:$AD$307,"check xlookup for volume 1500",0,1),IF(KY50>$V$307,_xlfn.XLOOKUP(LD50,$AA$303:$AD$303,$AA$308:$AD$308,"check xlookup for volume >1500",0,1),"")))))+IF(LL50=$W$311,$AA$311,$AA$312))/4)) -> 0 | YQ50: =IF(OR(ISBLANK($P$21),ISBLANK($P$23)),"Enter Major/Minor Street Speeds",IF(LR50=0,,(IF(LR50<5,_xlfn.XLOOKUP(LR50,$W$287:$W$290,$AA$287:$AA$290,"error",0,1),$AA$291)+IF(LW50<=$V$294,$AA$294,IF(AND(LW50>$V$294,LW50<=$V$295),$AA$295,IF(AND(LW50>$V$295,LW50<=$V$296),$AA$296,IF(AND(LW50>$V$296,LW50<=$V$297),$AA$297,$AA$298))))+IF(MB50<=$V$304,_xlfn.XLOOKUP(MG50,AA$303:$AD$303,$AA$304:$AD$304,"check xlookup for volume 150",0,1),IF(AND(MB50>$V$304,MB50<=$V$305),_xlfn.XLOOKUP(MG50,$AA$303:$AD$303,$AA$305:$AD$305,"check xlookup for volume 300",0,1),IF(AND(MB50>$V$305,MB50<=$V$306),_xlfn.XLOOKUP(MG50,$AA$303:$AD$303,$AA$306:$AD$306,"check xlookup for volume 900",0,1),IF(AND(MB50>$V$306,MB50<=$V$307),_xlfn.XLOOKUP(MG50,$AA$303:$AD$303,$AA$307:$AD$307,"check xlookup for volume 1500",0,1),IF(MB50>$V$307,_xlfn.XLOOKUP(MG50,$AA$303:$AD$303,$AA$308:$AD$308,"check xlookup for volume >1500",0,1),"")))))+IF(MO50=$W$311,$AA$311,$AA$312))/4)) -> 0 | ZA50: =IF(OR(ISBLANK($P$21),ISBLANK($P$23)),"Enter Major/Minor Street Speeds",IF(MU50=0,,(IF(MU50<5,_xlfn.XLOOKUP(MU50,$W$287:$W$290,$AA$287:$AA$290,"error",0,1),$AA$291)+IF(MZ50<=$V$294,$AA$294,IF(AND(MZ50>$V$294,MZ50<=$V$295),$AA$295,IF(AND(MZ50>$V$295,MZ50<=$V$296),$AA$296,IF(AND(MZ50>$V$296,MZ50<=$V$297),$AA$297,$AA$298))))+IF(NE50<=$V$304,_xlfn.XLOOKUP(NJ50,AA$303:$AD$303,$AA$304:$AD$304,"check xlookup for volume 150",0,1),IF(AND(NE50>$V$304,NE50<=$V$305),_xlfn.XLOOKUP(NJ50,$AA$303:$AD$303,$AA$305:$AD$305,"check xlookup for volume 300",0,1),IF(AND(NE50>$V$305,NE50<=$V$306),_xlfn.XLOOKUP(NJ50,$AA$303:$AD$303,$AA$306:$AD$306,"check xlookup for volume 900",0,1),IF(AND(NE50>$V$306,NE50<=$V$307),_xlfn.XLOOKUP(NJ50,$AA$303:$AD$303,$AA$307:$AD$307,"check xlookup for volume 1500",0,1),IF(NE50>$V$307,_xlfn.XLOOKUP(NJ50,$AA$303:$AD$303,$AA$308:$AD$308,"check xlookup for volume >1500",0,1),"")))))+IF(NR50=$W$311,$AA$311,$AA$312))/4)) -> 0 | ZK50: =IF(OR(ISBLANK($P$21),ISBLANK($P$23)),"Enter Major/Minor Street Speeds",IF(NX50=0,,(IF(NX50<5,_xlfn.XLOOKUP(NX50,$W$287:$W$290,$AA$287:$AA$290,"error",0,1),$AA$291)+IF(OC50<=$V$294,$AA$294,IF(AND(OC50>$V$294,OC50<=$V$295),$AA$295,IF(AND(OC50>$V$295,OC50<=$V$296),$AA$296,IF(AND(OC50>$V$296,OC50<=$V$297),$AA$297,$AA$298))))+IF(OH50<=$V$304,_xlfn.XLOOKUP(OM50,AA$303:$AD$303,$AA$304:$AD$304,"check xlookup for volume 150",0,1),IF(AND(OH50>$V$304,OH50<=$V$305),_xlfn.XLOOKUP(OM50,$AA$303:$AD$303,$AA$305:$AD$305,"check xlookup for volume 300",0,1),IF(AND(OH50>$V$305,OH50<=$V$306),_xlfn.XLOOKUP(OM50,$AA$303:$AD$303,$AA$306:$AD$306,"check xlookup for volume 900",0,1),IF(AND(OH50>$V$306,OH50<=$V$307),_xlfn.XLOOKUP(OM50,$AA$303:$AD$303,$AA$307:$AD$307,"check xlookup for volume 1500",0,1),IF(OH50>$V$307,_xlfn.XLOOKUP(OM50,$AA$303:$AD$303,$AA$308:$AD$308,"check xlookup for volume >1500",0,1),"")))))+IF(OU50=$W$311,$AA$311,$AA$312))/4)) -> 0 | ZU50: =IF(OR(ISBLANK($P$21),ISBLANK($P$23)),"Enter Major/Minor Street Speeds",IF(PA50=0,,(IF(PA50<5,_xlfn.XLOOKUP(PA50,$W$287:$W$290,$AA$287:$AA$290,"error",0,1),$AA$291)+IF(PF50<=$V$294,$AA$294,IF(AND(PF50>$V$294,PF50<=$V$295),$AA$295,IF(AND(PF50>$V$295,PF50<=$V$296),$AA$296,IF(AND(PF50>$V$296,PF50<=$V$297),$AA$297,$AA$298))))+IF(PK50<=$V$304,_xlfn.XLOOKUP(PP50,AA$303:$AD$303,$AA$304:$AD$304,"check xlookup for volume 150",0,1),IF(AND(PK50>$V$304,PK50<=$V$305),_xlfn.XLOOKUP(PP50,$AA$303:$AD$303,$AA$305:$AD$305,"check xlookup for volume 300",0,1),IF(AND(PK50>$V$305,PK50<=$V$306),_xlfn.XLOOKUP(PP50,$AA$303:$AD$303,$AA$306:$AD$306,"check xlookup for volume 900",0,1),IF(AND(PK50>$V$306,PK50<=$V$307),_xlfn.XLOOKUP(PP50,$AA$303:$AD$303,$AA$307:$AD$307,"check xlookup for volume 1500",0,1),IF(PK50>$V$307,_xlfn.XLOOKUP(PP50,$AA$303:$AD$303,$AA$308:$AD$308,"check xlookup for volume >1500",0,1),"")))))+IF(PX50=$W$311,$AA$311,$AA$312))/4)) -> 0 | AAE50: =IF(OR(ISBLANK($P$21),ISBLANK($P$23)),"Enter Major/Minor Street Speeds",IF(QD50=0,,(IF(QD50<5,_xlfn.XLOOKUP(QD50,$W$287:$W$290,$AA$287:$AA$290,"error",0,1),$AA$291)+IF(QI50<=$V$294,$AA$294,IF(AND(QI50>$V$294,QI50<=$V$295),$AA$295,IF(AND(QI50>$V$295,QI50<=$V$296),$AA$296,IF(AND(QI50>$V$296,QI50<=$V$297),$AA$297,$AA$298))))+IF(QN50<=$V$304,_xlfn.XLOOKUP(QS50,AA$303:$AD$303,$AA$304:$AD$304,"check xlookup for volume 150",0,1),IF(AND(QN50>$V$304,QN50<=$V$305),_xlfn.XLOOKUP(QS50,$AA$303:$AD$303,$AA$305:$AD$305,"check xlookup for volume 300",0,1),IF(AND(QN50>$V$305,QN50<=$V$306),_xlfn.XLOOKUP(QS50,$AA$303:$AD$303,$AA$306:$AD$306,"check xlookup for volume 900",0,1),IF(AND(QN50>$V$306,QN50<=$V$307),_xlfn.XLOOKUP(QS50,$AA$303:$AD$303,$AA$307:$AD$307,"check xlookup for volume 1500",0,1),IF(QN50>$V$307,_xlfn.XLOOKUP(QS50,$AA$303:$AD$303,$AA$308:$AD$308,"check xlookup for volume >1500",0,1),"")))))+IF(RA50=$W$311,$AA$311,$AA$312))/4)) -> 0 | AAO50: =IF(OR(ISBLANK($P$21),ISBLANK($P$23)),"Enter Major/Minor Street Speeds",IF(RG50=0,,(IF(RG50<5,_xlfn.XLOOKUP(RG50,$W$287:$W$290,$AA$287:$AA$290,"error",0,1),$AA$291)+IF(RL50<=$V$294,$AA$294,IF(AND(RL50>$V$294,RL50<=$V$295),$AA$295,IF(AND(RL50>$V$295,RL50<=$V$296),$AA$296,IF(AND(RL50>$V$296,RL50<=$V$297),$AA$297,$AA$298))))+IF(RQ50<=$V$304,_xlfn.XLOOKUP(RV50,AA$303:$AD$303,$AA$304:$AD$304,"check xlookup for volume 150",0,1),IF(AND(RQ50>$V$304,RQ50<=$V$305),_xlfn.XLOOKUP(RV50,$AA$303:$AD$303,$AA$305:$AD$305,"check xlookup for volume 300",0,1),IF(AND(RQ50>$V$305,RQ50<=$V$306),_xlfn.XLOOKUP(RV50,$AA$303:$AD$303,$AA$306:$AD$306,"check xlookup for volume 900",0,1),IF(AND(RQ50>$V$306,RQ50<=$V$307),_xlfn.XLOOKUP(RV50,$AA$303:$AD$303,$AA$307:$AD$307,"check xlookup for volume 1500",0,1),IF(RQ50>$V$307,_xlfn.XLOOKUP(RV50,$AA$303:$AD$303,$AA$308:$AD$308,"check xlookup for volume >1500",0,1),"")))))+IF(SD50=$W$311,$AA$311,$AA$312))/4)) -> 0 | AAY50: =IF(OR(ISBLANK($P$21),ISBLANK($P$23)),"Enter Major/Minor Street Speeds",IF(SJ50=0,,(IF(SJ50<5,_xlfn.XLOOKUP(SJ50,$W$287:$W$290,$AA$287:$AA$290,"error",0,1),$AA$291)+IF(SO50<=$V$294,$AA$294,IF(AND(SO50>$V$294,SO50<=$V$295),$AA$295,IF(AND(SO50>$V$295,SO50<=$V$296),$AA$296,IF(AND(SO50>$V$296,SO50<=$V$297),$AA$297,$AA$298))))+IF(ST50<=$V$304,_xlfn.XLOOKUP(SY50,AA$303:$AD$303,$AA$304:$AD$304,"check xlookup for volume 150",0,1),IF(AND(ST50>$V$304,ST50<=$V$305),_xlfn.XLOOKUP(SY50,$AA$303:$AD$303,$AA$305:$AD$305,"check xlookup for volume 300",0,1),IF(AND(ST50>$V$305,ST50<=$V$306),_xlfn.XLOOKUP(SY50,$AA$303:$AD$303,$AA$306:$AD$306,"check xlookup for volume 900",0,1),IF(AND(ST50>$V$306,ST50<=$V$307),_xlfn.XLOOKUP(SY50,$AA$303:$AD$303,$AA$307:$AD$307,"check xlookup for volume 1500",0,1),IF(ST50>$V$307,_xlfn.XLOOKUP(SY50,$AA$303:$AD$303,$AA$308:$AD$308,"check xlookup for volume >1500",0,1),"")))))+IF(TG50=$W$311,$AA$311,$AA$312))/4)) -> 0 | ABI50: =IF(OR(ISBLANK($P$21),ISBLANK($P$23)),"Enter Major/Minor Street Speeds",IF(TM50=0,,(IF(TM50<5,_xlfn.XLOOKUP(TM50,$W$287:$W$290,$AA$287:$AA$290,"error",0,1),$AA$291)+IF(TR50<=$V$294,$AA$294,IF(AND(TR50>$V$294,TR50<=$V$295),$AA$295,IF(AND(TR50>$V$295,TR50<=$V$296),$AA$296,IF(AND(TR50>$V$296,TR50<=$V$297),$AA$297,$AA$298))))+IF(TW50<=$V$304,_xlfn.XLOOKUP(UB50,AA$303:$AD$303,$AA$304:$AD$304,"check xlookup for volume 150",0,1),IF(AND(TW50>$V$304,TW50<=$V$305),_xlfn.XLOOKUP(UB50,$AA$303:$AD$303,$AA$305:$AD$305,"check xlookup for volume 300",0,1),IF(AND(TW50>$V$305,TW50<=$V$306),_xlfn.XLOOKUP(UB50,$AA$303:$AD$303,$AA$306:$AD$306,"check xlookup for volume 900",0,1),IF(AND(TW50>$V$306,TW50<=$V$307),_xlfn.XLOOKUP(UB50,$AA$303:$AD$303,$AA$307:$AD$307,"check xlookup for volume 1500",0,1),IF(TW50>$V$307,_xlfn.XLOOKUP(UB50,$AA$303:$AD$303,$AA$308:$AD$308,"check xlookup for volume >1500",0,1),"")))))+IF(UJ50=$W$311,$AA$311,$AA$312))/4)) -> 0
A52: Continuous Green T | T52: W | Z52: =UP52 -> 2.528871471 | AD52: No | AI52: Yes Crossing(s) with 3+ stages | AN52: =SUM('CGT W'!CI37:CI39) -> 1 | AS52: =Min_St_Spd_Lmt -> 35 | AX52: =SUM(EBR_Master) -> 204 | BC52: Yield Controlled | BK52: Marked | BQ52: =SUM('CGT W'!CI31:CI36)+MAX('CGT W'!CJ43:CO43) -> 2 | BV52: =Min_St_Spd_Lmt -> 35 | CA52: =SUM(EBL_Master,EBU_Master,NBL_Master) -> 408 | CF52: Stop/Signal Controlled | CN52: Marked | CT52: =SUM('CGT W'!CJ30:CL30) -> 1 | CY52: =Maj_St_Spd_Lmt -> 45 | DD52: =SUM(SBR_Master) -> 51 | DI52: Yield Controlled | DQ52: Marked | DW52: =SUM('CGT W'!CM30:CO30) -> 2 | EB52: =Maj_St_Spd_Lmt -> 45 | EG52: =SUM(SBT_Master) -> 216 | EL52: Stop/Signal Controlled | ET52: Unmarked | EZ52: =SUM('CGT W'!CP43:CR43)+MAX('CGT W'!CI31:CI36) -> 3 | FE52: =Maj_St_Spd_Lmt -> 45 | FJ52: =SUM(NBT_Master,EBL_Master,SBU_Master) -> 612 | FO52: Free Flowing | FW52: Unmarked | GC52: =SUM('CGT W'!CJ43:CR43) -> 3 | GH52: =Maj_St_Spd_Lmt -> 45 | GM52: =SUM(NBL_Master,NBT_Master,NBU_Master) -> 408 | GR52: Free Flowing | GZ52: Unmarked | HF52: =MAX('CGT W'!CM30:CO30,'CGT W'!CJ43:CO43) -> 2 | HK52: =Maj_St_Spd_Lmt -> 45 | HP52: =SUM(SBT_Master,NBU_Master) -> 216 | HU52: Stop/Signal Controlled | IC52: Unmarked | UP52: =IFERROR((((SUM(SQRT(UU52),SQRT(VE52),SQRT(VO52),SQRT(VY52),SQRT(WI52),SQRT(WS52),SQRT(XC52),SQRT(XM52),SQRT(XW52),SQRT(YG52),SQRT(YQ52),SQRT(ZA52),SQRT(ZK52),SQRT(ZU52),SQRT(AAE52),SQRT(AAO52),SQRT(AAY52),SQRT(ABI52))/COUNTIF(UU52:ABR53,">0"))^2)*(_xlfn.XLOOKUP(AD52,$W$322:$W$323,$AA$322:$AA$323,"lookup error",0,1))*(_xlfn.XLOOKUP(AI52,Multistage_Crossing,$AA$316:$AA$318,"lookup error",0,1))),"Enter Major/Minor Street Speeds") -> 2.528871471 | UU52: =IF(OR(ISBLANK($P$21),ISBLANK($P$23)),"Enter Major/Minor Street Speeds",IF(AN52=0,,(IF(AN52<5,_xlfn.XLOOKUP(AN52,$W$287:$W$290,$AA$287:$AA$290,"error",0,1),$AA$291)+IF(AS52<=$V$294,$AA$294,IF(AND(AS52>$V$294,AS52<=$V$295),$AA$295,IF(AND(AS52>$V$295,AS52<=$V$296),$AA$296,IF(AND(AS52>$V$296,AS52<=$V$297),$AA$297,$AA$298))))+IF(AX52<=$V$304,_xlfn.XLOOKUP(BC52,AA$303:$AD$303,$AA$304:$AD$304,"check xlookup for volume 150",0,1),IF(AND(AX52>$V$304,AX52<=$V$305),_xlfn.XLOOKUP(BC52,$AA$303:$AD$303,$AA$305:$AD$305,"check xlookup for volume 300",0,1),IF(AND(AX52>$V$305,AX52<=$V$306),_xlfn.XLOOKUP(BC52,$AA$303:$AD$303,$AA$306:$AD$306,"check xlookup for volume 900",0,1),IF(AND(AX52>$V$306,AX52<=$V$307),_xlfn.XLOOKUP(BC52,$AA$303:$AD$303,$AA$307:$AD$307,"check xlookup for volume 1500",0,1),IF(AX52>$V$307,_xlfn.XLOOKUP(BC52,$AA$303:$AD$303,$AA$308:$AD$308,"check xlookup for volume >1500",0,1),"")))))+IF(BK52=$W$311,$AA$311,$AA$312))/4)) -> 4.5 | VE52: =IF(OR(ISBLANK($P$21),ISBLANK($P$23)),"Enter Major/Minor Street Speeds",IF(BQ52=0,,(IF(BQ52<5,_xlfn.XLOOKUP(BQ52,$W$287:$W$290,$AA$287:$AA$290,"error",0,1),$AA$291)+IF(BV52<=$V$294,$AA$294,IF(AND(BV52>$V$294,BV52<=$V$295),$AA$295,IF(AND(BV52>$V$295,BV52<=$V$296),$AA$296,IF(AND(BV52>$V$296,BV52<=$V$297),$AA$297,$AA$298))))+IF(CA52<=$V$304,_xlfn.XLOOKUP(CF52,AA$303:$AD$303,$AA$304:$AD$304,"check xlookup for volume 150",0,1),IF(AND(CA52>$V$304,CA52<=$V$305),_xlfn.XLOOKUP(CF52,$AA$303:$AD$303,$AA$305:$AD$305,"check xlookup for volume 300",0,1),IF(AND(CA52>$V$305,CA52<=$V$306),_xlfn.XLOOKUP(CF52,$AA$303:$AD$303,$AA$306:$AD$306,"check xlookup for volume 900",0,1),IF(AND(CA52>$V$306,CA52<=$V$307),_xlfn.XLOOKUP(CF52,$AA$303:$AD$303,$AA$307:$AD$307,"check xlookup for volume 1500",0,1),IF(CA52>$V$307,_xlfn.XLOOKUP(CF52,$AA$303:$AD$303,$AA$308:$AD$308,"check xlookup for volume >1500",0,1),"")))))+IF(CN52=$W$311,$AA$311,$AA$312))/4)) -> 4.25 | VO52: =IF(OR(ISBLANK($P$21),ISBLANK($P$23)),"Enter Major/Minor Street Speeds",IF(CT52=0,,(IF(CT52<5,_xlfn.XLOOKUP(CT52,$W$287:$W$290,$AA$287:$AA$290,"error",0,1),$AA$291)+IF(CY52<=$V$294,$AA$294,IF(AND(CY52>$V$294,CY52<=$V$295),$AA$295,IF(AND(CY52>$V$295,CY52<=$V$296),$AA$296,IF(AND(CY52>$V$296,CY52<=$V$297),$AA$297,$AA$298))))+IF(DD52<=$V$304,_xlfn.XLOOKUP(DI52,AA$303:$AD$303,$AA$304:$AD$304,"check xlookup for volume 150",0,1),IF(AND(DD52>$V$304,DD52<=$V$305),_xlfn.XLOOKUP(DI52,$AA$303:$AD$303,$AA$305:$AD$305,"check xlookup for volume 300",0,1),IF(AND(DD52>$V$305,DD52<=$V$306),_xlfn.XLOOKUP(DI52,$AA$303:$AD$303,$AA$306:$AD$306,"check xlookup for volume 900",0,1),IF(AND(DD52>$V$306,DD52<=$V$307),_xlfn.XLOOKUP(DI52,$AA$303:$AD$303,$AA$307:$AD$307,"check xlookup for volume 1500",0,1),IF(DD52>$V$307,_xlfn.XLOOKUP(DI52,$AA$303:$AD$303,$AA$308:$AD$308,"check xlookup for volume >1500",0,1),"")))))+IF(DQ52=$W$311,$AA$311,$AA$312))/4)) -> 4.25 | VY52: =IF(OR(ISBLANK($P$21),ISBLANK($P$23)),"Enter Major/Minor Street Speeds",IF(DW52=0,,(IF(DW52<5,_xlfn.XLOOKUP(DW52,$W$287:$W$290,$AA$287:$AA$290,"error",0,1),$AA$291)+IF(EB52<=$V$294,$AA$294,IF(AND(EB52>$V$294,EB52<=$V$295),$AA$295,IF(AND(EB52>$V$295,EB52<=$V$296),$AA$296,IF(AND(EB52>$V$296,EB52<=$V$297),$AA$297,$AA$298))))+IF(EG52<=$V$304,_xlfn.XLOOKUP(EL52,AA$303:$AD$303,$AA$304:$AD$304,"check xlookup for volume 150",0,1),IF(AND(EG52>$V$304,EG52<=$V$305),_xlfn.XLOOKUP(EL52,$AA$303:$AD$303,$AA$305:$AD$305,"check xlookup for volume 300",0,1),IF(AND(EG52>$V$305,EG52<=$V$306),_xlfn.XLOOKUP(EL52,$AA$303:$AD$303,$AA$306:$AD$306,"check xlookup for volume 900",0,1),IF(AND(EG52>$V$306,EG52<=$V$307),_xlfn.XLOOKUP(EL52,$AA$303:$AD$303,$AA$307:$AD$307,"check xlookup for volume 1500",0,1),IF(EG52>$V$307,_xlfn.XLOOKUP(EL52,$AA$303:$AD$303,$AA$308:$AD$308,"check xlookup for volume >1500",0,1),"")))))+IF(ET52=$W$311,$AA$311,$AA$312))/4)) -> 3 | WI52: =IF(OR(ISBLANK($P$21),ISBLANK($P$23)),"Enter Major/Minor Street Speeds",IF(EZ52=0,,(IF(EZ52<5,_xlfn.XLOOKUP(EZ52,$W$287:$W$290,$AA$287:$AA$290,"error",0,1),$AA$291)+IF(FE52<=$V$294,$AA$294,IF(AND(FE52>$V$294,FE52<=$V$295),$AA$295,IF(AND(FE52>$V$295,FE52<=$V$296),$AA$296,IF(AND(FE52>$V$296,FE52<=$V$297),$AA$297,$AA$298))))+IF(FJ52<=$V$304,_xlfn.XLOOKUP(FO52,AA$303:$AD$303,$AA$304:$AD$304,"check xlookup for volume 150",0,1),IF(AND(FJ52>$V$304,FJ52<=$V$305),_xlfn.XLOOKUP(FO52,$AA$303:$AD$303,$AA$305:$AD$305,"check xlookup for volume 300",0,1),IF(AND(FJ52>$V$305,FJ52<=$V$306),_xlfn.XLOOKUP(FO52,$AA$303:$AD$303,$AA$306:$AD$306,"check xlookup for volume 900",0,1),IF(AND(FJ52>$V$306,FJ52<=$V$307),_xlfn.XLOOKUP(FO52,$AA$303:$AD$303,$AA$307:$AD$307,"check xlookup for volume 1500",0,1),IF(FJ52>$V$307,_xlfn.XLOOKUP(FO52,$AA$303:$AD$303,$AA$308:$AD$308,"check xlookup for volume >1500",0,1),"")))))+IF(FW52=$W$311,$AA$311,$AA$312))/4)) -> 1.75 | WS52: =IF(OR(ISBLANK($P$21),ISBLANK($P$23)),"Enter Major/Minor Street Speeds",IF(GC52=0,,(IF(GC52<5,_xlfn.XLOOKUP(GC52,$W$287:$W$290,$AA$287:$AA$290,"error",0,1),$AA$291)+IF(GH52<=$V$294,$AA$294,IF(AND(GH52>$V$294,GH52<=$V$295),$AA$295,IF(AND(GH52>$V$295,GH52<=$V$296),$AA$296,IF(AND(GH52>$V$296,GH52<=$V$297),$AA$297,$AA$298))))+IF(GM52<=$V$304,_xlfn.XLOOKUP(GR52,AA$303:$AD$303,$AA$304:$AD$304,"check xlookup for volume 150",0,1),IF(AND(GM52>$V$304,GM52<=$V$305),_xlfn.XLOOKUP(GR52,$AA$303:$AD$303,$AA$305:$AD$305,"check xlookup for volume 300",0,1),IF(AND(GM52>$V$305,GM52<=$V$306),_xlfn.XLOOKUP(GR52,$AA$303:$AD$303,$AA$306:$AD$306,"check xlookup for volume 900",0,1),IF(AND(GM52>$V$306,GM52<=$V$307),_xlfn.XLOOKUP(GR52,$AA$303:$AD$303,$AA$307:$AD$307,"check xlookup for volume 1500",0,1),IF(GM52>$V$307,_xlfn.XLOOKUP(GR52,$AA$303:$AD$303,$AA$308:$AD$308,"check xlookup for volume >1500",0,1),"")))))+IF(GZ52=$W$311,$AA$311,$AA$312))/4)) -> 2 | XC52: =IF(OR(ISBLANK($P$21),ISBLANK($P$23)),"Enter Major/Minor Street Speeds",IF(HF52=0,,(IF(HF52<5,_xlfn.XLOOKUP(HF52,$W$287:$W$290,$AA$287:$AA$290,"error",0,1),$AA$291)+IF(HK52<=$V$294,$AA$294,IF(AND(HK52>$V$294,HK52<=$V$295),$AA$295,IF(AND(HK52>$V$295,HK52<=$V$296),$AA$296,IF(AND(HK52>$V$296,HK52<=$V$297),$AA$297,$AA$298))))+IF(HP52<=$V$304,_xlfn.XLOOKUP(HU52,AA$303:$AD$303,$AA$304:$AD$304,"check xlookup for volume 150",0,1),IF(AND(HP52>$V$304,HP52<=$V$305),_xlfn.XLOOKUP(HU52,$AA$303:$AD$303,$AA$305:$AD$305,"check xlookup for volume 300",0,1),IF(AND(HP52>$V$305,HP52<=$V$306),_xlfn.XLOOKUP(HU52,$AA$303:$AD$303,$AA$306:$AD$306,"check xlookup for volume 900",0,1),IF(AND(HP52>$V$306,HP52<=$V$307),_xlfn.XLOOKUP(HU52,$AA$303:$AD$303,$AA$307:$AD$307,"check xlookup for volume 1500",0,1),IF(HP52>$V$307,_xlfn.XLOOKUP(HU52,$AA$303:$AD$303,$AA$308:$AD$308,"check xlookup for volume >1500",0,1),"")))))+IF(IC52=$W$311,$AA$311,$AA$312))/4)) -> 3 | XM52: =IF(OR(ISBLANK($P$21),ISBLANK($P$23)),"Enter Major/Minor Street Speeds",IF(II52=0,,(IF(II52<5,_xlfn.XLOOKUP(II52,$W$287:$W$290,$AA$287:$AA$290,"error",0,1),$AA$291)+IF(IN52<=$V$294,$AA$294,IF(AND(IN52>$V$294,IN52<=$V$295),$AA$295,IF(AND(IN52>$V$295,IN52<=$V$296),$AA$296,IF(AND(IN52>$V$296,IN52<=$V$297),$AA$297,$AA$298))))+IF(IS52<=$V$304,_xlfn.XLOOKUP(IX52,AA$303:$AD$303,$AA$304:$AD$304,"check xlookup for volume 150",0,1),IF(AND(IS52>$V$304,IS52<=$V$305),_xlfn.XLOOKUP(IX52,$AA$303:$AD$303,$AA$305:$AD$305,"check xlookup for volume 300",0,1),IF(AND(IS52>$V$305,IS52<=$V$306),_xlfn.XLOOKUP(IX52,$AA$303:$AD$303,$AA$306:$AD$306,"check xlookup for volume 900",0,1),IF(AND(IS52>$V$306,IS52<=$V$307),_xlfn.XLOOKUP(IX52,$AA$303:$AD$303,$AA$307:$AD$307,"check xlookup for volume 1500",0,1),IF(IS52>$V$307,_xlfn.XLOOKUP(IX52,$AA$303:$AD$303,$AA$308:$AD$308,"check xlookup for volume >1500",0,1),"")))))+IF(JF52=$W$311,$AA$311,$AA$312))/4)) -> 0 | XW52: =IF(OR(ISBLANK($P$21),ISBLANK($P$23)),"Enter Major/Minor Street Speeds",IF(JL52=0,,(IF(JL52<5,_xlfn.XLOOKUP(JL52,$W$287:$W$290,$AA$287:$AA$290,"error",0,1),$AA$291)+IF(JQ52<=$V$294,$AA$294,IF(AND(JQ52>$V$294,JQ52<=$V$295),$AA$295,IF(AND(JQ52>$V$295,JQ52<=$V$296),$AA$296,IF(AND(JQ52>$V$296,JQ52<=$V$297),$AA$297,$AA$298))))+IF(JV52<=$V$304,_xlfn.XLOOKUP(KA52,AA$303:$AD$303,$AA$304:$AD$304,"check xlookup for volume 150",0,1),IF(AND(JV52>$V$304,JV52<=$V$305),_xlfn.XLOOKUP(KA52,$AA$303:$AD$303,$AA$305:$AD$305,"check xlookup for volume 300",0,1),IF(AND(JV52>$V$305,JV52<=$V$306),_xlfn.XLOOKUP(KA52,$AA$303:$AD$303,$AA$306:$AD$306,"check xlookup for volume 900",0,1),IF(AND(JV52>$V$306,JV52<=$V$307),_xlfn.XLOOKUP(KA52,$AA$303:$AD$303,$AA$307:$AD$307,"check xlookup for volume 1500",0,1),IF(JV52>$V$307,_xlfn.XLOOKUP(KA52,$AA$303:$AD$303,$AA$308:$AD$308,"check xlookup for volume >1500",0,1),"")))))+IF(KI52=$W$311,$AA$311,$AA$312))/4)) -> 0 | YG52: =IF(OR(ISBLANK($P$21),ISBLANK($P$23)),"Enter Major/Minor Street Speeds",IF(KO52=0,,(IF(KO52<5,_xlfn.XLOOKUP(KO52,$W$287:$W$290,$AA$287:$AA$290,"error",0,1),$AA$291)+IF(KT52<=$V$294,$AA$294,IF(AND(KT52>$V$294,KT52<=$V$295),$AA$295,IF(AND(KT52>$V$295,KT52<=$V$296),$AA$296,IF(AND(KT52>$V$296,KT52<=$V$297),$AA$297,$AA$298))))+IF(KY52<=$V$304,_xlfn.XLOOKUP(LD52,AA$303:$AD$303,$AA$304:$AD$304,"check xlookup for volume 150",0,1),IF(AND(KY52>$V$304,KY52<=$V$305),_xlfn.XLOOKUP(LD52,$AA$303:$AD$303,$AA$305:$AD$305,"check xlookup for volume 300",0,1),IF(AND(KY52>$V$305,KY52<=$V$306),_xlfn.XLOOKUP(LD52,$AA$303:$AD$303,$AA$306:$AD$306,"check xlookup for volume 900",0,1),IF(AND(KY52>$V$306,KY52<=$V$307),_xlfn.XLOOKUP(LD52,$AA$303:$AD$303,$AA$307:$AD$307,"check xlookup for volume 1500",0,1),IF(KY52>$V$307,_xlfn.XLOOKUP(LD52,$AA$303:$AD$303,$AA$308:$AD$308,"check xlookup for volume >1500",0,1),"")))))+IF(LL52=$W$311,$AA$311,$AA$312))/4)) -> 0 | YQ52: =IF(OR(ISBLANK($P$21),ISBLANK($P$23)),"Enter Major/Minor Street Speeds",IF(LR52=0,,(IF(LR52<5,_xlfn.XLOOKUP(LR52,$W$287:$W$290,$AA$287:$AA$290,"error",0,1),$AA$291)+IF(LW52<=$V$294,$AA$294,IF(AND(LW52>$V$294,LW52<=$V$295),$AA$295,IF(AND(LW52>$V$295,LW52<=$V$296),$AA$296,IF(AND(LW52>$V$296,LW52<=$V$297),$AA$297,$AA$298))))+IF(MB52<=$V$304,_xlfn.XLOOKUP(MG52,AA$303:$AD$303,$AA$304:$AD$304,"check xlookup for volume 150",0,1),IF(AND(MB52>$V$304,MB52<=$V$305),_xlfn.XLOOKUP(MG52,$AA$303:$AD$303,$AA$305:$AD$305,"check xlookup for volume 300",0,1),IF(AND(MB52>$V$305,MB52<=$V$306),_xlfn.XLOOKUP(MG52,$AA$303:$AD$303,$AA$306:$AD$306,"check xlookup for volume 900",0,1),IF(AND(MB52>$V$306,MB52<=$V$307),_xlfn.XLOOKUP(MG52,$AA$303:$AD$303,$AA$307:$AD$307,"check xlookup for volume 1500",0,1),IF(MB52>$V$307,_xlfn.XLOOKUP(MG52,$AA$303:$AD$303,$AA$308:$AD$308,"check xlookup for volume >1500",0,1),"")))))+IF(MO52=$W$311,$AA$311,$AA$312))/4)) -> 0 | ZA52: =IF(OR(ISBLANK($P$21),ISBLANK($P$23)),"Enter Major/Minor Street Speeds",IF(MU52=0,,(IF(MU52<5,_xlfn.XLOOKUP(MU52,$W$287:$W$290,$AA$287:$AA$290,"error",0,1),$AA$291)+IF(MZ52<=$V$294,$AA$294,IF(AND(MZ52>$V$294,MZ52<=$V$295),$AA$295,IF(AND(MZ52>$V$295,MZ52<=$V$296),$AA$296,IF(AND(MZ52>$V$296,MZ52<=$V$297),$AA$297,$AA$298))))+IF(NE52<=$V$304,_xlfn.XLOOKUP(NJ52,AA$303:$AD$303,$AA$304:$AD$304,"check xlookup for volume 150",0,1),IF(AND(NE52>$V$304,NE52<=$V$305),_xlfn.XLOOKUP(NJ52,$AA$303:$AD$303,$AA$305:$AD$305,"check xlookup for volume 300",0,1),IF(AND(NE52>$V$305,NE52<=$V$306),_xlfn.XLOOKUP(NJ52,$AA$303:$AD$303,$AA$306:$AD$306,"check xlookup for volume 900",0,1),IF(AND(NE52>$V$306,NE52<=$V$307),_xlfn.XLOOKUP(NJ52,$AA$303:$AD$303,$AA$307:$AD$307,"check xlookup for volume 1500",0,1),IF(NE52>$V$307,_xlfn.XLOOKUP(NJ52,$AA$303:$AD$303,$AA$308:$AD$308,"check xlookup for volume >1500",0,1),"")))))+IF(NR52=$W$311,$AA$311,$AA$312))/4)) -> 0 | ZK52: =IF(OR(ISBLANK($P$21),ISBLANK($P$23)),"Enter Major/Minor Street Speeds",IF(NX52=0,,(IF(NX52<5,_xlfn.XLOOKUP(NX52,$W$287:$W$290,$AA$287:$AA$290,"error",0,1),$AA$291)+IF(OC52<=$V$294,$AA$294,IF(AND(OC52>$V$294,OC52<=$V$295),$AA$295,IF(AND(OC52>$V$295,OC52<=$V$296),$AA$296,IF(AND(OC52>$V$296,OC52<=$V$297),$AA$297,$AA$298))))+IF(OH52<=$V$304,_xlfn.XLOOKUP(OM52,AA$303:$AD$303,$AA$304:$AD$304,"check xlookup for volume 150",0,1),IF(AND(OH52>$V$304,OH52<=$V$305),_xlfn.XLOOKUP(OM52,$AA$303:$AD$303,$AA$305:$AD$305,"check xlookup for volume 300",0,1),IF(AND(OH52>$V$305,OH52<=$V$306),_xlfn.XLOOKUP(OM52,$AA$303:$AD$303,$AA$306:$AD$306,"check xlookup for volume 900",0,1),IF(AND(OH52>$V$306,OH52<=$V$307),_xlfn.XLOOKUP(OM52,$AA$303:$AD$303,$AA$307:$AD$307,"check xlookup for volume 1500",0,1),IF(OH52>$V$307,_xlfn.XLOOKUP(OM52,$AA$303:$AD$303,$AA$308:$AD$308,"check xlookup for volume >1500",0,1),"")))))+IF(OU52=$W$311,$AA$311,$AA$312))/4)) -> 0 | ZU52: =IF(OR(ISBLANK($P$21),ISBLANK($P$23)),"Enter Major/Minor Street Speeds",IF(PA52=0,,(IF(PA52<5,_xlfn.XLOOKUP(PA52,$W$287:$W$290,$AA$287:$AA$290,"error",0,1),$AA$291)+IF(PF52<=$V$294,$AA$294,IF(AND(PF52>$V$294,PF52<=$V$295),$AA$295,IF(AND(PF52>$V$295,PF52<=$V$296),$AA$296,IF(AND(PF52>$V$296,PF52<=$V$297),$AA$297,$AA$298))))+IF(PK52<=$V$304,_xlfn.XLOOKUP(PP52,AA$303:$AD$303,$AA$304:$AD$304,"check xlookup for volume 150",0,1),IF(AND(PK52>$V$304,PK52<=$V$305),_xlfn.XLOOKUP(PP52,$AA$303:$AD$303,$AA$305:$AD$305,"check xlookup for volume 300",0,1),IF(AND(PK52>$V$305,PK52<=$V$306),_xlfn.XLOOKUP(PP52,$AA$303:$AD$303,$AA$306:$AD$306,"check xlookup for volume 900",0,1),IF(AND(PK52>$V$306,PK52<=$V$307),_xlfn.XLOOKUP(PP52,$AA$303:$AD$303,$AA$307:$AD$307,"check xlookup for volume 1500",0,1),IF(PK52>$V$307,_xlfn.XLOOKUP(PP52,$AA$303:$AD$303,$AA$308:$AD$308,"check xlookup for volume >1500",0,1),"")))))+IF(PX52=$W$311,$AA$311,$AA$312))/4)) -> 0 | AAE52: =IF(OR(ISBLANK($P$21),ISBLANK($P$23)),"Enter Major/Minor Street Speeds",IF(QD52=0,,(IF(QD52<5,_xlfn.XLOOKUP(QD52,$W$287:$W$290,$AA$287:$AA$290,"error",0,1),$AA$291)+IF(QI52<=$V$294,$AA$294,IF(AND(QI52>$V$294,QI52<=$V$295),$AA$295,IF(AND(QI52>$V$295,QI52<=$V$296),$AA$296,IF(AND(QI52>$V$296,QI52<=$V$297),$AA$297,$AA$298))))+IF(QN52<=$V$304,_xlfn.XLOOKUP(QS52,AA$303:$AD$303,$AA$304:$AD$304,"check xlookup for volume 150",0,1),IF(AND(QN52>$V$304,QN52<=$V$305),_xlfn.XLOOKUP(QS52,$AA$303:$AD$303,$AA$305:$AD$305,"check xlookup for volume 300",0,1),IF(AND(QN52>$V$305,QN52<=$V$306),_xlfn.XLOOKUP(QS52,$AA$303:$AD$303,$AA$306:$AD$306,"check xlookup for volume 900",0,1),IF(AND(QN52>$V$306,QN52<=$V$307),_xlfn.XLOOKUP(QS52,$AA$303:$AD$303,$AA$307:$AD$307,"check xlookup for volume 1500",0,1),IF(QN52>$V$307,_xlfn.XLOOKUP(QS52,$AA$303:$AD$303,$AA$308:$AD$308,"check xlookup for volume >1500",0,1),"")))))+IF(RA52=$W$311,$AA$311,$AA$312))/4)) -> 0 | AAO52: =IF(OR(ISBLANK($P$21),ISBLANK($P$23)),"Enter Major/Minor Street Speeds",IF(RG52=0,,(IF(RG52<5,_xlfn.XLOOKUP(RG52,$W$287:$W$290,$AA$287:$AA$290,"error",0,1),$AA$291)+IF(RL52<=$V$294,$AA$294,IF(AND(RL52>$V$294,RL52<=$V$295),$AA$295,IF(AND(RL52>$V$295,RL52<=$V$296),$AA$296,IF(AND(RL52>$V$296,RL52<=$V$297),$AA$297,$AA$298))))+IF(RQ52<=$V$304,_xlfn.XLOOKUP(RV52,AA$303:$AD$303,$AA$304:$AD$304,"check xlookup for volume 150",0,1),IF(AND(RQ52>$V$304,RQ52<=$V$305),_xlfn.XLOOKUP(RV52,$AA$303:$AD$303,$AA$305:$AD$305,"check xlookup for volume 300",0,1),IF(AND(RQ52>$V$305,RQ52<=$V$306),_xlfn.XLOOKUP(RV52,$AA$303:$AD$303,$AA$306:$AD$306,"check xlookup for volume 900",0,1),IF(AND(RQ52>$V$306,RQ52<=$V$307),_xlfn.XLOOKUP(RV52,$AA$303:$AD$303,$AA$307:$AD$307,"check xlookup for volume 1500",0,1),IF(RQ52>$V$307,_xlfn.XLOOKUP(RV52,$AA$303:$AD$303,$AA$308:$AD$308,"check xlookup for volume >1500",0,1),"")))))+IF(SD52=$W$311,$AA$311,$AA$312))/4)) -> 0 | AAY52: =IF(OR(ISBLANK($P$21),ISBLANK($P$23)),"Enter Major/Minor Street Speeds",IF(SJ52=0,,(IF(SJ52<5,_xlfn.XLOOKUP(SJ52,$W$287:$W$290,$AA$287:$AA$290,"error",0,1),$AA$291)+IF(SO52<=$V$294,$AA$294,IF(AND(SO52>$V$294,SO52<=$V$295),$AA$295,IF(AND(SO52>$V$295,SO52<=$V$296),$AA$296,IF(AND(SO52>$V$296,SO52<=$V$297),$AA$297,$AA$298))))+IF(ST52<=$V$304,_xlfn.XLOOKUP(SY52,AA$303:$AD$303,$AA$304:$AD$304,"check xlookup for volume 150",0,1),IF(AND(ST52>$V$304,ST52<=$V$305),_xlfn.XLOOKUP(SY52,$AA$303:$AD$303,$AA$305:$AD$305,"check xlookup for volume 300",0,1),IF(AND(ST52>$V$305,ST52<=$V$306),_xlfn.XLOOKUP(SY52,$AA$303:$AD$303,$AA$306:$AD$306,"check xlookup for volume 900",0,1),IF(AND(ST52>$V$306,ST52<=$V$307),_xlfn.XLOOKUP(SY52,$AA$303:$AD$303,$AA$307:$AD$307,"check xlookup for volume 1500",0,1),IF(ST52>$V$307,_xlfn.XLOOKUP(SY52,$AA$303:$AD$303,$AA$308:$AD$308,"check xlookup for volume >1500",0,1),"")))))+IF(TG52=$W$311,$AA$311,$AA$312))/4)) -> 0 | ABI52: =IF(OR(ISBLANK($P$21),ISBLANK($P$23)),"Enter Major/Minor Street Speeds",IF(TM52=0,,(IF(TM52<5,_xlfn.XLOOKUP(TM52,$W$287:$W$290,$AA$287:$AA$290,"error",0,1),$AA$291)+IF(TR52<=$V$294,$AA$294,IF(AND(TR52>$V$294,TR52<=$V$295),$AA$295,IF(AND(TR52>$V$295,TR52<=$V$296),$AA$296,IF(AND(TR52>$V$296,TR52<=$V$297),$AA$297,$AA$298))))+IF(TW52<=$V$304,_xlfn.XLOOKUP(UB52,AA$303:$AD$303,$AA$304:$AD$304,"check xlookup for volume 150",0,1),IF(AND(TW52>$V$304,TW52<=$V$305),_xlfn.XLOOKUP(UB52,$AA$303:$AD$303,$AA$305:$AD$305,"check xlookup for volume 300",0,1),IF(AND(TW52>$V$305,TW52<=$V$306),_xlfn.XLOOKUP(UB52,$AA$303:$AD$303,$AA$306:$AD$306,"check xlookup for volume 900",0,1),IF(AND(TW52>$V$306,TW52<=$V$307),_xlfn.XLOOKUP(UB52,$AA$303:$AD$303,$AA$307:$AD$307,"check xlookup for volume 1500",0,1),IF(TW52>$V$307,_xlfn.XLOOKUP(UB52,$AA$303:$AD$303,$AA$308:$AD$308,"check xlookup for volume >1500",0,1),"")))))+IF(UJ52=$W$311,$AA$311,$AA$312))/4)) -> 0
T54: N | Z54: =UP54 -> 2.467120237 | AD54: No | AI54: Yes Crossing(s) with 3+ stages | AN54: =SUM('CGT N'!CM30:CO30) -> 1 | AS54: =Min_St_Spd_Lmt -> 35 | AX54: =SBR_Master -> 51 | BC54: Yield Controlled | BK54: Marked | BQ54: =SUM('CGT N'!CP30:CU30)+MAX('CGT N'!CI31:CI36) -> 2 | BV54: =Min_St_Spd_Lmt -> 35 | CA54: =SUM(EBL_Master,SBU_Master,SBL_Master) -> 337 | CF54: Stop/Signal Controlled | CN54: Marked | CT54: =SUM('CGT N'!CV31:CV33) -> 1 | CY54: =Maj_St_Spd_Lmt -> 45 | DD54: =WBR_Master -> 226 | DI54: Yield Controlled | DQ54: Marked | DW54: =SUM('CGT N'!CV34:CV36) -> 2 | EB54: =Maj_St_Spd_Lmt -> 45 | EG54: =WBT_Master -> 1133 | EL54: Stop/Signal Controlled | ET54: Unmarked | EZ54: =SUM('CGT N'!CI37:CI39,'CGT N'!CP30:CU30) -> 3 | FE54: =Maj_St_Spd_Lmt -> 45 | FJ54: =SUM(SBL_Master,EBT_Master) -> 1051 | FO54: Free Flowing | FW54: Unmarked | GC54: =SUM('CGT N'!CI31:CI39) -> 3 | GH54: =Maj_St_Spd_Lmt -> 45 | GM54: =SUM(EBL_Master,EBT_Master,EBU_Master) -> 1326 | GR54: Free Flowing | GZ54: Unmarked | HF54: =MAX('CGT N'!CV34:CV36,'CGT N'!CI31:CI36) -> 2 | HK54: =Maj_St_Spd_Lmt -> 45 | HP54: =SUM(EBU_Master,WBT_Master) -> 1133 | HU54: Stop/Signal Controlled | IC54: Unmarked | UP54: =IFERROR((((SUM(SQRT(UU54),SQRT(VE54),SQRT(VO54),SQRT(VY54),SQRT(WI54),SQRT(WS54),SQRT(XC54),SQRT(XM54),SQRT(XW54),SQRT(YG54),SQRT(YQ54),SQRT(ZA54),SQRT(ZK54),SQRT(ZU54),SQRT(AAE54),SQRT(AAO54),SQRT(AAY54),SQRT(ABI54))/COUNTIF(UU54:ABR55,">0"))^2)*(_xlfn.XLOOKUP(AD54,$W$322:$W$323,$AA$322:$AA$323,"lookup error",0,1))*(_xlfn.XLOOKUP(AI54,Multistage_Crossing,$AA$316:$AA$318,"lookup error",0,1))),"Enter Major/Minor Street Speeds") -> 2.467120237 | UU54: =IF(OR(ISBLANK($P$21),ISBLANK($P$23)),"Enter Major/Minor Street Speeds",IF(AN54=0,,(IF(AN54<5,_xlfn.XLOOKUP(AN54,$W$287:$W$290,$AA$287:$AA$290,"error",0,1),$AA$291)+IF(AS54<=$V$294,$AA$294,IF(AND(AS54>$V$294,AS54<=$V$295),$AA$295,IF(AND(AS54>$V$295,AS54<=$V$296),$AA$296,IF(AND(AS54>$V$296,AS54<=$V$297),$AA$297,$AA$298))))+IF(AX54<=$V$304,_xlfn.XLOOKUP(BC54,AA$303:$AD$303,$AA$304:$AD$304,"check xlookup for volume 150",0,1),IF(AND(AX54>$V$304,AX54<=$V$305),_xlfn.XLOOKUP(BC54,$AA$303:$AD$303,$AA$305:$AD$305,"check xlookup for volume 300",0,1),IF(AND(AX54>$V$305,AX54<=$V$306),_xlfn.XLOOKUP(BC54,$AA$303:$AD$303,$AA$306:$AD$306,"check xlookup for volume 900",0,1),IF(AND(AX54>$V$306,AX54<=$V$307),_xlfn.XLOOKUP(BC54,$AA$303:$AD$303,$AA$307:$AD$307,"check xlookup for volume 1500",0,1),IF(AX54>$V$307,_xlfn.XLOOKUP(BC54,$AA$303:$AD$303,$AA$308:$AD$308,"check xlookup for volume >1500",0,1),"")))))+IF(BK54=$W$311,$AA$311,$AA$312))/4)) -> 4.5 | VE54: =IF(OR(ISBLANK($P$21),ISBLANK($P$23)),"Enter Major/Minor Street Speeds",IF(BQ54=0,,(IF(BQ54<5,_xlfn.XLOOKUP(BQ54,$W$287:$W$290,$AA$287:$AA$290,"error",0,1),$AA$291)+IF(BV54<=$V$294,$AA$294,IF(AND(BV54>$V$294,BV54<=$V$295),$AA$295,IF(AND(BV54>$V$295,BV54<=$V$296),$AA$296,IF(AND(BV54>$V$296,BV54<=$V$297),$AA$297,$AA$298))))+IF(CA54<=$V$304,_xlfn.XLOOKUP(CF54,AA$303:$AD$303,$AA$304:$AD$304,"check xlookup for volume 150",0,1),IF(AND(CA54>$V$304,CA54<=$V$305),_xlfn.XLOOKUP(CF54,$AA$303:$AD$303,$AA$305:$AD$305,"check xlookup for volume 300",0,1),IF(AND(CA54>$V$305,CA54<=$V$306),_xlfn.XLOOKUP(CF54,$AA$303:$AD$303,$AA$306:$AD$306,"check xlookup for volume 900",0,1),IF(AND(CA54>$V$306,CA54<=$V$307),_xlfn.XLOOKUP(CF54,$AA$303:$AD$303,$AA$307:$AD$307,"check xlookup for volume 1500",0,1),IF(CA54>$V$307,_xlfn.XLOOKUP(CF54,$AA$303:$AD$303,$AA$308:$AD$308,"check xlookup for volume >1500",0,1),"")))))+IF(CN54=$W$311,$AA$311,$AA$312))/4)) -> 4.25 | VO54: =IF(OR(ISBLANK($P$21),ISBLANK($P$23)),"Enter Major/Minor Street Speeds",IF(CT54=0,,(IF(CT54<5,_xlfn.XLOOKUP(CT54,$W$287:$W$290,$AA$287:$AA$290,"error",0,1),$AA$291)+IF(CY54<=$V$294,$AA$294,IF(AND(CY54>$V$294,CY54<=$V$295),$AA$295,IF(AND(CY54>$V$295,CY54<=$V$296),$AA$296,IF(AND(CY54>$V$296,CY54<=$V$297),$AA$297,$AA$298))))+IF(DD54<=$V$304,_xlfn.XLOOKUP(DI54,AA$303:$AD$303,$AA$304:$AD$304,"check xlookup for volume 150",0,1),IF(AND(DD54>$V$304,DD54<=$V$305),_xlfn.XLOOKUP(DI54,$AA$303:$AD$303,$AA$305:$AD$305,"check xlookup for volume 300",0,1),IF(AND(DD54>$V$305,DD54<=$V$306),_xlfn.XLOOKUP(DI54,$AA$303:$AD$303,$AA$306:$AD$306,"check xlookup for volume 900",0,1),IF(AND(DD54>$V$306,DD54<=$V$307),_xlfn.XLOOKUP(DI54,$AA$303:$AD$303,$AA$307:$AD$307,"check xlookup for volume 1500",0,1),IF(DD54>$V$307,_xlfn.XLOOKUP(DI54,$AA$303:$AD$303,$AA$308:$AD$308,"check xlookup for volume >1500",0,1),"")))))+IF(DQ54=$W$311,$AA$311,$AA$312))/4)) -> 4 | VY54: =IF(OR(ISBLANK($P$21),ISBLANK($P$23)),"Enter Major/Minor Street Speeds",IF(DW54=0,,(IF(DW54<5,_xlfn.XLOOKUP(DW54,$W$287:$W$290,$AA$287:$AA$290,"error",0,1),$AA$291)+IF(EB54<=$V$294,$AA$294,IF(AND(EB54>$V$294,EB54<=$V$295),$AA$295,IF(AND(EB54>$V$295,EB54<=$V$296),$AA$296,IF(AND(EB54>$V$296,EB54<=$V$297),$AA$297,$AA$298))))+IF(EG54<=$V$304,_xlfn.XLOOKUP(EL54,AA$303:$AD$303,$AA$304:$AD$304,"check xlookup for volume 150",0,1),IF(AND(EG54>$V$304,EG54<=$V$305),_xlfn.XLOOKUP(EL54,$AA$303:$AD$303,$AA$305:$AD$305,"check xlookup for volume 300",0,1),IF(AND(EG54>$V$305,EG54<=$V$306),_xlfn.XLOOKUP(EL54,$AA$303:$AD$303,$AA$306:$AD$306,"check xlookup for volume 900",0,1),IF(AND(EG54>$V$306,EG54<=$V$307),_xlfn.XLOOKUP(EL54,$AA$303:$AD$303,$AA$307:$AD$307,"check xlookup for volume 1500",0,1),IF(EG54>$V$307,_xlfn.XLOOKUP(EL54,$AA$303:$AD$303,$AA$308:$AD$308,"check xlookup for volume >1500",0,1),"")))))+IF(ET54=$W$311,$AA$311,$AA$312))/4)) -> 3 | WI54: =IF(OR(ISBLANK($P$21),ISBLANK($P$23)),"Enter Major/Minor Street Speeds",IF(EZ54=0,,(IF(EZ54<5,_xlfn.XLOOKUP(EZ54,$W$287:$W$290,$AA$287:$AA$290,"error",0,1),$AA$291)+IF(FE54<=$V$294,$AA$294,IF(AND(FE54>$V$294,FE54<=$V$295),$AA$295,IF(AND(FE54>$V$295,FE54<=$V$296),$AA$296,IF(AND(FE54>$V$296,FE54<=$V$297),$AA$297,$AA$298))))+IF(FJ54<=$V$304,_xlfn.XLOOKUP(FO54,AA$303:$AD$303,$AA$304:$AD$304,"check xlookup for volume 150",0,1),IF(AND(FJ54>$V$304,FJ54<=$V$305),_xlfn.XLOOKUP(FO54,$AA$303:$AD$303,$AA$305:$AD$305,"check xlookup for volume 300",0,1),IF(AND(FJ54>$V$305,FJ54<=$V$306),_xlfn.XLOOKUP(FO54,$AA$303:$AD$303,$AA$306:$AD$306,"check xlookup for volume 900",0,1),IF(AND(FJ54>$V$306,FJ54<=$V$307),_xlfn.XLOOKUP(FO54,$AA$303:$AD$303,$AA$307:$AD$307,"check xlookup for volume 1500",0,1),IF(FJ54>$V$307,_xlfn.XLOOKUP(FO54,$AA$303:$AD$303,$AA$308:$AD$308,"check xlookup for volume >1500",0,1),"")))))+IF(FW54=$W$311,$AA$311,$AA$312))/4)) -> 1.75 | WS54: =IF(OR(ISBLANK($P$21),ISBLANK($P$23)),"Enter Major/Minor Street Speeds",IF(GC54=0,,(IF(GC54<5,_xlfn.XLOOKUP(GC54,$W$287:$W$290,$AA$287:$AA$290,"error",0,1),$AA$291)+IF(GH54<=$V$294,$AA$294,IF(AND(GH54>$V$294,GH54<=$V$295),$AA$295,IF(AND(GH54>$V$295,GH54<=$V$296),$AA$296,IF(AND(GH54>$V$296,GH54<=$V$297),$AA$297,$AA$298))))+IF(GM54<=$V$304,_xlfn.XLOOKUP(GR54,AA$303:$AD$303,$AA$304:$AD$304,"check xlookup for volume 150",0,1),IF(AND(GM54>$V$304,GM54<=$V$305),_xlfn.XLOOKUP(GR54,$AA$303:$AD$303,$AA$305:$AD$305,"check xlookup for volume 300",0,1),IF(AND(GM54>$V$305,GM54<=$V$306),_xlfn.XLOOKUP(GR54,$AA$303:$AD$303,$AA$306:$AD$306,"check xlookup for volume 900",0,1),IF(AND(GM54>$V$306,GM54<=$V$307),_xlfn.XLOOKUP(GR54,$AA$303:$AD$303,$AA$307:$AD$307,"check xlookup for volume 1500",0,1),IF(GM54>$V$307,_xlfn.XLOOKUP(GR54,$AA$303:$AD$303,$AA$308:$AD$308,"check xlookup for volume >1500",0,1),"")))))+IF(GZ54=$W$311,$AA$311,$AA$312))/4)) -> 1.75 | XC54: =IF(OR(ISBLANK($P$21),ISBLANK($P$23)),"Enter Major/Minor Street Speeds",IF(HF54=0,,(IF(HF54<5,_xlfn.XLOOKUP(HF54,$W$287:$W$290,$AA$287:$AA$290,"error",0,1),$AA$291)+IF(HK54<=$V$294,$AA$294,IF(AND(HK54>$V$294,HK54<=$V$295),$AA$295,IF(AND(HK54>$V$295,HK54<=$V$296),$AA$296,IF(AND(HK54>$V$296,HK54<=$V$297),$AA$297,$AA$298))))+IF(HP54<=$V$304,_xlfn.XLOOKUP(HU54,AA$303:$AD$303,$AA$304:$AD$304,"check xlookup for volume 150",0,1),IF(AND(HP54>$V$304,HP54<=$V$305),_xlfn.XLOOKUP(HU54,$AA$303:$AD$303,$AA$305:$AD$305,"check xlookup for volume 300",0,1),IF(AND(HP54>$V$305,HP54<=$V$306),_xlfn.XLOOKUP(HU54,$AA$303:$AD$303,$AA$306:$AD$306,"check xlookup for volume 900",0,1),IF(AND(HP54>$V$306,HP54<=$V$307),_xlfn.XLOOKUP(HU54,$AA$303:$AD$303,$AA$307:$AD$307,"check xlookup for volume 1500",0,1),IF(HP54>$V$307,_xlfn.XLOOKUP(HU54,$AA$303:$AD$303,$AA$308:$AD$308,"check xlookup for volume >1500",0,1),"")))))+IF(IC54=$W$311,$AA$311,$AA$312))/4)) -> 3 | XM54: =IF(OR(ISBLANK($P$21),ISBLANK($P$23)),"Enter Major/Minor Street Speeds",IF(II54=0,,(IF(II54<5,_xlfn.XLOOKUP(II54,$W$287:$W$290,$AA$287:$AA$290,"error",0,1),$AA$291)+IF(IN54<=$V$294,$AA$294,IF(AND(IN54>$V$294,IN54<=$V$295),$AA$295,IF(AND(IN54>$V$295,IN54<=$V$296),$AA$296,IF(AND(IN54>$V$296,IN54<=$V$297),$AA$297,$AA$298))))+IF(IS54<=$V$304,_xlfn.XLOOKUP(IX54,AA$303:$AD$303,$AA$304:$AD$304,"check xlookup for volume 150",0,1),IF(AND(IS54>$V$304,IS54<=$V$305),_xlfn.XLOOKUP(IX54,$AA$303:$AD$303,$AA$305:$AD$305,"check xlookup for volume 300",0,1),IF(AND(IS54>$V$305,IS54<=$V$306),_xlfn.XLOOKUP(IX54,$AA$303:$AD$303,$AA$306:$AD$306,"check xlookup for volume 900",0,1),IF(AND(IS54>$V$306,IS54<=$V$307),_xlfn.XLOOKUP(IX54,$AA$303:$AD$303,$AA$307:$AD$307,"check xlookup for volume 1500",0,1),IF(IS54>$V$307,_xlfn.XLOOKUP(IX54,$AA$303:$AD$303,$AA$308:$AD$308,"check xlookup for volume >1500",0,1),"")))))+IF(JF54=$W$311,$AA$311,$AA$312))/4)) -> 0 | XW54: =IF(OR(ISBLANK($P$21),ISBLANK($P$23)),"Enter Major/Minor Street Speeds",IF(JL54=0,,(IF(JL54<5,_xlfn.XLOOKUP(JL54,$W$287:$W$290,$AA$287:$AA$290,"error",0,1),$AA$291)+IF(JQ54<=$V$294,$AA$294,IF(AND(JQ54>$V$294,JQ54<=$V$295),$AA$295,IF(AND(JQ54>$V$295,JQ54<=$V$296),$AA$296,IF(AND(JQ54>$V$296,JQ54<=$V$297),$AA$297,$AA$298))))+IF(JV54<=$V$304,_xlfn.XLOOKUP(KA54,AA$303:$AD$303,$AA$304:$AD$304,"check xlookup for volume 150",0,1),IF(AND(JV54>$V$304,JV54<=$V$305),_xlfn.XLOOKUP(KA54,$AA$303:$AD$303,$AA$305:$AD$305,"check xlookup for volume 300",0,1),IF(AND(JV54>$V$305,JV54<=$V$306),_xlfn.XLOOKUP(KA54,$AA$303:$AD$303,$AA$306:$AD$306,"check xlookup for volume 900",0,1),IF(AND(JV54>$V$306,JV54<=$V$307),_xlfn.XLOOKUP(KA54,$AA$303:$AD$303,$AA$307:$AD$307,"check xlookup for volume 1500",0,1),IF(JV54>$V$307,_xlfn.XLOOKUP(KA54,$AA$303:$AD$303,$AA$308:$AD$308,"check xlookup for volume >1500",0,1),"")))))+IF(KI54=$W$311,$AA$311,$AA$312))/4)) -> 0 | YG54: =IF(OR(ISBLANK($P$21),ISBLANK($P$23)),"Enter Major/Minor Street Speeds",IF(KO54=0,,(IF(KO54<5,_xlfn.XLOOKUP(KO54,$W$287:$W$290,$AA$287:$AA$290,"error",0,1),$AA$291)+IF(KT54<=$V$294,$AA$294,IF(AND(KT54>$V$294,KT54<=$V$295),$AA$295,IF(AND(KT54>$V$295,KT54<=$V$296),$AA$296,IF(AND(KT54>$V$296,KT54<=$V$297),$AA$297,$AA$298))))+IF(KY54<=$V$304,_xlfn.XLOOKUP(LD54,AA$303:$AD$303,$AA$304:$AD$304,"check xlookup for volume 150",0,1),IF(AND(KY54>$V$304,KY54<=$V$305),_xlfn.XLOOKUP(LD54,$AA$303:$AD$303,$AA$305:$AD$305,"check xlookup for volume 300",0,1),IF(AND(KY54>$V$305,KY54<=$V$306),_xlfn.XLOOKUP(LD54,$AA$303:$AD$303,$AA$306:$AD$306,"check xlookup for volume 900",0,1),IF(AND(KY54>$V$306,KY54<=$V$307),_xlfn.XLOOKUP(LD54,$AA$303:$AD$303,$AA$307:$AD$307,"check xlookup for volume 1500",0,1),IF(KY54>$V$307,_xlfn.XLOOKUP(LD54,$AA$303:$AD$303,$AA$308:$AD$308,"check xlookup for volume >1500",0,1),"")))))+IF(LL54=$W$311,$AA$311,$AA$312))/4)) -> 0 | YQ54: =IF(OR(ISBLANK($P$21),ISBLANK($P$23)),"Enter Major/Minor Street Speeds",IF(LR54=0,,(IF(LR54<5,_xlfn.XLOOKUP(LR54,$W$287:$W$290,$AA$287:$AA$290,"error",0,1),$AA$291)+IF(LW54<=$V$294,$AA$294,IF(AND(LW54>$V$294,LW54<=$V$295),$AA$295,IF(AND(LW54>$V$295,LW54<=$V$296),$AA$296,IF(AND(LW54>$V$296,LW54<=$V$297),$AA$297,$AA$298))))+IF(MB54<=$V$304,_xlfn.XLOOKUP(MG54,AA$303:$AD$303,$AA$304:$AD$304,"check xlookup for volume 150",0,1),IF(AND(MB54>$V$304,MB54<=$V$305),_xlfn.XLOOKUP(MG54,$AA$303:$AD$303,$AA$305:$AD$305,"check xlookup for volume 300",0,1),IF(AND(MB54>$V$305,MB54<=$V$306),_xlfn.XLOOKUP(MG54,$AA$303:$AD$303,$AA$306:$AD$306,"check xlookup for volume 900",0,1),IF(AND(MB54>$V$306,MB54<=$V$307),_xlfn.XLOOKUP(MG54,$AA$303:$AD$303,$AA$307:$AD$307,"check xlookup for volume 1500",0,1),IF(MB54>$V$307,_xlfn.XLOOKUP(MG54,$AA$303:$AD$303,$AA$308:$AD$308,"check xlookup for volume >1500",0,1),"")))))+IF(MO54=$W$311,$AA$311,$AA$312))/4)) -> 0 | ZA54: =IF(OR(ISBLANK($P$21),ISBLANK($P$23)),"Enter Major/Minor Street Speeds",IF(MU54=0,,(IF(MU54<5,_xlfn.XLOOKUP(MU54,$W$287:$W$290,$AA$287:$AA$290,"error",0,1),$AA$291)+IF(MZ54<=$V$294,$AA$294,IF(AND(MZ54>$V$294,MZ54<=$V$295),$AA$295,IF(AND(MZ54>$V$295,MZ54<=$V$296),$AA$296,IF(AND(MZ54>$V$296,MZ54<=$V$297),$AA$297,$AA$298))))+IF(NE54<=$V$304,_xlfn.XLOOKUP(NJ54,AA$303:$AD$303,$AA$304:$AD$304,"check xlookup for volume 150",0,1),IF(AND(NE54>$V$304,NE54<=$V$305),_xlfn.XLOOKUP(NJ54,$AA$303:$AD$303,$AA$305:$AD$305,"check xlookup for volume 300",0,1),IF(AND(NE54>$V$305,NE54<=$V$306),_xlfn.XLOOKUP(NJ54,$AA$303:$AD$303,$AA$306:$AD$306,"check xlookup for volume 900",0,1),IF(AND(NE54>$V$306,NE54<=$V$307),_xlfn.XLOOKUP(NJ54,$AA$303:$AD$303,$AA$307:$AD$307,"check xlookup for volume 1500",0,1),IF(NE54>$V$307,_xlfn.XLOOKUP(NJ54,$AA$303:$AD$303,$AA$308:$AD$308,"check xlookup for volume >1500",0,1),"")))))+IF(NR54=$W$311,$AA$311,$AA$312))/4)) -> 0 | ZK54: =IF(OR(ISBLANK($P$21),ISBLANK($P$23)),"Enter Major/Minor Street Speeds",IF(NX54=0,,(IF(NX54<5,_xlfn.XLOOKUP(NX54,$W$287:$W$290,$AA$287:$AA$290,"error",0,1),$AA$291)+IF(OC54<=$V$294,$AA$294,IF(AND(OC54>$V$294,OC54<=$V$295),$AA$295,IF(AND(OC54>$V$295,OC54<=$V$296),$AA$296,IF(AND(OC54>$V$296,OC54<=$V$297),$AA$297,$AA$298))))+IF(OH54<=$V$304,_xlfn.XLOOKUP(OM54,AA$303:$AD$303,$AA$304:$AD$304,"check xlookup for volume 150",0,1),IF(AND(OH54>$V$304,OH54<=$V$305),_xlfn.XLOOKUP(OM54,$AA$303:$AD$303,$AA$305:$AD$305,"check xlookup for volume 300",0,1),IF(AND(OH54>$V$305,OH54<=$V$306),_xlfn.XLOOKUP(OM54,$AA$303:$AD$303,$AA$306:$AD$306,"check xlookup for volume 900",0,1),IF(AND(OH54>$V$306,OH54<=$V$307),_xlfn.XLOOKUP(OM54,$AA$303:$AD$303,$AA$307:$AD$307,"check xlookup for volume 1500",0,1),IF(OH54>$V$307,_xlfn.XLOOKUP(OM54,$AA$303:$AD$303,$AA$308:$AD$308,"check xlookup for volume >1500",0,1),"")))))+IF(OU54=$W$311,$AA$311,$AA$312))/4)) -> 0 | ZU54: =IF(OR(ISBLANK($P$21),ISBLANK($P$23)),"Enter Major/Minor Street Speeds",IF(PA54=0,,(IF(PA54<5,_xlfn.XLOOKUP(PA54,$W$287:$W$290,$AA$287:$AA$290,"error",0,1),$AA$291)+IF(PF54<=$V$294,$AA$294,IF(AND(PF54>$V$294,PF54<=$V$295),$AA$295,IF(AND(PF54>$V$295,PF54<=$V$296),$AA$296,IF(AND(PF54>$V$296,PF54<=$V$297),$AA$297,$AA$298))))+IF(PK54<=$V$304,_xlfn.XLOOKUP(PP54,AA$303:$AD$303,$AA$304:$AD$304,"check xlookup for volume 150",0,1),IF(AND(PK54>$V$304,PK54<=$V$305),_xlfn.XLOOKUP(PP54,$AA$303:$AD$303,$AA$305:$AD$305,"check xlookup for volume 300",0,1),IF(AND(PK54>$V$305,PK54<=$V$306),_xlfn.XLOOKUP(PP54,$AA$303:$AD$303,$AA$306:$AD$306,"check xlookup for volume 900",0,1),IF(AND(PK54>$V$306,PK54<=$V$307),_xlfn.XLOOKUP(PP54,$AA$303:$AD$303,$AA$307:$AD$307,"check xlookup for volume 1500",0,1),IF(PK54>$V$307,_xlfn.XLOOKUP(PP54,$AA$303:$AD$303,$AA$308:$AD$308,"check xlookup for volume >1500",0,1),"")))))+IF(PX54=$W$311,$AA$311,$AA$312))/4)) -> 0 | AAE54: =IF(OR(ISBLANK($P$21),ISBLANK($P$23)),"Enter Major/Minor Street Speeds",IF(QD54=0,,(IF(QD54<5,_xlfn.XLOOKUP(QD54,$W$287:$W$290,$AA$287:$AA$290,"error",0,1),$AA$291)+IF(QI54<=$V$294,$AA$294,IF(AND(QI54>$V$294,QI54<=$V$295),$AA$295,IF(AND(QI54>$V$295,QI54<=$V$296),$AA$296,IF(AND(QI54>$V$296,QI54<=$V$297),$AA$297,$AA$298))))+IF(QN54<=$V$304,_xlfn.XLOOKUP(QS54,AA$303:$AD$303,$AA$304:$AD$304,"check xlookup for volume 150",0,1),IF(AND(QN54>$V$304,QN54<=$V$305),_xlfn.XLOOKUP(QS54,$AA$303:$AD$303,$AA$305:$AD$305,"check xlookup for volume 300",0,1),IF(AND(QN54>$V$305,QN54<=$V$306),_xlfn.XLOOKUP(QS54,$AA$303:$AD$303,$AA$306:$AD$306,"check xlookup for volume 900",0,1),IF(AND(QN54>$V$306,QN54<=$V$307),_xlfn.XLOOKUP(QS54,$AA$303:$AD$303,$AA$307:$AD$307,"check xlookup for volume 1500",0,1),IF(QN54>$V$307,_xlfn.XLOOKUP(QS54,$AA$303:$AD$303,$AA$308:$AD$308,"check xlookup for volume >1500",0,1),"")))))+IF(RA54=$W$311,$AA$311,$AA$312))/4)) -> 0 | AAO54: =IF(OR(ISBLANK($P$21),ISBLANK($P$23)),"Enter Major/Minor Street Speeds",IF(RG54=0,,(IF(RG54<5,_xlfn.XLOOKUP(RG54,$W$287:$W$290,$AA$287:$AA$290,"error",0,1),$AA$291)+IF(RL54<=$V$294,$AA$294,IF(AND(RL54>$V$294,RL54<=$V$295),$AA$295,IF(AND(RL54>$V$295,RL54<=$V$296),$AA$296,IF(AND(RL54>$V$296,RL54<=$V$297),$AA$297,$AA$298))))+IF(RQ54<=$V$304,_xlfn.XLOOKUP(RV54,AA$303:$AD$303,$AA$304:$AD$304,"check xlookup for volume 150",0,1),IF(AND(RQ54>$V$304,RQ54<=$V$305),_xlfn.XLOOKUP(RV54,$AA$303:$AD$303,$AA$305:$AD$305,"check xlookup for volume 300",0,1),IF(AND(RQ54>$V$305,RQ54<=$V$306),_xlfn.XLOOKUP(RV54,$AA$303:$AD$303,$AA$306:$AD$306,"check xlookup for volume 900",0,1),IF(AND(RQ54>$V$306,RQ54<=$V$307),_xlfn.XLOOKUP(RV54,$AA$303:$AD$303,$AA$307:$AD$307,"check xlookup for volume 1500",0,1),IF(RQ54>$V$307,_xlfn.XLOOKUP(RV54,$AA$303:$AD$303,$AA$308:$AD$308,"check xlookup for volume >1500",0,1),"")))))+IF(SD54=$W$311,$AA$311,$AA$312))/4)) -> 0 | AAY54: =IF(OR(ISBLANK($P$21),ISBLANK($P$23)),"Enter Major/Minor Street Speeds",IF(SJ54=0,,(IF(SJ54<5,_xlfn.XLOOKUP(SJ54,$W$287:$W$290,$AA$287:$AA$290,"error",0,1),$AA$291)+IF(SO54<=$V$294,$AA$294,IF(AND(SO54>$V$294,SO54<=$V$295),$AA$295,IF(AND(SO54>$V$295,SO54<=$V$296),$AA$296,IF(AND(SO54>$V$296,SO54<=$V$297),$AA$297,$AA$298))))+IF(ST54<=$V$304,_xlfn.XLOOKUP(SY54,AA$303:$AD$303,$AA$304:$AD$304,"check xlookup for volume 150",0,1),IF(AND(ST54>$V$304,ST54<=$V$305),_xlfn.XLOOKUP(SY54,$AA$303:$AD$303,$AA$305:$AD$305,"check xlookup for volume 300",0,1),IF(AND(ST54>$V$305,ST54<=$V$306),_xlfn.XLOOKUP(SY54,$AA$303:$AD$303,$AA$306:$AD$306,"check xlookup for volume 900",0,1),IF(AND(ST54>$V$306,ST54<=$V$307),_xlfn.XLOOKUP(SY54,$AA$303:$AD$303,$AA$307:$AD$307,"check xlookup for volume 1500",0,1),IF(ST54>$V$307,_xlfn.XLOOKUP(SY54,$AA$303:$AD$303,$AA$308:$AD$308,"check xlookup for volume >1500",0,1),"")))))+IF(TG54=$W$311,$AA$311,$AA$312))/4)) -> 0 | ABI54: =IF(OR(ISBLANK($P$21),ISBLANK($P$23)),"Enter Major/Minor Street Speeds",IF(TM54=0,,(IF(TM54<5,_xlfn.XLOOKUP(TM54,$W$287:$W$290,$AA$287:$AA$290,"error",0,1),$AA$291)+IF(TR54<=$V$294,$AA$294,IF(AND(TR54>$V$294,TR54<=$V$295),$AA$295,IF(AND(TR54>$V$295,TR54<=$V$296),$AA$296,IF(AND(TR54>$V$296,TR54<=$V$297),$AA$297,$AA$298))))+IF(TW54<=$V$304,_xlfn.XLOOKUP(UB54,AA$303:$AD$303,$AA$304:$AD$304,"check xlookup for volume 150",0,1),IF(AND(TW54>$V$304,TW54<=$V$305),_xlfn.XLOOKUP(UB54,$AA$303:$AD$303,$AA$305:$AD$305,"check xlookup for volume 300",0,1),IF(AND(TW54>$V$305,TW54<=$V$306),_xlfn.XLOOKUP(UB54,$AA$303:$AD$303,$AA$306:$AD$306,"check xlookup for volume 900",0,1),IF(AND(TW54>$V$306,TW54<=$V$307),_xlfn.XLOOKUP(UB54,$AA$303:$AD$303,$AA$307:$AD$307,"check xlookup for volume 1500",0,1),IF(TW54>$V$307,_xlfn.XLOOKUP(UB54,$AA$303:$AD$303,$AA$308:$AD$308,"check xlookup for volume >1500",0,1),"")))))+IF(UJ54=$W$311,$AA$311,$AA$312))/4)) -> 0
T56: E | Z56: =UP56 -> 2.541717549 | AD56: No | AI56: Yes Crossing(s) with 3+ stages | AN56: =SUM('CGT E'!CV34:CV36) -> 1 | AS56: =Min_St_Spd_Lmt -> 35 | AX56: =SUM(WBR_Master) -> 226 | BC56: Yield Controlled | BK56: Marked | BQ56: =SUM('CGT E'!CV37:CV42)+MAX('CGT E'!CP30:CU30) -> 2 | BV56: =Min_St_Spd_Lmt -> 35 | CA56: =SUM(WBL_Master,SBL_Master,WBU_Master) -> 371 | CF56: Stop/Signal Controlled | CN56: Marked | CT56: =SUM('CGT E'!CS43:CU43) -> 1 | CY56: =Maj_St_Spd_Lmt -> 45 | DD56: =SUM(NBR_Master) -> 179 | DI56: Yield Controlled | DQ56: Marked | DW56: =SUM('CGT E'!CP43:CR43) -> 2 | EB56: =Maj_St_Spd_Lmt -> 45 | EG56: =SUM(NBT_Master) -> 306 | EL56: Stop/Signal Controlled | ET56: Unmarked | EZ56: =MAX('CGT E'!CV37:CV42,'CGT E'!CM30:CO30) -> 2 | FE56: =Maj_St_Spd_Lmt -> 45 | FJ56: =SUM(WBL_Master,SBT_Master) -> 556 | FO56: Free Flowing | FW56: Unmarked | GC56: =SUM('CGT E'!CM30:CU30) -> 3 | GH56: =Maj_St_Spd_Lmt -> 45 | GM56: =SUM(SBL_Master,SBT_Master) -> 247 | GR56: Free Flowing | GZ56: Unmarked | HF56: =MAX('CGT E'!CP43:CR43) -> 2 | HK56: =Maj_St_Spd_Lmt -> 45 | HP56: =SUM(NBT_Master,SBU_Master) -> 306 | HU56: Stop/Signal Controlled | IC56: Unmarked | UP56: =IFERROR((((SUM(SQRT(UU56),SQRT(VE56),SQRT(VO56),SQRT(VY56),SQRT(WI56),SQRT(WS56),SQRT(XC56),SQRT(XM56),SQRT(XW56),SQRT(YG56),SQRT(YQ56),SQRT(ZA56),SQRT(ZK56),SQRT(ZU56),SQRT(AAE56),SQRT(AAO56),SQRT(AAY56),SQRT(ABI56))/COUNTIF(UU56:ABR57,">0"))^2)*(_xlfn.XLOOKUP(AD56,$W$322:$W$323,$AA$322:$AA$323,"lookup error",0,1))*(_xlfn.XLOOKUP(AI56,Multistage_Crossing,$AA$316:$AA$318,"lookup error",0,1))),"Enter Major/Minor Street Speeds") -> 2.541717549 | UU56: =IF(OR(ISBLANK($P$21),ISBLANK($P$23)),"Enter Major/Minor Street Speeds",IF(AN56=0,,(IF(AN56<5,_xlfn.XLOOKUP(AN56,$W$287:$W$290,$AA$287:$AA$290,"error",0,1),$AA$291)+IF(AS56<=$V$294,$AA$294,IF(AND(AS56>$V$294,AS56<=$V$295),$AA$295,IF(AND(AS56>$V$295,AS56<=$V$296),$AA$296,IF(AND(AS56>$V$296,AS56<=$V$297),$AA$297,$AA$298))))+IF(AX56<=$V$304,_xlfn.XLOOKUP(BC56,AA$303:$AD$303,$AA$304:$AD$304,"check xlookup for volume 150",0,1),IF(AND(AX56>$V$304,AX56<=$V$305),_xlfn.XLOOKUP(BC56,$AA$303:$AD$303,$AA$305:$AD$305,"check xlookup for volume 300",0,1),IF(AND(AX56>$V$305,AX56<=$V$306),_xlfn.XLOOKUP(BC56,$AA$303:$AD$303,$AA$306:$AD$306,"check xlookup for volume 900",0,1),IF(AND(AX56>$V$306,AX56<=$V$307),_xlfn.XLOOKUP(BC56,$AA$303:$AD$303,$AA$307:$AD$307,"check xlookup for volume 1500",0,1),IF(AX56>$V$307,_xlfn.XLOOKUP(BC56,$AA$303:$AD$303,$AA$308:$AD$308,"check xlookup for volume >1500",0,1),"")))))+IF(BK56=$W$311,$AA$311,$AA$312))/4)) -> 4.25 | VE56: =IF(OR(ISBLANK($P$21),ISBLANK($P$23)),"Enter Major/Minor Street Speeds",IF(BQ56=0,,(IF(BQ56<5,_xlfn.XLOOKUP(BQ56,$W$287:$W$290,$AA$287:$AA$290,"error",0,1),$AA$291)+IF(BV56<=$V$294,$AA$294,IF(AND(BV56>$V$294,BV56<=$V$295),$AA$295,IF(AND(BV56>$V$295,BV56<=$V$296),$AA$296,IF(AND(BV56>$V$296,BV56<=$V$297),$AA$297,$AA$298))))+IF(CA56<=$V$304,_xlfn.XLOOKUP(CF56,AA$303:$AD$303,$AA$304:$AD$304,"check xlookup for volume 150",0,1),IF(AND(CA56>$V$304,CA56<=$V$305),_xlfn.XLOOKUP(CF56,$AA$303:$AD$303,$AA$305:$AD$305,"check xlookup for volume 300",0,1),IF(AND(CA56>$V$305,CA56<=$V$306),_xlfn.XLOOKUP(CF56,$AA$303:$AD$303,$AA$306:$AD$306,"check xlookup for volume 900",0,1),IF(AND(CA56>$V$306,CA56<=$V$307),_xlfn.XLOOKUP(CF56,$AA$303:$AD$303,$AA$307:$AD$307,"check xlookup for volume 1500",0,1),IF(CA56>$V$307,_xlfn.XLOOKUP(CF56,$AA$303:$AD$303,$AA$308:$AD$308,"check xlookup for volume >1500",0,1),"")))))+IF(CN56=$W$311,$AA$311,$AA$312))/4)) -> 4.25 | VO56: =IF(OR(ISBLANK($P$21),ISBLANK($P$23)),"Enter Major/Minor Street Speeds",IF(CT56=0,,(IF(CT56<5,_xlfn.XLOOKUP(CT56,$W$287:$W$290,$AA$287:$AA$290,"error",0,1),$AA$291)+IF(CY56<=$V$294,$AA$294,IF(AND(CY56>$V$294,CY56<=$V$295),$AA$295,IF(AND(CY56>$V$295,CY56<=$V$296),$AA$296,IF(AND(CY56>$V$296,CY56<=$V$297),$AA$297,$AA$298))))+IF(DD56<=$V$304,_xlfn.XLOOKUP(DI56,AA$303:$AD$303,$AA$304:$AD$304,"check xlookup for volume 150",0,1),IF(AND(DD56>$V$304,DD56<=$V$305),_xlfn.XLOOKUP(DI56,$AA$303:$AD$303,$AA$305:$AD$305,"check xlookup for volume 300",0,1),IF(AND(DD56>$V$305,DD56<=$V$306),_xlfn.XLOOKUP(DI56,$AA$303:$AD$303,$AA$306:$AD$306,"check xlookup for volume 900",0,1),IF(AND(DD56>$V$306,DD56<=$V$307),_xlfn.XLOOKUP(DI56,$AA$303:$AD$303,$AA$307:$AD$307,"check xlookup for volume 1500",0,1),IF(DD56>$V$307,_xlfn.XLOOKUP(DI56,$AA$303:$AD$303,$AA$308:$AD$308,"check xlookup for volume >1500",0,1),"")))))+IF(DQ56=$W$311,$AA$311,$AA$312))/4)) -> 4.25 | VY56: =IF(OR(ISBLANK($P$21),ISBLANK($P$23)),"Enter Major/Minor Street Speeds",IF(DW56=0,,(IF(DW56<5,_xlfn.XLOOKUP(DW56,$W$287:$W$290,$AA$287:$AA$290,"error",0,1),$AA$291)+IF(EB56<=$V$294,$AA$294,IF(AND(EB56>$V$294,EB56<=$V$295),$AA$295,IF(AND(EB56>$V$295,EB56<=$V$296),$AA$296,IF(AND(EB56>$V$296,EB56<=$V$297),$AA$297,$AA$298))))+IF(EG56<=$V$304,_xlfn.XLOOKUP(EL56,AA$303:$AD$303,$AA$304:$AD$304,"check xlookup for volume 150",0,1),IF(AND(EG56>$V$304,EG56<=$V$305),_xlfn.XLOOKUP(EL56,$AA$303:$AD$303,$AA$305:$AD$305,"check xlookup for volume 300",0,1),IF(AND(EG56>$V$305,EG56<=$V$306),_xlfn.XLOOKUP(EL56,$AA$303:$AD$303,$AA$306:$AD$306,"check xlookup for volume 900",0,1),IF(AND(EG56>$V$306,EG56<=$V$307),_xlfn.XLOOKUP(EL56,$AA$303:$AD$303,$AA$307:$AD$307,"check xlookup for volume 1500",0,1),IF(EG56>$V$307,_xlfn.XLOOKUP(EL56,$AA$303:$AD$303,$AA$308:$AD$308,"check xlookup for volume >1500",0,1),"")))))+IF(ET56=$W$311,$AA$311,$AA$312))/4)) -> 3 | WI56: =IF(OR(ISBLANK($P$21),ISBLANK($P$23)),"Enter Major/Minor Street Speeds",IF(EZ56=0,,(IF(EZ56<5,_xlfn.XLOOKUP(EZ56,$W$287:$W$290,$AA$287:$AA$290,"error",0,1),$AA$291)+IF(FE56<=$V$294,$AA$294,IF(AND(FE56>$V$294,FE56<=$V$295),$AA$295,IF(AND(FE56>$V$295,FE56<=$V$296),$AA$296,IF(AND(FE56>$V$296,FE56<=$V$297),$AA$297,$AA$298))))+IF(FJ56<=$V$304,_xlfn.XLOOKUP(FO56,AA$303:$AD$303,$AA$304:$AD$304,"check xlookup for volume 150",0,1),IF(AND(FJ56>$V$304,FJ56<=$V$305),_xlfn.XLOOKUP(FO56,$AA$303:$AD$303,$AA$305:$AD$305,"check xlookup for volume 300",0,1),IF(AND(FJ56>$V$305,FJ56<=$V$306),_xlfn.XLOOKUP(FO56,$AA$303:$AD$303,$AA$306:$AD$306,"check xlookup for volume 900",0,1),IF(AND(FJ56>$V$306,FJ56<=$V$307),_xlfn.XLOOKUP(FO56,$AA$303:$AD$303,$AA$307:$AD$307,"check xlookup for volume 1500",0,1),IF(FJ56>$V$307,_xlfn.XLOOKUP(FO56,$AA$303:$AD$303,$AA$308:$AD$308,"check xlookup for volume >1500",0,1),"")))))+IF(FW56=$W$311,$AA$311,$AA$312))/4)) -> 2 | WS56: =IF(OR(ISBLANK($P$21),ISBLANK($P$23)),"Enter Major/Minor Street Speeds",IF(GC56=0,,(IF(GC56<5,_xlfn.XLOOKUP(GC56,$W$287:$W$290,$AA$287:$AA$290,"error",0,1),$AA$291)+IF(GH56<=$V$294,$AA$294,IF(AND(GH56>$V$294,GH56<=$V$295),$AA$295,IF(AND(GH56>$V$295,GH56<=$V$296),$AA$296,IF(AND(GH56>$V$296,GH56<=$V$297),$AA$297,$AA$298))))+IF(GM56<=$V$304,_xlfn.XLOOKUP(GR56,AA$303:$AD$303,$AA$304:$AD$304,"check xlookup for volume 150",0,1),IF(AND(GM56>$V$304,GM56<=$V$305),_xlfn.XLOOKUP(GR56,$AA$303:$AD$303,$AA$305:$AD$305,"check xlookup for volume 300",0,1),IF(AND(GM56>$V$305,GM56<=$V$306),_xlfn.XLOOKUP(GR56,$AA$303:$AD$303,$AA$306:$AD$306,"check xlookup for volume 900",0,1),IF(AND(GM56>$V$306,GM56<=$V$307),_xlfn.XLOOKUP(GR56,$AA$303:$AD$303,$AA$307:$AD$307,"check xlookup for volume 1500",0,1),IF(GM56>$V$307,_xlfn.XLOOKUP(GR56,$AA$303:$AD$303,$AA$308:$AD$308,"check xlookup for volume >1500",0,1),"")))))+IF(GZ56=$W$311,$AA$311,$AA$312))/4)) -> 2 | XC56: =IF(OR(ISBLANK($P$21),ISBLANK($P$23)),"Enter Major/Minor Street Speeds",IF(HF56=0,,(IF(HF56<5,_xlfn.XLOOKUP(HF56,$W$287:$W$290,$AA$287:$AA$290,"error",0,1),$AA$291)+IF(HK56<=$V$294,$AA$294,IF(AND(HK56>$V$294,HK56<=$V$295),$AA$295,IF(AND(HK56>$V$295,HK56<=$V$296),$AA$296,IF(AND(HK56>$V$296,HK56<=$V$297),$AA$297,$AA$298))))+IF(HP56<=$V$304,_xlfn.XLOOKUP(HU56,AA$303:$AD$303,$AA$304:$AD$304,"check xlookup for volume 150",0,1),IF(AND(HP56>$V$304,HP56<=$V$305),_xlfn.XLOOKUP(HU56,$AA$303:$AD$303,$AA$305:$AD$305,"check xlookup for volume 300",0,1),IF(AND(HP56>$V$305,HP56<=$V$306),_xlfn.XLOOKUP(HU56,$AA$303:$AD$303,$AA$306:$AD$306,"check xlookup for volume 900",0,1),IF(AND(HP56>$V$306,HP56<=$V$307),_xlfn.XLOOKUP(HU56,$AA$303:$AD$303,$AA$307:$AD$307,"check xlookup for volume 1500",0,1),IF(HP56>$V$307,_xlfn.XLOOKUP(HU56,$AA$303:$AD$303,$AA$308:$AD$308,"check xlookup for volume >1500",0,1),"")))))+IF(IC56=$W$311,$AA$311,$AA$312))/4)) -> 3 | XM56: =IF(OR(ISBLANK($P$21),ISBLANK($P$23)),"Enter Major/Minor Street Speeds",IF(II56=0,,(IF(II56<5,_xlfn.XLOOKUP(II56,$W$287:$W$290,$AA$287:$AA$290,"error",0,1),$AA$291)+IF(IN56<=$V$294,$AA$294,IF(AND(IN56>$V$294,IN56<=$V$295),$AA$295,IF(AND(IN56>$V$295,IN56<=$V$296),$AA$296,IF(AND(IN56>$V$296,IN56<=$V$297),$AA$297,$AA$298))))+IF(IS56<=$V$304,_xlfn.XLOOKUP(IX56,AA$303:$AD$303,$AA$304:$AD$304,"check xlookup for volume 150",0,1),IF(AND(IS56>$V$304,IS56<=$V$305),_xlfn.XLOOKUP(IX56,$AA$303:$AD$303,$AA$305:$AD$305,"check xlookup for volume 300",0,1),IF(AND(IS56>$V$305,IS56<=$V$306),_xlfn.XLOOKUP(IX56,$AA$303:$AD$303,$AA$306:$AD$306,"check xlookup for volume 900",0,1),IF(AND(IS56>$V$306,IS56<=$V$307),_xlfn.XLOOKUP(IX56,$AA$303:$AD$303,$AA$307:$AD$307,"check xlookup for volume 1500",0,1),IF(IS56>$V$307,_xlfn.XLOOKUP(IX56,$AA$303:$AD$303,$AA$308:$AD$308,"check xlookup for volume >1500",0,1),"")))))+IF(JF56=$W$311,$AA$311,$AA$312))/4)) -> 0 | XW56: =IF(OR(ISBLANK($P$21),ISBLANK($P$23)),"Enter Major/Minor Street Speeds",IF(JL56=0,,(IF(JL56<5,_xlfn.XLOOKUP(JL56,$W$287:$W$290,$AA$287:$AA$290,"error",0,1),$AA$291)+IF(JQ56<=$V$294,$AA$294,IF(AND(JQ56>$V$294,JQ56<=$V$295),$AA$295,IF(AND(JQ56>$V$295,JQ56<=$V$296),$AA$296,IF(AND(JQ56>$V$296,JQ56<=$V$297),$AA$297,$AA$298))))+IF(JV56<=$V$304,_xlfn.XLOOKUP(KA56,AA$303:$AD$303,$AA$304:$AD$304,"check xlookup for volume 150",0,1),IF(AND(JV56>$V$304,JV56<=$V$305),_xlfn.XLOOKUP(KA56,$AA$303:$AD$303,$AA$305:$AD$305,"check xlookup for volume 300",0,1),IF(AND(JV56>$V$305,JV56<=$V$306),_xlfn.XLOOKUP(KA56,$AA$303:$AD$303,$AA$306:$AD$306,"check xlookup for volume 900",0,1),IF(AND(JV56>$V$306,JV56<=$V$307),_xlfn.XLOOKUP(KA56,$AA$303:$AD$303,$AA$307:$AD$307,"check xlookup for volume 1500",0,1),IF(JV56>$V$307,_xlfn.XLOOKUP(KA56,$AA$303:$AD$303,$AA$308:$AD$308,"check xlookup for volume >1500",0,1),"")))))+IF(KI56=$W$311,$AA$311,$AA$312))/4)) -> 0 | YG56: =IF(OR(ISBLANK($P$21),ISBLANK($P$23)),"Enter Major/Minor Street Speeds",IF(KO56=0,,(IF(KO56<5,_xlfn.XLOOKUP(KO56,$W$287:$W$290,$AA$287:$AA$290,"error",0,1),$AA$291)+IF(KT56<=$V$294,$AA$294,IF(AND(KT56>$V$294,KT56<=$V$295),$AA$295,IF(AND(KT56>$V$295,KT56<=$V$296),$AA$296,IF(AND(KT56>$V$296,KT56<=$V$297),$AA$297,$AA$298))))+IF(KY56<=$V$304,_xlfn.XLOOKUP(LD56,AA$303:$AD$303,$AA$304:$AD$304,"check xlookup for volume 150",0,1),IF(AND(KY56>$V$304,KY56<=$V$305),_xlfn.XLOOKUP(LD56,$AA$303:$AD$303,$AA$305:$AD$305,"check xlookup for volume 300",0,1),IF(AND(KY56>$V$305,KY56<=$V$306),_xlfn.XLOOKUP(LD56,$AA$303:$AD$303,$AA$306:$AD$306,"check xlookup for volume 900",0,1),IF(AND(KY56>$V$306,KY56<=$V$307),_xlfn.XLOOKUP(LD56,$AA$303:$AD$303,$AA$307:$AD$307,"check xlookup for volume 1500",0,1),IF(KY56>$V$307,_xlfn.XLOOKUP(LD56,$AA$303:$AD$303,$AA$308:$AD$308,"check xlookup for volume >1500",0,1),"")))))+IF(LL56=$W$311,$AA$311,$AA$312))/4)) -> 0 | YQ56: =IF(OR(ISBLANK($P$21),ISBLANK($P$23)),"Enter Major/Minor Street Speeds",IF(LR56=0,,(IF(LR56<5,_xlfn.XLOOKUP(LR56,$W$287:$W$290,$AA$287:$AA$290,"error",0,1),$AA$291)+IF(LW56<=$V$294,$AA$294,IF(AND(LW56>$V$294,LW56<=$V$295),$AA$295,IF(AND(LW56>$V$295,LW56<=$V$296),$AA$296,IF(AND(LW56>$V$296,LW56<=$V$297),$AA$297,$AA$298))))+IF(MB56<=$V$304,_xlfn.XLOOKUP(MG56,AA$303:$AD$303,$AA$304:$AD$304,"check xlookup for volume 150",0,1),IF(AND(MB56>$V$304,MB56<=$V$305),_xlfn.XLOOKUP(MG56,$AA$303:$AD$303,$AA$305:$AD$305,"check xlookup for volume 300",0,1),IF(AND(MB56>$V$305,MB56<=$V$306),_xlfn.XLOOKUP(MG56,$AA$303:$AD$303,$AA$306:$AD$306,"check xlookup for volume 900",0,1),IF(AND(MB56>$V$306,MB56<=$V$307),_xlfn.XLOOKUP(MG56,$AA$303:$AD$303,$AA$307:$AD$307,"check xlookup for volume 1500",0,1),IF(MB56>$V$307,_xlfn.XLOOKUP(MG56,$AA$303:$AD$303,$AA$308:$AD$308,"check xlookup for volume >1500",0,1),"")))))+IF(MO56=$W$311,$AA$311,$AA$312))/4)) -> 0 | ZA56: =IF(OR(ISBLANK($P$21),ISBLANK($P$23)),"Enter Major/Minor Street Speeds",IF(MU56=0,,(IF(MU56<5,_xlfn.XLOOKUP(MU56,$W$287:$W$290,$AA$287:$AA$290,"error",0,1),$AA$291)+IF(MZ56<=$V$294,$AA$294,IF(AND(MZ56>$V$294,MZ56<=$V$295),$AA$295,IF(AND(MZ56>$V$295,MZ56<=$V$296),$AA$296,IF(AND(MZ56>$V$296,MZ56<=$V$297),$AA$297,$AA$298))))+IF(NE56<=$V$304,_xlfn.XLOOKUP(NJ56,AA$303:$AD$303,$AA$304:$AD$304,"check xlookup for volume 150",0,1),IF(AND(NE56>$V$304,NE56<=$V$305),_xlfn.XLOOKUP(NJ56,$AA$303:$AD$303,$AA$305:$AD$305,"check xlookup for volume 300",0,1),IF(AND(NE56>$V$305,NE56<=$V$306),_xlfn.XLOOKUP(NJ56,$AA$303:$AD$303,$AA$306:$AD$306,"check xlookup for volume 900",0,1),IF(AND(NE56>$V$306,NE56<=$V$307),_xlfn.XLOOKUP(NJ56,$AA$303:$AD$303,$AA$307:$AD$307,"check xlookup for volume 1500",0,1),IF(NE56>$V$307,_xlfn.XLOOKUP(NJ56,$AA$303:$AD$303,$AA$308:$AD$308,"check xlookup for volume >1500",0,1),"")))))+IF(NR56=$W$311,$AA$311,$AA$312))/4)) -> 0 | ZK56: =IF(OR(ISBLANK($P$21),ISBLANK($P$23)),"Enter Major/Minor Street Speeds",IF(NX56=0,,(IF(NX56<5,_xlfn.XLOOKUP(NX56,$W$287:$W$290,$AA$287:$AA$290,"error",0,1),$AA$291)+IF(OC56<=$V$294,$AA$294,IF(AND(OC56>$V$294,OC56<=$V$295),$AA$295,IF(AND(OC56>$V$295,OC56<=$V$296),$AA$296,IF(AND(OC56>$V$296,OC56<=$V$297),$AA$297,$AA$298))))+IF(OH56<=$V$304,_xlfn.XLOOKUP(OM56,AA$303:$AD$303,$AA$304:$AD$304,"check xlookup for volume 150",0,1),IF(AND(OH56>$V$304,OH56<=$V$305),_xlfn.XLOOKUP(OM56,$AA$303:$AD$303,$AA$305:$AD$305,"check xlookup for volume 300",0,1),IF(AND(OH56>$V$305,OH56<=$V$306),_xlfn.XLOOKUP(OM56,$AA$303:$AD$303,$AA$306:$AD$306,"check xlookup for volume 900",0,1),IF(AND(OH56>$V$306,OH56<=$V$307),_xlfn.XLOOKUP(OM56,$AA$303:$AD$303,$AA$307:$AD$307,"check xlookup for volume 1500",0,1),IF(OH56>$V$307,_xlfn.XLOOKUP(OM56,$AA$303:$AD$303,$AA$308:$AD$308,"check xlookup for volume >1500",0,1),"")))))+IF(OU56=$W$311,$AA$311,$AA$312))/4)) -> 0 | ZU56: =IF(OR(ISBLANK($P$21),ISBLANK($P$23)),"Enter Major/Minor Street Speeds",IF(PA56=0,,(IF(PA56<5,_xlfn.XLOOKUP(PA56,$W$287:$W$290,$AA$287:$AA$290,"error",0,1),$AA$291)+IF(PF56<=$V$294,$AA$294,IF(AND(PF56>$V$294,PF56<=$V$295),$AA$295,IF(AND(PF56>$V$295,PF56<=$V$296),$AA$296,IF(AND(PF56>$V$296,PF56<=$V$297),$AA$297,$AA$298))))+IF(PK56<=$V$304,_xlfn.XLOOKUP(PP56,AA$303:$AD$303,$AA$304:$AD$304,"check xlookup for volume 150",0,1),IF(AND(PK56>$V$304,PK56<=$V$305),_xlfn.XLOOKUP(PP56,$AA$303:$AD$303,$AA$305:$AD$305,"check xlookup for volume 300",0,1),IF(AND(PK56>$V$305,PK56<=$V$306),_xlfn.XLOOKUP(PP56,$AA$303:$AD$303,$AA$306:$AD$306,"check xlookup for volume 900",0,1),IF(AND(PK56>$V$306,PK56<=$V$307),_xlfn.XLOOKUP(PP56,$AA$303:$AD$303,$AA$307:$AD$307,"check xlookup for volume 1500",0,1),IF(PK56>$V$307,_xlfn.XLOOKUP(PP56,$AA$303:$AD$303,$AA$308:$AD$308,"check xlookup for volume >1500",0,1),"")))))+IF(PX56=$W$311,$AA$311,$AA$312))/4)) -> 0 | AAE56: =IF(OR(ISBLANK($P$21),ISBLANK($P$23)),"Enter Major/Minor Street Speeds",IF(QD56=0,,(IF(QD56<5,_xlfn.XLOOKUP(QD56,$W$287:$W$290,$AA$287:$AA$290,"error",0,1),$AA$291)+IF(QI56<=$V$294,$AA$294,IF(AND(QI56>$V$294,QI56<=$V$295),$AA$295,IF(AND(QI56>$V$295,QI56<=$V$296),$AA$296,IF(AND(QI56>$V$296,QI56<=$V$297),$AA$297,$AA$298))))+IF(QN56<=$V$304,_xlfn.XLOOKUP(QS56,AA$303:$AD$303,$AA$304:$AD$304,"check xlookup for volume 150",0,1),IF(AND(QN56>$V$304,QN56<=$V$305),_xlfn.XLOOKUP(QS56,$AA$303:$AD$303,$AA$305:$AD$305,"check xlookup for volume 300",0,1),IF(AND(QN56>$V$305,QN56<=$V$306),_xlfn.XLOOKUP(QS56,$AA$303:$AD$303,$AA$306:$AD$306,"check xlookup for volume 900",0,1),IF(AND(QN56>$V$306,QN56<=$V$307),_xlfn.XLOOKUP(QS56,$AA$303:$AD$303,$AA$307:$AD$307,"check xlookup for volume 1500",0,1),IF(QN56>$V$307,_xlfn.XLOOKUP(QS56,$AA$303:$AD$303,$AA$308:$AD$308,"check xlookup for volume >1500",0,1),"")))))+IF(RA56=$W$311,$AA$311,$AA$312))/4)) -> 0 | AAO56: =IF(OR(ISBLANK($P$21),ISBLANK($P$23)),"Enter Major/Minor Street Speeds",IF(RG56=0,,(IF(RG56<5,_xlfn.XLOOKUP(RG56,$W$287:$W$290,$AA$287:$AA$290,"error",0,1),$AA$291)+IF(RL56<=$V$294,$AA$294,IF(AND(RL56>$V$294,RL56<=$V$295),$AA$295,IF(AND(RL56>$V$295,RL56<=$V$296),$AA$296,IF(AND(RL56>$V$296,RL56<=$V$297),$AA$297,$AA$298))))+IF(RQ56<=$V$304,_xlfn.XLOOKUP(RV56,AA$303:$AD$303,$AA$304:$AD$304,"check xlookup for volume 150",0,1),IF(AND(RQ56>$V$304,RQ56<=$V$305),_xlfn.XLOOKUP(RV56,$AA$303:$AD$303,$AA$305:$AD$305,"check xlookup for volume 300",0,1),IF(AND(RQ56>$V$305,RQ56<=$V$306),_xlfn.XLOOKUP(RV56,$AA$303:$AD$303,$AA$306:$AD$306,"check xlookup for volume 900",0,1),IF(AND(RQ56>$V$306,RQ56<=$V$307),_xlfn.XLOOKUP(RV56,$AA$303:$AD$303,$AA$307:$AD$307,"check xlookup for volume 1500",0,1),IF(RQ56>$V$307,_xlfn.XLOOKUP(RV56,$AA$303:$AD$303,$AA$308:$AD$308,"check xlookup for volume >1500",0,1),"")))))+IF(SD56=$W$311,$AA$311,$AA$312))/4)) -> 0 | AAY56: =IF(OR(ISBLANK($P$21),ISBLANK($P$23)),"Enter Major/Minor Street Speeds",IF(SJ56=0,,(IF(SJ56<5,_xlfn.XLOOKUP(SJ56,$W$287:$W$290,$AA$287:$AA$290,"error",0,1),$AA$291)+IF(SO56<=$V$294,$AA$294,IF(AND(SO56>$V$294,SO56<=$V$295),$AA$295,IF(AND(SO56>$V$295,SO56<=$V$296),$AA$296,IF(AND(SO56>$V$296,SO56<=$V$297),$AA$297,$AA$298))))+IF(ST56<=$V$304,_xlfn.XLOOKUP(SY56,AA$303:$AD$303,$AA$304:$AD$304,"check xlookup for volume 150",0,1),IF(AND(ST56>$V$304,ST56<=$V$305),_xlfn.XLOOKUP(SY56,$AA$303:$AD$303,$AA$305:$AD$305,"check xlookup for volume 300",0,1),IF(AND(ST56>$V$305,ST56<=$V$306),_xlfn.XLOOKUP(SY56,$AA$303:$AD$303,$AA$306:$AD$306,"check xlookup for volume 900",0,1),IF(AND(ST56>$V$306,ST56<=$V$307),_xlfn.XLOOKUP(SY56,$AA$303:$AD$303,$AA$307:$AD$307,"check xlookup for volume 1500",0,1),IF(ST56>$V$307,_xlfn.XLOOKUP(SY56,$AA$303:$AD$303,$AA$308:$AD$308,"check xlookup for volume >1500",0,1),"")))))+IF(TG56=$W$311,$AA$311,$AA$312))/4)) -> 0 | ABI56: =IF(OR(ISBLANK($P$21),ISBLANK($P$23)),"Enter Major/Minor Street Speeds",IF(TM56=0,,(IF(TM56<5,_xlfn.XLOOKUP(TM56,$W$287:$W$290,$AA$287:$AA$290,"error",0,1),$AA$291)+IF(TR56<=$V$294,$AA$294,IF(AND(TR56>$V$294,TR56<=$V$295),$AA$295,IF(AND(TR56>$V$295,TR56<=$V$296),$AA$296,IF(AND(TR56>$V$296,TR56<=$V$297),$AA$297,$AA$298))))+IF(TW56<=$V$304,_xlfn.XLOOKUP(UB56,AA$303:$AD$303,$AA$304:$AD$304,"check xlookup for volume 150",0,1),IF(AND(TW56>$V$304,TW56<=$V$305),_xlfn.XLOOKUP(UB56,$AA$303:$AD$303,$AA$305:$AD$305,"check xlookup for volume 300",0,1),IF(AND(TW56>$V$305,TW56<=$V$306),_xlfn.XLOOKUP(UB56,$AA$303:$AD$303,$AA$306:$AD$306,"check xlookup for volume 900",0,1),IF(AND(TW56>$V$306,TW56<=$V$307),_xlfn.XLOOKUP(UB56,$AA$303:$AD$303,$AA$307:$AD$307,"check xlookup for volume 1500",0,1),IF(TW56>$V$307,_xlfn.XLOOKUP(UB56,$AA$303:$AD$303,$AA$308:$AD$308,"check xlookup for volume >1500",0,1),"")))))+IF(UJ56=$W$311,$AA$311,$AA$312))/4)) -> 0
T58: S | Z58: =UP58 -> 2.528871471 | AD58: No | AI58: Yes Crossing(s) with 3+ stages | AN58: =SUM('CGT S'!CP43:CR43) -> 1 | AS58: =Min_St_Spd_Lmt -> 35 | AX58: =NBR_Master -> 179 | BC58: Yield Controlled | BK58: Marked | BQ58: =SUM('CGT S'!CJ43:CO43)+MAX('CGT S'!CV37:CV42) -> 2 | BV58: =Min_St_Spd_Lmt -> 35 | CA58: =SUM(NBL_Master,WBL_Master,NBU_Master) -> 442 | CF58: Stop/Signal Controlled | CN58: Marked | CT58: =SUM('CGT S'!CI40:CI42) -> 1 | CY58: =Maj_St_Spd_Lmt -> 45 | DD58: =SUM(EBR_Master) -> 204 | DI58: Yield Controlled | DQ58: Marked | DW58: =SUM('CGT S'!CI37:CI39) -> 2 | EB58: =Maj_St_Spd_Lmt -> 45 | EG58: =EBT_Master -> 1020 | EL58: Stop/Signal Controlled | ET58: Unmarked | EZ58: =MAX('CGT S'!CV34:CV36,'CGT S'!CJ43:CO43) -> 2 | FE58: =Maj_St_Spd_Lmt -> 45 | FJ58: =SUM(WBT_Master,NBL_Master) -> 1235 | FO58: Free Flowing | FW58: Unmarked | GC58: =SUM('CGT S'!CV34:CV42) -> 3 | GH58: =Maj_St_Spd_Lmt -> 45 | GM58: =SUM(WBT_Master,WBL_Master) -> 1473 | GR58: Free Flowing | GZ58: Unmarked | HF58: =MAX('CGT S'!CI37:CI39) -> 2 | HK58: =Maj_St_Spd_Lmt -> 45 | HP58: =SUM(EBT_Master,WBU_Master) -> 1020 | HU58: Stop/Signal Controlled | IC58: Unmarked | UP58: =IFERROR((((SUM(SQRT(UU58),SQRT(VE58),SQRT(VO58),SQRT(VY58),SQRT(WI58),SQRT(WS58),SQRT(XC58),SQRT(XM58),SQRT(XW58),SQRT(YG58),SQRT(YQ58),SQRT(ZA58),SQRT(ZK58),SQRT(ZU58),SQRT(AAE58),SQRT(AAO58),SQRT(AAY58),SQRT(ABI58))/COUNTIF(UU58:ABR59,">0"))^2)*(_xlfn.XLOOKUP(AD58,$W$322:$W$323,$AA$322:$AA$323,"lookup error",0,1))*(_xlfn.XLOOKUP(AI58,Multistage_Crossing,$AA$316:$AA$318,"lookup error",0,1))),"Enter Major/Minor Street Speeds") -> 2.528871471 | UU58: =IF(OR(ISBLANK($P$21),ISBLANK($P$23)),"Enter Major/Minor Street Speeds",IF(AN58=0,,(IF(AN58<5,_xlfn.XLOOKUP(AN58,$W$287:$W$290,$AA$287:$AA$290,"error",0,1),$AA$291)+IF(AS58<=$V$294,$AA$294,IF(AND(AS58>$V$294,AS58<=$V$295),$AA$295,IF(AND(AS58>$V$295,AS58<=$V$296),$AA$296,IF(AND(AS58>$V$296,AS58<=$V$297),$AA$297,$AA$298))))+IF(AX58<=$V$304,_xlfn.XLOOKUP(BC58,AA$303:$AD$303,$AA$304:$AD$304,"check xlookup for volume 150",0,1),IF(AND(AX58>$V$304,AX58<=$V$305),_xlfn.XLOOKUP(BC58,$AA$303:$AD$303,$AA$305:$AD$305,"check xlookup for volume 300",0,1),IF(AND(AX58>$V$305,AX58<=$V$306),_xlfn.XLOOKUP(BC58,$AA$303:$AD$303,$AA$306:$AD$306,"check xlookup for volume 900",0,1),IF(AND(AX58>$V$306,AX58<=$V$307),_xlfn.XLOOKUP(BC58,$AA$303:$AD$303,$AA$307:$AD$307,"check xlookup for volume 1500",0,1),IF(AX58>$V$307,_xlfn.XLOOKUP(BC58,$AA$303:$AD$303,$AA$308:$AD$308,"check xlookup for volume >1500",0,1),"")))))+IF(BK58=$W$311,$AA$311,$AA$312))/4)) -> 4.5 | VE58: =IF(OR(ISBLANK($P$21),ISBLANK($P$23)),"Enter Major/Minor Street Speeds",IF(BQ58=0,,(IF(BQ58<5,_xlfn.XLOOKUP(BQ58,$W$287:$W$290,$AA$287:$AA$290,"error",0,1),$AA$291)+IF(BV58<=$V$294,$AA$294,IF(AND(BV58>$V$294,BV58<=$V$295),$AA$295,IF(AND(BV58>$V$295,BV58<=$V$296),$AA$296,IF(AND(BV58>$V$296,BV58<=$V$297),$AA$297,$AA$298))))+IF(CA58<=$V$304,_xlfn.XLOOKUP(CF58,AA$303:$AD$303,$AA$304:$AD$304,"check xlookup for volume 150",0,1),IF(AND(CA58>$V$304,CA58<=$V$305),_xlfn.XLOOKUP(CF58,$AA$303:$AD$303,$AA$305:$AD$305,"check xlookup for volume 300",0,1),IF(AND(CA58>$V$305,CA58<=$V$306),_xlfn.XLOOKUP(CF58,$AA$303:$AD$303,$AA$306:$AD$306,"check xlookup for volume 900",0,1),IF(AND(CA58>$V$306,CA58<=$V$307),_xlfn.XLOOKUP(CF58,$AA$303:$AD$303,$AA$307:$AD$307,"check xlookup for volume 1500",0,1),IF(CA58>$V$307,_xlfn.XLOOKUP(CF58,$AA$303:$AD$303,$AA$308:$AD$308,"check xlookup for volume >1500",0,1),"")))))+IF(CN58=$W$311,$AA$311,$AA$312))/4)) -> 4.25 | VO58: =IF(OR(ISBLANK($P$21),ISBLANK($P$23)),"Enter Major/Minor Street Speeds",IF(CT58=0,,(IF(CT58<5,_xlfn.XLOOKUP(CT58,$W$287:$W$290,$AA$287:$AA$290,"error",0,1),$AA$291)+IF(CY58<=$V$294,$AA$294,IF(AND(CY58>$V$294,CY58<=$V$295),$AA$295,IF(AND(CY58>$V$295,CY58<=$V$296),$AA$296,IF(AND(CY58>$V$296,CY58<=$V$297),$AA$297,$AA$298))))+IF(DD58<=$V$304,_xlfn.XLOOKUP(DI58,AA$303:$AD$303,$AA$304:$AD$304,"check xlookup for volume 150",0,1),IF(AND(DD58>$V$304,DD58<=$V$305),_xlfn.XLOOKUP(DI58,$AA$303:$AD$303,$AA$305:$AD$305,"check xlookup for volume 300",0,1),IF(AND(DD58>$V$305,DD58<=$V$306),_xlfn.XLOOKUP(DI58,$AA$303:$AD$303,$AA$306:$AD$306,"check xlookup for volume 900",0,1),IF(AND(DD58>$V$306,DD58<=$V$307),_xlfn.XLOOKUP(DI58,$AA$303:$AD$303,$AA$307:$AD$307,"check xlookup for volume 1500",0,1),IF(DD58>$V$307,_xlfn.XLOOKUP(DI58,$AA$303:$AD$303,$AA$308:$AD$308,"check xlookup for volume >1500",0,1),"")))))+IF(DQ58=$W$311,$AA$311,$AA$312))/4)) -> 4.25 | VY58: =IF(OR(ISBLANK($P$21),ISBLANK($P$23)),"Enter Major/Minor Street Speeds",IF(DW58=0,,(IF(DW58<5,_xlfn.XLOOKUP(DW58,$W$287:$W$290,$AA$287:$AA$290,"error",0,1),$AA$291)+IF(EB58<=$V$294,$AA$294,IF(AND(EB58>$V$294,EB58<=$V$295),$AA$295,IF(AND(EB58>$V$295,EB58<=$V$296),$AA$296,IF(AND(EB58>$V$296,EB58<=$V$297),$AA$297,$AA$298))))+IF(EG58<=$V$304,_xlfn.XLOOKUP(EL58,AA$303:$AD$303,$AA$304:$AD$304,"check xlookup for volume 150",0,1),IF(AND(EG58>$V$304,EG58<=$V$305),_xlfn.XLOOKUP(EL58,$AA$303:$AD$303,$AA$305:$AD$305,"check xlookup for volume 300",0,1),IF(AND(EG58>$V$305,EG58<=$V$306),_xlfn.XLOOKUP(EL58,$AA$303:$AD$303,$AA$306:$AD$306,"check xlookup for volume 900",0,1),IF(AND(EG58>$V$306,EG58<=$V$307),_xlfn.XLOOKUP(EL58,$AA$303:$AD$303,$AA$307:$AD$307,"check xlookup for volume 1500",0,1),IF(EG58>$V$307,_xlfn.XLOOKUP(EL58,$AA$303:$AD$303,$AA$308:$AD$308,"check xlookup for volume >1500",0,1),"")))))+IF(ET58=$W$311,$AA$311,$AA$312))/4)) -> 3 | WI58: =IF(OR(ISBLANK($P$21),ISBLANK($P$23)),"Enter Major/Minor Street Speeds",IF(EZ58=0,,(IF(EZ58<5,_xlfn.XLOOKUP(EZ58,$W$287:$W$290,$AA$287:$AA$290,"error",0,1),$AA$291)+IF(FE58<=$V$294,$AA$294,IF(AND(FE58>$V$294,FE58<=$V$295),$AA$295,IF(AND(FE58>$V$295,FE58<=$V$296),$AA$296,IF(AND(FE58>$V$296,FE58<=$V$297),$AA$297,$AA$298))))+IF(FJ58<=$V$304,_xlfn.XLOOKUP(FO58,AA$303:$AD$303,$AA$304:$AD$304,"check xlookup for volume 150",0,1),IF(AND(FJ58>$V$304,FJ58<=$V$305),_xlfn.XLOOKUP(FO58,$AA$303:$AD$303,$AA$305:$AD$305,"check xlookup for volume 300",0,1),IF(AND(FJ58>$V$305,FJ58<=$V$306),_xlfn.XLOOKUP(FO58,$AA$303:$AD$303,$AA$306:$AD$306,"check xlookup for volume 900",0,1),IF(AND(FJ58>$V$306,FJ58<=$V$307),_xlfn.XLOOKUP(FO58,$AA$303:$AD$303,$AA$307:$AD$307,"check xlookup for volume 1500",0,1),IF(FJ58>$V$307,_xlfn.XLOOKUP(FO58,$AA$303:$AD$303,$AA$308:$AD$308,"check xlookup for volume >1500",0,1),"")))))+IF(FW58=$W$311,$AA$311,$AA$312))/4)) -> 2 | WS58: =IF(OR(ISBLANK($P$21),ISBLANK($P$23)),"Enter Major/Minor Street Speeds",IF(GC58=0,,(IF(GC58<5,_xlfn.XLOOKUP(GC58,$W$287:$W$290,$AA$287:$AA$290,"error",0,1),$AA$291)+IF(GH58<=$V$294,$AA$294,IF(AND(GH58>$V$294,GH58<=$V$295),$AA$295,IF(AND(GH58>$V$295,GH58<=$V$296),$AA$296,IF(AND(GH58>$V$296,GH58<=$V$297),$AA$297,$AA$298))))+IF(GM58<=$V$304,_xlfn.XLOOKUP(GR58,AA$303:$AD$303,$AA$304:$AD$304,"check xlookup for volume 150",0,1),IF(AND(GM58>$V$304,GM58<=$V$305),_xlfn.XLOOKUP(GR58,$AA$303:$AD$303,$AA$305:$AD$305,"check xlookup for volume 300",0,1),IF(AND(GM58>$V$305,GM58<=$V$306),_xlfn.XLOOKUP(GR58,$AA$303:$AD$303,$AA$306:$AD$306,"check xlookup for volume 900",0,1),IF(AND(GM58>$V$306,GM58<=$V$307),_xlfn.XLOOKUP(GR58,$AA$303:$AD$303,$AA$307:$AD$307,"check xlookup for volume 1500",0,1),IF(GM58>$V$307,_xlfn.XLOOKUP(GR58,$AA$303:$AD$303,$AA$308:$AD$308,"check xlookup for volume >1500",0,1),"")))))+IF(GZ58=$W$311,$AA$311,$AA$312))/4)) -> 1.75 | XC58: =IF(OR(ISBLANK($P$21),ISBLANK($P$23)),"Enter Major/Minor Street Speeds",IF(HF58=0,,(IF(HF58<5,_xlfn.XLOOKUP(HF58,$W$287:$W$290,$AA$287:$AA$290,"error",0,1),$AA$291)+IF(HK58<=$V$294,$AA$294,IF(AND(HK58>$V$294,HK58<=$V$295),$AA$295,IF(AND(HK58>$V$295,HK58<=$V$296),$AA$296,IF(AND(HK58>$V$296,HK58<=$V$297),$AA$297,$AA$298))))+IF(HP58<=$V$304,_xlfn.XLOOKUP(HU58,AA$303:$AD$303,$AA$304:$AD$304,"check xlookup for volume 150",0,1),IF(AND(HP58>$V$304,HP58<=$V$305),_xlfn.XLOOKUP(HU58,$AA$303:$AD$303,$AA$305:$AD$305,"check xlookup for volume 300",0,1),IF(AND(HP58>$V$305,HP58<=$V$306),_xlfn.XLOOKUP(HU58,$AA$303:$AD$303,$AA$306:$AD$306,"check xlookup for volume 900",0,1),IF(AND(HP58>$V$306,HP58<=$V$307),_xlfn.XLOOKUP(HU58,$AA$303:$AD$303,$AA$307:$AD$307,"check xlookup for volume 1500",0,1),IF(HP58>$V$307,_xlfn.XLOOKUP(HU58,$AA$303:$AD$303,$AA$308:$AD$308,"check xlookup for volume >1500",0,1),"")))))+IF(IC58=$W$311,$AA$311,$AA$312))/4)) -> 3 | XM58: =IF(OR(ISBLANK($P$21),ISBLANK($P$23)),"Enter Major/Minor Street Speeds",IF(II58=0,,(IF(II58<5,_xlfn.XLOOKUP(II58,$W$287:$W$290,$AA$287:$AA$290,"error",0,1),$AA$291)+IF(IN58<=$V$294,$AA$294,IF(AND(IN58>$V$294,IN58<=$V$295),$AA$295,IF(AND(IN58>$V$295,IN58<=$V$296),$AA$296,IF(AND(IN58>$V$296,IN58<=$V$297),$AA$297,$AA$298))))+IF(IS58<=$V$304,_xlfn.XLOOKUP(IX58,AA$303:$AD$303,$AA$304:$AD$304,"check xlookup for volume 150",0,1),IF(AND(IS58>$V$304,IS58<=$V$305),_xlfn.XLOOKUP(IX58,$AA$303:$AD$303,$AA$305:$AD$305,"check xlookup for volume 300",0,1),IF(AND(IS58>$V$305,IS58<=$V$306),_xlfn.XLOOKUP(IX58,$AA$303:$AD$303,$AA$306:$AD$306,"check xlookup for volume 900",0,1),IF(AND(IS58>$V$306,IS58<=$V$307),_xlfn.XLOOKUP(IX58,$AA$303:$AD$303,$AA$307:$AD$307,"check xlookup for volume 1500",0,1),IF(IS58>$V$307,_xlfn.XLOOKUP(IX58,$AA$303:$AD$303,$AA$308:$AD$308,"check xlookup for volume >1500",0,1),"")))))+IF(JF58=$W$311,$AA$311,$AA$312))/4)) -> 0 | XW58: =IF(OR(ISBLANK($P$21),ISBLANK($P$23)),"Enter Major/Minor Street Speeds",IF(JL58=0,,(IF(JL58<5,_xlfn.XLOOKUP(JL58,$W$287:$W$290,$AA$287:$AA$290,"error",0,1),$AA$291)+IF(JQ58<=$V$294,$AA$294,IF(AND(JQ58>$V$294,JQ58<=$V$295),$AA$295,IF(AND(JQ58>$V$295,JQ58<=$V$296),$AA$296,IF(AND(JQ58>$V$296,JQ58<=$V$297),$AA$297,$AA$298))))+IF(JV58<=$V$304,_xlfn.XLOOKUP(KA58,AA$303:$AD$303,$AA$304:$AD$304,"check xlookup for volume 150",0,1),IF(AND(JV58>$V$304,JV58<=$V$305),_xlfn.XLOOKUP(KA58,$AA$303:$AD$303,$AA$305:$AD$305,"check xlookup for volume 300",0,1),IF(AND(JV58>$V$305,JV58<=$V$306),_xlfn.XLOOKUP(KA58,$AA$303:$AD$303,$AA$306:$AD$306,"check xlookup for volume 900",0,1),IF(AND(JV58>$V$306,JV58<=$V$307),_xlfn.XLOOKUP(KA58,$AA$303:$AD$303,$AA$307:$AD$307,"check xlookup for volume 1500",0,1),IF(JV58>$V$307,_xlfn.XLOOKUP(KA58,$AA$303:$AD$303,$AA$308:$AD$308,"check xlookup for volume >1500",0,1),"")))))+IF(KI58=$W$311,$AA$311,$AA$312))/4)) -> 0 | YG58: =IF(OR(ISBLANK($P$21),ISBLANK($P$23)),"Enter Major/Minor Street Speeds",IF(KO58=0,,(IF(KO58<5,_xlfn.XLOOKUP(KO58,$W$287:$W$290,$AA$287:$AA$290,"error",0,1),$AA$291)+IF(KT58<=$V$294,$AA$294,IF(AND(KT58>$V$294,KT58<=$V$295),$AA$295,IF(AND(KT58>$V$295,KT58<=$V$296),$AA$296,IF(AND(KT58>$V$296,KT58<=$V$297),$AA$297,$AA$298))))+IF(KY58<=$V$304,_xlfn.XLOOKUP(LD58,AA$303:$AD$303,$AA$304:$AD$304,"check xlookup for volume 150",0,1),IF(AND(KY58>$V$304,KY58<=$V$305),_xlfn.XLOOKUP(LD58,$AA$303:$AD$303,$AA$305:$AD$305,"check xlookup for volume 300",0,1),IF(AND(KY58>$V$305,KY58<=$V$306),_xlfn.XLOOKUP(LD58,$AA$303:$AD$303,$AA$306:$AD$306,"check xlookup for volume 900",0,1),IF(AND(KY58>$V$306,KY58<=$V$307),_xlfn.XLOOKUP(LD58,$AA$303:$AD$303,$AA$307:$AD$307,"check xlookup for volume 1500",0,1),IF(KY58>$V$307,_xlfn.XLOOKUP(LD58,$AA$303:$AD$303,$AA$308:$AD$308,"check xlookup for volume >1500",0,1),"")))))+IF(LL58=$W$311,$AA$311,$AA$312))/4)) -> 0 | YQ58: =IF(OR(ISBLANK($P$21),ISBLANK($P$23)),"Enter Major/Minor Street Speeds",IF(LR58=0,,(IF(LR58<5,_xlfn.XLOOKUP(LR58,$W$287:$W$290,$AA$287:$AA$290,"error",0,1),$AA$291)+IF(LW58<=$V$294,$AA$294,IF(AND(LW58>$V$294,LW58<=$V$295),$AA$295,IF(AND(LW58>$V$295,LW58<=$V$296),$AA$296,IF(AND(LW58>$V$296,LW58<=$V$297),$AA$297,$AA$298))))+IF(MB58<=$V$304,_xlfn.XLOOKUP(MG58,AA$303:$AD$303,$AA$304:$AD$304,"check xlookup for volume 150",0,1),IF(AND(MB58>$V$304,MB58<=$V$305),_xlfn.XLOOKUP(MG58,$AA$303:$AD$303,$AA$305:$AD$305,"check xlookup for volume 300",0,1),IF(AND(MB58>$V$305,MB58<=$V$306),_xlfn.XLOOKUP(MG58,$AA$303:$AD$303,$AA$306:$AD$306,"check xlookup for volume 900",0,1),IF(AND(MB58>$V$306,MB58<=$V$307),_xlfn.XLOOKUP(MG58,$AA$303:$AD$303,$AA$307:$AD$307,"check xlookup for volume 1500",0,1),IF(MB58>$V$307,_xlfn.XLOOKUP(MG58,$AA$303:$AD$303,$AA$308:$AD$308,"check xlookup for volume >1500",0,1),"")))))+IF(MO58=$W$311,$AA$311,$AA$312))/4)) -> 0 | ZA58: =IF(OR(ISBLANK($P$21),ISBLANK($P$23)),"Enter Major/Minor Street Speeds",IF(MU58=0,,(IF(MU58<5,_xlfn.XLOOKUP(MU58,$W$287:$W$290,$AA$287:$AA$290,"error",0,1),$AA$291)+IF(MZ58<=$V$294,$AA$294,IF(AND(MZ58>$V$294,MZ58<=$V$295),$AA$295,IF(AND(MZ58>$V$295,MZ58<=$V$296),$AA$296,IF(AND(MZ58>$V$296,MZ58<=$V$297),$AA$297,$AA$298))))+IF(NE58<=$V$304,_xlfn.XLOOKUP(NJ58,AA$303:$AD$303,$AA$304:$AD$304,"check xlookup for volume 150",0,1),IF(AND(NE58>$V$304,NE58<=$V$305),_xlfn.XLOOKUP(NJ58,$AA$303:$AD$303,$AA$305:$AD$305,"check xlookup for volume 300",0,1),IF(AND(NE58>$V$305,NE58<=$V$306),_xlfn.XLOOKUP(NJ58,$AA$303:$AD$303,$AA$306:$AD$306,"check xlookup for volume 900",0,1),IF(AND(NE58>$V$306,NE58<=$V$307),_xlfn.XLOOKUP(NJ58,$AA$303:$AD$303,$AA$307:$AD$307,"check xlookup for volume 1500",0,1),IF(NE58>$V$307,_xlfn.XLOOKUP(NJ58,$AA$303:$AD$303,$AA$308:$AD$308,"check xlookup for volume >1500",0,1),"")))))+IF(NR58=$W$311,$AA$311,$AA$312))/4)) -> 0 | ZK58: =IF(OR(ISBLANK($P$21),ISBLANK($P$23)),"Enter Major/Minor Street Speeds",IF(NX58=0,,(IF(NX58<5,_xlfn.XLOOKUP(NX58,$W$287:$W$290,$AA$287:$AA$290,"error",0,1),$AA$291)+IF(OC58<=$V$294,$AA$294,IF(AND(OC58>$V$294,OC58<=$V$295),$AA$295,IF(AND(OC58>$V$295,OC58<=$V$296),$AA$296,IF(AND(OC58>$V$296,OC58<=$V$297),$AA$297,$AA$298))))+IF(OH58<=$V$304,_xlfn.XLOOKUP(OM58,AA$303:$AD$303,$AA$304:$AD$304,"check xlookup for volume 150",0,1),IF(AND(OH58>$V$304,OH58<=$V$305),_xlfn.XLOOKUP(OM58,$AA$303:$AD$303,$AA$305:$AD$305,"check xlookup for volume 300",0,1),IF(AND(OH58>$V$305,OH58<=$V$306),_xlfn.XLOOKUP(OM58,$AA$303:$AD$303,$AA$306:$AD$306,"check xlookup for volume 900",0,1),IF(AND(OH58>$V$306,OH58<=$V$307),_xlfn.XLOOKUP(OM58,$AA$303:$AD$303,$AA$307:$AD$307,"check xlookup for volume 1500",0,1),IF(OH58>$V$307,_xlfn.XLOOKUP(OM58,$AA$303:$AD$303,$AA$308:$AD$308,"check xlookup for volume >1500",0,1),"")))))+IF(OU58=$W$311,$AA$311,$AA$312))/4)) -> 0 | ZU58: =IF(OR(ISBLANK($P$21),ISBLANK($P$23)),"Enter Major/Minor Street Speeds",IF(PA58=0,,(IF(PA58<5,_xlfn.XLOOKUP(PA58,$W$287:$W$290,$AA$287:$AA$290,"error",0,1),$AA$291)+IF(PF58<=$V$294,$AA$294,IF(AND(PF58>$V$294,PF58<=$V$295),$AA$295,IF(AND(PF58>$V$295,PF58<=$V$296),$AA$296,IF(AND(PF58>$V$296,PF58<=$V$297),$AA$297,$AA$298))))+IF(PK58<=$V$304,_xlfn.XLOOKUP(PP58,AA$303:$AD$303,$AA$304:$AD$304,"check xlookup for volume 150",0,1),IF(AND(PK58>$V$304,PK58<=$V$305),_xlfn.XLOOKUP(PP58,$AA$303:$AD$303,$AA$305:$AD$305,"check xlookup for volume 300",0,1),IF(AND(PK58>$V$305,PK58<=$V$306),_xlfn.XLOOKUP(PP58,$AA$303:$AD$303,$AA$306:$AD$306,"check xlookup for volume 900",0,1),IF(AND(PK58>$V$306,PK58<=$V$307),_xlfn.XLOOKUP(PP58,$AA$303:$AD$303,$AA$307:$AD$307,"check xlookup for volume 1500",0,1),IF(PK58>$V$307,_xlfn.XLOOKUP(PP58,$AA$303:$AD$303,$AA$308:$AD$308,"check xlookup for volume >1500",0,1),"")))))+IF(PX58=$W$311,$AA$311,$AA$312))/4)) -> 0 | AAE58: =IF(OR(ISBLANK($P$21),ISBLANK($P$23)),"Enter Major/Minor Street Speeds",IF(QD58=0,,(IF(QD58<5,_xlfn.XLOOKUP(QD58,$W$287:$W$290,$AA$287:$AA$290,"error",0,1),$AA$291)+IF(QI58<=$V$294,$AA$294,IF(AND(QI58>$V$294,QI58<=$V$295),$AA$295,IF(AND(QI58>$V$295,QI58<=$V$296),$AA$296,IF(AND(QI58>$V$296,QI58<=$V$297),$AA$297,$AA$298))))+IF(QN58<=$V$304,_xlfn.XLOOKUP(QS58,AA$303:$AD$303,$AA$304:$AD$304,"check xlookup for volume 150",0,1),IF(AND(QN58>$V$304,QN58<=$V$305),_xlfn.XLOOKUP(QS58,$AA$303:$AD$303,$AA$305:$AD$305,"check xlookup for volume 300",0,1),IF(AND(QN58>$V$305,QN58<=$V$306),_xlfn.XLOOKUP(QS58,$AA$303:$AD$303,$AA$306:$AD$306,"check xlookup for volume 900",0,1),IF(AND(QN58>$V$306,QN58<=$V$307),_xlfn.XLOOKUP(QS58,$AA$303:$AD$303,$AA$307:$AD$307,"check xlookup for volume 1500",0,1),IF(QN58>$V$307,_xlfn.XLOOKUP(QS58,$AA$303:$AD$303,$AA$308:$AD$308,"check xlookup for volume >1500",0,1),"")))))+IF(RA58=$W$311,$AA$311,$AA$312))/4)) -> 0 | AAO58: =IF(OR(ISBLANK($P$21),ISBLANK($P$23)),"Enter Major/Minor Street Speeds",IF(RG58=0,,(IF(RG58<5,_xlfn.XLOOKUP(RG58,$W$287:$W$290,$AA$287:$AA$290,"error",0,1),$AA$291)+IF(RL58<=$V$294,$AA$294,IF(AND(RL58>$V$294,RL58<=$V$295),$AA$295,IF(AND(RL58>$V$295,RL58<=$V$296),$AA$296,IF(AND(RL58>$V$296,RL58<=$V$297),$AA$297,$AA$298))))+IF(RQ58<=$V$304,_xlfn.XLOOKUP(RV58,AA$303:$AD$303,$AA$304:$AD$304,"check xlookup for volume 150",0,1),IF(AND(RQ58>$V$304,RQ58<=$V$305),_xlfn.XLOOKUP(RV58,$AA$303:$AD$303,$AA$305:$AD$305,"check xlookup for volume 300",0,1),IF(AND(RQ58>$V$305,RQ58<=$V$306),_xlfn.XLOOKUP(RV58,$AA$303:$AD$303,$AA$306:$AD$306,"check xlookup for volume 900",0,1),IF(AND(RQ58>$V$306,RQ58<=$V$307),_xlfn.XLOOKUP(RV58,$AA$303:$AD$303,$AA$307:$AD$307,"check xlookup for volume 1500",0,1),IF(RQ58>$V$307,_xlfn.XLOOKUP(RV58,$AA$303:$AD$303,$AA$308:$AD$308,"check xlookup for volume >1500",0,1),"")))))+IF(SD58=$W$311,$AA$311,$AA$312))/4)) -> 0 | AAY58: =IF(OR(ISBLANK($P$21),ISBLANK($P$23)),"Enter Major/Minor Street Speeds",IF(SJ58=0,,(IF(SJ58<5,_xlfn.XLOOKUP(SJ58,$W$287:$W$290,$AA$287:$AA$290,"error",0,1),$AA$291)+IF(SO58<=$V$294,$AA$294,IF(AND(SO58>$V$294,SO58<=$V$295),$AA$295,IF(AND(SO58>$V$295,SO58<=$V$296),$AA$296,IF(AND(SO58>$V$296,SO58<=$V$297),$AA$297,$AA$298))))+IF(ST58<=$V$304,_xlfn.XLOOKUP(SY58,AA$303:$AD$303,$AA$304:$AD$304,"check xlookup for volume 150",0,1),IF(AND(ST58>$V$304,ST58<=$V$305),_xlfn.XLOOKUP(SY58,$AA$303:$AD$303,$AA$305:$AD$305,"check xlookup for volume 300",0,1),IF(AND(ST58>$V$305,ST58<=$V$306),_xlfn.XLOOKUP(SY58,$AA$303:$AD$303,$AA$306:$AD$306,"check xlookup for volume 900",0,1),IF(AND(ST58>$V$306,ST58<=$V$307),_xlfn.XLOOKUP(SY58,$AA$303:$AD$303,$AA$307:$AD$307,"check xlookup for volume 1500",0,1),IF(ST58>$V$307,_xlfn.XLOOKUP(SY58,$AA$303:$AD$303,$AA$308:$AD$308,"check xlookup for volume >1500",0,1),"")))))+IF(TG58=$W$311,$AA$311,$AA$312))/4)) -> 0 | ABI58: =IF(OR(ISBLANK($P$21),ISBLANK($P$23)),"Enter Major/Minor Street Speeds",IF(TM58=0,,(IF(TM58<5,_xlfn.XLOOKUP(TM58,$W$287:$W$290,$AA$287:$AA$290,"error",0,1),$AA$291)+IF(TR58<=$V$294,$AA$294,IF(AND(TR58>$V$294,TR58<=$V$295),$AA$295,IF(AND(TR58>$V$295,TR58<=$V$296),$AA$296,IF(AND(TR58>$V$296,TR58<=$V$297),$AA$297,$AA$298))))+IF(TW58<=$V$304,_xlfn.XLOOKUP(UB58,AA$303:$AD$303,$AA$304:$AD$304,"check xlookup for volume 150",0,1),IF(AND(TW58>$V$304,TW58<=$V$305),_xlfn.XLOOKUP(UB58,$AA$303:$AD$303,$AA$305:$AD$305,"check xlookup for volume 300",0,1),IF(AND(TW58>$V$305,TW58<=$V$306),_xlfn.XLOOKUP(UB58,$AA$303:$AD$303,$AA$306:$AD$306,"check xlookup for volume 900",0,1),IF(AND(TW58>$V$306,TW58<=$V$307),_xlfn.XLOOKUP(UB58,$AA$303:$AD$303,$AA$307:$AD$307,"check xlookup for volume 1500",0,1),IF(TW58>$V$307,_xlfn.XLOOKUP(UB58,$AA$303:$AD$303,$AA$308:$AD$308,"check xlookup for volume >1500",0,1),"")))))+IF(UJ58=$W$311,$AA$311,$AA$312))/4)) -> 0
A60: Quadrant Roadway | T60: S-W | Z60: =UP60 -> 4.340922403 | AD60: No | AI60: Yes Crossing(s) with 2 stages | AN60: =SUM('QR S-W'!CX16:DC16) -> 3 | AS60: =Min_St_Spd_Lmt -> 35 | AX60: =SUM(SBT_Master,SBR_Master,SBU_Master,SBL_Master) -> 298 | BC60: Stop/Signal Controlled | BK60: Marked | BQ60: =MAX('QR S-W'!DD29:DF29,'QR S-W'!DJ17:DJ19,) -> 2 | BV60: =Min_St_Spd_Lmt -> 35 | CA60: =SUM(SBU_Master,NBT_Master,WBR_Master,EBL_Master) -> 838 | CF60: Stop/Signal Controlled | CN60: Marked | CT60: =SUM('QR S-W'!DJ17:DJ22) -> 3 | CY60: =Maj_St_Spd_Lmt -> 45 | DD60: =SUM(WBR_Master,WBT_Master,WBU_Master,WBL_Master) -> 1699 | DI60: Stop/Signal Controlled | DQ60: Marked | DW60: =MAX('QR S-W'!CW23:CW25,'QR S-W'!DG29:DI29) -> 2 | EB60: =Maj_St_Spd_Lmt -> 45 | EG60: =SUM(WBU_Master,NBR_Master,EBT_Master,SBL_Master) -> 1230 | EL60: Stop/Signal Controlled | ET60: Marked | EZ60: =SUM('QR S-W'!DD29:DI29) -> 3 | FE60: =Min_St_Spd_Lmt -> 35 | FJ60: =SUM(NBT_Master,NBR_Master,SBU_Master,WBU_Master,EBL_Master) -> 791 | FO60: Stop/Signal Controlled | FW60: Marked | GC60: =MAX('QR S-W'!DA16:DC16,'QR S-W'!CW26:CW28) -> 2 | GH60: =Min_St_Spd_Lmt -> 35 | GM60: =SUM(SBT_Master,NBU_Master,EBU_Master,SBL_Master) -> 247 | GR60: Stop/Signal Controlled | GZ60: Marked | HF60: =SUM('QR S-W'!CW23:CW28) -> 3 | HK60: =Maj_St_Spd_Lmt -> 45 | HP60: =SUM(EBT_Master,SBL_Master,EBU_Master,NBU_Master) -> 1051 | HU60: Stop/Signal Controlled | IC60: Marked | II60: =MAX('QR S-W'!DJ20:DJ22,'QR S-W'!CX16:CZ16) -> 2 | IN60: =Maj_St_Spd_Lmt -> 45 | IS60: =SUM(WBT_Master,SBR_Master,SBU_Master,WBU_Master,WBL_Master) -> 1524 | IX60: Stop/Signal Controlled | JF60: Marked | JL60: =SUM('QR S-W'!CX44:DC44) -> 3 | JQ60: =Min_St_Spd_Lmt -> 35 | JV60: =SUM(NBU_Master,EBU_Master,SBT_Master,SBL_Master) -> 247 | KA60: Stop/Signal Controlled | KI60: Unmarked | KO60: =MAX('QR S-W'!CW51:CW53,'QR S-W'!DD57:DF57) -> 2 | KT60: =Min_St_Spd_Lmt -> 35 | KY60: =SUM(EBL_Master,NBT_Master,WBU_Master,SBU_Master,NBR_Master) -> 791 | LD60: Free Flowing | LL60: Unmarked | LR60: =SUM('QR S-W'!DA57:DF57) -> 3 | LW60: =Min_St_Spd_Lmt -> 35 | MB60: =SUM(NBT_Master,NBL_Master,NBU_Master,NBR_Master) -> 587 | MG60: Stop/Signal Controlled | MO60: Marked | MU60: =MAX('QR S-W'!CW54:CW56,'QR S-W'!DA44:DC44) -> 2 | MZ60: =Min_St_Spd_Lmt -> 35 | NE60: =SUM(SBT_Master,EBR_Master,NBU_Master,WBL_Master) -> 760 | NJ60: Stop/Signal Controlled | NR60: Marked | NX60: =SUM('QR S-W'!CW51:CW56)+MAX('QR S-W'!CX44:CZ44,'QR S-W'!DA57:DC57) -> 3 | OC60: =Maj_St_Spd_Lmt -> 45 | OH60: =SUM(EBL_Master,EBR_Master,NBL_Master,NBU_Master,SBU_Master,WBU_Master,EBU_Master,WBL_Master,SBL_Master) -> 983 | OM60: Stop/Signal Controlled | OU60: Marked | PA60: =SUM('QR S-W'!CH17:CH22) -> 3 | PF60: =Maj_St_Spd_Lmt -> 45 | PK60: =SUM(WBU_Master,SBU_Master,WBT_Master,WBL_Master,SBR_Master) -> 1524 | PP60: Stop/Signal Controlled | PX60: Marked | QD60: =MAX('QR S-W'!CE29:CG29,'QR S-W'!BU23:BU25) -> 2 | QI60: =Maj_St_Spd_Lmt -> 45 | QN60: =SUM(EBT_Master,EBU_Master,NBU_Master,SBL_Master) -> 1051 | QS60: Stop/Signal Controlled | RA60: Marked | RG60: =SUM('QR S-W'!CB29:CG29)+MAX('QR S-W'!BU26:BU28,'QR S-W'!CH20:CH22) -> 3 | RL60: =Min_St_Spd_Lmt -> 35 | RQ60: =SUM(NBU_Master,SBU_Master,EBU_Master,WBU_Master,NBL_Master,WBL_Master,EBR_Master,EBL_Master,SBL_Master) -> 983 | RV60: Stop/Signal Controlled | SD60: Marked | SJ60: =SUM('QR S-W'!BU23:BU28) -> 3 | SO60: =Maj_St_Spd_Lmt -> 45 | ST60: =SUM(EBT_Master,EBR_Master,EBL_Master,EBU_Master) -> 1530 | SY60: Stop/Signal Controlled | TG60: Unmarked | TM60: =MAX('QR S-W'!CH17:CH19,'QR S-W'!CB29:CD29) -> 2 | TR60: =Maj_St_Spd_Lmt -> 45 | TW60: =SUM(EBU_Master,WBT_Master,NBL_Master,SBR_Master) -> 1286 | UB60: Free Flowing | UJ60: Unmarked | UP60: =IFERROR((((SUM(SQRT(UU60),SQRT(VE60),SQRT(VO60),SQRT(VY60),SQRT(WI60),SQRT(WS60),SQRT(XC60),SQRT(XM60),SQRT(XW60),SQRT(YG60),SQRT(YQ60),SQRT(ZA60),SQRT(ZK60),SQRT(ZU60),SQRT(AAE60),SQRT(AAO60),SQRT(AAY60),SQRT(ABI60))/COUNTIF(UU60:ABR61,">0"))^2)*(_xlfn.XLOOKUP(AD60,$W$322:$W$323,$AA$322:$AA$323,"lookup error",0,1))*(_xlfn.XLOOKUP(AI60,Multistage_Crossing,$AA$316:$AA$318,"lookup error",0,1))),"Enter Major/Minor Street Speeds") -> 4.340922403 | UU60: =IF(OR(ISBLANK($P$21),ISBLANK($P$23)),"Enter Major/Minor Street Speeds",IF(AN60=0,,(IF(AN60<5,_xlfn.XLOOKUP(AN60,$W$287:$W$290,$AA$287:$AA$290,"error",0,1),$AA$291)+IF(AS60<=$V$294,$AA$294,IF(AND(AS60>$V$294,AS60<=$V$295),$AA$295,IF(AND(AS60>$V$295,AS60<=$V$296),$AA$296,IF(AND(AS60>$V$296,AS60<=$V$297),$AA$297,$AA$298))))+IF(AX60<=$V$304,_xlfn.XLOOKUP(BC60,AA$303:$AD$303,$AA$304:$AD$304,"check xlookup for volume 150",0,1),IF(AND(AX60>$V$304,AX60<=$V$305),_xlfn.XLOOKUP(BC60,$AA$303:$AD$303,$AA$305:$AD$305,"check xlookup for volume 300",0,1),IF(AND(AX60>$V$305,AX60<=$V$306),_xlfn.XLOOKUP(BC60,$AA$303:$AD$303,$AA$306:$AD$306,"check xlookup for volume 900",0,1),IF(AND(AX60>$V$306,AX60<=$V$307),_xlfn.XLOOKUP(BC60,$AA$303:$AD$303,$AA$307:$AD$307,"check xlookup for volume 1500",0,1),IF(AX60>$V$307,_xlfn.XLOOKUP(BC60,$AA$303:$AD$303,$AA$308:$AD$308,"check xlookup for volume >1500",0,1),"")))))+IF(BK60=$W$311,$AA$311,$AA$312))/4)) -> 4 | VE60: =IF(OR(ISBLANK($P$21),ISBLANK($P$23)),"Enter Major/Minor Street Speeds",IF(BQ60=0,,(IF(BQ60<5,_xlfn.XLOOKUP(BQ60,$W$287:$W$290,$AA$287:$AA$290,"error",0,1),$AA$291)+IF(BV60<=$V$294,$AA$294,IF(AND(BV60>$V$294,BV60<=$V$295),$AA$295,IF(AND(BV60>$V$295,BV60<=$V$296),$AA$296,IF(AND(BV60>$V$296,BV60<=$V$297),$AA$297,$AA$298))))+IF(CA60<=$V$304,_xlfn.XLOOKUP(CF60,AA$303:$AD$303,$AA$304:$AD$304,"check xlookup for volume 150",0,1),IF(AND(CA60>$V$304,CA60<=$V$305),_xlfn.XLOOKUP(CF60,$AA$303:$AD$303,$AA$305:$AD$305,"check xlookup for volume 300",0,1),IF(AND(CA60>$V$305,CA60<=$V$306),_xlfn.XLOOKUP(CF60,$AA$303:$AD$303,$AA$306:$AD$306,"check xlookup for volume 900",0,1),IF(AND(CA60>$V$306,CA60<=$V$307),_xlfn.XLOOKUP(CF60,$AA$303:$AD$303,$AA$307:$AD$307,"check xlookup for volume 1500",0,1),IF(CA60>$V$307,_xlfn.XLOOKUP(CF60,$AA$303:$AD$303,$AA$308:$AD$308,"check xlookup for volume >1500",0,1),"")))))+IF(CN60=$W$311,$AA$311,$AA$312))/4)) -> 4.25 | VO60: =IF(OR(ISBLANK($P$21),ISBLANK($P$23)),"Enter Major/Minor Street Speeds",IF(CT60=0,,(IF(CT60<5,_xlfn.XLOOKUP(CT60,$W$287:$W$290,$AA$287:$AA$290,"error",0,1),$AA$291)+IF(CY60<=$V$294,$AA$294,IF(AND(CY60>$V$294,CY60<=$V$295),$AA$295,IF(AND(CY60>$V$295,CY60<=$V$296),$AA$296,IF(AND(CY60>$V$296,CY60<=$V$297),$AA$297,$AA$298))))+IF(DD60<=$V$304,_xlfn.XLOOKUP(DI60,AA$303:$AD$303,$AA$304:$AD$304,"check xlookup for volume 150",0,1),IF(AND(DD60>$V$304,DD60<=$V$305),_xlfn.XLOOKUP(DI60,$AA$303:$AD$303,$AA$305:$AD$305,"check xlookup for volume 300",0,1),IF(AND(DD60>$V$305,DD60<=$V$306),_xlfn.XLOOKUP(DI60,$AA$303:$AD$303,$AA$306:$AD$306,"check xlookup for volume 900",0,1),IF(AND(DD60>$V$306,DD60<=$V$307),_xlfn.XLOOKUP(DI60,$AA$303:$AD$303,$AA$307:$AD$307,"check xlookup for volume 1500",0,1),IF(DD60>$V$307,_xlfn.XLOOKUP(DI60,$AA$303:$AD$303,$AA$308:$AD$308,"check xlookup for volume >1500",0,1),"")))))+IF(DQ60=$W$311,$AA$311,$AA$312))/4)) -> 3.75 | VY60: =IF(OR(ISBLANK($P$21),ISBLANK($P$23)),"Enter Major/Minor Street Speeds",IF(DW60=0,,(IF(DW60<5,_xlfn.XLOOKUP(DW60,$W$287:$W$290,$AA$287:$AA$290,"error",0,1),$AA$291)+IF(EB60<=$V$294,$AA$294,IF(AND(EB60>$V$294,EB60<=$V$295),$AA$295,IF(AND(EB60>$V$295,EB60<=$V$296),$AA$296,IF(AND(EB60>$V$296,EB60<=$V$297),$AA$297,$AA$298))))+IF(EG60<=$V$304,_xlfn.XLOOKUP(EL60,AA$303:$AD$303,$AA$304:$AD$304,"check xlookup for volume 150",0,1),IF(AND(EG60>$V$304,EG60<=$V$305),_xlfn.XLOOKUP(EL60,$AA$303:$AD$303,$AA$305:$AD$305,"check xlookup for volume 300",0,1),IF(AND(EG60>$V$305,EG60<=$V$306),_xlfn.XLOOKUP(EL60,$AA$303:$AD$303,$AA$306:$AD$306,"check xlookup for volume 900",0,1),IF(AND(EG60>$V$306,EG60<=$V$307),_xlfn.XLOOKUP(EL60,$AA$303:$AD$303,$AA$307:$AD$307,"check xlookup for volume 1500",0,1),IF(EG60>$V$307,_xlfn.XLOOKUP(EL60,$AA$303:$AD$303,$AA$308:$AD$308,"check xlookup for volume >1500",0,1),"")))))+IF(ET60=$W$311,$AA$311,$AA$312))/4)) -> 4 | WI60: =IF(OR(ISBLANK($P$21),ISBLANK($P$23)),"Enter Major/Minor Street Speeds",IF(EZ60=0,,(IF(EZ60<5,_xlfn.XLOOKUP(EZ60,$W$287:$W$290,$AA$287:$AA$290,"error",0,1),$AA$291)+IF(FE60<=$V$294,$AA$294,IF(AND(FE60>$V$294,FE60<=$V$295),$AA$295,IF(AND(FE60>$V$295,FE60<=$V$296),$AA$296,IF(AND(FE60>$V$296,FE60<=$V$297),$AA$297,$AA$298))))+IF(FJ60<=$V$304,_xlfn.XLOOKUP(FO60,AA$303:$AD$303,$AA$304:$AD$304,"check xlookup for volume 150",0,1),IF(AND(FJ60>$V$304,FJ60<=$V$305),_xlfn.XLOOKUP(FO60,$AA$303:$AD$303,$AA$305:$AD$305,"check xlookup for volume 300",0,1),IF(AND(FJ60>$V$305,FJ60<=$V$306),_xlfn.XLOOKUP(FO60,$AA$303:$AD$303,$AA$306:$AD$306,"check xlookup for volume 900",0,1),IF(AND(FJ60>$V$306,FJ60<=$V$307),_xlfn.XLOOKUP(FO60,$AA$303:$AD$303,$AA$307:$AD$307,"check xlookup for volume 1500",0,1),IF(FJ60>$V$307,_xlfn.XLOOKUP(FO60,$AA$303:$AD$303,$AA$308:$AD$308,"check xlookup for volume >1500",0,1),"")))))+IF(FW60=$W$311,$AA$311,$AA$312))/4)) -> 4 | WS60: =IF(OR(ISBLANK($P$21),ISBLANK($P$23)),"Enter Major/Minor Street Speeds",IF(GC60=0,,(IF(GC60<5,_xlfn.XLOOKUP(GC60,$W$287:$W$290,$AA$287:$AA$290,"error",0,1),$AA$291)+IF(GH60<=$V$294,$AA$294,IF(AND(GH60>$V$294,GH60<=$V$295),$AA$295,IF(AND(GH60>$V$295,GH60<=$V$296),$AA$296,IF(AND(GH60>$V$296,GH60<=$V$297),$AA$297,$AA$298))))+IF(GM60<=$V$304,_xlfn.XLOOKUP(GR60,AA$303:$AD$303,$AA$304:$AD$304,"check xlookup for volume 150",0,1),IF(AND(GM60>$V$304,GM60<=$V$305),_xlfn.XLOOKUP(GR60,$AA$303:$AD$303,$AA$305:$AD$305,"check xlookup for volume 300",0,1),IF(AND(GM60>$V$305,GM60<=$V$306),_xlfn.XLOOKUP(GR60,$AA$303:$AD$303,$AA$306:$AD$306,"check xlookup for volume 900",0,1),IF(AND(GM60>$V$306,GM60<=$V$307),_xlfn.XLOOKUP(GR60,$AA$303:$AD$303,$AA$307:$AD$307,"check xlookup for volume 1500",0,1),IF(GM60>$V$307,_xlfn.XLOOKUP(GR60,$AA$303:$AD$303,$AA$308:$AD$308,"check xlookup for volume >1500",0,1),"")))))+IF(GZ60=$W$311,$AA$311,$AA$312))/4)) -> 4.25 | XC60: =IF(OR(ISBLANK($P$21),ISBLANK($P$23)),"Enter Major/Minor Street Speeds",IF(HF60=0,,(IF(HF60<5,_xlfn.XLOOKUP(HF60,$W$287:$W$290,$AA$287:$AA$290,"error",0,1),$AA$291)+IF(HK60<=$V$294,$AA$294,IF(AND(HK60>$V$294,HK60<=$V$295),$AA$295,IF(AND(HK60>$V$295,HK60<=$V$296),$AA$296,IF(AND(HK60>$V$296,HK60<=$V$297),$AA$297,$AA$298))))+IF(HP60<=$V$304,_xlfn.XLOOKUP(HU60,AA$303:$AD$303,$AA$304:$AD$304,"check xlookup for volume 150",0,1),IF(AND(HP60>$V$304,HP60<=$V$305),_xlfn.XLOOKUP(HU60,$AA$303:$AD$303,$AA$305:$AD$305,"check xlookup for volume 300",0,1),IF(AND(HP60>$V$305,HP60<=$V$306),_xlfn.XLOOKUP(HU60,$AA$303:$AD$303,$AA$306:$AD$306,"check xlookup for volume 900",0,1),IF(AND(HP60>$V$306,HP60<=$V$307),_xlfn.XLOOKUP(HU60,$AA$303:$AD$303,$AA$307:$AD$307,"check xlookup for volume 1500",0,1),IF(HP60>$V$307,_xlfn.XLOOKUP(HU60,$AA$303:$AD$303,$AA$308:$AD$308,"check xlookup for volume >1500",0,1),"")))))+IF(IC60=$W$311,$AA$311,$AA$312))/4)) -> 3.75 | XM60: =IF(OR(ISBLANK($P$21),ISBLANK($P$23)),"Enter Major/Minor Street Speeds",IF(II60=0,,(IF(II60<5,_xlfn.XLOOKUP(II60,$W$287:$W$290,$AA$287:$AA$290,"error",0,1),$AA$291)+IF(IN60<=$V$294,$AA$294,IF(AND(IN60>$V$294,IN60<=$V$295),$AA$295,IF(AND(IN60>$V$295,IN60<=$V$296),$AA$296,IF(AND(IN60>$V$296,IN60<=$V$297),$AA$297,$AA$298))))+IF(IS60<=$V$304,_xlfn.XLOOKUP(IX60,AA$303:$AD$303,$AA$304:$AD$304,"check xlookup for volume 150",0,1),IF(AND(IS60>$V$304,IS60<=$V$305),_xlfn.XLOOKUP(IX60,$AA$303:$AD$303,$AA$305:$AD$305,"check xlookup for volume 300",0,1),IF(AND(IS60>$V$305,IS60<=$V$306),_xlfn.XLOOKUP(IX60,$AA$303:$AD$303,$AA$306:$AD$306,"check xlookup for volume 900",0,1),IF(AND(IS60>$V$306,IS60<=$V$307),_xlfn.XLOOKUP(IX60,$AA$303:$AD$303,$AA$307:$AD$307,"check xlookup for volume 1500",0,1),IF(IS60>$V$307,_xlfn.XLOOKUP(IX60,$AA$303:$AD$303,$AA$308:$AD$308,"check xlookup for volume >1500",0,1),"")))))+IF(JF60=$W$311,$AA$311,$AA$312))/4)) -> 4 | XW60: =IF(OR(ISBLANK($P$21),ISBLANK($P$23)),"Enter Major/Minor Street Speeds",IF(JL60=0,,(IF(JL60<5,_xlfn.XLOOKUP(JL60,$W$287:$W$290,$AA$287:$AA$290,"error",0,1),$AA$291)+IF(JQ60<=$V$294,$AA$294,IF(AND(JQ60>$V$294,JQ60<=$V$295),$AA$295,IF(AND(JQ60>$V$295,JQ60<=$V$296),$AA$296,IF(AND(JQ60>$V$296,JQ60<=$V$297),$AA$297,$AA$298))))+IF(JV60<=$V$304,_xlfn.XLOOKUP(KA60,AA$303:$AD$303,$AA$304:$AD$304,"check xlookup for volume 150",0,1),IF(AND(JV60>$V$304,JV60<=$V$305),_xlfn.XLOOKUP(KA60,$AA$303:$AD$303,$AA$305:$AD$305,"check xlookup for volume 300",0,1),IF(AND(JV60>$V$305,JV60<=$V$306),_xlfn.XLOOKUP(KA60,$AA$303:$AD$303,$AA$306:$AD$306,"check xlookup for volume 900",0,1),IF(AND(JV60>$V$306,JV60<=$V$307),_xlfn.XLOOKUP(KA60,$AA$303:$AD$303,$AA$307:$AD$307,"check xlookup for volume 1500",0,1),IF(JV60>$V$307,_xlfn.XLOOKUP(KA60,$AA$303:$AD$303,$AA$308:$AD$308,"check xlookup for volume >1500",0,1),"")))))+IF(KI60=$W$311,$AA$311,$AA$312))/4)) -> 3 | YG60: =IF(OR(ISBLANK($P$21),ISBLANK($P$23)),"Enter Major/Minor Street Speeds",IF(KO60=0,,(IF(KO60<5,_xlfn.XLOOKUP(KO60,$W$287:$W$290,$AA$287:$AA$290,"error",0,1),$AA$291)+IF(KT60<=$V$294,$AA$294,IF(AND(KT60>$V$294,KT60<=$V$295),$AA$295,IF(AND(KT60>$V$295,KT60<=$V$296),$AA$296,IF(AND(KT60>$V$296,KT60<=$V$297),$AA$297,$AA$298))))+IF(KY60<=$V$304,_xlfn.XLOOKUP(LD60,AA$303:$AD$303,$AA$304:$AD$304,"check xlookup for volume 150",0,1),IF(AND(KY60>$V$304,KY60<=$V$305),_xlfn.XLOOKUP(LD60,$AA$303:$AD$303,$AA$305:$AD$305,"check xlookup for volume 300",0,1),IF(AND(KY60>$V$305,KY60<=$V$306),_xlfn.XLOOKUP(LD60,$AA$303:$AD$303,$AA$306:$AD$306,"check xlookup for volume 900",0,1),IF(AND(KY60>$V$306,KY60<=$V$307),_xlfn.XLOOKUP(LD60,$AA$303:$AD$303,$AA$307:$AD$307,"check xlookup for volume 1500",0,1),IF(KY60>$V$307,_xlfn.XLOOKUP(LD60,$AA$303:$AD$303,$AA$308:$AD$308,"check xlookup for volume >1500",0,1),"")))))+IF(LL60=$W$311,$AA$311,$AA$312))/4)) -> 2.25 | YQ60: =IF(OR(ISBLANK($P$21),ISBLANK($P$23)),"Enter Major/Minor Street Speeds",IF(LR60=0,,(IF(LR60<5,_xlfn.XLOOKUP(LR60,$W$287:$W$290,$AA$287:$AA$290,"error",0,1),$AA$291)+IF(LW60<=$V$294,$AA$294,IF(AND(LW60>$V$294,LW60<=$V$295),$AA$295,IF(AND(LW60>$V$295,LW60<=$V$296),$AA$296,IF(AND(LW60>$V$296,LW60<=$V$297),$AA$297,$AA$298))))+IF(MB60<=$V$304,_xlfn.XLOOKUP(MG60,AA$303:$AD$303,$AA$304:$AD$304,"check xlookup for volume 150",0,1),IF(AND(MB60>$V$304,MB60<=$V$305),_xlfn.XLOOKUP(MG60,$AA$303:$AD$303,$AA$305:$AD$305,"check xlookup for volume 300",0,1),IF(AND(MB60>$V$305,MB60<=$V$306),_xlfn.XLOOKUP(MG60,$AA$303:$AD$303,$AA$306:$AD$306,"check xlookup for volume 900",0,1),IF(AND(MB60>$V$306,MB60<=$V$307),_xlfn.XLOOKUP(MG60,$AA$303:$AD$303,$AA$307:$AD$307,"check xlookup for volume 1500",0,1),IF(MB60>$V$307,_xlfn.XLOOKUP(MG60,$AA$303:$AD$303,$AA$308:$AD$308,"check xlookup for volume >1500",0,1),"")))))+IF(MO60=$W$311,$AA$311,$AA$312))/4)) -> 4 | ZA60: =IF(OR(ISBLANK($P$21),ISBLANK($P$23)),"Enter Major/Minor Street Speeds",IF(MU60=0,,(IF(MU60<5,_xlfn.XLOOKUP(MU60,$W$287:$W$290,$AA$287:$AA$290,"error",0,1),$AA$291)+IF(MZ60<=$V$294,$AA$294,IF(AND(MZ60>$V$294,MZ60<=$V$295),$AA$295,IF(AND(MZ60>$V$295,MZ60<=$V$296),$AA$296,IF(AND(MZ60>$V$296,MZ60<=$V$297),$AA$297,$AA$298))))+IF(NE60<=$V$304,_xlfn.XLOOKUP(NJ60,AA$303:$AD$303,$AA$304:$AD$304,"check xlookup for volume 150",0,1),IF(AND(NE60>$V$304,NE60<=$V$305),_xlfn.XLOOKUP(NJ60,$AA$303:$AD$303,$AA$305:$AD$305,"check xlookup for volume 300",0,1),IF(AND(NE60>$V$305,NE60<=$V$306),_xlfn.XLOOKUP(NJ60,$AA$303:$AD$303,$AA$306:$AD$306,"check xlookup for volume 900",0,1),IF(AND(NE60>$V$306,NE60<=$V$307),_xlfn.XLOOKUP(NJ60,$AA$303:$AD$303,$AA$307:$AD$307,"check xlookup for volume 1500",0,1),IF(NE60>$V$307,_xlfn.XLOOKUP(NJ60,$AA$303:$AD$303,$AA$308:$AD$308,"check xlookup for volume >1500",0,1),"")))))+IF(NR60=$W$311,$AA$311,$AA$312))/4)) -> 4.25 | ZK60: =IF(OR(ISBLANK($P$21),ISBLANK($P$23)),"Enter Major/Minor Street Speeds",IF(NX60=0,,(IF(NX60<5,_xlfn.XLOOKUP(NX60,$W$287:$W$290,$AA$287:$AA$290,"error",0,1),$AA$291)+IF(OC60<=$V$294,$AA$294,IF(AND(OC60>$V$294,OC60<=$V$295),$AA$295,IF(AND(OC60>$V$295,OC60<=$V$296),$AA$296,IF(AND(OC60>$V$296,OC60<=$V$297),$AA$297,$AA$298))))+IF(OH60<=$V$304,_xlfn.XLOOKUP(OM60,AA$303:$AD$303,$AA$304:$AD$304,"check xlookup for volume 150",0,1),IF(AND(OH60>$V$304,OH60<=$V$305),_xlfn.XLOOKUP(OM60,$AA$303:$AD$303,$AA$305:$AD$305,"check xlookup for volume 300",0,1),IF(AND(OH60>$V$305,OH60<=$V$306),_xlfn.XLOOKUP(OM60,$AA$303:$AD$303,$AA$306:$AD$306,"check xlookup for volume 900",0,1),IF(AND(OH60>$V$306,OH60<=$V$307),_xlfn.XLOOKUP(OM60,$AA$303:$AD$303,$AA$307:$AD$307,"check xlookup for volume 1500",0,1),IF(OH60>$V$307,_xlfn.XLOOKUP(OM60,$AA$303:$AD$303,$AA$308:$AD$308,"check xlookup for volume >1500",0,1),"")))))+IF(OU60=$W$311,$AA$311,$AA$312))/4)) -> 3.75 | ZU60: =IF(OR(ISBLANK($P$21),ISBLANK($P$23)),"Enter Major/Minor Street Speeds",IF(PA60=0,,(IF(PA60<5,_xlfn.XLOOKUP(PA60,$W$287:$W$290,$AA$287:$AA$290,"error",0,1),$AA$291)+IF(PF60<=$V$294,$AA$294,IF(AND(PF60>$V$294,PF60<=$V$295),$AA$295,IF(AND(PF60>$V$295,PF60<=$V$296),$AA$296,IF(AND(PF60>$V$296,PF60<=$V$297),$AA$297,$AA$298))))+IF(PK60<=$V$304,_xlfn.XLOOKUP(PP60,AA$303:$AD$303,$AA$304:$AD$304,"check xlookup for volume 150",0,1),IF(AND(PK60>$V$304,PK60<=$V$305),_xlfn.XLOOKUP(PP60,$AA$303:$AD$303,$AA$305:$AD$305,"check xlookup for volume 300",0,1),IF(AND(PK60>$V$305,PK60<=$V$306),_xlfn.XLOOKUP(PP60,$AA$303:$AD$303,$AA$306:$AD$306,"check xlookup for volume 900",0,1),IF(AND(PK60>$V$306,PK60<=$V$307),_xlfn.XLOOKUP(PP60,$AA$303:$AD$303,$AA$307:$AD$307,"check xlookup for volume 1500",0,1),IF(PK60>$V$307,_xlfn.XLOOKUP(PP60,$AA$303:$AD$303,$AA$308:$AD$308,"check xlookup for volume >1500",0,1),"")))))+IF(PX60=$W$311,$AA$311,$AA$312))/4)) -> 3.75 | AAE60: =IF(OR(ISBLANK($P$21),ISBLANK($P$23)),"Enter Major/Minor Street Speeds",IF(QD60=0,,(IF(QD60<5,_xlfn.XLOOKUP(QD60,$W$287:$W$290,$AA$287:$AA$290,"error",0,1),$AA$291)+IF(QI60<=$V$294,$AA$294,IF(AND(QI60>$V$294,QI60<=$V$295),$AA$295,IF(AND(QI60>$V$295,QI60<=$V$296),$AA$296,IF(AND(QI60>$V$296,QI60<=$V$297),$AA$297,$AA$298))))+IF(QN60<=$V$304,_xlfn.XLOOKUP(QS60,AA$303:$AD$303,$AA$304:$AD$304,"check xlookup for volume 150",0,1),IF(AND(QN60>$V$304,QN60<=$V$305),_xlfn.XLOOKUP(QS60,$AA$303:$AD$303,$AA$305:$AD$305,"check xlookup for volume 300",0,1),IF(AND(QN60>$V$305,QN60<=$V$306),_xlfn.XLOOKUP(QS60,$AA$303:$AD$303,$AA$306:$AD$306,"check xlookup for volume 900",0,1),IF(AND(QN60>$V$306,QN60<=$V$307),_xlfn.XLOOKUP(QS60,$AA$303:$AD$303,$AA$307:$AD$307,"check xlookup for volume 1500",0,1),IF(QN60>$V$307,_xlfn.XLOOKUP(QS60,$AA$303:$AD$303,$AA$308:$AD$308,"check xlookup for volume >1500",0,1),"")))))+IF(RA60=$W$311,$AA$311,$AA$312))/4)) -> 4 | AAO60: =IF(OR(ISBLANK($P$21),ISBLANK($P$23)),"Enter Major/Minor Street Speeds",IF(RG60=0,,(IF(RG60<5,_xlfn.XLOOKUP(RG60,$W$287:$W$290,$AA$287:$AA$290,"error",0,1),$AA$291)+IF(RL60<=$V$294,$AA$294,IF(AND(RL60>$V$294,RL60<=$V$295),$AA$295,IF(AND(RL60>$V$295,RL60<=$V$296),$AA$296,IF(AND(RL60>$V$296,RL60<=$V$297),$AA$297,$AA$298))))+IF(RQ60<=$V$304,_xlfn.XLOOKUP(RV60,AA$303:$AD$303,$AA$304:$AD$304,"check xlookup for volume 150",0,1),IF(AND(RQ60>$V$304,RQ60<=$V$305),_xlfn.XLOOKUP(RV60,$AA$303:$AD$303,$AA$305:$AD$305,"check xlookup for volume 300",0,1),IF(AND(RQ60>$V$305,RQ60<=$V$306),_xlfn.XLOOKUP(RV60,$AA$303:$AD$303,$AA$306:$AD$306,"check xlookup for volume 900",0,1),IF(AND(RQ60>$V$306,RQ60<=$V$307),_xlfn.XLOOKUP(RV60,$AA$303:$AD$303,$AA$307:$AD$307,"check xlookup for volume 1500",0,1),IF(RQ60>$V$307,_xlfn.XLOOKUP(RV60,$AA$303:$AD$303,$AA$308:$AD$308,"check xlookup for volume >1500",0,1),"")))))+IF(SD60=$W$311,$AA$311,$AA$312))/4)) -> 4 | AAY60: =IF(OR(ISBLANK($P$21),ISBLANK($P$23)),"Enter Major/Minor Street Speeds",IF(SJ60=0,,(IF(SJ60<5,_xlfn.XLOOKUP(SJ60,$W$287:$W$290,$AA$287:$AA$290,"error",0,1),$AA$291)+IF(SO60<=$V$294,$AA$294,IF(AND(SO60>$V$294,SO60<=$V$295),$AA$295,IF(AND(SO60>$V$295,SO60<=$V$296),$AA$296,IF(AND(SO60>$V$296,SO60<=$V$297),$AA$297,$AA$298))))+IF(ST60<=$V$304,_xlfn.XLOOKUP(SY60,AA$303:$AD$303,$AA$304:$AD$304,"check xlookup for volume 150",0,1),IF(AND(ST60>$V$304,ST60<=$V$305),_xlfn.XLOOKUP(SY60,$AA$303:$AD$303,$AA$305:$AD$305,"check xlookup for volume 300",0,1),IF(AND(ST60>$V$305,ST60<=$V$306),_xlfn.XLOOKUP(SY60,$AA$303:$AD$303,$AA$306:$AD$306,"check xlookup for volume 900",0,1),IF(AND(ST60>$V$306,ST60<=$V$307),_xlfn.XLOOKUP(SY60,$AA$303:$AD$303,$AA$307:$AD$307,"check xlookup for volume 1500",0,1),IF(ST60>$V$307,_xlfn.XLOOKUP(SY60,$AA$303:$AD$303,$AA$308:$AD$308,"check xlookup for volume >1500",0,1),"")))))+IF(TG60=$W$311,$AA$311,$AA$312))/4)) -> 2.75 | ABI60: =IF(OR(ISBLANK($P$21),ISBLANK($P$23)),"Enter Major/Minor Street Speeds",IF(TM60=0,,(IF(TM60<5,_xlfn.XLOOKUP(TM60,$W$287:$W$290,$AA$287:$AA$290,"error",0,1),$AA$291)+IF(TR60<=$V$294,$AA$294,IF(AND(TR60>$V$294,TR60<=$V$295),$AA$295,IF(AND(TR60>$V$295,TR60<=$V$296),$AA$296,IF(AND(TR60>$V$296,TR60<=$V$297),$AA$297,$AA$298))))+IF(TW60<=$V$304,_xlfn.XLOOKUP(UB60,AA$303:$AD$303,$AA$304:$AD$304,"check xlookup for volume 150",0,1),IF(AND(TW60>$V$304,TW60<=$V$305),_xlfn.XLOOKUP(UB60,$AA$303:$AD$303,$AA$305:$AD$305,"check xlookup for volume 300",0,1),IF(AND(TW60>$V$305,TW60<=$V$306),_xlfn.XLOOKUP(UB60,$AA$303:$AD$303,$AA$306:$AD$306,"check xlookup for volume 900",0,1),IF(AND(TW60>$V$306,TW60<=$V$307),_xlfn.XLOOKUP(UB60,$AA$303:$AD$303,$AA$307:$AD$307,"check xlookup for volume 1500",0,1),IF(TW60>$V$307,_xlfn.XLOOKUP(UB60,$AA$303:$AD$303,$AA$308:$AD$308,"check xlookup for volume >1500",0,1),"")))))+IF(UJ60=$W$311,$AA$311,$AA$312))/4)) -> 2
T62: N-E | Z62: =UP62 -> 4.340922403 | AD62: No | AI62: Yes Crossing(s) with 2 stages | AN62: =SUM('QR N-E'!CB60:CG60) -> 3 | AS62: =Min_St_Spd_Lmt -> 35 | AX62: =SUM(NBT_Master,NBR_Master,NBL_Master,NBU_Master) -> 587 | BC62: Stop/Signal Controlled | BK62: Marked | BQ62: =MAX('QR N-E'!BY47:CA47,'QR N-E'!BU57:BU59) -> 2 | BV62: =Min_St_Spd_Lmt -> 35 | CA62: =SUM(EBR_Master,WBL_Master,SBT_Master,NBU_Master) -> 760 | CF62: Stop/Signal Controlled | CN62: Marked | CT62: =SUM('QR N-E'!BU54:BU59) -> 3 | CY62: =Maj_St_Spd_Lmt -> 45 | DD62: =SUM(EBL_Master,EBT_Master,EBR_Master,EBU_Master) -> 1530 | DI62: Stop/Signal Controlled | DQ62: Marked | DW62: =MAX('QR N-E'!BV47:BX47,'QR N-E'!CH51:CH53) -> 2 | EB62: =Maj_St_Spd_Lmt -> 45 | EG62: =SUM(NBL_Master,WBT_Master,SBR_Master,EBU_Master) -> 1286 | EL62: Stop/Signal Controlled | ET62: Marked | EZ62: =SUM('QR N-E'!BV47:CA47) -> 3 | FE62: =Min_St_Spd_Lmt -> 35 | FJ62: =SUM(SBT_Master,SBR_Master,WBL_Master,NBU_Master,EBU_Master) -> 607 | FO62: Stop/Signal Controlled | FW62: Marked | GC62: =MAX('QR N-E'!CB60:CD60,'QR N-E'!CH48:CH50) -> 2 | GH62: =Min_St_Spd_Lmt -> 35 | GM62: =SUM(NBT_Master,NBL_Master,SBU_Master,WBU_Master) -> 408 | GR62: Stop/Signal Controlled | GZ62: Marked | HF62: =SUM('QR N-E'!CH48:CH53) -> 3 | HK62: =Maj_St_Spd_Lmt -> 45 | HP62: =SUM(NBL_Master,WBT_Master,WBU_Master,SBU_Master) -> 1235 | HU62: Stop/Signal Controlled | IC62: Marked | II62: =MAX('QR N-E'!BU54:BU56,'QR N-E'!CE60:CG60) -> 2 | IN62: =Maj_St_Spd_Lmt -> 45 | IS62: =SUM(EBL_Master,EBT_Master,NBR_Master,NBU_Master,EBU_Master) -> 1505 | IX62: Stop/Signal Controlled | JF62: Marked | JL62: =SUM('QR N-E'!CB32:CG32) -> 3 | JQ62: =Min_St_Spd_Lmt -> 35 | JV62: =SUM(NBT_Master,NBL_Master,WBU_Master,SBU_Master) -> 408 | KA62: Stop/Signal Controlled | KI62: Unmarked | KO62: =MAX('QR N-E'!BY19:CA19,'QR N-E'!CH29:CH31) -> 2 | KT62: =Min_St_Spd_Lmt -> 35 | KY62: =SUM(SBT_Master,SBR_Master,WBL_Master,NBU_Master,EBU_Master) -> 607 | LD62: Free Flowing | LL62: Unmarked | LR62: =SUM('QR N-E'!BY19:CD19) -> 3 | LW62: =Min_St_Spd_Lmt -> 35 | MB62: =SUM(SBT_Master,SBR_Master,SBL_Master,SBU_Master) -> 298 | MG62: Stop/Signal Controlled | MO62: Marked | MU62: =MAX('QR N-E'!CH26:CH28,'QR N-E'!CB32:CD32) -> 2 | MZ62: =Min_St_Spd_Lmt -> 35 | NE62: =SUM(NBT_Master,WBR_Master,EBL_Master,SBU_Master) -> 838 | NJ62: Stop/Signal Controlled | NR62: Marked | NX62: =SUM('QR N-E'!CH26:CH31)+MAX('QR N-E'!CE32:CG32,'QR N-E'!CB19:CD19) -> 3 | OC62: =Maj_St_Spd_Lmt -> 45 | OH62: =SUM(WBR_Master,EBL_Master,NBU_Master,SBU_Master,EBU_Master,WBU_Master,SBL_Master,NBL_Master,WBL_Master) -> 1005 | OM62: Stop/Signal Controlled | OU62: Marked | PA62: =SUM('QR N-E'!CW54:CW59) -> 3 | PF62: =Maj_St_Spd_Lmt -> 45 | PK62: =SUM(NBU_Master,EBU_Master,EBL_Master,EBT_Master,NBR_Master) -> 1505 | PP62: Stop/Signal Controlled | PX62: Marked | QD62: =MAX('QR N-E'!DJ51:DJ53,'QR N-E'!CX47:CZ47) -> 2 | QI62: =Maj_St_Spd_Lmt -> 45 | QN62: =SUM(NBL_Master,WBT_Master,WBU_Master,SBU_Master) -> 1235 | QS62: Stop/Signal Controlled | RA62: Marked | RG62: =SUM('QR N-E'!CX47:DC47)+MAX('QR N-E'!CW54:CW56,'QR N-E'!DJ48:DJ50) -> 3 | RL62: =Min_St_Spd_Lmt -> 35 | RQ62: =SUM(SBL_Master,SBU_Master,NBL_Master,NBU_Master,EBL_Master,EBU_Master,WBU_Master,WBL_Master,WBR_Master) -> 1005 | RV62: Stop/Signal Controlled | SD62: Marked | SJ62: =SUM('QR N-E'!DJ48:DJ53) -> 3 | SO62: =Maj_St_Spd_Lmt -> 45 | ST62: =SUM(WBL_Master,WBT_Master,WBR_Master,WBU_Master) -> 1699 | SY62: Stop/Signal Controlled | TG62: Unmarked | TM62: =MAX('QR N-E'!DA47:DC47,'QR N-E'!CW57:CW59) -> 2 | TR62: =Maj_St_Spd_Lmt -> 45 | TW62: =SUM(EBT_Master,NBR_Master,SBL_Master,WBU_Master) -> 1230 | UB62: Free Flowing | UJ62: Unmarked | UP62: =IFERROR((((SUM(SQRT(UU62),SQRT(VE62),SQRT(VO62),SQRT(VY62),SQRT(WI62),SQRT(WS62),SQRT(XC62),SQRT(XM62),SQRT(XW62),SQRT(YG62),SQRT(YQ62),SQRT(ZA62),SQRT(ZK62),SQRT(ZU62),SQRT(AAE62),SQRT(AAO62),SQRT(AAY62),SQRT(ABI62))/COUNTIF(UU62:ABR63,">0"))^2)*(_xlfn.XLOOKUP(AD62,$W$322:$W$323,$AA$322:$AA$323,"lookup error",0,1))*(_xlfn.XLOOKUP(AI62,Multistage_Crossing,$AA$316:$AA$318,"lookup error",0,1))),"Enter Major/Minor Street Speeds") -> 4.340922403 | UU62: =IF(OR(ISBLANK($P$21),ISBLANK($P$23)),"Enter Major/Minor Street Speeds",IF(AN62=0,,(IF(AN62<5,_xlfn.XLOOKUP(AN62,$W$287:$W$290,$AA$287:$AA$290,"error",0,1),$AA$291)+IF(AS62<=$V$294,$AA$294,IF(AND(AS62>$V$294,AS62<=$V$295),$AA$295,IF(AND(AS62>$V$295,AS62<=$V$296),$AA$296,IF(AND(AS62>$V$296,AS62<=$V$297),$AA$297,$AA$298))))+IF(AX62<=$V$304,_xlfn.XLOOKUP(BC62,AA$303:$AD$303,$AA$304:$AD$304,"check xlookup for volume 150",0,1),IF(AND(AX62>$V$304,AX62<=$V$305),_xlfn.XLOOKUP(BC62,$AA$303:$AD$303,$AA$305:$AD$305,"check xlookup for volume 300",0,1),IF(AND(AX62>$V$305,AX62<=$V$306),_xlfn.XLOOKUP(BC62,$AA$303:$AD$303,$AA$306:$AD$306,"check xlookup for volume 900",0,1),IF(AND(AX62>$V$306,AX62<=$V$307),_xlfn.XLOOKUP(BC62,$AA$303:$AD$303,$AA$307:$AD$307,"check xlookup for volume 1500",0,1),IF(AX62>$V$307,_xlfn.XLOOKUP(BC62,$AA$303:$AD$303,$AA$308:$AD$308,"check xlookup for volume >1500",0,1),"")))))+IF(BK62=$W$311,$AA$311,$AA$312))/4)) -> 4 | VE62: =IF(OR(ISBLANK($P$21),ISBLANK($P$23)),"Enter Major/Minor Street Speeds",IF(BQ62=0,,(IF(BQ62<5,_xlfn.XLOOKUP(BQ62,$W$287:$W$290,$AA$287:$AA$290,"error",0,1),$AA$291)+IF(BV62<=$V$294,$AA$294,IF(AND(BV62>$V$294,BV62<=$V$295),$AA$295,IF(AND(BV62>$V$295,BV62<=$V$296),$AA$296,IF(AND(BV62>$V$296,BV62<=$V$297),$AA$297,$AA$298))))+IF(CA62<=$V$304,_xlfn.XLOOKUP(CF62,AA$303:$AD$303,$AA$304:$AD$304,"check xlookup for volume 150",0,1),IF(AND(CA62>$V$304,CA62<=$V$305),_xlfn.XLOOKUP(CF62,$AA$303:$AD$303,$AA$305:$AD$305,"check xlookup for volume 300",0,1),IF(AND(CA62>$V$305,CA62<=$V$306),_xlfn.XLOOKUP(CF62,$AA$303:$AD$303,$AA$306:$AD$306,"check xlookup for volume 900",0,1),IF(AND(CA62>$V$306,CA62<=$V$307),_xlfn.XLOOKUP(CF62,$AA$303:$AD$303,$AA$307:$AD$307,"check xlookup for volume 1500",0,1),IF(CA62>$V$307,_xlfn.XLOOKUP(CF62,$AA$303:$AD$303,$AA$308:$AD$308,"check xlookup for volume >1500",0,1),"")))))+IF(CN62=$W$311,$AA$311,$AA$312))/4)) -> 4.25 | VO62: =IF(OR(ISBLANK($P$21),ISBLANK($P$23)),"Enter Major/Minor Street Speeds",IF(CT62=0,,(IF(CT62<5,_xlfn.XLOOKUP(CT62,$W$287:$W$290,$AA$287:$AA$290,"error",0,1),$AA$291)+IF(CY62<=$V$294,$AA$294,IF(AND(CY62>$V$294,CY62<=$V$295),$AA$295,IF(AND(CY62>$V$295,CY62<=$V$296),$AA$296,IF(AND(CY62>$V$296,CY62<=$V$297),$AA$297,$AA$298))))+IF(DD62<=$V$304,_xlfn.XLOOKUP(DI62,AA$303:$AD$303,$AA$304:$AD$304,"check xlookup for volume 150",0,1),IF(AND(DD62>$V$304,DD62<=$V$305),_xlfn.XLOOKUP(DI62,$AA$303:$AD$303,$AA$305:$AD$305,"check xlookup for volume 300",0,1),IF(AND(DD62>$V$305,DD62<=$V$306),_xlfn.XLOOKUP(DI62,$AA$303:$AD$303,$AA$306:$AD$306,"check xlookup for volume 900",0,1),IF(AND(DD62>$V$306,DD62<=$V$307),_xlfn.XLOOKUP(DI62,$AA$303:$AD$303,$AA$307:$AD$307,"check xlookup for volume 1500",0,1),IF(DD62>$V$307,_xlfn.XLOOKUP(DI62,$AA$303:$AD$303,$AA$308:$AD$308,"check xlookup for volume >1500",0,1),"")))))+IF(DQ62=$W$311,$AA$311,$AA$312))/4)) -> 3.75 | VY62: =IF(OR(ISBLANK($P$21),ISBLANK($P$23)),"Enter Major/Minor Street Speeds",IF(DW62=0,,(IF(DW62<5,_xlfn.XLOOKUP(DW62,$W$287:$W$290,$AA$287:$AA$290,"error",0,1),$AA$291)+IF(EB62<=$V$294,$AA$294,IF(AND(EB62>$V$294,EB62<=$V$295),$AA$295,IF(AND(EB62>$V$295,EB62<=$V$296),$AA$296,IF(AND(EB62>$V$296,EB62<=$V$297),$AA$297,$AA$298))))+IF(EG62<=$V$304,_xlfn.XLOOKUP(EL62,AA$303:$AD$303,$AA$304:$AD$304,"check xlookup for volume 150",0,1),IF(AND(EG62>$V$304,EG62<=$V$305),_xlfn.XLOOKUP(EL62,$AA$303:$AD$303,$AA$305:$AD$305,"check xlookup for volume 300",0,1),IF(AND(EG62>$V$305,EG62<=$V$306),_xlfn.XLOOKUP(EL62,$AA$303:$AD$303,$AA$306:$AD$306,"check xlookup for volume 900",0,1),IF(AND(EG62>$V$306,EG62<=$V$307),_xlfn.XLOOKUP(EL62,$AA$303:$AD$303,$AA$307:$AD$307,"check xlookup for volume 1500",0,1),IF(EG62>$V$307,_xlfn.XLOOKUP(EL62,$AA$303:$AD$303,$AA$308:$AD$308,"check xlookup for volume >1500",0,1),"")))))+IF(ET62=$W$311,$AA$311,$AA$312))/4)) -> 4 | WI62: =IF(OR(ISBLANK($P$21),ISBLANK($P$23)),"Enter Major/Minor Street Speeds",IF(EZ62=0,,(IF(EZ62<5,_xlfn.XLOOKUP(EZ62,$W$287:$W$290,$AA$287:$AA$290,"error",0,1),$AA$291)+IF(FE62<=$V$294,$AA$294,IF(AND(FE62>$V$294,FE62<=$V$295),$AA$295,IF(AND(FE62>$V$295,FE62<=$V$296),$AA$296,IF(AND(FE62>$V$296,FE62<=$V$297),$AA$297,$AA$298))))+IF(FJ62<=$V$304,_xlfn.XLOOKUP(FO62,AA$303:$AD$303,$AA$304:$AD$304,"check xlookup for volume 150",0,1),IF(AND(FJ62>$V$304,FJ62<=$V$305),_xlfn.XLOOKUP(FO62,$AA$303:$AD$303,$AA$305:$AD$305,"check xlookup for volume 300",0,1),IF(AND(FJ62>$V$305,FJ62<=$V$306),_xlfn.XLOOKUP(FO62,$AA$303:$AD$303,$AA$306:$AD$306,"check xlookup for volume 900",0,1),IF(AND(FJ62>$V$306,FJ62<=$V$307),_xlfn.XLOOKUP(FO62,$AA$303:$AD$303,$AA$307:$AD$307,"check xlookup for volume 1500",0,1),IF(FJ62>$V$307,_xlfn.XLOOKUP(FO62,$AA$303:$AD$303,$AA$308:$AD$308,"check xlookup for volume >1500",0,1),"")))))+IF(FW62=$W$311,$AA$311,$AA$312))/4)) -> 4 | WS62: =IF(OR(ISBLANK($P$21),ISBLANK($P$23)),"Enter Major/Minor Street Speeds",IF(GC62=0,,(IF(GC62<5,_xlfn.XLOOKUP(GC62,$W$287:$W$290,$AA$287:$AA$290,"error",0,1),$AA$291)+IF(GH62<=$V$294,$AA$294,IF(AND(GH62>$V$294,GH62<=$V$295),$AA$295,IF(AND(GH62>$V$295,GH62<=$V$296),$AA$296,IF(AND(GH62>$V$296,GH62<=$V$297),$AA$297,$AA$298))))+IF(GM62<=$V$304,_xlfn.XLOOKUP(GR62,AA$303:$AD$303,$AA$304:$AD$304,"check xlookup for volume 150",0,1),IF(AND(GM62>$V$304,GM62<=$V$305),_xlfn.XLOOKUP(GR62,$AA$303:$AD$303,$AA$305:$AD$305,"check xlookup for volume 300",0,1),IF(AND(GM62>$V$305,GM62<=$V$306),_xlfn.XLOOKUP(GR62,$AA$303:$AD$303,$AA$306:$AD$306,"check xlookup for volume 900",0,1),IF(AND(GM62>$V$306,GM62<=$V$307),_xlfn.XLOOKUP(GR62,$AA$303:$AD$303,$AA$307:$AD$307,"check xlookup for volume 1500",0,1),IF(GM62>$V$307,_xlfn.XLOOKUP(GR62,$AA$303:$AD$303,$AA$308:$AD$308,"check xlookup for volume >1500",0,1),"")))))+IF(GZ62=$W$311,$AA$311,$AA$312))/4)) -> 4.25 | XC62: =IF(OR(ISBLANK($P$21),ISBLANK($P$23)),"Enter Major/Minor Street Speeds",IF(HF62=0,,(IF(HF62<5,_xlfn.XLOOKUP(HF62,$W$287:$W$290,$AA$287:$AA$290,"error",0,1),$AA$291)+IF(HK62<=$V$294,$AA$294,IF(AND(HK62>$V$294,HK62<=$V$295),$AA$295,IF(AND(HK62>$V$295,HK62<=$V$296),$AA$296,IF(AND(HK62>$V$296,HK62<=$V$297),$AA$297,$AA$298))))+IF(HP62<=$V$304,_xlfn.XLOOKUP(HU62,AA$303:$AD$303,$AA$304:$AD$304,"check xlookup for volume 150",0,1),IF(AND(HP62>$V$304,HP62<=$V$305),_xlfn.XLOOKUP(HU62,$AA$303:$AD$303,$AA$305:$AD$305,"check xlookup for volume 300",0,1),IF(AND(HP62>$V$305,HP62<=$V$306),_xlfn.XLOOKUP(HU62,$AA$303:$AD$303,$AA$306:$AD$306,"check xlookup for volume 900",0,1),IF(AND(HP62>$V$306,HP62<=$V$307),_xlfn.XLOOKUP(HU62,$AA$303:$AD$303,$AA$307:$AD$307,"check xlookup for volume 1500",0,1),IF(HP62>$V$307,_xlfn.XLOOKUP(HU62,$AA$303:$AD$303,$AA$308:$AD$308,"check xlookup for volume >1500",0,1),"")))))+IF(IC62=$W$311,$AA$311,$AA$312))/4)) -> 3.75 | XM62: =IF(OR(ISBLANK($P$21),ISBLANK($P$23)),"Enter Major/Minor Street Speeds",IF(II62=0,,(IF(II62<5,_xlfn.XLOOKUP(II62,$W$287:$W$290,$AA$287:$AA$290,"error",0,1),$AA$291)+IF(IN62<=$V$294,$AA$294,IF(AND(IN62>$V$294,IN62<=$V$295),$AA$295,IF(AND(IN62>$V$295,IN62<=$V$296),$AA$296,IF(AND(IN62>$V$296,IN62<=$V$297),$AA$297,$AA$298))))+IF(IS62<=$V$304,_xlfn.XLOOKUP(IX62,AA$303:$AD$303,$AA$304:$AD$304,"check xlookup for volume 150",0,1),IF(AND(IS62>$V$304,IS62<=$V$305),_xlfn.XLOOKUP(IX62,$AA$303:$AD$303,$AA$305:$AD$305,"check xlookup for volume 300",0,1),IF(AND(IS62>$V$305,IS62<=$V$306),_xlfn.XLOOKUP(IX62,$AA$303:$AD$303,$AA$306:$AD$306,"check xlookup for volume 900",0,1),IF(AND(IS62>$V$306,IS62<=$V$307),_xlfn.XLOOKUP(IX62,$AA$303:$AD$303,$AA$307:$AD$307,"check xlookup for volume 1500",0,1),IF(IS62>$V$307,_xlfn.XLOOKUP(IX62,$AA$303:$AD$303,$AA$308:$AD$308,"check xlookup for volume >1500",0,1),"")))))+IF(JF62=$W$311,$AA$311,$AA$312))/4)) -> 4 | XW62: =IF(OR(ISBLANK($P$21),ISBLANK($P$23)),"Enter Major/Minor Street Speeds",IF(JL62=0,,(IF(JL62<5,_xlfn.XLOOKUP(JL62,$W$287:$W$290,$AA$287:$AA$290,"error",0,1),$AA$291)+IF(JQ62<=$V$294,$AA$294,IF(AND(JQ62>$V$294,JQ62<=$V$295),$AA$295,IF(AND(JQ62>$V$295,JQ62<=$V$296),$AA$296,IF(AND(JQ62>$V$296,JQ62<=$V$297),$AA$297,$AA$298))))+IF(JV62<=$V$304,_xlfn.XLOOKUP(KA62,AA$303:$AD$303,$AA$304:$AD$304,"check xlookup for volume 150",0,1),IF(AND(JV62>$V$304,JV62<=$V$305),_xlfn.XLOOKUP(KA62,$AA$303:$AD$303,$AA$305:$AD$305,"check xlookup for volume 300",0,1),IF(AND(JV62>$V$305,JV62<=$V$306),_xlfn.XLOOKUP(KA62,$AA$303:$AD$303,$AA$306:$AD$306,"check xlookup for volume 900",0,1),IF(AND(JV62>$V$306,JV62<=$V$307),_xlfn.XLOOKUP(KA62,$AA$303:$AD$303,$AA$307:$AD$307,"check xlookup for volume 1500",0,1),IF(JV62>$V$307,_xlfn.XLOOKUP(KA62,$AA$303:$AD$303,$AA$308:$AD$308,"check xlookup for volume >1500",0,1),"")))))+IF(KI62=$W$311,$AA$311,$AA$312))/4)) -> 3 | YG62: =IF(OR(ISBLANK($P$21),ISBLANK($P$23)),"Enter Major/Minor Street Speeds",IF(KO62=0,,(IF(KO62<5,_xlfn.XLOOKUP(KO62,$W$287:$W$290,$AA$287:$AA$290,"error",0,1),$AA$291)+IF(KT62<=$V$294,$AA$294,IF(AND(KT62>$V$294,KT62<=$V$295),$AA$295,IF(AND(KT62>$V$295,KT62<=$V$296),$AA$296,IF(AND(KT62>$V$296,KT62<=$V$297),$AA$297,$AA$298))))+IF(KY62<=$V$304,_xlfn.XLOOKUP(LD62,AA$303:$AD$303,$AA$304:$AD$304,"check xlookup for volume 150",0,1),IF(AND(KY62>$V$304,KY62<=$V$305),_xlfn.XLOOKUP(LD62,$AA$303:$AD$303,$AA$305:$AD$305,"check xlookup for volume 300",0,1),IF(AND(KY62>$V$305,KY62<=$V$306),_xlfn.XLOOKUP(LD62,$AA$303:$AD$303,$AA$306:$AD$306,"check xlookup for volume 900",0,1),IF(AND(KY62>$V$306,KY62<=$V$307),_xlfn.XLOOKUP(LD62,$AA$303:$AD$303,$AA$307:$AD$307,"check xlookup for volume 1500",0,1),IF(KY62>$V$307,_xlfn.XLOOKUP(LD62,$AA$303:$AD$303,$AA$308:$AD$308,"check xlookup for volume >1500",0,1),"")))))+IF(LL62=$W$311,$AA$311,$AA$312))/4)) -> 2.25 | YQ62: =IF(OR(ISBLANK($P$21),ISBLANK($P$23)),"Enter Major/Minor Street Speeds",IF(LR62=0,,(IF(LR62<5,_xlfn.XLOOKUP(LR62,$W$287:$W$290,$AA$287:$AA$290,"error",0,1),$AA$291)+IF(LW62<=$V$294,$AA$294,IF(AND(LW62>$V$294,LW62<=$V$295),$AA$295,IF(AND(LW62>$V$295,LW62<=$V$296),$AA$296,IF(AND(LW62>$V$296,LW62<=$V$297),$AA$297,$AA$298))))+IF(MB62<=$V$304,_xlfn.XLOOKUP(MG62,AA$303:$AD$303,$AA$304:$AD$304,"check xlookup for volume 150",0,1),IF(AND(MB62>$V$304,MB62<=$V$305),_xlfn.XLOOKUP(MG62,$AA$303:$AD$303,$AA$305:$AD$305,"check xlookup for volume 300",0,1),IF(AND(MB62>$V$305,MB62<=$V$306),_xlfn.XLOOKUP(MG62,$AA$303:$AD$303,$AA$306:$AD$306,"check xlookup for volume 900",0,1),IF(AND(MB62>$V$306,MB62<=$V$307),_xlfn.XLOOKUP(MG62,$AA$303:$AD$303,$AA$307:$AD$307,"check xlookup for volume 1500",0,1),IF(MB62>$V$307,_xlfn.XLOOKUP(MG62,$AA$303:$AD$303,$AA$308:$AD$308,"check xlookup for volume >1500",0,1),"")))))+IF(MO62=$W$311,$AA$311,$AA$312))/4)) -> 4 | ZA62: =IF(OR(ISBLANK($P$21),ISBLANK($P$23)),"Enter Major/Minor Street Speeds",IF(MU62=0,,(IF(MU62<5,_xlfn.XLOOKUP(MU62,$W$287:$W$290,$AA$287:$AA$290,"error",0,1),$AA$291)+IF(MZ62<=$V$294,$AA$294,IF(AND(MZ62>$V$294,MZ62<=$V$295),$AA$295,IF(AND(MZ62>$V$295,MZ62<=$V$296),$AA$296,IF(AND(MZ62>$V$296,MZ62<=$V$297),$AA$297,$AA$298))))+IF(NE62<=$V$304,_xlfn.XLOOKUP(NJ62,AA$303:$AD$303,$AA$304:$AD$304,"check xlookup for volume 150",0,1),IF(AND(NE62>$V$304,NE62<=$V$305),_xlfn.XLOOKUP(NJ62,$AA$303:$AD$303,$AA$305:$AD$305,"check xlookup for volume 300",0,1),IF(AND(NE62>$V$305,NE62<=$V$306),_xlfn.XLOOKUP(NJ62,$AA$303:$AD$303,$AA$306:$AD$306,"check xlookup for volume 900",0,1),IF(AND(NE62>$V$306,NE62<=$V$307),_xlfn.XLOOKUP(NJ62,$AA$303:$AD$303,$AA$307:$AD$307,"check xlookup for volume 1500",0,1),IF(NE62>$V$307,_xlfn.XLOOKUP(NJ62,$AA$303:$AD$303,$AA$308:$AD$308,"check xlookup for volume >1500",0,1),"")))))+IF(NR62=$W$311,$AA$311,$AA$312))/4)) -> 4.25 | ZK62: =IF(OR(ISBLANK($P$21),ISBLANK($P$23)),"Enter Major/Minor Street Speeds",IF(NX62=0,,(IF(NX62<5,_xlfn.XLOOKUP(NX62,$W$287:$W$290,$AA$287:$AA$290,"error",0,1),$AA$291)+IF(OC62<=$V$294,$AA$294,IF(AND(OC62>$V$294,OC62<=$V$295),$AA$295,IF(AND(OC62>$V$295,OC62<=$V$296),$AA$296,IF(AND(OC62>$V$296,OC62<=$V$297),$AA$297,$AA$298))))+IF(OH62<=$V$304,_xlfn.XLOOKUP(OM62,AA$303:$AD$303,$AA$304:$AD$304,"check xlookup for volume 150",0,1),IF(AND(OH62>$V$304,OH62<=$V$305),_xlfn.XLOOKUP(OM62,$AA$303:$AD$303,$AA$305:$AD$305,"check xlookup for volume 300",0,1),IF(AND(OH62>$V$305,OH62<=$V$306),_xlfn.XLOOKUP(OM62,$AA$303:$AD$303,$AA$306:$AD$306,"check xlookup for volume 900",0,1),IF(AND(OH62>$V$306,OH62<=$V$307),_xlfn.XLOOKUP(OM62,$AA$303:$AD$303,$AA$307:$AD$307,"check xlookup for volume 1500",0,1),IF(OH62>$V$307,_xlfn.XLOOKUP(OM62,$AA$303:$AD$303,$AA$308:$AD$308,"check xlookup for volume >1500",0,1),"")))))+IF(OU62=$W$311,$AA$311,$AA$312))/4)) -> 3.75 | ZU62: =IF(OR(ISBLANK($P$21),ISBLANK($P$23)),"Enter Major/Minor Street Speeds",IF(PA62=0,,(IF(PA62<5,_xlfn.XLOOKUP(PA62,$W$287:$W$290,$AA$287:$AA$290,"error",0,1),$AA$291)+IF(PF62<=$V$294,$AA$294,IF(AND(PF62>$V$294,PF62<=$V$295),$AA$295,IF(AND(PF62>$V$295,PF62<=$V$296),$AA$296,IF(AND(PF62>$V$296,PF62<=$V$297),$AA$297,$AA$298))))+IF(PK62<=$V$304,_xlfn.XLOOKUP(PP62,AA$303:$AD$303,$AA$304:$AD$304,"check xlookup for volume 150",0,1),IF(AND(PK62>$V$304,PK62<=$V$305),_xlfn.XLOOKUP(PP62,$AA$303:$AD$303,$AA$305:$AD$305,"check xlookup for volume 300",0,1),IF(AND(PK62>$V$305,PK62<=$V$306),_xlfn.XLOOKUP(PP62,$AA$303:$AD$303,$AA$306:$AD$306,"check xlookup for volume 900",0,1),IF(AND(PK62>$V$306,PK62<=$V$307),_xlfn.XLOOKUP(PP62,$AA$303:$AD$303,$AA$307:$AD$307,"check xlookup for volume 1500",0,1),IF(PK62>$V$307,_xlfn.XLOOKUP(PP62,$AA$303:$AD$303,$AA$308:$AD$308,"check xlookup for volume >1500",0,1),"")))))+IF(PX62=$W$311,$AA$311,$AA$312))/4)) -> 3.75 | AAE62: =IF(OR(ISBLANK($P$21),ISBLANK($P$23)),"Enter Major/Minor Street Speeds",IF(QD62=0,,(IF(QD62<5,_xlfn.XLOOKUP(QD62,$W$287:$W$290,$AA$287:$AA$290,"error",0,1),$AA$291)+IF(QI62<=$V$294,$AA$294,IF(AND(QI62>$V$294,QI62<=$V$295),$AA$295,IF(AND(QI62>$V$295,QI62<=$V$296),$AA$296,IF(AND(QI62>$V$296,QI62<=$V$297),$AA$297,$AA$298))))+IF(QN62<=$V$304,_xlfn.XLOOKUP(QS62,AA$303:$AD$303,$AA$304:$AD$304,"check xlookup for volume 150",0,1),IF(AND(QN62>$V$304,QN62<=$V$305),_xlfn.XLOOKUP(QS62,$AA$303:$AD$303,$AA$305:$AD$305,"check xlookup for volume 300",0,1),IF(AND(QN62>$V$305,QN62<=$V$306),_xlfn.XLOOKUP(QS62,$AA$303:$AD$303,$AA$306:$AD$306,"check xlookup for volume 900",0,1),IF(AND(QN62>$V$306,QN62<=$V$307),_xlfn.XLOOKUP(QS62,$AA$303:$AD$303,$AA$307:$AD$307,"check xlookup for volume 1500",0,1),IF(QN62>$V$307,_xlfn.XLOOKUP(QS62,$AA$303:$AD$303,$AA$308:$AD$308,"check xlookup for volume >1500",0,1),"")))))+IF(RA62=$W$311,$AA$311,$AA$312))/4)) -> 4 | AAO62: =IF(OR(ISBLANK($P$21),ISBLANK($P$23)),"Enter Major/Minor Street Speeds",IF(RG62=0,,(IF(RG62<5,_xlfn.XLOOKUP(RG62,$W$287:$W$290,$AA$287:$AA$290,"error",0,1),$AA$291)+IF(RL62<=$V$294,$AA$294,IF(AND(RL62>$V$294,RL62<=$V$295),$AA$295,IF(AND(RL62>$V$295,RL62<=$V$296),$AA$296,IF(AND(RL62>$V$296,RL62<=$V$297),$AA$297,$AA$298))))+IF(RQ62<=$V$304,_xlfn.XLOOKUP(RV62,AA$303:$AD$303,$AA$304:$AD$304,"check xlookup for volume 150",0,1),IF(AND(RQ62>$V$304,RQ62<=$V$305),_xlfn.XLOOKUP(RV62,$AA$303:$AD$303,$AA$305:$AD$305,"check xlookup for volume 300",0,1),IF(AND(RQ62>$V$305,RQ62<=$V$306),_xlfn.XLOOKUP(RV62,$AA$303:$AD$303,$AA$306:$AD$306,"check xlookup for volume 900",0,1),IF(AND(RQ62>$V$306,RQ62<=$V$307),_xlfn.XLOOKUP(RV62,$AA$303:$AD$303,$AA$307:$AD$307,"check xlookup for volume 1500",0,1),IF(RQ62>$V$307,_xlfn.XLOOKUP(RV62,$AA$303:$AD$303,$AA$308:$AD$308,"check xlookup for volume >1500",0,1),"")))))+IF(SD62=$W$311,$AA$311,$AA$312))/4)) -> 4 | AAY62: =IF(OR(ISBLANK($P$21),ISBLANK($P$23)),"Enter Major/Minor Street Speeds",IF(SJ62=0,,(IF(SJ62<5,_xlfn.XLOOKUP(SJ62,$W$287:$W$290,$AA$287:$AA$290,"error",0,1),$AA$291)+IF(SO62<=$V$294,$AA$294,IF(AND(SO62>$V$294,SO62<=$V$295),$AA$295,IF(AND(SO62>$V$295,SO62<=$V$296),$AA$296,IF(AND(SO62>$V$296,SO62<=$V$297),$AA$297,$AA$298))))+IF(ST62<=$V$304,_xlfn.XLOOKUP(SY62,AA$303:$AD$303,$AA$304:$AD$304,"check xlookup for volume 150",0,1),IF(AND(ST62>$V$304,ST62<=$V$305),_xlfn.XLOOKUP(SY62,$AA$303:$AD$303,$AA$305:$AD$305,"check xlookup for volume 300",0,1),IF(AND(ST62>$V$305,ST62<=$V$306),_xlfn.XLOOKUP(SY62,$AA$303:$AD$303,$AA$306:$AD$306,"check xlookup for volume 900",0,1),IF(AND(ST62>$V$306,ST62<=$V$307),_xlfn.XLOOKUP(SY62,$AA$303:$AD$303,$AA$307:$AD$307,"check xlookup for volume 1500",0,1),IF(ST62>$V$307,_xlfn.XLOOKUP(SY62,$AA$303:$AD$303,$AA$308:$AD$308,"check xlookup for volume >1500",0,1),"")))))+IF(TG62=$W$311,$AA$311,$AA$312))/4)) -> 2.75 | ABI62: =IF(OR(ISBLANK($P$21),ISBLANK($P$23)),"Enter Major/Minor Street Speeds",IF(TM62=0,,(IF(TM62<5,_xlfn.XLOOKUP(TM62,$W$287:$W$290,$AA$287:$AA$290,"error",0,1),$AA$291)+IF(TR62<=$V$294,$AA$294,IF(AND(TR62>$V$294,TR62<=$V$295),$AA$295,IF(AND(TR62>$V$295,TR62<=$V$296),$AA$296,IF(AND(TR62>$V$296,TR62<=$V$297),$AA$297,$AA$298))))+IF(TW62<=$V$304,_xlfn.XLOOKUP(UB62,AA$303:$AD$303,$AA$304:$AD$304,"check xlookup for volume 150",0,1),IF(AND(TW62>$V$304,TW62<=$V$305),_xlfn.XLOOKUP(UB62,$AA$303:$AD$303,$AA$305:$AD$305,"check xlookup for volume 300",0,1),IF(AND(TW62>$V$305,TW62<=$V$306),_xlfn.XLOOKUP(UB62,$AA$303:$AD$303,$AA$306:$AD$306,"check xlookup for volume 900",0,1),IF(AND(TW62>$V$306,TW62<=$V$307),_xlfn.XLOOKUP(UB62,$AA$303:$AD$303,$AA$307:$AD$307,"check xlookup for volume 1500",0,1),IF(TW62>$V$307,_xlfn.XLOOKUP(UB62,$AA$303:$AD$303,$AA$308:$AD$308,"check xlookup for volume >1500",0,1),"")))))+IF(UJ62=$W$311,$AA$311,$AA$312))/4)) -> 2
T64: S-E | Z64: =UP64 -> 4.340922403 | AD64: No | AI64: Yes Crossing(s) with 2 stages | AN64: =SUM('QR S-E'!BU25:BU30) -> 3 | AS64: =Min_St_Spd_Lmt -> 35 | AX64: =SUM(EBL_Master,EBT_Master,EBR_Master,EBU_Master) -> 1530 | BC64: Stop/Signal Controlled | BK64: Marked | BQ64: =MAX('QR S-E'!BV18:BX18,'QR S-E'!CH22:CH24) -> 2 | BV64: =Min_St_Spd_Lmt -> 35 | CA64: =SUM(SBR_Master,WBT_Master,NBL_Master,EBU_Master) -> 1286 | CF64: Stop/Signal Controlled | CN64: Marked | CT64: =SUM('QR S-E'!BV18:CA18) -> 3 | CY64: =Maj_St_Spd_Lmt -> 45 | DD64: =SUM(SBR_Master,SBL_Master,SBT_Master,SBU_Master) -> 298 | DI64: Stop/Signal Controlled | DQ64: Marked | DW64: =MAX('QR S-E'!CB31:CD31,'QR S-E'!CH19:CH21) -> 2 | EB64: =Maj_St_Spd_Lmt -> 45 | EG64: =SUM(NBT_Master,EBL_Master,WBR_Master,SBU_Master) -> 838 | EL64: Stop/Signal Controlled | ET64: Marked | EZ64: =SUM('QR S-E'!CH19:CH24) -> 3 | FE64: =Min_St_Spd_Lmt -> 35 | FJ64: =SUM(EBU_Master,WBT_Master,WBR_Master,NBL_Master,SBU_Master) -> 1461 | FO64: Stop/Signal Controlled | FW64: Marked | GC64: =MAX('QR S-E'!CE31:CG31,'QR S-E'!BU25:BU27) -> 2 | GH64: =Min_St_Spd_Lmt -> 35 | GM64: =SUM(EBL_Master,EBT_Master,WBU_Master,NBU_Master,) -> 1326 | GR64: Stop/Signal Controlled | GZ64: Marked | HF64: =SUM('QR S-E'!CB31:CG31) -> 3 | HK64: =Maj_St_Spd_Lmt -> 45 | HP64: =SUM(EBL_Master,WBU_Master,NBT_Master,NBU_Master,) -> 612 | HU64: Stop/Signal Controlled | IC64: Marked | II64: =MAX('QR S-E'!BU28:BU30,'QR S-E'!BY18:CA18) -> 2 | IN64: =Maj_St_Spd_Lmt -> 45 | IS64: =SUM(EBR_Master,EBU_Master,SBL_Master,SBT_Master,SBU_Master) -> 451 | IX64: Stop/Signal Controlled | JF64: Marked | JL64: =SUM('QR S-E'!CW25:CW30) -> 3 | JQ64: =Min_St_Spd_Lmt -> 35 | JV64: =SUM(EBT_Master,EBL_Master,WBU_Master,NBU_Master) -> 1326 | KA64: Stop/Signal Controlled | KI64: Unmarked | KO64: =MAX('QR S-E'!DD31:DF31,'QR S-E'!DJ22:DJ24) -> 2 | KT64: =Min_St_Spd_Lmt -> 35 | KY64: =SUM(EBU_Master,WBR_Master,WBT_Master,NBL_Master,SBU_Master) -> 1461 | LD64: Free Flowing | LL64: Unmarked | LR64: =SUM('QR S-E'!DJ22:DJ27) -> 3 | LW64: =Min_St_Spd_Lmt -> 35 | MB64: =SUM(WBL_Master,WBT_Master,WBR_Master,WBU_Master) -> 1699 | MG64: Stop/Signal Controlled | MO64: Marked | MU64: =MAX('QR S-E'!CW25:CW27,'QR S-E'!DG31:DI31) -> 2 | MZ64: =Min_St_Spd_Lmt -> 35 | NE64: =SUM(EBT_Master,WBU_Master,NBR_Master,SBL_Master) -> 1230 | NJ64: Stop/Signal Controlled | NR64: Marked | NX64: =SUM('QR S-E'!DD31:DI31)+MAX('QR S-E'!CW28:CW30,'QR S-E'!DJ25:DJ27) -> 3 | OC64: =Maj_St_Spd_Lmt -> 45 | OH64: =SUM(EBL_Master,EBU_Master,WBL_Master,WBU_Master,NBL_Master,NBR_Master,NBU_Master,SBL_Master,SBU_Master) -> 958 | OM64: Stop/Signal Controlled | OU64: Marked | PA64: =SUM('QR S-E'!BV46:CA46) -> 3 | PF64: =Maj_St_Spd_Lmt -> 45 | PK64: =SUM(EBR_Master,EBU_Master,SBT_Master,SBL_Master,SBU_Master) -> 451 | PP64: Stop/Signal Controlled | PX64: Marked | QD64: =MAX('QR S-E'!CH53:CH55,'QR S-E'!CB59:CD59) -> 2 | QI64: =Maj_St_Spd_Lmt -> 45 | QN64: =SUM(EBL_Master,WBU_Master,NBT_Master,NBU_Master) -> 612 | QS64: Stop/Signal Controlled | RA64: Marked | RG64: =SUM('QR S-E'!CH53:CH58)+MAX('QR S-E'!CE59:CG59,'QR S-E'!BY46:CA46) -> 3 | RL64: =Min_St_Spd_Lmt -> 35 | RQ64: =SUM(EBU_Master,EBL_Master,WBL_Master,WBU_Master,NBU_Master,NBR_Master,NBL_Master,SBL_Master,SBU_Master) -> 958 | RV64: Stop/Signal Controlled | SD64: Marked | SJ64: =SUM('QR S-E'!CB59:CG59) -> 3 | SO64: =Maj_St_Spd_Lmt -> 45 | ST64: =SUM(NBL_Master,NBT_Master,NBR_Master,NBU_Master) -> 587 | SY64: Stop/Signal Controlled | TG64: Unmarked | TM64: =MAX('QR S-E'!CH56:CH58,'QR S-E'!BV46:BX46) -> 2 | TR64: =Maj_St_Spd_Lmt -> 45 | TW64: =SUM(WBL_Master,SBT_Master,EBR_Master,NBU_Master) -> 760 | UB64: Free Flowing | UJ64: Unmarked | UP64: =IFERROR((((SUM(SQRT(UU64),SQRT(VE64),SQRT(VO64),SQRT(VY64),SQRT(WI64),SQRT(WS64),SQRT(XC64),SQRT(XM64),SQRT(XW64),SQRT(YG64),SQRT(YQ64),SQRT(ZA64),SQRT(ZK64),SQRT(ZU64),SQRT(AAE64),SQRT(AAO64),SQRT(AAY64),SQRT(ABI64))/COUNTIF(UU64:ABR65,">0"))^2)*(_xlfn.XLOOKUP(AD64,$W$322:$W$323,$AA$322:$AA$323,"lookup error",0,1))*(_xlfn.XLOOKUP(AI64,Multistage_Crossing,$AA$316:$AA$318,"lookup error",0,1))),"Enter Major/Minor Street Speeds") -> 4.340922403 | UU64: =IF(OR(ISBLANK($P$21),ISBLANK($P$23)),"Enter Major/Minor Street Speeds",IF(AN64=0,,(IF(AN64<5,_xlfn.XLOOKUP(AN64,$W$287:$W$290,$AA$287:$AA$290,"error",0,1),$AA$291)+IF(AS64<=$V$294,$AA$294,IF(AND(AS64>$V$294,AS64<=$V$295),$AA$295,IF(AND(AS64>$V$295,AS64<=$V$296),$AA$296,IF(AND(AS64>$V$296,AS64<=$V$297),$AA$297,$AA$298))))+IF(AX64<=$V$304,_xlfn.XLOOKUP(BC64,AA$303:$AD$303,$AA$304:$AD$304,"check xlookup for volume 150",0,1),IF(AND(AX64>$V$304,AX64<=$V$305),_xlfn.XLOOKUP(BC64,$AA$303:$AD$303,$AA$305:$AD$305,"check xlookup for volume 300",0,1),IF(AND(AX64>$V$305,AX64<=$V$306),_xlfn.XLOOKUP(BC64,$AA$303:$AD$303,$AA$306:$AD$306,"check xlookup for volume 900",0,1),IF(AND(AX64>$V$306,AX64<=$V$307),_xlfn.XLOOKUP(BC64,$AA$303:$AD$303,$AA$307:$AD$307,"check xlookup for volume 1500",0,1),IF(AX64>$V$307,_xlfn.XLOOKUP(BC64,$AA$303:$AD$303,$AA$308:$AD$308,"check xlookup for volume >1500",0,1),"")))))+IF(BK64=$W$311,$AA$311,$AA$312))/4)) -> 4 | VE64: =IF(OR(ISBLANK($P$21),ISBLANK($P$23)),"Enter Major/Minor Street Speeds",IF(BQ64=0,,(IF(BQ64<5,_xlfn.XLOOKUP(BQ64,$W$287:$W$290,$AA$287:$AA$290,"error",0,1),$AA$291)+IF(BV64<=$V$294,$AA$294,IF(AND(BV64>$V$294,BV64<=$V$295),$AA$295,IF(AND(BV64>$V$295,BV64<=$V$296),$AA$296,IF(AND(BV64>$V$296,BV64<=$V$297),$AA$297,$AA$298))))+IF(CA64<=$V$304,_xlfn.XLOOKUP(CF64,AA$303:$AD$303,$AA$304:$AD$304,"check xlookup for volume 150",0,1),IF(AND(CA64>$V$304,CA64<=$V$305),_xlfn.XLOOKUP(CF64,$AA$303:$AD$303,$AA$305:$AD$305,"check xlookup for volume 300",0,1),IF(AND(CA64>$V$305,CA64<=$V$306),_xlfn.XLOOKUP(CF64,$AA$303:$AD$303,$AA$306:$AD$306,"check xlookup for volume 900",0,1),IF(AND(CA64>$V$306,CA64<=$V$307),_xlfn.XLOOKUP(CF64,$AA$303:$AD$303,$AA$307:$AD$307,"check xlookup for volume 1500",0,1),IF(CA64>$V$307,_xlfn.XLOOKUP(CF64,$AA$303:$AD$303,$AA$308:$AD$308,"check xlookup for volume >1500",0,1),"")))))+IF(CN64=$W$311,$AA$311,$AA$312))/4)) -> 4.25 | VO64: =IF(OR(ISBLANK($P$21),ISBLANK($P$23)),"Enter Major/Minor Street Speeds",IF(CT64=0,,(IF(CT64<5,_xlfn.XLOOKUP(CT64,$W$287:$W$290,$AA$287:$AA$290,"error",0,1),$AA$291)+IF(CY64<=$V$294,$AA$294,IF(AND(CY64>$V$294,CY64<=$V$295),$AA$295,IF(AND(CY64>$V$295,CY64<=$V$296),$AA$296,IF(AND(CY64>$V$296,CY64<=$V$297),$AA$297,$AA$298))))+IF(DD64<=$V$304,_xlfn.XLOOKUP(DI64,AA$303:$AD$303,$AA$304:$AD$304,"check xlookup for volume 150",0,1),IF(AND(DD64>$V$304,DD64<=$V$305),_xlfn.XLOOKUP(DI64,$AA$303:$AD$303,$AA$305:$AD$305,"check xlookup for volume 300",0,1),IF(AND(DD64>$V$305,DD64<=$V$306),_xlfn.XLOOKUP(DI64,$AA$303:$AD$303,$AA$306:$AD$306,"check xlookup for volume 900",0,1),IF(AND(DD64>$V$306,DD64<=$V$307),_xlfn.XLOOKUP(DI64,$AA$303:$AD$303,$AA$307:$AD$307,"check xlookup for volume 1500",0,1),IF(DD64>$V$307,_xlfn.XLOOKUP(DI64,$AA$303:$AD$303,$AA$308:$AD$308,"check xlookup for volume >1500",0,1),"")))))+IF(DQ64=$W$311,$AA$311,$AA$312))/4)) -> 3.75 | VY64: =IF(OR(ISBLANK($P$21),ISBLANK($P$23)),"Enter Major/Minor Street Speeds",IF(DW64=0,,(IF(DW64<5,_xlfn.XLOOKUP(DW64,$W$287:$W$290,$AA$287:$AA$290,"error",0,1),$AA$291)+IF(EB64<=$V$294,$AA$294,IF(AND(EB64>$V$294,EB64<=$V$295),$AA$295,IF(AND(EB64>$V$295,EB64<=$V$296),$AA$296,IF(AND(EB64>$V$296,EB64<=$V$297),$AA$297,$AA$298))))+IF(EG64<=$V$304,_xlfn.XLOOKUP(EL64,AA$303:$AD$303,$AA$304:$AD$304,"check xlookup for volume 150",0,1),IF(AND(EG64>$V$304,EG64<=$V$305),_xlfn.XLOOKUP(EL64,$AA$303:$AD$303,$AA$305:$AD$305,"check xlookup for volume 300",0,1),IF(AND(EG64>$V$305,EG64<=$V$306),_xlfn.XLOOKUP(EL64,$AA$303:$AD$303,$AA$306:$AD$306,"check xlookup for volume 900",0,1),IF(AND(EG64>$V$306,EG64<=$V$307),_xlfn.XLOOKUP(EL64,$AA$303:$AD$303,$AA$307:$AD$307,"check xlookup for volume 1500",0,1),IF(EG64>$V$307,_xlfn.XLOOKUP(EL64,$AA$303:$AD$303,$AA$308:$AD$308,"check xlookup for volume >1500",0,1),"")))))+IF(ET64=$W$311,$AA$311,$AA$312))/4)) -> 4 | WI64: =IF(OR(ISBLANK($P$21),ISBLANK($P$23)),"Enter Major/Minor Street Speeds",IF(EZ64=0,,(IF(EZ64<5,_xlfn.XLOOKUP(EZ64,$W$287:$W$290,$AA$287:$AA$290,"error",0,1),$AA$291)+IF(FE64<=$V$294,$AA$294,IF(AND(FE64>$V$294,FE64<=$V$295),$AA$295,IF(AND(FE64>$V$295,FE64<=$V$296),$AA$296,IF(AND(FE64>$V$296,FE64<=$V$297),$AA$297,$AA$298))))+IF(FJ64<=$V$304,_xlfn.XLOOKUP(FO64,AA$303:$AD$303,$AA$304:$AD$304,"check xlookup for volume 150",0,1),IF(AND(FJ64>$V$304,FJ64<=$V$305),_xlfn.XLOOKUP(FO64,$AA$303:$AD$303,$AA$305:$AD$305,"check xlookup for volume 300",0,1),IF(AND(FJ64>$V$305,FJ64<=$V$306),_xlfn.XLOOKUP(FO64,$AA$303:$AD$303,$AA$306:$AD$306,"check xlookup for volume 900",0,1),IF(AND(FJ64>$V$306,FJ64<=$V$307),_xlfn.XLOOKUP(FO64,$AA$303:$AD$303,$AA$307:$AD$307,"check xlookup for volume 1500",0,1),IF(FJ64>$V$307,_xlfn.XLOOKUP(FO64,$AA$303:$AD$303,$AA$308:$AD$308,"check xlookup for volume >1500",0,1),"")))))+IF(FW64=$W$311,$AA$311,$AA$312))/4)) -> 4 | WS64: =IF(OR(ISBLANK($P$21),ISBLANK($P$23)),"Enter Major/Minor Street Speeds",IF(GC64=0,,(IF(GC64<5,_xlfn.XLOOKUP(GC64,$W$287:$W$290,$AA$287:$AA$290,"error",0,1),$AA$291)+IF(GH64<=$V$294,$AA$294,IF(AND(GH64>$V$294,GH64<=$V$295),$AA$295,IF(AND(GH64>$V$295,GH64<=$V$296),$AA$296,IF(AND(GH64>$V$296,GH64<=$V$297),$AA$297,$AA$298))))+IF(GM64<=$V$304,_xlfn.XLOOKUP(GR64,AA$303:$AD$303,$AA$304:$AD$304,"check xlookup for volume 150",0,1),IF(AND(GM64>$V$304,GM64<=$V$305),_xlfn.XLOOKUP(GR64,$AA$303:$AD$303,$AA$305:$AD$305,"check xlookup for volume 300",0,1),IF(AND(GM64>$V$305,GM64<=$V$306),_xlfn.XLOOKUP(GR64,$AA$303:$AD$303,$AA$306:$AD$306,"check xlookup for volume 900",0,1),IF(AND(GM64>$V$306,GM64<=$V$307),_xlfn.XLOOKUP(GR64,$AA$303:$AD$303,$AA$307:$AD$307,"check xlookup for volume 1500",0,1),IF(GM64>$V$307,_xlfn.XLOOKUP(GR64,$AA$303:$AD$303,$AA$308:$AD$308,"check xlookup for volume >1500",0,1),"")))))+IF(GZ64=$W$311,$AA$311,$AA$312))/4)) -> 4.25 | XC64: =IF(OR(ISBLANK($P$21),ISBLANK($P$23)),"Enter Major/Minor Street Speeds",IF(HF64=0,,(IF(HF64<5,_xlfn.XLOOKUP(HF64,$W$287:$W$290,$AA$287:$AA$290,"error",0,1),$AA$291)+IF(HK64<=$V$294,$AA$294,IF(AND(HK64>$V$294,HK64<=$V$295),$AA$295,IF(AND(HK64>$V$295,HK64<=$V$296),$AA$296,IF(AND(HK64>$V$296,HK64<=$V$297),$AA$297,$AA$298))))+IF(HP64<=$V$304,_xlfn.XLOOKUP(HU64,AA$303:$AD$303,$AA$304:$AD$304,"check xlookup for volume 150",0,1),IF(AND(HP64>$V$304,HP64<=$V$305),_xlfn.XLOOKUP(HU64,$AA$303:$AD$303,$AA$305:$AD$305,"check xlookup for volume 300",0,1),IF(AND(HP64>$V$305,HP64<=$V$306),_xlfn.XLOOKUP(HU64,$AA$303:$AD$303,$AA$306:$AD$306,"check xlookup for volume 900",0,1),IF(AND(HP64>$V$306,HP64<=$V$307),_xlfn.XLOOKUP(HU64,$AA$303:$AD$303,$AA$307:$AD$307,"check xlookup for volume 1500",0,1),IF(HP64>$V$307,_xlfn.XLOOKUP(HU64,$AA$303:$AD$303,$AA$308:$AD$308,"check xlookup for volume >1500",0,1),"")))))+IF(IC64=$W$311,$AA$311,$AA$312))/4)) -> 3.75 | XM64: =IF(OR(ISBLANK($P$21),ISBLANK($P$23)),"Enter Major/Minor Street Speeds",IF(II64=0,,(IF(II64<5,_xlfn.XLOOKUP(II64,$W$287:$W$290,$AA$287:$AA$290,"error",0,1),$AA$291)+IF(IN64<=$V$294,$AA$294,IF(AND(IN64>$V$294,IN64<=$V$295),$AA$295,IF(AND(IN64>$V$295,IN64<=$V$296),$AA$296,IF(AND(IN64>$V$296,IN64<=$V$297),$AA$297,$AA$298))))+IF(IS64<=$V$304,_xlfn.XLOOKUP(IX64,AA$303:$AD$303,$AA$304:$AD$304,"check xlookup for volume 150",0,1),IF(AND(IS64>$V$304,IS64<=$V$305),_xlfn.XLOOKUP(IX64,$AA$303:$AD$303,$AA$305:$AD$305,"check xlookup for volume 300",0,1),IF(AND(IS64>$V$305,IS64<=$V$306),_xlfn.XLOOKUP(IX64,$AA$303:$AD$303,$AA$306:$AD$306,"check xlookup for volume 900",0,1),IF(AND(IS64>$V$306,IS64<=$V$307),_xlfn.XLOOKUP(IX64,$AA$303:$AD$303,$AA$307:$AD$307,"check xlookup for volume 1500",0,1),IF(IS64>$V$307,_xlfn.XLOOKUP(IX64,$AA$303:$AD$303,$AA$308:$AD$308,"check xlookup for volume >1500",0,1),"")))))+IF(JF64=$W$311,$AA$311,$AA$312))/4)) -> 4 | XW64: =IF(OR(ISBLANK($P$21),ISBLANK($P$23)),"Enter Major/Minor Street Speeds",IF(JL64=0,,(IF(JL64<5,_xlfn.XLOOKUP(JL64,$W$287:$W$290,$AA$287:$AA$290,"error",0,1),$AA$291)+IF(JQ64<=$V$294,$AA$294,IF(AND(JQ64>$V$294,JQ64<=$V$295),$AA$295,IF(AND(JQ64>$V$295,JQ64<=$V$296),$AA$296,IF(AND(JQ64>$V$296,JQ64<=$V$297),$AA$297,$AA$298))))+IF(JV64<=$V$304,_xlfn.XLOOKUP(KA64,AA$303:$AD$303,$AA$304:$AD$304,"check xlookup for volume 150",0,1),IF(AND(JV64>$V$304,JV64<=$V$305),_xlfn.XLOOKUP(KA64,$AA$303:$AD$303,$AA$305:$AD$305,"check xlookup for volume 300",0,1),IF(AND(JV64>$V$305,JV64<=$V$306),_xlfn.XLOOKUP(KA64,$AA$303:$AD$303,$AA$306:$AD$306,"check xlookup for volume 900",0,1),IF(AND(JV64>$V$306,JV64<=$V$307),_xlfn.XLOOKUP(KA64,$AA$303:$AD$303,$AA$307:$AD$307,"check xlookup for volume 1500",0,1),IF(JV64>$V$307,_xlfn.XLOOKUP(KA64,$AA$303:$AD$303,$AA$308:$AD$308,"check xlookup for volume >1500",0,1),"")))))+IF(KI64=$W$311,$AA$311,$AA$312))/4)) -> 3 | YG64: =IF(OR(ISBLANK($P$21),ISBLANK($P$23)),"Enter Major/Minor Street Speeds",IF(KO64=0,,(IF(KO64<5,_xlfn.XLOOKUP(KO64,$W$287:$W$290,$AA$287:$AA$290,"error",0,1),$AA$291)+IF(KT64<=$V$294,$AA$294,IF(AND(KT64>$V$294,KT64<=$V$295),$AA$295,IF(AND(KT64>$V$295,KT64<=$V$296),$AA$296,IF(AND(KT64>$V$296,KT64<=$V$297),$AA$297,$AA$298))))+IF(KY64<=$V$304,_xlfn.XLOOKUP(LD64,AA$303:$AD$303,$AA$304:$AD$304,"check xlookup for volume 150",0,1),IF(AND(KY64>$V$304,KY64<=$V$305),_xlfn.XLOOKUP(LD64,$AA$303:$AD$303,$AA$305:$AD$305,"check xlookup for volume 300",0,1),IF(AND(KY64>$V$305,KY64<=$V$306),_xlfn.XLOOKUP(LD64,$AA$303:$AD$303,$AA$306:$AD$306,"check xlookup for volume 900",0,1),IF(AND(KY64>$V$306,KY64<=$V$307),_xlfn.XLOOKUP(LD64,$AA$303:$AD$303,$AA$307:$AD$307,"check xlookup for volume 1500",0,1),IF(KY64>$V$307,_xlfn.XLOOKUP(LD64,$AA$303:$AD$303,$AA$308:$AD$308,"check xlookup for volume >1500",0,1),"")))))+IF(LL64=$W$311,$AA$311,$AA$312))/4)) -> 2.25 | YQ64: =IF(OR(ISBLANK($P$21),ISBLANK($P$23)),"Enter Major/Minor Street Speeds",IF(LR64=0,,(IF(LR64<5,_xlfn.XLOOKUP(LR64,$W$287:$W$290,$AA$287:$AA$290,"error",0,1),$AA$291)+IF(LW64<=$V$294,$AA$294,IF(AND(LW64>$V$294,LW64<=$V$295),$AA$295,IF(AND(LW64>$V$295,LW64<=$V$296),$AA$296,IF(AND(LW64>$V$296,LW64<=$V$297),$AA$297,$AA$298))))+IF(MB64<=$V$304,_xlfn.XLOOKUP(MG64,AA$303:$AD$303,$AA$304:$AD$304,"check xlookup for volume 150",0,1),IF(AND(MB64>$V$304,MB64<=$V$305),_xlfn.XLOOKUP(MG64,$AA$303:$AD$303,$AA$305:$AD$305,"check xlookup for volume 300",0,1),IF(AND(MB64>$V$305,MB64<=$V$306),_xlfn.XLOOKUP(MG64,$AA$303:$AD$303,$AA$306:$AD$306,"check xlookup for volume 900",0,1),IF(AND(MB64>$V$306,MB64<=$V$307),_xlfn.XLOOKUP(MG64,$AA$303:$AD$303,$AA$307:$AD$307,"check xlookup for volume 1500",0,1),IF(MB64>$V$307,_xlfn.XLOOKUP(MG64,$AA$303:$AD$303,$AA$308:$AD$308,"check xlookup for volume >1500",0,1),"")))))+IF(MO64=$W$311,$AA$311,$AA$312))/4)) -> 4 | ZA64: =IF(OR(ISBLANK($P$21),ISBLANK($P$23)),"Enter Major/Minor Street Speeds",IF(MU64=0,,(IF(MU64<5,_xlfn.XLOOKUP(MU64,$W$287:$W$290,$AA$287:$AA$290,"error",0,1),$AA$291)+IF(MZ64<=$V$294,$AA$294,IF(AND(MZ64>$V$294,MZ64<=$V$295),$AA$295,IF(AND(MZ64>$V$295,MZ64<=$V$296),$AA$296,IF(AND(MZ64>$V$296,MZ64<=$V$297),$AA$297,$AA$298))))+IF(NE64<=$V$304,_xlfn.XLOOKUP(NJ64,AA$303:$AD$303,$AA$304:$AD$304,"check xlookup for volume 150",0,1),IF(AND(NE64>$V$304,NE64<=$V$305),_xlfn.XLOOKUP(NJ64,$AA$303:$AD$303,$AA$305:$AD$305,"check xlookup for volume 300",0,1),IF(AND(NE64>$V$305,NE64<=$V$306),_xlfn.XLOOKUP(NJ64,$AA$303:$AD$303,$AA$306:$AD$306,"check xlookup for volume 900",0,1),IF(AND(NE64>$V$306,NE64<=$V$307),_xlfn.XLOOKUP(NJ64,$AA$303:$AD$303,$AA$307:$AD$307,"check xlookup for volume 1500",0,1),IF(NE64>$V$307,_xlfn.XLOOKUP(NJ64,$AA$303:$AD$303,$AA$308:$AD$308,"check xlookup for volume >1500",0,1),"")))))+IF(NR64=$W$311,$AA$311,$AA$312))/4)) -> 4.25 | ZK64: =IF(OR(ISBLANK($P$21),ISBLANK($P$23)),"Enter Major/Minor Street Speeds",IF(NX64=0,,(IF(NX64<5,_xlfn.XLOOKUP(NX64,$W$287:$W$290,$AA$287:$AA$290,"error",0,1),$AA$291)+IF(OC64<=$V$294,$AA$294,IF(AND(OC64>$V$294,OC64<=$V$295),$AA$295,IF(AND(OC64>$V$295,OC64<=$V$296),$AA$296,IF(AND(OC64>$V$296,OC64<=$V$297),$AA$297,$AA$298))))+IF(OH64<=$V$304,_xlfn.XLOOKUP(OM64,AA$303:$AD$303,$AA$304:$AD$304,"check xlookup for volume 150",0,1),IF(AND(OH64>$V$304,OH64<=$V$305),_xlfn.XLOOKUP(OM64,$AA$303:$AD$303,$AA$305:$AD$305,"check xlookup for volume 300",0,1),IF(AND(OH64>$V$305,OH64<=$V$306),_xlfn.XLOOKUP(OM64,$AA$303:$AD$303,$AA$306:$AD$306,"check xlookup for volume 900",0,1),IF(AND(OH64>$V$306,OH64<=$V$307),_xlfn.XLOOKUP(OM64,$AA$303:$AD$303,$AA$307:$AD$307,"check xlookup for volume 1500",0,1),IF(OH64>$V$307,_xlfn.XLOOKUP(OM64,$AA$303:$AD$303,$AA$308:$AD$308,"check xlookup for volume >1500",0,1),"")))))+IF(OU64=$W$311,$AA$311,$AA$312))/4)) -> 3.75 | ZU64: =IF(OR(ISBLANK($P$21),ISBLANK($P$23)),"Enter Major/Minor Street Speeds",IF(PA64=0,,(IF(PA64<5,_xlfn.XLOOKUP(PA64,$W$287:$W$290,$AA$287:$AA$290,"error",0,1),$AA$291)+IF(PF64<=$V$294,$AA$294,IF(AND(PF64>$V$294,PF64<=$V$295),$AA$295,IF(AND(PF64>$V$295,PF64<=$V$296),$AA$296,IF(AND(PF64>$V$296,PF64<=$V$297),$AA$297,$AA$298))))+IF(PK64<=$V$304,_xlfn.XLOOKUP(PP64,AA$303:$AD$303,$AA$304:$AD$304,"check xlookup for volume 150",0,1),IF(AND(PK64>$V$304,PK64<=$V$305),_xlfn.XLOOKUP(PP64,$AA$303:$AD$303,$AA$305:$AD$305,"check xlookup for volume 300",0,1),IF(AND(PK64>$V$305,PK64<=$V$306),_xlfn.XLOOKUP(PP64,$AA$303:$AD$303,$AA$306:$AD$306,"check xlookup for volume 900",0,1),IF(AND(PK64>$V$306,PK64<=$V$307),_xlfn.XLOOKUP(PP64,$AA$303:$AD$303,$AA$307:$AD$307,"check xlookup for volume 1500",0,1),IF(PK64>$V$307,_xlfn.XLOOKUP(PP64,$AA$303:$AD$303,$AA$308:$AD$308,"check xlookup for volume >1500",0,1),"")))))+IF(PX64=$W$311,$AA$311,$AA$312))/4)) -> 3.75 | AAE64: =IF(OR(ISBLANK($P$21),ISBLANK($P$23)),"Enter Major/Minor Street Speeds",IF(QD64=0,,(IF(QD64<5,_xlfn.XLOOKUP(QD64,$W$287:$W$290,$AA$287:$AA$290,"error",0,1),$AA$291)+IF(QI64<=$V$294,$AA$294,IF(AND(QI64>$V$294,QI64<=$V$295),$AA$295,IF(AND(QI64>$V$295,QI64<=$V$296),$AA$296,IF(AND(QI64>$V$296,QI64<=$V$297),$AA$297,$AA$298))))+IF(QN64<=$V$304,_xlfn.XLOOKUP(QS64,AA$303:$AD$303,$AA$304:$AD$304,"check xlookup for volume 150",0,1),IF(AND(QN64>$V$304,QN64<=$V$305),_xlfn.XLOOKUP(QS64,$AA$303:$AD$303,$AA$305:$AD$305,"check xlookup for volume 300",0,1),IF(AND(QN64>$V$305,QN64<=$V$306),_xlfn.XLOOKUP(QS64,$AA$303:$AD$303,$AA$306:$AD$306,"check xlookup for volume 900",0,1),IF(AND(QN64>$V$306,QN64<=$V$307),_xlfn.XLOOKUP(QS64,$AA$303:$AD$303,$AA$307:$AD$307,"check xlookup for volume 1500",0,1),IF(QN64>$V$307,_xlfn.XLOOKUP(QS64,$AA$303:$AD$303,$AA$308:$AD$308,"check xlookup for volume >1500",0,1),"")))))+IF(RA64=$W$311,$AA$311,$AA$312))/4)) -> 4 | AAO64: =IF(OR(ISBLANK($P$21),ISBLANK($P$23)),"Enter Major/Minor Street Speeds",IF(RG64=0,,(IF(RG64<5,_xlfn.XLOOKUP(RG64,$W$287:$W$290,$AA$287:$AA$290,"error",0,1),$AA$291)+IF(RL64<=$V$294,$AA$294,IF(AND(RL64>$V$294,RL64<=$V$295),$AA$295,IF(AND(RL64>$V$295,RL64<=$V$296),$AA$296,IF(AND(RL64>$V$296,RL64<=$V$297),$AA$297,$AA$298))))+IF(RQ64<=$V$304,_xlfn.XLOOKUP(RV64,AA$303:$AD$303,$AA$304:$AD$304,"check xlookup for volume 150",0,1),IF(AND(RQ64>$V$304,RQ64<=$V$305),_xlfn.XLOOKUP(RV64,$AA$303:$AD$303,$AA$305:$AD$305,"check xlookup for volume 300",0,1),IF(AND(RQ64>$V$305,RQ64<=$V$306),_xlfn.XLOOKUP(RV64,$AA$303:$AD$303,$AA$306:$AD$306,"check xlookup for volume 900",0,1),IF(AND(RQ64>$V$306,RQ64<=$V$307),_xlfn.XLOOKUP(RV64,$AA$303:$AD$303,$AA$307:$AD$307,"check xlookup for volume 1500",0,1),IF(RQ64>$V$307,_xlfn.XLOOKUP(RV64,$AA$303:$AD$303,$AA$308:$AD$308,"check xlookup for volume >1500",0,1),"")))))+IF(SD64=$W$311,$AA$311,$AA$312))/4)) -> 4 | AAY64: =IF(OR(ISBLANK($P$21),ISBLANK($P$23)),"Enter Major/Minor Street Speeds",IF(SJ64=0,,(IF(SJ64<5,_xlfn.XLOOKUP(SJ64,$W$287:$W$290,$AA$287:$AA$290,"error",0,1),$AA$291)+IF(SO64<=$V$294,$AA$294,IF(AND(SO64>$V$294,SO64<=$V$295),$AA$295,IF(AND(SO64>$V$295,SO64<=$V$296),$AA$296,IF(AND(SO64>$V$296,SO64<=$V$297),$AA$297,$AA$298))))+IF(ST64<=$V$304,_xlfn.XLOOKUP(SY64,AA$303:$AD$303,$AA$304:$AD$304,"check xlookup for volume 150",0,1),IF(AND(ST64>$V$304,ST64<=$V$305),_xlfn.XLOOKUP(SY64,$AA$303:$AD$303,$AA$305:$AD$305,"check xlookup for volume 300",0,1),IF(AND(ST64>$V$305,ST64<=$V$306),_xlfn.XLOOKUP(SY64,$AA$303:$AD$303,$AA$306:$AD$306,"check xlookup for volume 900",0,1),IF(AND(ST64>$V$306,ST64<=$V$307),_xlfn.XLOOKUP(SY64,$AA$303:$AD$303,$AA$307:$AD$307,"check xlookup for volume 1500",0,1),IF(ST64>$V$307,_xlfn.XLOOKUP(SY64,$AA$303:$AD$303,$AA$308:$AD$308,"check xlookup for volume >1500",0,1),"")))))+IF(TG64=$W$311,$AA$311,$AA$312))/4)) -> 2.75 | ABI64: =IF(OR(ISBLANK($P$21),ISBLANK($P$23)),"Enter Major/Minor Street Speeds",IF(TM64=0,,(IF(TM64<5,_xlfn.XLOOKUP(TM64,$W$287:$W$290,$AA$287:$AA$290,"error",0,1),$AA$291)+IF(TR64<=$V$294,$AA$294,IF(AND(TR64>$V$294,TR64<=$V$295),$AA$295,IF(AND(TR64>$V$295,TR64<=$V$296),$AA$296,IF(AND(TR64>$V$296,TR64<=$V$297),$AA$297,$AA$298))))+IF(TW64<=$V$304,_xlfn.XLOOKUP(UB64,AA$303:$AD$303,$AA$304:$AD$304,"check xlookup for volume 150",0,1),IF(AND(TW64>$V$304,TW64<=$V$305),_xlfn.XLOOKUP(UB64,$AA$303:$AD$303,$AA$305:$AD$305,"check xlookup for volume 300",0,1),IF(AND(TW64>$V$305,TW64<=$V$306),_xlfn.XLOOKUP(UB64,$AA$303:$AD$303,$AA$306:$AD$306,"check xlookup for volume 900",0,1),IF(AND(TW64>$V$306,TW64<=$V$307),_xlfn.XLOOKUP(UB64,$AA$303:$AD$303,$AA$307:$AD$307,"check xlookup for volume 1500",0,1),IF(TW64>$V$307,_xlfn.XLOOKUP(UB64,$AA$303:$AD$303,$AA$308:$AD$308,"check xlookup for volume >1500",0,1),"")))))+IF(UJ64=$W$311,$AA$311,$AA$312))/4)) -> 2
